{"text_format":"1","workbook":"xlsx","n_sheets":7,"sheets":["Instruções - Propriedade","Lista Verificação Propriedade","Relatório da Farma","Instruções - Fomento","Lista de Verificação de Fomento","Relatório do Fomento","DropDowns"],"not_rendered":{"charts":0,"images":7,"macros":0,"external_links":0,"defined_names":6,"comments":0,"pivot_tables":0},"unopened":[],"bounds":{"document_bytes":16777216,"sheet_cells":100000,"rows_first":2000,"rows_last":500,"rows_between":2000,"halvings":0,"cell_chars":16384,"cell_head_chars":4096},"cells_cut":0,"cells_raw":0,"read":"whole","date_system":"1900"}

{"sheet":"Instruções - Propriedade","index":0,"n_rows":40,"n_cols":2,"rows_kept":40,"cut":false,"hidden":false,"merged":[[1,1,1,16],[39,1,39,16],[38,1,38,16]]}
[]
[null,"FERRAMENTA DE NAVEGAÇÃO & INSTRUÇÕES DE ENTRADA"]
[]
[]
[]
[]
[]
[]
[]
[]
[]
[]
[]
[]
[]
[]
[]
[]
[]
[]
[]
[]
[]
[]
[]
[]
[]
[]
[]
[]
[]
[]
[]
[]
[]
[]
[]
[]
[]
[null,"LISTA DE VERIFICAÇÃO DA PROPRIEDADE & INSTRUÇÕES DE REPORTE"]

{"sheet":"Lista Verificação Propriedade","index":1,"n_rows":397,"n_cols":10,"rows_kept":397,"cut":false,"hidden":false,"merged":[]}
[]
[null,1,"Lista de verificação da avaliação",null,"Estado/Ponto de Situação","Comentários e Documentação","Risco (1=baixo; 3=alto)",null,"Report Ident","Group"]
[null,2]
[null,3,"I. Política Corporativa e Avaliação de Capacidade",{"$f":"IF(COUNT(D6:D22)=0,\"\",ROUND(SUM(D6:D22)/COUNT(D6:D22),0))","v":""},null,null,{"$f":"IFERROR(ROUND(SUM(G5:G23)/COUNT(G5:G23),0),\"\")","v":""}]
[null,4]
[null,5,"1.1 Política de Avaliação"]
[null,6,"1.1.1 A empresa possui uma política relacionada com investimentos responsáveis na questão de terra?",{"$f":"IF(OR(E7=\"\",E7=\"(seleccione a opção)\"),\"\",IF(VLOOKUP(E7,DropDowns!B:D,3,0)=0,\"\",VLOOKUP(E7,DropDowns!B:D,3,0)))","v":""},"(seleccione a opção)",null,"(seleccione o nível)",null,{"$f":"IF(OR(AND(D7<3,E7<>\"N/A\" ),AND(G7>1,G7<>\"(seleccione o nível)\",E7<>\"N/A\")),\"Yes\",\"No\")","v":"No"},1]
[null,7,"1.1.2 Se sim, a política já foi implementada ou existe um plano para a sua implementação?",{"$f":"IF(OR(E8=\"\",E8=\"(seleccione a opção)\"),\"\",IF(VLOOKUP(E8,DropDowns!B:D,3,0)=0,\"\",VLOOKUP(E8,DropDowns!B:D,3,0)))","v":""},"(seleccione a opção)",null,"(seleccione o nível)",null,{"$f":"IF(OR(AND(D8<3,E8<>\"N/A\" ),AND(G8>1,G8<>\"(seleccione o nível)\",E8<>\"N/A\")),\"Yes\",\"No\")","v":"No"},1]
[null,8,"1.1.3 A empresa possui uma política sobre direitos das mulheres, incluindo direito à terra?",{"$f":"IF(OR(E9=\"\",E9=\"(seleccione a opção)\"),\"\",IF(VLOOKUP(E9,DropDowns!B:D,3,0)=0,\"\",VLOOKUP(E9,DropDowns!B:D,3,0)))","v":""},"(seleccione a opção)",null,"(seleccione o nível)",null,"No",1]
[null,9,"1.1.4 Se sim, a política já foi implementada ou existe um plano para a sua implementação?",{"$f":"IF(OR(E10=\"\",E10=\"(seleccione a opção)\"),\"\",IF(VLOOKUP(E10,DropDowns!B:D,3,0)=0,\"\",VLOOKUP(E10,DropDowns!B:D,3,0)))","v":""},"(seleccione a opção)",null,"(seleccione o nível)",null,"No",1]
[null,10,"1.1.5 A empresa tem uma política sobre como realizar Estudos de Impacto Ambiental e Social que inclui medir impactos na segurança da posse da terra, meio ambiente, relações sociais, segurança alimentar, direitos humanos e direitos das mulheres?",{"$f":"IF(OR(E11=\"\",E11=\"(seleccione a opção)\"),\"\",IF(VLOOKUP(E11,DropDowns!B:D,3,0)=0,\"\",VLOOKUP(E11,DropDowns!B:D,3,0)))","v":""},"(seleccione a opção)",null,"(seleccione o nível)",null,"No",1]
[null,11,"1.1.6 A empresa possui uma política de \"tolerância zero\" à corrupção?",{"$f":"IF(OR(E12=\"\",E12=\"(seleccione a opção)\"),\"\",IF(VLOOKUP(E12,DropDowns!B:D,3,0)=0,\"\",VLOOKUP(E12,DropDowns!B:D,3,0)))","v":""},"(seleccione a opção)",null,"(seleccione o nível)",null,"No",1]
[null,12,null,{"$f":"IF(OR(E13=\"\",E13=\"(select option)\"),\"\",VLOOKUP(E13,DropDowns!C:D,2,0))","v":""},null,null,null,null,"No",1]
[null,13,null,{"$f":"IF(OR(E14=\"\",E14=\"(select option)\"),\"\",VLOOKUP(E14,DropDowns!C:D,2,0))","v":""},null,null,null,null,"No",1]
[null,14,"1.2 Avaliação de Capacidade",{"$f":"IF(OR(E15=\"\",E15=\"(select option)\"),\"\",VLOOKUP(E15,DropDowns!C:D,2,0))","v":""},null,null,null,null,"No",1]
[null,15,"1.2.1 A empresa possui a capacidade necessária para avaliar o quadro institucional, legal e de políticas?",{"$f":"IF(OR(E16=\"\",E16=\"(seleccione a opção)\"),\"\",IF(VLOOKUP(E16,DropDowns!B:D,3,0)=0,\"\",VLOOKUP(E16,DropDowns!B:D,3,0)))","v":""},"(seleccione a opção)",null,"(seleccione o nível)",null,"No",1]
[null,16,"1.2.2 A empresa possui os conhecimentos necessários para realizar as Avaliações de Impacto sobre a posse de Terra e Estudos de Impacto Ambiental e Social, que incluem a avaliação dos impactos dos direitos humanos e da segurança alimentar? A empresa também tem capacidade para desenvolver um plano de como evitar ou mitigar esses impactos?",{"$f":"IF(OR(E17=\"\",E17=\"(seleccione a opção)\"),\"\",IF(VLOOKUP(E17,DropDowns!B:D,3,0)=0,\"\",VLOOKUP(E17,DropDowns!B:D,3,0)))","v":""},"(seleccione a opção)",null,"(seleccione o nível)",null,"No",1]
[null,17,"1.2.3 A empresa possui a capacidade necessária para avaliar as percepções e preocupações da comunidade?",{"$f":"IF(OR(E18=\"\",E18=\"(seleccione a opção)\"),\"\",IF(VLOOKUP(E18,DropDowns!B:D,3,0)=0,\"\",VLOOKUP(E18,DropDowns!B:D,3,0)))","v":""},"(seleccione a opção)",null,"(seleccione o nível)",null,"No",1]
[null,18,"1.2.4 A empresa possui capacidade necessária para avaliar impactos mais amplos nas comunidades locais (por exemplo, oficiais de ligação comunitária, canais de comunicação bi-direccionais)?",{"$f":"IF(OR(E19=\"\",E19=\"(seleccione a opção)\"),\"\",IF(VLOOKUP(E19,DropDowns!B:D,3,0)=0,\"\",VLOOKUP(E19,DropDowns!B:D,3,0)))","v":""},"(seleccione a opção)",null,"(seleccione o nível)",null,"No",1]
[null,19,"1.2.5 O pessoal relevante tem tempo e recursos para se envolver com as principais partes interessadas em torno dos direitos à terra (por exemplo, fundos fiduciários, associações, cooperativas, agricultores, líderes e membros da comunidade, governo local, etc.)? ",{"$f":"IF(OR(E20=\"\",E20=\"(seleccione a opção)\"),\"\",IF(VLOOKUP(E20,DropDowns!B:D,3,0)=0,\"\",VLOOKUP(E20,DropDowns!B:D,3,0)))","v":""},"(seleccione a opção)",null,"(seleccione o nível)",null,"No",1]
[null,20,"1.2.6 O pessoal relevante tem autoridade e apoio institucional suficientes para desempenhar as suas funções relacionadas com a terra (por exemplo, as tarefas da lista de descrições de emprego estão ligadas a avaliações de desempenho)?",{"$f":"IF(OR(E21=\"\",E21=\"(seleccione a opção)\"),\"\",IF(VLOOKUP(E21,DropDowns!B:D,3,0)=0,\"\",VLOOKUP(E21,DropDowns!B:D,3,0)))","v":""},"(seleccione a opção)",null,"(seleccione o nível)",null,"No",1]
[null,21,"1.2.7 A empresa tem uma boa compreensão do clima de corrupção no país, especificamente na localidade onde o investimento ocorre?",{"$f":"IF(OR(E22=\"\",E22=\"(seleccione a opção)\"),\"\",IF(VLOOKUP(E22,DropDowns!B:D,3,0)=0,\"\",VLOOKUP(E22,DropDowns!B:D,3,0)))","v":""},"(seleccione a opção)",null,"(seleccione o nível)",null,"No",1]
[null,22,null,{"$f":"IF(OR(E23=\"\",E23=\"(select option)\"),\"\",VLOOKUP(E23,DropDowns!C:D,2,0))","v":""}]
[null,23,null,{"$f":"IF(OR(E24=\"\",E24=\"(select option)\"),\"\",VLOOKUP(E24,DropDowns!C:D,2,0))","v":""}]
[null,24,"II. Revisão Legal, Administrativa e Institucional",{"$f":"IF(COUNT(D27:D53)=0,\"\",ROUND(SUM(D27:D53)/COUNT(D27:D53),0))","v":""},null,null,{"$f":"IFERROR(ROUND(SUM(G26:G47)/COUNT(G26:G47),0),\"\")","v":""}]
[null,25,null,{"$f":"IF(OR(E26=\"\",E26=\"(select option)\"),\"\",VLOOKUP(E26,DropDowns!C:D,2,0))","v":""}]
[null,26,"2.1 Legislação e Revisão de Políticas",{"$f":"IF(OR(E27=\"\",E27=\"(select option)\"),\"\",VLOOKUP(E27,DropDowns!C:D,2,0))","v":""}]
[null,27,"2.1.1 Existem leis ou regulamentos domésticos que regem se e como as empresas estrangeiras e nacionais podem adquirir direitos à terra e / ou alterar o uso da terra?",{"$f":"IF(OR(E28=\"\",E28=\"(seleccione a opção)\"),\"\",IF(VLOOKUP(E28,DropDowns!B:D,3,0)=0,\"\",VLOOKUP(E28,DropDowns!B:D,3,0)))","v":""},"(seleccione a opção)",null,"(seleccione o nível)",null,{"$f":"IF(OR(AND(D28<3,E28<>\"N/A\" ),AND(G28>1,G28<>\"(seleccione o nível)\",E28<>\"N/A\")),\"Yes\",\"No\")","v":"No"},2]
[null,28,"2.1.2 Existem leis ou regulamentos que se aplicam especificamente a este projecto de investimento, além das leis nacionais que se aplicam a todas as empresas (por exemplo, Lei do Açúcar ou outras leis relacionadas a matérias-primas, Lei de Protecção Ambiental, etc.)?",{"$f":"IF(OR(E29=\"\",E29=\"(seleccione a opção)\"),\"\",IF(VLOOKUP(E29,DropDowns!B:D,3,0)=0,\"\",VLOOKUP(E29,DropDowns!B:D,3,0)))","v":""},"(seleccione a opção)",null,"(seleccione o nível)",null,"No",2]
[null,29,"2.1.3 As leis ou regulamentos acima foram implementados e são aplicados na prática?",{"$f":"IF(OR(E30=\"\",E30=\"(seleccione a opção)\"),\"\",IF(VLOOKUP(E30,DropDowns!B:D,3,0)=0,\"\",VLOOKUP(E30,DropDowns!B:D,3,0)))","v":""},"(seleccione a opção)",null,"(seleccione o nível)",null,"No",2]
[null,30,"2.1.4 Essas leis ou regulamentos fornecem protecções explícitas a direitos humanos ou à terra?",{"$f":"IF(OR(E31=\"\",E31=\"(seleccione a opção)\"),\"\",IF(VLOOKUP(E31,DropDowns!B:D,3,0)=0,\"\",VLOOKUP(E31,DropDowns!B:D,3,0)))","v":""},"(seleccione a opção)",null,"(seleccione o nível)",null,"No",2]
[null,31,"2.1.5 Existem restrições à aplicação de leis ou regulamentos internos dentro da área do projecto de investimento que possam afectar os direitos daqueles que lá vivem e trabalham?",{"$f":"IF(OR(E32=\"\",E32=\"(seleccione a opção)\"),\"\",IF(VLOOKUP(E32,DropDowns!B:D,3,0)=0,\"\",VLOOKUP(E32,DropDowns!B:D,3,0)))","v":""},"(seleccione a opção)",null,"(seleccione o nível)",null,"No",2]
[null,32,"2.1.6 Existem leis ou regulamentos internos relativos à expropriação? Se sim, quais são os requisitos que o governo deve seguir para expropriar terras?",{"$f":"IF(OR(E33=\"\",E33=\"(seleccione a opção)\"),\"\",IF(VLOOKUP(E33,DropDowns!B:D,3,0)=0,\"\",VLOOKUP(E33,DropDowns!B:D,3,0)))","v":""},"(seleccione a opção)",null,"(seleccione o nível)",null,"No",2]
[null,33,"2.1.7 As leis ou regulamentos domésticos reconhecem os direitos de posse da terra, incluindo direitos consuetudinários e informais de indivíduos e grupos? Essas leis ou regulamentos são aplicados?",{"$f":"IF(OR(E34=\"\",E34=\"(seleccione a opção)\"),\"\",IF(VLOOKUP(E34,DropDowns!B:D,3,0)=0,\"\",VLOOKUP(E34,DropDowns!B:D,3,0)))","v":""},"(seleccione a opção)",null,"(seleccione o nível)",null,"No",2]
[null,34,"2.1.8 As leis domésticas exigem que empresas estrangeiras e / ou nacionais realizem avaliações de impacto ambiental e / ou social  antes de adquirir terras ou mudar o uso da terra?  ",{"$f":"IF(OR(E35=\"\",E35=\"(seleccione a opção)\"),\"\",IF(VLOOKUP(E35,DropDowns!B:D,3,0)=0,\"\",VLOOKUP(E35,DropDowns!B:D,3,0)))","v":""},"(seleccione a opção)",null,"(seleccione o nível)",null,"No",2]
[null,35,"2.1.9 Se sim, as leis e regulamentos especificam quando é que as avaliações de impacto ambiental e social são necessárias (por exemplo, antes das negociações)? ",{"$f":"IF(OR(E36=\"\",E36=\"(seleccione a opção)\"),\"\",IF(VLOOKUP(E36,DropDowns!B:D,3,0)=0,\"\",VLOOKUP(E36,DropDowns!B:D,3,0)))","v":""},"(seleccione a opção)",null,"(seleccione o nível)",null,"No",2]
[null,36,"2.1.10 As leis e regulamentos requerem a medição dos impactos relacionados com a segurnça da posse da terra, segurança alimentar, e direitos humanos?",{"$f":"IF(OR(E37=\"\",E37=\"(seleccione a opção)\"),\"\",IF(VLOOKUP(E37,DropDowns!B:D,3,0)=0,\"\",VLOOKUP(E37,DropDowns!B:D,3,0)))","v":""},"(seleccione a opção)",null,"(seleccione o nível)",null,"No",2]
[null,37,"2.1.11 Sob actuais leis, políticas e costumes, que mecanismos de reclamação existem para cidadãos, membros das comunidades ou trabalhadores?  ",{"$f":"IF(OR(E38=\"\",E38=\"(seleccione a opção)\"),\"\",IF(VLOOKUP(E38,DropDowns!B:D,3,0)=0,\"\",VLOOKUP(E38,DropDowns!B:D,3,0)))","v":""},"(seleccione a opção)",null,"(seleccione o nível)",null,"No",2]
[null,38,"2.1.12 Esses mecanismos de queixa são acessíveis, funcionais e justos?",{"$f":"IF(OR(E39=\"\",E39=\"(seleccione a opção)\"),\"\",IF(VLOOKUP(E39,DropDowns!B:D,3,0)=0,\"\",VLOOKUP(E39,DropDowns!B:D,3,0)))","v":""},"(seleccione a opção)",null,"(seleccione o nível)",null,"No",2]
[null,39,null,{"$f":"IF(OR(E40=\"\",E40=\"(select option)\"),\"\",VLOOKUP(E40,DropDowns!C:D,2,0))","v":""},null,null,null,null,"No",2]
[null,40,null,{"$f":"IF(OR(E41=\"\",E41=\"(select option)\"),\"\",VLOOKUP(E41,DropDowns!C:D,2,0))","v":""},null,null,null,null,"No",2]
[null,41,"2.2 Revisão Administrativa",{"$f":"IF(OR(E42=\"\",E42=\"(select option)\"),\"\",VLOOKUP(E42,DropDowns!C:D,2,0))","v":""},null,null,null,null,"No",2]
[null,42,"2.2.1 Existem registos que documentam os direitos de terra na área do projecto?",{"$f":"IF(OR(E43=\"\",E43=\"(seleccione a opção)\"),\"\",IF(VLOOKUP(E43,DropDowns!B:D,3,0)=0,\"\",VLOOKUP(E43,DropDowns!B:D,3,0)))","v":""},"(seleccione a opção)",null,"(seleccione o nível)",null,"No",2]
[null,43,"2.2.2 Esses registos documentam direitos estatutários, consuetudinários e secundários?",{"$f":"IF(OR(E44=\"\",E44=\"(seleccione a opção)\"),\"\",IF(VLOOKUP(E44,DropDowns!B:D,3,0)=0,\"\",VLOOKUP(E44,DropDowns!B:D,3,0)))","v":""},"(seleccione a opção)",null,"(seleccione o nível)",null,"No",2]
[null,44,"2.2.3 Esses documentos providenciam direitos comuns ou partilhados a serem documentados?",{"$f":"IF(OR(E45=\"\",E45=\"(seleccione a opção)\"),\"\",IF(VLOOKUP(E45,DropDowns!B:D,3,0)=0,\"\",VLOOKUP(E45,DropDowns!B:D,3,0)))","v":""},"(seleccione a opção)",null,"(seleccione o nível)",null,"No",2]
[null,45,"2.2.4 Os membros da comunidade e o Governo têm acesso a esses registos?",{"$f":"IF(OR(E46=\"\",E46=\"(seleccione a opção)\"),\"\",IF(VLOOKUP(E46,DropDowns!B:D,3,0)=0,\"\",VLOOKUP(E46,DropDowns!B:D,3,0)))","v":""},"(seleccione a opção)",null,"(seleccione o nível)",null,"No",2]
[null,46,null,{"$f":"IF(OR(E47=\"\",E47=\"(select option)\"),\"\",VLOOKUP(E47,DropDowns!C:D,2,0))","v":""},null,null,null,null,"No",2]
[null,47,null,{"$f":"IF(OR(E48=\"\",E48=\"(select option)\"),\"\",VLOOKUP(E48,DropDowns!C:D,2,0))","v":""},null,null,null,null,"No",2]
[null,48,"2.3 Revisão Institucional",{"$f":"IF(OR(E49=\"\",E49=\"(select option)\"),\"\",VLOOKUP(E49,DropDowns!C:D,2,0))","v":""},null,null,null,null,"No",2]
[null,49,"2.3.1 Existem autoridades legais, administrativas ou consuetudinárias que actuem como garantes dos direitos fundiários e / ou regras de gestão colectiva?",{"$f":"IF(OR(E50=\"\",E50=\"(seleccione a opção)\"),\"\",IF(VLOOKUP(E50,DropDowns!B:D,3,0)=0,\"\",VLOOKUP(E50,DropDowns!B:D,3,0)))","v":""},"(seleccione a opção)",null,"(seleccione o nível)",null,"No",2]
[null,50,"2.3.2 Se sim, essas autoridades têm capacidade suficiente para actuarem como garantes?",{"$f":"IF(OR(E51=\"\",E51=\"(seleccione a opção)\"),\"\",IF(VLOOKUP(E51,DropDowns!B:D,3,0)=0,\"\",VLOOKUP(E51,DropDowns!B:D,3,0)))","v":""},"(seleccione a opção)",null,"(seleccione o nível)",null,"No",2]
[null,51,"2.3.3 Existem conflitos relacionados com a habilidade do garante/s proteger efectivamente os direitos à terra?",{"$f":"IF(OR(E52=\"\",E52=\"(seleccione a opção)\"),\"\",IF(VLOOKUP(E52,DropDowns!B:D,3,0)=0,\"\",VLOOKUP(E52,DropDowns!B:D,3,0)))","v":""},"(seleccione a opção)",null,"(seleccione o nível)",null,"No",2]
[null,52,null,{"$f":"IF(OR(E53=\"\",E53=\"(select option)\"),\"\",VLOOKUP(E53,DropDowns!C:D,2,0))","v":""}]
[null,53,null,{"$f":"IF(OR(E54=\"\",E54=\"(select option)\"),\"\",VLOOKUP(E54,DropDowns!C:D,2,0))","v":""}]
[null,54,"III. Avaliações de Impacto",{"$f":"IF(COUNT(D57:D82)=0,\"\",ROUND(SUM(D57:D82)/COUNT(D57:D82),0))","v":""},null,null,{"$f":"IFERROR(ROUND(SUM(G56:G82)/COUNT(G56:G82),0),\"\")","v":""}]
[null,55,null,{"$f":"IF(OR(E56=\"\",E56=\"(select option)\"),\"\",VLOOKUP(E56,DropDowns!C:D,2,0))","v":""}]
[null,56,"3.1 Avaliação da posse de terra ",{"$f":"IF(OR(E57=\"\",E57=\"(select option)\"),\"\",VLOOKUP(E57,DropDowns!C:D,2,0))","v":""}]
[null,57,"3.1.1 Como a empresa adquiriu direitos sobre suas actuais participações?",{"$f":"IF(OR(E58=\"\",E58=\"(seleccione a opção)\"),\"\",IF(VLOOKUP(E58,DropDowns!B:D,3,0)=0,\"\",VLOOKUP(E58,DropDowns!B:D,3,0)))","v":""},"(seleccione a opção)",null,"(seleccione o nível)",null,{"$f":"IF(OR(AND(D58<3,E58<>\"N/A\" ),AND(G58>1,G58<>\"(seleccione o nível)\",E58<>\"N/A\")),\"Yes\",\"No\")","v":"No"},3]
[null,58,"3.1.2 A transferência de terras envolveu expropriação pelo governo e deslocamento involuntário?",{"$f":"IF(OR(E59=\"\",E59=\"(seleccione a opção)\"),\"\",IF(VLOOKUP(E59,DropDowns!B:D,3,0)=0,\"\",VLOOKUP(E59,DropDowns!B:D,3,0)))","v":""},"(seleccione a opção)",null,"(seleccione o nível)",null,"No",3]
[null,59,"3.1.3 A empresa mapeou todos os detentores de direitos de terras e usuários afectados pela transferência dos direitos à terra?",{"$f":"IF(OR(E60=\"\",E60=\"(seleccione a opção)\"),\"\",IF(VLOOKUP(E60,DropDowns!B:D,3,0)=0,\"\",VLOOKUP(E60,DropDowns!B:D,3,0)))","v":""},"(seleccione a opção)",null,"(seleccione o nível)",null,"No",3]
[null,60,"3.1.4 O mapeamento captou o espectro de direitos sobre a terra de todos os proprietários de terras e usuários da terra, incluindo os direitos estatutários, costumeiros, sazonais, secundários, sobrepostos e outros direitos de uso?",{"$f":"IF(OR(E61=\"\",E61=\"(seleccione a opção)\"),\"\",IF(VLOOKUP(E61,DropDowns!B:D,3,0)=0,\"\",VLOOKUP(E61,DropDowns!B:D,3,0)))","v":""},"(seleccione a opção)",null,"(seleccione o nível)",null,"No",3]
[null,61,"3.1.5 O mapeamento captou os direitos de uso da terra das mulheres,  minorias e outros grupos vulneráveis?",{"$f":"IF(OR(E62=\"\",E62=\"(seleccione a opção)\"),\"\",IF(VLOOKUP(E62,DropDowns!B:D,3,0)=0,\"\",VLOOKUP(E62,DropDowns!B:D,3,0)))","v":""},"(seleccione a opção)",null,"(seleccione o nível)",null,"No",3]
[null,62,"3.1.6 A empresa procurou identificar quaisquer questões latentes ou históricas sobre a terra ou conflitos na área de investimento? E a empresa determinou se o investimento poderia exasperar tais questões ou conflitos??",{"$f":"IF(OR(E63=\"\",E63=\"(seleccione a opção)\"),\"\",IF(VLOOKUP(E63,DropDowns!B:D,3,0)=0,\"\",VLOOKUP(E63,DropDowns!B:D,3,0)))","v":""},"(seleccione a opção)",null,"(seleccione o nível)",null,"No",3]
[null,63,"3.1.7 Se sim, a empresa desenvolveu um plano de engajamento ou mitigação para resolver ou evitar o agravamento desses problemas ou conflitos?",{"$f":"IF(OR(E64=\"\",E64=\"(seleccione a opção)\"),\"\",IF(VLOOKUP(E64,DropDowns!B:D,3,0)=0,\"\",VLOOKUP(E64,DropDowns!B:D,3,0)))","v":""},"(seleccione a opção)",null,"(seleccione o nível)",null,"No",3]
[null,64,"3.1.8 Antes da transferência de terras, a empresa avaliou os impactos sobre os direitos à terra, incluindo direitos informais, como os direitos das mulheres, jovens e / ou grupos vulneráveis?",{"$f":"IF(OR(E65=\"\",E65=\"(seleccione a opção)\"),\"\",IF(VLOOKUP(E65,DropDowns!B:D,3,0)=0,\"\",VLOOKUP(E65,DropDowns!B:D,3,0)))","v":""},"(seleccione a opção)",null,"(seleccione o nível)",null,"No",3]
[null,65,"3.1.10 A empresa desenvolveu uma política ou estratégia para mitigar ou evitar efeitos negativos?",{"$f":"IF(OR(E66=\"\",E66=\"(seleccione a opção)\"),\"\",IF(VLOOKUP(E66,DropDowns!B:D,3,0)=0,\"\",VLOOKUP(E66,DropDowns!B:D,3,0)))","v":""},"(seleccione a opção)",null,"(seleccione o nível)",null,"No",3]
[null,66,"3.1.11 O desenho do projecto e/ou a configuração da terra mudou para mitigar tais impactos?",{"$f":"IF(OR(E67=\"\",E67=\"(seleccione a opção)\"),\"\",IF(VLOOKUP(E67,DropDowns!B:D,3,0)=0,\"\",VLOOKUP(E67,DropDowns!B:D,3,0)))","v":""},"(seleccione a opção)",null,"(seleccione o nível)",null,"No",3]
[null,67,"3.1.12 Aqueles cujos direitos de terra legítimos foram afectados receberam uma compensação imediata?",{"$f":"IF(OR(E68=\"\",E68=\"(seleccione a opção)\"),\"\",IF(VLOOKUP(E68,DropDowns!B:D,3,0)=0,\"\",VLOOKUP(E68,DropDowns!B:D,3,0)))","v":""},"(seleccione a opção)",null,"(seleccione o nível)",null,"No",3]
[null,68,"3.1.13 Se sim, a compensação foi justa, baseada numa valorização apropriada de perda de mercado e de valores não de mercado?",{"$f":"IF(OR(E69=\"\",E69=\"(seleccione a opção)\"),\"\",IF(VLOOKUP(E69,DropDowns!B:D,3,0)=0,\"\",VLOOKUP(E69,DropDowns!B:D,3,0)))","v":""},"(seleccione a opção)",null,"(seleccione o nível)",null,"No",3]
[null,69,"3.1.14 A empresa possui mecanismos para monitorizar e mitigar  impactos por via do ciclo de vida do projecto?",{"$f":"IF(OR(E70=\"\",E70=\"(seleccione a opção)\"),\"\",IF(VLOOKUP(E70,DropDowns!B:D,3,0)=0,\"\",VLOOKUP(E70,DropDowns!B:D,3,0)))","v":""},"(seleccione a opção)",null,"(seleccione o nível)",null,"No",3]
[null,70,null,{"$f":"IF(OR(E71=\"\",E71=\"(select option)\"),\"\",VLOOKUP(E71,DropDowns!C:D,2,0))","v":""},null,null,null,null,"No",3]
[null,71,null,{"$f":"IF(OR(E72=\"\",E72=\"(select option)\"),\"\",VLOOKUP(E72,DropDowns!C:D,2,0))","v":""},null,null,null,null,"No",3]
[null,72,"3.2 Avaliação de Impacto Social e Ambiental (AISA)",{"$f":"IF(OR(E73=\"\",E73=\"(select option)\"),\"\",VLOOKUP(E73,DropDowns!C:D,2,0))","v":""},null,null,null,null,"No",3]
[null,73,"3.2.1 A empresa avaliou o impacto a curto e longo prazo e os impactos ambientais e sociais directos e indirectos do investimento? ",{"$f":"IF(OR(E74=\"\",E74=\"(seleccione a opção)\"),\"\",IF(VLOOKUP(E74,DropDowns!B:D,3,0)=0,\"\",VLOOKUP(E74,DropDowns!B:D,3,0)))","v":""},"(seleccione a opção)",null,"(seleccione o nível)",null,"No",3]
[null,74,"3.2.2 A empresa desenvolveu um plano de mitigação para minimizar ou evitar impactos ambientais e sociais?",{"$f":"IF(OR(E75=\"\",E75=\"(seleccione a opção)\"),\"\",IF(VLOOKUP(E75,DropDowns!B:D,3,0)=0,\"\",VLOOKUP(E75,DropDowns!B:D,3,0)))","v":""},"(seleccione a opção)",null,"(seleccione o nível)",null,"No",3]
[null,75,"3.2.3 Como parte da AISA, a empresa avaliou os impactos de curto e longo prazo, directos e indirectos, sobre a segurança alimentar nas comunidades impactadas pelo investimento? ",{"$f":"IF(OR(E76=\"\",E76=\"(seleccione a opção)\"),\"\",IF(VLOOKUP(E76,DropDowns!B:D,3,0)=0,\"\",VLOOKUP(E76,DropDowns!B:D,3,0)))","v":""},"(seleccione a opção)",null,"(seleccione o nível)",null,"No",3]
[null,76,"3.2.4 A empresa desenvolveu um plano de mitigação para minimizar ou evitar os riscos de segurança alimentar?",{"$f":"IF(OR(E77=\"\",E77=\"(seleccione a opção)\"),\"\",IF(VLOOKUP(E77,DropDowns!B:D,3,0)=0,\"\",VLOOKUP(E77,DropDowns!B:D,3,0)))","v":""},"(seleccione a opção)",null,"(seleccione o nível)",null,"No",3]
[null,77,"3.2.5 A empresa já considerou mecanismos de melhoria da segurança alimentar?",{"$f":"IF(OR(E78=\"\",E78=\"(seleccione a opção)\"),\"\",IF(VLOOKUP(E78,DropDowns!B:D,3,0)=0,\"\",VLOOKUP(E78,DropDowns!B:D,3,0)))","v":""},"(seleccione a opção)",null,"(seleccione o nível)",null,"No",3]
[null,78,"3.2.6 Como parte da AISA, a empresa avaliou os impactos do investimento sobre os direitos humanos?",{"$f":"IF(OR(E79=\"\",E79=\"(seleccione a opção)\"),\"\",IF(VLOOKUP(E79,DropDowns!B:D,3,0)=0,\"\",VLOOKUP(E79,DropDowns!B:D,3,0)))","v":""},"(seleccione a opção)",null,"(seleccione o nível)",null,"No",3]
[null,79,"3.2.7 A empresa desenvolveu um plano de mitigação para minimizar os impactos sobre os direitos humanos?",{"$f":"IF(OR(E80=\"\",E80=\"(seleccione a opção)\"),\"\",IF(VLOOKUP(E80,DropDowns!B:D,3,0)=0,\"\",VLOOKUP(E80,DropDowns!B:D,3,0)))","v":""},"(seleccione a opção)",null,"(seleccione o nível)",null,"No",3]
[null,80,"3.2.8 A empresa possui mecanismos para monitorizar e mitigar impactos ao longo do ciclo de vida do projecto?",{"$f":"IF(OR(E81=\"\",E81=\"(seleccione a opção)\"),\"\",IF(VLOOKUP(E81,DropDowns!B:D,3,0)=0,\"\",VLOOKUP(E81,DropDowns!B:D,3,0)))","v":""},"(seleccione a opção)",null,"(seleccione o nível)",null,"No",3]
[null,81]
[null,82,null,{"$f":"IF(OR(E83=\"\",E83=\"(select option)\"),\"\",VLOOKUP(E83,DropDowns!C:D,2,0))","v":""}]
[null,83,"IV. Consultas e Engajamento",{"$f":"IF(COUNT(D86:D95)=0,\"\",ROUND(SUM(D86:D95)/COUNT(D86:D95),0))","v":""},null,null,{"$f":"IFERROR(ROUND(SUM(G85:G95)/COUNT(G85:G95),0),\"\")","v":""}]
[null,84,null,{"$f":"IF(OR(E85=\"\",E85=\"(select option)\"),\"\",VLOOKUP(E85,DropDowns!C:D,2,0))","v":""}]
[null,85,"4.1 Consultas e Engajamento",{"$f":"IF(OR(E86=\"\",E86=\"(select option)\"),\"\",VLOOKUP(E86,DropDowns!C:D,2,0))","v":""}]
[null,86,"4.1.1 A empresa partilhou todas as informações relevantes relacionadas com as operações actuais e / ou ao projeto proposto (incluindo o propósito, escopo, impactos, cronogramas e modelo de negócios e riscos do projeto, resultados da AISA, informações contratuais) com os detentores e usuários de terras afectados?",{"$f":"IF(OR(E87=\"\",E87=\"(seleccione a opção)\"),\"\",IF(VLOOKUP(E87,DropDowns!B:D,3,0)=0,\"\",VLOOKUP(E87,DropDowns!B:D,3,0)))","v":""},"(seleccione a opção)",null,"(seleccione o nível)",null,{"$f":"IF(OR(AND(D87<3,E87<>\"N/A\" ),AND(G87>1,G87<>\"(seleccione o nível)\",E87<>\"N/A\")),\"Yes\",\"No\")","v":"No"},4]
[null,87,"4.1.2 Todas as informações relevantes foram partilhadas de maneira acessível (por exemplo, em idiomas locais, em tempo útil, de forma transparente, em horários e locais acessíveis, em locais apropriados, etc.)?",{"$f":"IF(OR(E88=\"\",E88=\"(seleccione a opção)\"),\"\",IF(VLOOKUP(E88,DropDowns!B:D,3,0)=0,\"\",VLOOKUP(E88,DropDowns!B:D,3,0)))","v":""},"(seleccione a opção)",null,"(seleccione o nível)",null,"No",4]
[null,88,"4.1.3 A empresa tomou medidas para ajudar as comunidades e outras partes interessadas a desenvolver capacidade suficiente para se engajar em consultas significativas e justas?",{"$f":"IF(OR(E89=\"\",E89=\"(seleccione a opção)\"),\"\",IF(VLOOKUP(E89,DropDowns!B:D,3,0)=0,\"\",VLOOKUP(E89,DropDowns!B:D,3,0)))","v":""},"(seleccione a opção)",null,"(seleccione o nível)",null,"No",4]
[null,89,"4.1.4 A empresa desenvolveu um plano de engajamento de partes interessadas que inclui o engajamento com comunidades em todos os níveis e incluindo mulheres e outros grupos vulneráveis (por exemplo, pastores de gado, comunidades locais, etc.)?",{"$f":"IF(OR(E90=\"\",E90=\"(seleccione a opção)\"),\"\",IF(VLOOKUP(E90,DropDowns!B:D,3,0)=0,\"\",VLOOKUP(E90,DropDowns!B:D,3,0)))","v":""},"(seleccione a opção)",null,"(seleccione o nível)",null,"No",4]
[null,90,"4.1.5 A empresa realizou consultas com detentores e usuários de terra afectados durante as fases críticas da transferência de terras ou implementação de um projeto que afecta os interesses da terra (por exemplo, após os resultados da AISA serem divulgados, antes das negociações, etc.)?",{"$f":"IF(OR(E91=\"\",E91=\"(seleccione a opção)\"),\"\",IF(VLOOKUP(E91,DropDowns!B:D,3,0)=0,\"\",VLOOKUP(E91,DropDowns!B:D,3,0)))","v":""},"(seleccione a opção)",null,"(seleccione o nível)",null,"No",4]
[null,91,"4.1.6 Existem mecanismos (por exemplo, um comité de supervisão com mandato e com recursos suficientes que inclua representantes das partes interessadas) para facilitar as linhas de comunicação bi-direccionais entre as comunidades, a empresa e o governo?",{"$f":"IF(OR(E92=\"\",E92=\"(seleccione a opção)\"),\"\",IF(VLOOKUP(E92,DropDowns!B:D,3,0)=0,\"\",VLOOKUP(E92,DropDowns!B:D,3,0)))","v":""},"(seleccione a opção)",null,"(seleccione o nível)",null,"No",4]
[null,92,"4.1.7 Listar/Descrever esses mecanismos",{"$f":"IF(OR(E93=\"\",E93=\"(seleccione a opção)\"),\"\",IF(VLOOKUP(E93,DropDowns!B:D,3,0)=0,\"\",VLOOKUP(E93,DropDowns!B:D,3,0)))","v":""},"(seleccione a opção)",null,"(seleccione o nível)",null,"No",4]
[null,93,"4.1.8 A empresa faz publica toda a informação relevante, que não é  comercialmente confidencial, para as partes interessadas afectadas e o público tomarem conhecimento de todas as fases do projecto, incluindo informações contratuais?",{"$f":"IF(OR(E94=\"\",E94=\"(seleccione a opção)\"),\"\",IF(VLOOKUP(E94,DropDowns!B:D,3,0)=0,\"\",VLOOKUP(E94,DropDowns!B:D,3,0)))","v":""},"(seleccione a opção)",null,"(seleccione o nível)",null,"No",4]
[null,94,null,{"$f":"IF(OR(E95=\"\",E95=\"(select option)\"),\"\",VLOOKUP(E95,DropDowns!C:D,2,0))","v":""}]
[null,95,null,{"$f":"IF(OR(E96=\"\",E96=\"(select option)\"),\"\",VLOOKUP(E96,DropDowns!C:D,2,0))","v":""}]
[null,96,"V. Contratação e Acordos",{"$f":"IF(COUNT(D100:D118)=0,\"\",ROUND(SUM(D100:D118)/COUNT(D100:D118),0))","v":""},null,null,{"$f":"IFERROR(ROUND(SUM(G98:G118)/COUNT(G98:G118),0),\"\")","v":""}]
[null,97,null,{"$f":"IF(OR(E98=\"\",E98=\"(select option)\"),\"\",VLOOKUP(E98,DropDowns!C:D,2,0))","v":""}]
[null,98,"5.1 Contratação e Acordos"]
[null,99,"5.1.1 O contrato estabelece claramente os compromissos e acordos que a empresa assinou em relação às suas obrigações sociais e ambientais para abordar os resultados da AISA e o envolvimento subsequente?",{"$f":"IF(OR(E100=\"\",E100=\"(seleccione a opção)\"),\"\",IF(VLOOKUP(E100,DropDowns!B:D,3,0)=0,\"\",VLOOKUP(E100,DropDowns!B:D,3,0)))","v":""},"(seleccione a opção)",null,"(seleccione o nível)",null,{"$f":"IF(OR(AND(D100<3,E100<>\"N/A\" ),AND(G100>1,G100<>\"(seleccione o nível)\",E100<>\"N/A\")),\"Yes\",\"No\")","v":"No"},5]
[null,100,"5.1.2 O contrato inclui uma provisão para relatórios anuais sobre a implementação do plano de mitigação de impacto?",{"$f":"IF(OR(E101=\"\",E101=\"(seleccione a opção)\"),\"\",IF(VLOOKUP(E101,DropDowns!B:D,3,0)=0,\"\",VLOOKUP(E101,DropDowns!B:D,3,0)))","v":""},"(seleccione a opção)",null,"(seleccione o nível)",null,"No",5]
[null,101,"5.1.3 Se sim, esses relatórios são tornados públicos e são acessíveis às comunidades locais?",{"$f":"IF(OR(E102=\"\",E102=\"(seleccione a opção)\"),\"\",IF(VLOOKUP(E102,DropDowns!B:D,3,0)=0,\"\",VLOOKUP(E102,DropDowns!B:D,3,0)))","v":""},"(seleccione a opção)",null,"(seleccione o nível)",null,"No",5]
[null,102,"5.1.4 Os termos finais do contrato reflectem acordos de consenso alcançados por meio de negociações e consultas com os detentores de direitos?",{"$f":"IF(OR(E103=\"\",E103=\"(seleccione a opção)\"),\"\",IF(VLOOKUP(E103,DropDowns!B:D,3,0)=0,\"\",VLOOKUP(E103,DropDowns!B:D,3,0)))","v":""},"(seleccione a opção)",null,"(seleccione o nível)",null,"No",5]
[null,103,"5.1.5 O contrato inclui cláusulas que garantem uma utilização eficiente e sustentável dos recursos naturais, em particular a água?",{"$f":"IF(OR(E104=\"\",E104=\"(seleccione a opção)\"),\"\",IF(VLOOKUP(E104,DropDowns!B:D,3,0)=0,\"\",VLOOKUP(E104,DropDowns!B:D,3,0)))","v":""},"(seleccione a opção)",null,"(seleccione o nível)",null,"No",5]
[null,104,"5.1.6 A empresa tomou medidas razoáveis para determinar se aqueles que representam a comunidade em negociações e consultas procuram proteger os melhores interesses de toda a comunidade?",{"$f":"IF(OR(E105=\"\",E105=\"(seleccione a opção)\"),\"\",IF(VLOOKUP(E105,DropDowns!B:D,3,0)=0,\"\",VLOOKUP(E105,DropDowns!B:D,3,0)))","v":""},"(seleccione a opção)",null,"(seleccione o nível)",null,"No",5]
[null,105,"5.1.7 A empresa realizou negociações com detentores de direitos fundiários e usuários identificados antes de assinar os contratos que assinou?",{"$f":"IF(OR(E106=\"\",E106=\"(seleccione a opção)\"),\"\",IF(VLOOKUP(E106,DropDowns!B:D,3,0)=0,\"\",VLOOKUP(E106,DropDowns!B:D,3,0)))","v":""},"(seleccione a opção)",null,"(seleccione o nível)",null,"No",5]
[null,106,"5.1.8 As negociações abordaram os interesses e direitos das mulheres e outros grupos vulneráveis?",{"$f":"IF(OR(E107=\"\",E107=\"(seleccione a opção)\"),\"\",IF(VLOOKUP(E107,DropDowns!B:D,3,0)=0,\"\",VLOOKUP(E107,DropDowns!B:D,3,0)))","v":""},"(seleccione a opção)",null,"(seleccione o nível)",null,"No",5]
[null,107,"5.1.9 Essas negociações ocorreram depois que a empresa compartilhou todas as informações relevantes relacionadas à transferência de direitos de uso da terra ou mudanças no uso da terra?",{"$f":"IF(OR(E108=\"\",E108=\"(seleccione a opção)\"),\"\",IF(VLOOKUP(E108,DropDowns!B:D,3,0)=0,\"\",VLOOKUP(E108,DropDowns!B:D,3,0)))","v":""},"(seleccione a opção)",null,"(seleccione o nível)",null,"No",5]
[null,108,"5.1.10 A empresa ajudou as comunidades a obter capacidade suficiente para se envolver em negociações justas?",{"$f":"IF(OR(E109=\"\",E109=\"(seleccione a opção)\"),\"\",IF(VLOOKUP(E109,DropDowns!B:D,3,0)=0,\"\",VLOOKUP(E109,DropDowns!B:D,3,0)))","v":""},"(seleccione a opção)",null,"(seleccione o nível)",null,"No",5]
[null,109,"5.1.11 A empresa estabeleceu procedimentos de monitoria e avaliação para identificar descumprimento de cláusulas contratuais?",{"$f":"IF(OR(E110=\"\",E110=\"(seleccione a opção)\"),\"\",IF(VLOOKUP(E110,DropDowns!B:D,3,0)=0,\"\",VLOOKUP(E110,DropDowns!B:D,3,0)))","v":""},"(seleccione a opção)",null,"(seleccione o nível)",null,"No",5]
[null,110,"5.1.12 A empresa proporcionou às comunidades tempo e recursos suficientes para rever o contrato antes de assiná-lo? Tempo e recursos suficientes incluiriam tempo e meios para consultar especialistas.",{"$f":"IF(OR(E111=\"\",E111=\"(seleccione a opção)\"),\"\",IF(VLOOKUP(E111,DropDowns!B:D,3,0)=0,\"\",VLOOKUP(E111,DropDowns!B:D,3,0)))","v":""},"(seleccione a opção)",null,"(seleccione o nível)",null,"No",5]
[null,111,"5.1.13 Os detentores de direitos de terra e usuários identificados têm a liberdade de dizer \"sim\", concordaram com os termos do projecto ou transferência de terra, ou de dizer \"não\", não concordaram com os termos do projecto ou transferência dos direitos de uso da terra?",{"$f":"IF(OR(E112=\"\",E112=\"(seleccione a opção)\"),\"\",IF(VLOOKUP(E112,DropDowns!B:D,3,0)=0,\"\",VLOOKUP(E112,DropDowns!B:D,3,0)))","v":""},"(seleccione a opção)",null,"(seleccione o nível)",null,"No",5]
[null,112,"5.1.14 A empresa obteve o Consentimento Livre, Prévio e Informado da população afectada pelo projecto?",{"$f":"IF(OR(E113=\"\",E113=\"(seleccione a opção)\"),\"\",IF(VLOOKUP(E113,DropDowns!B:D,3,0)=0,\"\",VLOOKUP(E113,DropDowns!B:D,3,0)))","v":""},"(seleccione a opção)",null,"(seleccione o nível)",null,"No",5]
[null,113,"5.1.15 As comunidades afectadas têm acesso ao Contrato final?",{"$f":"IF(OR(E114=\"\",E114=\"(seleccione a opção)\"),\"\",IF(VLOOKUP(E114,DropDowns!B:D,3,0)=0,\"\",VLOOKUP(E114,DropDowns!B:D,3,0)))","v":""},"(seleccione a opção)",null,"(seleccione o nível)",null,"No",5]
[null,114,"5.1.16 De acordo com a lei e as regras consuetudinárias, os signatários do contrato têm autoridade para concordar com a transferência de terras ou a mudança do uso da terra?",{"$f":"IF(OR(E115=\"\",E115=\"(seleccione a opção)\"),\"\",IF(VLOOKUP(E115,DropDowns!B:D,3,0)=0,\"\",VLOOKUP(E115,DropDowns!B:D,3,0)))","v":""},"(seleccione a opção)",null,"(seleccione o nível)",null,"No",5]
[null,115,"5.1.17 Existem conflitos relacionados com a autoridade dos signatários do contrato e / ou capacidade de representar os direitos e interesses fundiários das pessoas afectadas pela transferência de terra ou mudança no uso da terra?",{"$f":"IF(OR(E116=\"\",E116=\"(seleccione a opção)\"),\"\",IF(VLOOKUP(E116,DropDowns!B:D,3,0)=0,\"\",VLOOKUP(E116,DropDowns!B:D,3,0)))","v":""},"(seleccione a opção)",null,"(seleccione o nível)",null,"No",5]
[null,116,"5.1.18 O contrato prevê um processo baseado na empresa para que quando os membros da comunidade fazem reclamações e queixas sejam atendidas?",{"$f":"IF(OR(E117=\"\",E117=\"(seleccione a opção)\"),\"\",IF(VLOOKUP(E117,DropDowns!B:D,3,0)=0,\"\",VLOOKUP(E117,DropDowns!B:D,3,0)))","v":""},"(seleccione a opção)",null,"(seleccione o nível)",null,"No",5]
[null,117,null,{"$f":"IF(OR(E118=\"\",E118=\"(select option)\"),\"\",VLOOKUP(E118,DropDowns!C:D,2,0))","v":""}]
[null,118,null,{"$f":"IF(OR(E119=\"\",E119=\"(select option)\"),\"\",VLOOKUP(E119,DropDowns!C:D,2,0))","v":""}]
[null,119,"VI. Queixas, Reclamações e Respectivas Respostas",{"$f":"IF(COUNT(D122:D143)=0,\"\",ROUND(SUM(D122:D143)/COUNT(D122:D143),0))","v":""},null,null,{"$f":"IFERROR(ROUND(SUM(G121:G143)/COUNT(G121:G143),0),\"\")","v":""}]
[null,120,null,{"$f":"IF(OR(E121=\"\",E121=\"(select option)\"),\"\",VLOOKUP(E121,DropDowns!C:D,2,0))","v":""}]
[null,121,"6.1 Concepção e Implementação do Mecanismo de Queixas e Reclamações",{"$f":"IF(OR(E122=\"\",E122=\"(select option)\"),\"\",VLOOKUP(E122,DropDowns!C:D,2,0))","v":""}]
[null,122,"6.1.1 A empresa possui um mecanismo de apresentação de queixas?",{"$f":"IF(OR(E123=\"\",E123=\"(seleccione a opção)\"),\"\",IF(VLOOKUP(E123,DropDowns!B:D,3,0)=0,\"\",VLOOKUP(E123,DropDowns!B:D,3,0)))","v":""},"(seleccione a opção)",null,"(seleccione o nível)",null,{"$f":"IF(OR(AND(D123<3,E123<>\"N/A\" ),AND(G123>1,G123<>\"(seleccione o nível)\",E123<>\"N/A\")),\"Yes\",\"No\")","v":"No"},6]
[null,123,"6.1.2 A empresa dedica pessoal adequado e recursos suficientes para projectar, implementar e gerir seu mecanismo de queixas e reclamações?",{"$f":"IF(OR(E124=\"\",E124=\"(seleccione a opção)\"),\"\",IF(VLOOKUP(E124,DropDowns!B:D,3,0)=0,\"\",VLOOKUP(E124,DropDowns!B:D,3,0)))","v":""},"(seleccione a opção)",null,"(seleccione o nível)",null,"No",6]
[null,124,"6.1.3 A empresa sensibilizou o seu pessoal sobre a importância de identificar e respeitar os direitos fundiários formais e consuetudinários, bem como o acesso a soluções?",{"$f":"IF(OR(E125=\"\",E125=\"(seleccione a opção)\"),\"\",IF(VLOOKUP(E125,DropDowns!B:D,3,0)=0,\"\",VLOOKUP(E125,DropDowns!B:D,3,0)))","v":""},"(seleccione a opção)",null,"(seleccione o nível)",null,"No",6]
[null,125,"6.1.4 A empresa consultou as partes interessadas externas (por exemplo, líderes e membros da comunidade, governo, etc.) para garantir que o mecanismo de queixas e reclamações seja confiável e complementar aos procedimentos tradicionais de resolução de disputas?",{"$f":"IF(OR(E126=\"\",E126=\"(seleccione a opção)\"),\"\",IF(VLOOKUP(E126,DropDowns!B:D,3,0)=0,\"\",VLOOKUP(E126,DropDowns!B:D,3,0)))","v":""},"(seleccione a opção)",null,"(seleccione o nível)",null,"No",6]
[null,126,"6.1.5 A empresa definiu claramente o escopo do mecanismo de reclamações (por exemplo, tipo de reclamações e reclamantes)?",{"$f":"IF(OR(E127=\"\",E127=\"(seleccione a opção)\"),\"\",IF(VLOOKUP(E127,DropDowns!B:D,3,0)=0,\"\",VLOOKUP(E127,DropDowns!B:D,3,0)))","v":""},"(seleccione a opção)",null,"(seleccione o nível)",null,"No",6]
[null,127,"6.1.6 A empresa decidiu se expandia ou não o escopo do mecanismo de queixas e reclamações para incluir reclamações de agricultores ou associações de camponeses ou sub-contratados contra a empresa?",{"$f":"IF(OR(E128=\"\",E128=\"(seleccione a opção)\"),\"\",IF(VLOOKUP(E128,DropDowns!B:D,3,0)=0,\"\",VLOOKUP(E128,DropDowns!B:D,3,0)))","v":""},"(seleccione a opção)",null,"(seleccione o nível)",null,"No",6]
[null,128,"6.1.7 A empresa decidiu se expandia ou não o escopo do mecanismo de reclamações para incluir reclamações de agricultores sub-contratados contra associações de cultivadores sub-contratados ou outros agricultores sub-contratados?",{"$f":"IF(OR(E129=\"\",E129=\"(seleccione a opção)\"),\"\",IF(VLOOKUP(E129,DropDowns!B:D,3,0)=0,\"\",VLOOKUP(E129,DropDowns!B:D,3,0)))","v":""},"(seleccione a opção)",null,"(seleccione o nível)",null,"No",6]
[null,129,"6.1.8 O mecanismo de reclamações está em conformidade com os critérios do Princípios Orientadores das Nações Unidas para processos de resolução de disputas não estatais (legítimos, acessíveis, previsíveis, equitativos, transparentes, compatíveis com direitos, fonte de aprendizado contínuo, com base no diálogo e no engajamento)?",{"$f":"IF(OR(E130=\"\",E130=\"(seleccione a opção)\"),\"\",IF(VLOOKUP(E130,DropDowns!B:D,3,0)=0,\"\",VLOOKUP(E130,DropDowns!B:D,3,0)))","v":""},"(seleccione a opção)",null,"(seleccione o nível)",null,"No",6]
[null,130,"6.1.9 A empresa informou adequadamente às comunidades e outros usuários da terra do mecanismo de  queixas e reclamações?",{"$f":"IF(OR(E131=\"\",E131=\"(seleccione a opção)\"),\"\",IF(VLOOKUP(E131,DropDowns!B:D,3,0)=0,\"\",VLOOKUP(E131,DropDowns!B:D,3,0)))","v":""},"(seleccione a opção)",null,"(seleccione o nível)",null,"No",6]
[null,131,null,{"$f":"IF(OR(E132=\"\",E132=\"(select option)\"),\"\",VLOOKUP(E132,DropDowns!C:D,2,0))","v":""},null,null,null,null,"No",6]
[null,132,null,{"$f":"IF(OR(E133=\"\",E133=\"(select option)\"),\"\",VLOOKUP(E133,DropDowns!C:D,2,0))","v":""},null,null,null,null,"No",6]
[null,133,"6.2 Procedimentos para receber, processar e responder às reclamações",{"$f":"IF(OR(E134=\"\",E134=\"(select option)\"),\"\",VLOOKUP(E134,DropDowns!C:D,2,0))","v":""},null,null,null,null,"No",6]
[null,134,"6.2.1 O mecanismo de queixas e reclamações tem procedimentos claros para receber essas queixas e reclamações?",{"$f":"IF(OR(E135=\"\",E135=\"(seleccione a opção)\"),\"\",IF(VLOOKUP(E135,DropDowns!B:D,3,0)=0,\"\",VLOOKUP(E135,DropDowns!B:D,3,0)))","v":""},"(seleccione a opção)",null,"(seleccione o nível)",null,"No",6]
[null,135,"6.2.2 O mecanismo de queixas e reclamações tem procedimentos claros para processar essas queixas e reclamações?",{"$f":"IF(OR(E136=\"\",E136=\"(seleccione a opção)\"),\"\",IF(VLOOKUP(E136,DropDowns!B:D,3,0)=0,\"\",VLOOKUP(E136,DropDowns!B:D,3,0)))","v":""},"(seleccione a opção)",null,"(seleccione o nível)",null,"No",6]
[null,136,"6.2.3 O mecanismo de queixas e reclamações possui procedimentos claros para a tomada de uma decisão final?",{"$f":"IF(OR(E137=\"\",E137=\"(seleccione a opção)\"),\"\",IF(VLOOKUP(E137,DropDowns!B:D,3,0)=0,\"\",VLOOKUP(E137,DropDowns!B:D,3,0)))","v":""},"(seleccione a opção)",null,"(seleccione o nível)",null,"No",6]
[null,137,null,{"$f":"IF(OR(E138=\"\",E138=\"(select option)\"),\"\",VLOOKUP(E138,DropDowns!C:D,2,0))","v":""},null,null,null,null,"No",6]
[null,138,null,{"$f":"IF(OR(E139=\"\",E139=\"(select option)\"),\"\",VLOOKUP(E139,DropDowns!C:D,2,0))","v":""},null,null,null,null,"No",6]
[null,139,"6.3 Procedimentos para monitorizar e avaliar o mecanismo de queixas e reclamações",{"$f":"IF(OR(E140=\"\",E140=\"(select option)\"),\"\",VLOOKUP(E140,DropDowns!C:D,2,0))","v":""},null,null,null,null,"No",6]
[null,140,"6.3.1 A empresa tem procedimentos e indicadores claros para monitorar e avaliar o mecanismo de reclamações (por exemplo, número e tipos de reclamações, tempo médio para responder a reclamações e fazer uma determinação final, taxa de resolução etc.)?",{"$f":"IF(OR(E141=\"\",E141=\"(seleccione a opção)\"),\"\",IF(VLOOKUP(E141,DropDowns!B:D,3,0)=0,\"\",VLOOKUP(E141,DropDowns!B:D,3,0)))","v":""},"(seleccione a opção)",null,"(seleccione o nível)",null,"No",6]
[null,141,"6.3.2 A empresa partilha os resultados de monitoria e avaliação para melhorar o mecanismo de queixas e reclamações?",{"$f":"IF(OR(E142=\"\",E142=\"(seleccione a opção)\"),\"\",IF(VLOOKUP(E142,DropDowns!B:D,3,0)=0,\"\",VLOOKUP(E142,DropDowns!B:D,3,0)))","v":""},"(seleccione a opção)",null,"(seleccione o nível)",null,"No",6]
[null,142,null,{"$f":"IF(OR(E143=\"\",E143=\"(select option)\"),\"\",VLOOKUP(E143,DropDowns!C:D,2,0))","v":""}]
[null,143,null,{"$f":"IF(OR(E144=\"\",E144=\"(select option)\"),\"\",VLOOKUP(E144,DropDowns!C:D,2,0))","v":""}]
[null,144,"VII. Invasão",{"$f":"IF(COUNT(D147:D173)=0,\"\",ROUND(SUM(D147:D173)/COUNT(D147:D173),0))","v":""},null,null,{"$f":"IFERROR(ROUND(SUM(G146:G173)/COUNT(G146:G173),0),\"\")","v":""}]
[null,145,null,{"$f":"IF(OR(E146=\"\",E146=\"(select option)\"),\"\",VLOOKUP(E146,DropDowns!C:D,2,0))","v":""}]
[null,146,"7.1 Identificação dos Riscos de Invasão",{"$f":"IF(OR(E147=\"\",E147=\"(select option)\"),\"\",VLOOKUP(E147,DropDowns!C:D,2,0))","v":""}]
[null,147,"7.1.1 A empresa identifica e documenta os riscos de invasão pelas categorias: áreas em andamento, emergentes e em risco ou de máximo risco (“hot spot”)?",{"$f":"IF(OR(E148=\"\",E148=\"(seleccione a opção)\"),\"\",IF(VLOOKUP(E148,DropDowns!B:D,3,0)=0,\"\",VLOOKUP(E148,DropDowns!B:D,3,0)))","v":""},"(seleccione a opção)",null,"(seleccione o nível)",null,{"$f":"IF(OR(AND(D148<3,E148<>\"N/A\" ),AND(G148>1,G148<>\"(seleccione o nível)\",E148<>\"N/A\")),\"Yes\",\"No\")","v":"No"},7]
[null,148,"7.1.2 A empresa identifica e documenta os riscos de invasão por localização, tamanho e frequência?",{"$f":"IF(OR(E149=\"\",E149=\"(seleccione a opção)\"),\"\",IF(VLOOKUP(E149,DropDowns!B:D,3,0)=0,\"\",VLOOKUP(E149,DropDowns!B:D,3,0)))","v":""},"(seleccione a opção)",null,"(seleccione o nível)",null,"No",7]
[null,149,"7.1.3 A empresa identifica e documenta áreas que estão ou parecem estar ociosas?",{"$f":"IF(OR(E150=\"\",E150=\"(seleccione a opção)\"),\"\",IF(VLOOKUP(E150,DropDowns!B:D,3,0)=0,\"\",VLOOKUP(E150,DropDowns!B:D,3,0)))","v":""},"(seleccione a opção)",null,"(seleccione o nível)",null,"No",7]
[null,150,null,{"$f":"IF(OR(E151=\"\",E151=\"(select option)\"),\"\",VLOOKUP(E151,DropDowns!C:D,2,0))","v":""},null,null,null,null,"No",7]
[null,151,null,{"$f":"IF(OR(E152=\"\",E152=\"(select option)\"),\"\",VLOOKUP(E152,DropDowns!C:D,2,0))","v":""},null,null,null,null,"No",7]
[null,152,"7.2 Invasão em Curso ou Emergente",{"$f":"IF(OR(E153=\"\",E153=\"(select option)\"),\"\",VLOOKUP(E153,DropDowns!C:D,2,0))","v":""},null,null,null,null,"No",7]
[null,153,"7.2.1 A empresa faz o mapeamento das partes interessadas de indivíduos e grupos supostamente invadindo a área de concessão? O mapeamento deve incluir:\n    o Demografia de indivíduos e grupos invadindo (por exemplo, número de pessoas e grupos, idade média, proporção de género, etc.);\n    o Como a terra está sendo usada (por exemplo, safras em dinheiro vs. alimentos, fazenda, herdade) e por quanto tempo;\n    o Dinâmica de poder entre indivíduos e invasores (por exemplo, líderes, comités, etc.);\n    o Dinâmica do relacionamento entre diferentes partes interessadas e indivíduos e grupos invadindo (por exemplo, empresa, governo distrital, autoridades tradicionais, etc.);\n    o Percepções individuais e de grupo em relação ao direito à terra (por exemplo, incompreensão dos limites, permissão concedida, questões de legado ou herança, etc.);\n    o Incentivos à invasão (por exemplo, abrigo, alimentação ou sustento, mudanças climáticas, etc.);\nPossíveis pontos de entrada para projectos de engajamento e consulta, sensibilização ou valor partilhado\n",{"$f":"IF(OR(E154=\"\",E154=\"(seleccione a opção)\"),\"\",IF(VLOOKUP(E154,DropDowns!B:D,3,0)=0,\"\",VLOOKUP(E154,DropDowns!B:D,3,0)))","v":""},"(seleccione a opção)",null,"(seleccione o nível)",null,"No",7]
[null,154,"7.2.2 A empresa tem capacidade humana e material para responder aos riscos  de invasão presente ou futura?",{"$f":"IF(OR(E155=\"\",E155=\"(seleccione a opção)\"),\"\",IF(VLOOKUP(E155,DropDowns!B:D,3,0)=0,\"\",VLOOKUP(E155,DropDowns!B:D,3,0)))","v":""},"(seleccione a opção)",null,"(seleccione o nível)",null,"No",7]
[null,155,"7.2.3 A empresa tem planos de trabalho para responder aos riscos emergentes ou actuais de invasão das suas áreas de concessão?",{"$f":"IF(OR(E156=\"\",E156=\"(seleccione a opção)\"),\"\",IF(VLOOKUP(E156,DropDowns!B:D,3,0)=0,\"\",VLOOKUP(E156,DropDowns!B:D,3,0)))","v":""},"(seleccione a opção)",null,"(seleccione o nível)",null,"No",7]
[null,156,"7.2.4 O governo local responde às preocupações da empresa com relação à invasão pelas comunidades e está preparado a apoiar ou dar assistência na prevenção da invasão ou expulsão dos invasores da área concessionada?",{"$f":"IF(OR(E157=\"\",E157=\"(seleccione a opção)\"),\"\",IF(VLOOKUP(E157,DropDowns!B:D,3,0)=0,\"\",VLOOKUP(E157,DropDowns!B:D,3,0)))","v":""},"(seleccione a opção)",null,"(seleccione o nível)",null,"No",7]
[null,157,null,{"$f":"IF(OR(E158=\"\",E158=\"(select option)\"),\"\",VLOOKUP(E158,DropDowns!C:D,2,0))","v":""},null,null,null,null,"No",7]
[null,158,null,{"$f":"IF(OR(E159=\"\",E159=\"(select option)\"),\"\",VLOOKUP(E159,DropDowns!C:D,2,0))","v":""},null,null,null,null,"No",7]
[null,159,"7.3 Em Risco ou Áreas “Hot Spot”",{"$f":"IF(OR(E160=\"\",E160=\"(select option)\"),\"\",VLOOKUP(E160,DropDowns!C:D,2,0))","v":""},null,null,null,null,"No",7]
[null,160,"7.3.1 A empresa identifica a razão de ter áreas em risco de invasão (por exemplo, a terra é usada como ponto de acesso ou parece estar ociosa, é uma área disputada, tem limites não marcados ou pouco claros, é afectada pela mudança climática, etc.)?",{"$f":"IF(OR(E161=\"\",E161=\"(seleccione a opção)\"),\"\",IF(VLOOKUP(E161,DropDowns!B:D,3,0)=0,\"\",VLOOKUP(E161,DropDowns!B:D,3,0)))","v":""},"(seleccione a opção)",null,"(seleccione o nível)",null,"No",7]
[null,161,"7.3.2 A empresa possui a capacidade e recursos de pessoal necessários para desenvolver e implementar planos de trabalho, incluindo sérios esforços de consulta e engajamento, para prevenir a ocorrência de invasões em áreas de risco?",{"$f":"IF(OR(E162=\"\",E162=\"(seleccione a opção)\"),\"\",IF(VLOOKUP(E162,DropDowns!B:D,3,0)=0,\"\",VLOOKUP(E162,DropDowns!B:D,3,0)))","v":""},"(seleccione a opção)",null,"(seleccione o nível)",null,"No",7]
[null,162,null,{"$f":"IF(OR(E163=\"\",E163=\"(select option)\"),\"\",VLOOKUP(E163,DropDowns!C:D,2,0))","v":""},null,null,null,null,"No",7]
[null,163,null,{"$f":"IF(OR(E164=\"\",E164=\"(select option)\"),\"\",VLOOKUP(E164,DropDowns!C:D,2,0))","v":""},null,null,null,null,"No",7]
[null,164,"7.4 Acções Preventivas",{"$f":"IF(OR(E165=\"\",E165=\"(select option)\"),\"\",VLOOKUP(E165,DropDowns!C:D,2,0))","v":""},null,null,null,null,"No",7]
[null,165,"7.4.1 A empresa realizou actividades de retração de fronteiras e demarcação (por exemplo, consulta de resultados, consulta e envolvimento com indivíduos e comunidades vizinhas para esclarecer limites)?",{"$f":"IF(OR(E166=\"\",E166=\"(seleccione a opção)\"),\"\",IF(VLOOKUP(E166,DropDowns!B:D,3,0)=0,\"\",VLOOKUP(E166,DropDowns!B:D,3,0)))","v":""},"(seleccione a opção)",null,"(seleccione o nível)",null,"No",7]
[null,166,"7.4.2 A empresa possui procedimentos de controlo de limites da sua área de concessão?",{"$f":"IF(OR(E167=\"\",E167=\"(seleccione a opção)\"),\"\",IF(VLOOKUP(E167,DropDowns!B:D,3,0)=0,\"\",VLOOKUP(E167,DropDowns!B:D,3,0)))","v":""},"(seleccione a opção)",null,"(seleccione o nível)",null,"No",7]
[null,167,"7.4.3 A empresa já desenvolveu planos de curto e de longo prazo para uso potencial das terras ociosas ou daquelas terras que parecem ser ociosas?",{"$f":"IF(OR(E168=\"\",E168=\"(seleccione a opção)\"),\"\",IF(VLOOKUP(E168,DropDowns!B:D,3,0)=0,\"\",VLOOKUP(E168,DropDowns!B:D,3,0)))","v":""},"(seleccione a opção)",null,"(seleccione o nível)",null,"No",7]
[null,168,"7.4.4 A empresa possui registos de mecanismos de queixas e reclamações?",{"$f":"IF(OR(E169=\"\",E169=\"(seleccione a opção)\"),\"\",IF(VLOOKUP(E169,DropDowns!B:D,3,0)=0,\"\",VLOOKUP(E169,DropDowns!B:D,3,0)))","v":""},"(seleccione a opção)",null,"(seleccione o nível)",null,"No",7]
[null,169,"7.4.5 A empresa possui estratégias para projectos de partilha de valores?",{"$f":"IF(OR(E170=\"\",E170=\"(seleccione a opção)\"),\"\",IF(VLOOKUP(E170,DropDowns!B:D,3,0)=0,\"\",VLOOKUP(E170,DropDowns!B:D,3,0)))","v":""},"(seleccione a opção)",null,"(seleccione o nível)",null,"No",7]
[null,170,"7.4.6 A empresa possui a necessária capacidade humana e recursos materiais para levar a cabo acções preventivas?",{"$f":"IF(OR(E171=\"\",E171=\"(seleccione a opção)\"),\"\",IF(VLOOKUP(E171,DropDowns!B:D,3,0)=0,\"\",VLOOKUP(E171,DropDowns!B:D,3,0)))","v":""},"(seleccione a opção)",null,"(seleccione o nível)",null,"No",7]
[null,171,"7.4.7 O governo local possui capacidade e recursos materiais para apoiar acções preventivas que mitiguem o risco de invasão?",{"$f":"IF(OR(E172=\"\",E172=\"(seleccione a opção)\"),\"\",IF(VLOOKUP(E172,DropDowns!B:D,3,0)=0,\"\",VLOOKUP(E172,DropDowns!B:D,3,0)))","v":""},"(seleccione a opção)",null,"(seleccione o nível)",null,"No",7]
[null,172,null,{"$f":"IF(OR(E173=\"\",E173=\"(select option)\"),\"\",VLOOKUP(E173,DropDowns!C:D,2,0))","v":""}]
[null,173,null,{"$f":"IF(OR(E174=\"\",E174=\"(select option)\"),\"\",VLOOKUP(E174,DropDowns!C:D,2,0))","v":""}]
[null,174,"VIII. Mudança e Uso da Terra",{"$f":"IF(COUNT(D177:D202)=0,\"\",ROUND(SUM(D177:D202)/COUNT(D177:D202),0))","v":""}]
[null,175,null,{"$f":"IF(OR(E176=\"\",E176=\"(select option)\"),\"\",VLOOKUP(E176,DropDowns!C:D,2,0))","v":""}]
[null,176,"8.1 Avaliando  os Direitos da Empresa sobre a terra",{"$f":"IF(OR(E177=\"\",E177=\"(select option)\"),\"\",VLOOKUP(E177,DropDowns!C:D,2,0))","v":""}]
[null,177,"8.1.1 A empresa obteve os direitos de uso da terra de uma forma consistente com políticas corporativas?",{"$f":"IF(OR(E178=\"\",E178=\"(seleccione a opção)\"),\"\",IF(VLOOKUP(E178,DropDowns!B:D,3,0)=0,\"\",VLOOKUP(E178,DropDowns!B:D,3,0)))","v":""},"(seleccione a opção)",null,"(seleccione o nível)",null,{"$f":"IF(OR(AND(D178<3,E178<>\"N/A\" ),AND(G178>1,G178<>\"(seleccione o nível)\",E178<>\"N/A\")),\"Yes\",\"No\")","v":"No"},8]
[null,178,"8.1.2 A empresa obteve os direitos de uso da terra de uma forma consistente com a legislação local?",{"$f":"IF(OR(E179=\"\",E179=\"(seleccione a opção)\"),\"\",IF(VLOOKUP(E179,DropDowns!B:D,3,0)=0,\"\",VLOOKUP(E179,DropDowns!B:D,3,0)))","v":""},"(seleccione a opção)",null,"(seleccione o nível)",null,"No",8]
[null,179,"8.1.3 Aquando da obtenção dos direitos de uso e aproveitamento da terra, a empresa levou a cabo uma Avaliação de posse da terra e direitos humanos? (ver lista na secção 3)",{"$f":"IF(OR(E180=\"\",E180=\"(seleccione a opção)\"),\"\",IF(VLOOKUP(E180,DropDowns!B:D,3,0)=0,\"\",VLOOKUP(E180,DropDowns!B:D,3,0)))","v":""},"(seleccione a opção)",null,"(seleccione o nível)",null,"No",8]
[null,180,"8.1.4 Aquando da obtenção dos direitos de uso e aproveitamento da terra, a empresa cumpriu com os requisitos de consulta comunitária? (ver lista de verificação na secção 4)",{"$f":"IF(OR(E181=\"\",E181=\"(seleccione a opção)\"),\"\",IF(VLOOKUP(E181,DropDowns!B:D,3,0)=0,\"\",VLOOKUP(E181,DropDowns!B:D,3,0)))","v":""},"(seleccione a opção)",null,"(seleccione o nível)",null,"No",8]
[null,181,"8.1.5 Aquando da obtenção dos direitos de uso e aproveitamento da terra, a empresa cumpriu com os requisitos de Contratação? (ver lista de verificação na secção 5)",{"$f":"IF(OR(E182=\"\",E182=\"(seleccione a opção)\"),\"\",IF(VLOOKUP(E182,DropDowns!B:D,3,0)=0,\"\",VLOOKUP(E182,DropDowns!B:D,3,0)))","v":""},"(seleccione a opção)",null,"(seleccione o nível)",null,"No",8]
[null,182,"8.1.6 A empresa já completou todos os requisitos à luz da legislação local de terra (por exemplo, mudança de zoneamento, autorizações, se aplicável)?",{"$f":"IF(OR(E183=\"\",E183=\"(seleccione a opção)\"),\"\",IF(VLOOKUP(E183,DropDowns!B:D,3,0)=0,\"\",VLOOKUP(E183,DropDowns!B:D,3,0)))","v":""},"(seleccione a opção)",null,"(seleccione o nível)",null,"No",8]
[null,183,"8.1.7 As partes interessadas internas e externas têm acesso a um mecanismo de reclamações para resolver disputas relacionadas com os direitos da empresa e com o uso da parcela de terra a si concessionada? Consulte a lista de verificação \"Reclamações\"",{"$f":"IF(OR(E184=\"\",E184=\"(seleccione a opção)\"),\"\",IF(VLOOKUP(E184,DropDowns!B:D,3,0)=0,\"\",VLOOKUP(E184,DropDowns!B:D,3,0)))","v":""},"(seleccione a opção)",null,"(seleccione o nível)",null,"No",8]
[null,184,"8.1.8 Todas as queixas abertas relacionadas à empresa que obteve esta concessão foram resolvidas?",{"$f":"IF(OR(E185=\"\",E185=\"(seleccione a opção)\"),\"\",IF(VLOOKUP(E185,DropDowns!B:D,3,0)=0,\"\",VLOOKUP(E185,DropDowns!B:D,3,0)))","v":""},"(seleccione a opção)",null,"(seleccione o nível)",null,"No",8]
[null,185,null,{"$f":"IF(OR(E186=\"\",E186=\"(select option)\"),\"\",VLOOKUP(E186,DropDowns!C:D,2,0))","v":""},null,null,null,null,"No",8]
[null,186,null,{"$f":"IF(OR(E187=\"\",E187=\"(select option)\"),\"\",VLOOKUP(E187,DropDowns!C:D,2,0))","v":""},null,null,null,null,"No",8]
[null,187,"8.2 Identificando Outros Detentores de Direitos de Uso da Terra, Usuários e Potenciais Conflitos",{"$f":"IF(OR(E188=\"\",E188=\"(select option)\"),\"\",VLOOKUP(E188,DropDowns!C:D,2,0))","v":""},null,null,null,null,{"$f":"IF(OR(AND(D188<3,E188<>\"N/A\" ),AND(G188>1,G188<>\"(seleccione o nível)\",E188<>\"N/A\")),\"Yes\",\"No\")","v":"No"},8]
[null,188,"8.2.1 A empresa completou uma Avaliação de posse da terra e de direitos humanos para a concessão planeada e respectiva mudança de uso? Ver Lista de Verificação da “Avaliação da posse da terra e direitos humanos ”",{"$f":"IF(OR(E189=\"\",E189=\"(seleccione a opção)\"),\"\",IF(VLOOKUP(E189,DropDowns!B:D,3,0)=0,\"\",VLOOKUP(E189,DropDowns!B:D,3,0)))","v":""},"(seleccione a opção)",null,"(seleccione o nível)",null,"No",8]
[null,189,null,{"$f":"IF(OR(E190=\"\",E190=\"(select option)\"),\"\",VLOOKUP(E190,DropDowns!C:D,2,0))","v":""},null,null,null,null,"No",8]
[null,190,null,{"$f":"IF(OR(E191=\"\",E191=\"(select option)\"),\"\",VLOOKUP(E191,DropDowns!C:D,2,0))","v":""},null,null,null,null,"No",8]
[null,191,"8.3 Consultas e Engajamento",{"$f":"IF(OR(E192=\"\",E192=\"(select option)\"),\"\",VLOOKUP(E192,DropDowns!C:D,2,0))","v":""},null,null,null,null,"No",8]
[null,192,"8.3.1 A empresa consultou às pessoas afectadas e outros usuários da terra com relação ao plano de uso da terra? Ver ”Lista de verificação de Consultas e Engajamento”",{"$f":"IF(OR(E193=\"\",E193=\"(seleccione a opção)\"),\"\",IF(VLOOKUP(E193,DropDowns!B:D,3,0)=0,\"\",VLOOKUP(E193,DropDowns!B:D,3,0)))","v":""},"(seleccione a opção)",null,"(seleccione o nível)",null,"No",8]
[null,193,null,{"$f":"IF(OR(E194=\"\",E194=\"(select option)\"),\"\",VLOOKUP(E194,DropDowns!C:D,2,0))","v":""},null,null,null,null,"No",8]
[null,194,null,{"$f":"IF(OR(E195=\"\",E195=\"(select option)\"),\"\",VLOOKUP(E195,DropDowns!C:D,2,0))","v":""},null,null,null,null,"No",8]
[null,195,"8.4 Contratação e Acordos",{"$f":"IF(OR(E196=\"\",E196=\"(select option)\"),\"\",VLOOKUP(E196,DropDowns!C:D,2,0))","v":""},null,null,null,null,"No",8]
[null,196,"8.4.1 A empresa completou todos os elementos para uma negociação adequada e contratação apropriada visando o uso da concessão de terra regarding? Ver  “Lista de verificação de Contratação e Acordos”",{"$f":"IF(OR(E197=\"\",E197=\"(seleccione a opção)\"),\"\",IF(VLOOKUP(E197,DropDowns!B:D,3,0)=0,\"\",VLOOKUP(E197,DropDowns!B:D,3,0)))","v":""},"(seleccione a opção)",null,"(seleccione o nível)",null,"No",8]
[null,197,null,{"$f":"IF(OR(E198=\"\",E198=\"(select option)\"),\"\",VLOOKUP(E198,DropDowns!C:D,2,0))","v":""},null,null,null,null,"No",8]
[null,198,null,{"$f":"IF(OR(E199=\"\",E199=\"(select option)\"),\"\",VLOOKUP(E199,DropDowns!C:D,2,0))","v":""},null,null,null,null,"No",8]
[null,199,"8.5 Reclamações",{"$f":"IF(OR(E200=\"\",E200=\"(select option)\"),\"\",VLOOKUP(E200,DropDowns!C:D,2,0))","v":""},null,null,null,null,"No",8]
[null,200,"8.5.1 As partes interessadas internas e externas afectadas pela mudança no uso da terra têm acesso a um mecanismo de reclamações para resolver disputas relacionadas com os direitos da empresa e com o uso de parcelas de terra?",{"$f":"IF(OR(E201=\"\",E201=\"(seleccione a opção)\"),\"\",IF(VLOOKUP(E201,DropDowns!B:D,3,0)=0,\"\",VLOOKUP(E201,DropDowns!B:D,3,0)))","v":""},"(seleccione a opção)",null,"(seleccione o nível)",null,"No",8]
[null,201,null,{"$f":"IF(OR(E202=\"\",E202=\"(select option)\"),\"\",VLOOKUP(E202,DropDowns!C:D,2,0))","v":""}]
[null,202]
[null,203]
[null,204]
[null,205]
[null,206]
[null,207]
[null,208]
[null,209]
[null,210]
[null,211]
[null,212]
[null,213]
[null,214]
[null,215]
[null,216]
[null,217]
[null,218]
[null,219]
[null,220]
[null,221]
[null,222]
[null,223]
[null,224]
[null,225]
[null,226]
[null,227]
[null,228]
[null,229]
[null,230]
[null,231]
[null,232]
[null,233]
[null,234]
[null,235]
[null,236]
[null,237]
[null,238]
[null,239]
[null,240]
[null,241]
[null,242]
[null,243]
[null,244]
[null,245]
[null,246]
[null,247]
[null,248]
[null,249]
[null,250]
[null,251]
[null,252]
[null,253]
[null,254]
[null,255]
[null,256]
[null,257]
[null,258]
[null,259]
[null,260]
[null,261]
[null,262]
[null,263]
[null,264]
[null,265]
[null,266]
[null,267]
[null,268]
[null,269]
[null,270]
[null,271]
[null,272]
[null,273]
[null,274]
[null,275]
[null,276]
[null,277]
[null,278]
[null,279]
[null,280]
[null,281]
[null,282]
[null,283]
[null,284]
[null,285]
[null,286]
[null,287]
[null,288]
[null,289]
[null,290]
[null,291]
[null,292]
[null,293]
[null,294]
[null,295]
[null,296]
[null,297]
[null,298]
[null,299]
[null,300]
[null,301]
[null,302]
[null,303]
[null,304]
[null,305]
[null,306]
[null,307]
[null,308]
[null,309]
[null,310]
[null,311]
[null,312]
[null,313]
[null,314]
[null,315]
[null,316]
[null,317]
[null,318]
[null,319]
[null,320]
[null,321]
[null,322]
[null,323]
[null,324]
[null,325]
[null,326]
[null,327]
[null,328]
[null,329]
[null,330]
[null,331]
[null,332]
[null,333]
[null,334]
[null,335]
[null,336]
[null,337]
[null,338]
[null,339]
[null,340]
[null,341]
[null,342]
[null,343]
[null,344]
[null,345]
[null,346]
[null,347]
[null,348]
[null,349]
[null,350]
[null,351]
[null,352]
[null,353]
[null,354]
[null,355]
[null,356]
[null,357]
[null,358]
[null,359]
[null,360]
[null,361]
[null,362]
[null,363]
[null,364]
[null,365]
[null,366]
[null,367]
[null,368]
[null,369]
[null,370]
[null,371]
[null,372]
[null,373]
[null,374]
[null,375]
[null,376]
[null,377]
[null,378]
[null,379]
[null,380]
[null,381]
[null,382]
[null,383]
[null,384]
[null,385]
[null,386]
[null,387]
[null,388]
[null,389]
[null,390]
[null,391]
[null,392]
[null,393]
[null,394]
[null,395]
[null,396]

{"sheet":"Relatório da Farma","index":2,"n_rows":200,"n_cols":12,"rows_kept":200,"cut":false,"hidden":false,"merged":[[3,7,3,10],[1,1,1,11]]}
[]
[null,"Relatório de Seguimento "]
[]
[null,"Checklist Row"," Item de verificação","Secção (Título da Principal Lista de Verificação)","Ponto de Situação","Risco(1=baixo; 3=alto)","Acções de Seguimento","Capacidade (Quem vai realizar as actividades do plano)",null,null,null,"Cronograma/ Passos a dar"]
[null,{"$f":"IFERROR(INDEX('Lista Verificação Propriedade'!$B$1:$B$397, SMALL(INDEX(('Lista Verificação Propriedade'!$I$1:$I$397=\"Yes\")*(MATCH(ROW('Lista Verificação Propriedade'!$I$1:$I$397), ROW('Lista Verificação Propriedade'!$I$1:$I$397)))+('Lista Verificação Propriedade'!$I$1:$I$397<>\"Yes\")*1048577, 0, 0), ROW(A1))),\"\")","v":""},{"$f":"IFERROR(VLOOKUP(B5,'Lista Verificação Propriedade'!B:C,2,0),\"\")","v":""},{"$f":"IFERROR(VLOOKUP(VLOOKUP(B5,'Lista Verificação Propriedade'!B:J,9,0),DropDowns!G:H,2,0),\"\")","v":""},{"$f":"IFERROR(VLOOKUP(B5,'Lista Verificação Propriedade'!B:E,4,0),\"\")","v":""},{"$f":"IFERROR(VLOOKUP(B5,'Lista Verificação Propriedade'!B:G,6,0),\"\")","v":""},null,{"$f":"IF(B5<>\"\",\"Interna:\",\"\")","v":""},null,{"$f":"IF(B5<>\"\",\"Externa:\",\"\")","v":""}]
[null,{"$f":"IFERROR(INDEX('Lista Verificação Propriedade'!$B$1:$B$397, SMALL(INDEX(('Lista Verificação Propriedade'!$I$1:$I$397=\"Yes\")*(MATCH(ROW('Lista Verificação Propriedade'!$I$1:$I$397), ROW('Lista Verificação Propriedade'!$I$1:$I$397)))+('Lista Verificação Propriedade'!$I$1:$I$397<>\"Yes\")*1048577, 0, 0), ROW(A2))),\"\")","v":""},{"$f":"IFERROR(VLOOKUP(B6,'Lista Verificação Propriedade'!B:C,2,0),\"\")","v":""},{"$f":"IFERROR(VLOOKUP(VLOOKUP(B6,'Lista Verificação Propriedade'!B:J,9,0),DropDowns!G:H,2,0),\"\")","v":""},{"$f":"IFERROR(VLOOKUP(B6,'Lista Verificação Propriedade'!B:E,4,0),\"\")","v":""},{"$f":"IFERROR(VLOOKUP(B6,'Lista Verificação Propriedade'!B:G,6,0),\"\")","v":""},null,{"$f":"IF(B6<>\"\",\"Interna:\",\"\")","v":""},null,{"$f":"IF(B6<>\"\",\"Externa:\",\"\")","v":""}]
[null,{"$f":"IFERROR(INDEX('Lista Verificação Propriedade'!$B$1:$B$397, SMALL(INDEX(('Lista Verificação Propriedade'!$I$1:$I$397=\"Yes\")*(MATCH(ROW('Lista Verificação Propriedade'!$I$1:$I$397), ROW('Lista Verificação Propriedade'!$I$1:$I$397)))+('Lista Verificação Propriedade'!$I$1:$I$397<>\"Yes\")*1048577, 0, 0), ROW(A3))),\"\")","v":""},{"$f":"IFERROR(VLOOKUP(B7,'Lista Verificação Propriedade'!B:C,2,0),\"\")","v":""},{"$f":"IFERROR(VLOOKUP(VLOOKUP(B7,'Lista Verificação Propriedade'!B:J,9,0),DropDowns!G:H,2,0),\"\")","v":""},{"$f":"IFERROR(VLOOKUP(B7,'Lista Verificação Propriedade'!B:E,4,0),\"\")","v":""},{"$f":"IFERROR(VLOOKUP(B7,'Lista Verificação Propriedade'!B:G,6,0),\"\")","v":""},null,"",null,""]
[null,{"$f":"IFERROR(INDEX('Lista Verificação Propriedade'!$B$1:$B$397, SMALL(INDEX(('Lista Verificação Propriedade'!$I$1:$I$397=\"Yes\")*(MATCH(ROW('Lista Verificação Propriedade'!$I$1:$I$397), ROW('Lista Verificação Propriedade'!$I$1:$I$397)))+('Lista Verificação Propriedade'!$I$1:$I$397<>\"Yes\")*1048577, 0, 0), ROW(A4))),\"\")","v":""},{"$f":"IFERROR(VLOOKUP(B8,'Lista Verificação Propriedade'!B:C,2,0),\"\")","v":""},{"$f":"IFERROR(VLOOKUP(VLOOKUP(B8,'Lista Verificação Propriedade'!B:J,9,0),DropDowns!G:H,2,0),\"\")","v":""},{"$f":"IFERROR(VLOOKUP(B8,'Lista Verificação Propriedade'!B:E,4,0),\"\")","v":""},{"$f":"IFERROR(VLOOKUP(B8,'Lista Verificação Propriedade'!B:G,6,0),\"\")","v":""},null,"",null,""]
[null,{"$f":"IFERROR(INDEX('Lista Verificação Propriedade'!$B$1:$B$397, SMALL(INDEX(('Lista Verificação Propriedade'!$I$1:$I$397=\"Yes\")*(MATCH(ROW('Lista Verificação Propriedade'!$I$1:$I$397), ROW('Lista Verificação Propriedade'!$I$1:$I$397)))+('Lista Verificação Propriedade'!$I$1:$I$397<>\"Yes\")*1048577, 0, 0), ROW(A5))),\"\")","v":""},{"$f":"IFERROR(VLOOKUP(B9,'Lista Verificação Propriedade'!B:C,2,0),\"\")","v":""},{"$f":"IFERROR(VLOOKUP(VLOOKUP(B9,'Lista Verificação Propriedade'!B:J,9,0),DropDowns!G:H,2,0),\"\")","v":""},{"$f":"IFERROR(VLOOKUP(B9,'Lista Verificação Propriedade'!B:E,4,0),\"\")","v":""},{"$f":"IFERROR(VLOOKUP(B9,'Lista Verificação Propriedade'!B:G,6,0),\"\")","v":""},null,"",null,""]
[null,{"$f":"IFERROR(INDEX('Lista Verificação Propriedade'!$B$1:$B$397, SMALL(INDEX(('Lista Verificação Propriedade'!$I$1:$I$397=\"Yes\")*(MATCH(ROW('Lista Verificação Propriedade'!$I$1:$I$397), ROW('Lista Verificação Propriedade'!$I$1:$I$397)))+('Lista Verificação Propriedade'!$I$1:$I$397<>\"Yes\")*1048577, 0, 0), ROW(A6))),\"\")","v":""},{"$f":"IFERROR(VLOOKUP(B10,'Lista Verificação Propriedade'!B:C,2,0),\"\")","v":""},{"$f":"IFERROR(VLOOKUP(VLOOKUP(B10,'Lista Verificação Propriedade'!B:J,9,0),DropDowns!G:H,2,0),\"\")","v":""},{"$f":"IFERROR(VLOOKUP(B10,'Lista Verificação Propriedade'!B:E,4,0),\"\")","v":""},{"$f":"IFERROR(VLOOKUP(B10,'Lista Verificação Propriedade'!B:G,6,0),\"\")","v":""},null,"",null,""]
[null,{"$f":"IFERROR(INDEX('Lista Verificação Propriedade'!$B$1:$B$397, SMALL(INDEX(('Lista Verificação Propriedade'!$I$1:$I$397=\"Yes\")*(MATCH(ROW('Lista Verificação Propriedade'!$I$1:$I$397), ROW('Lista Verificação Propriedade'!$I$1:$I$397)))+('Lista Verificação Propriedade'!$I$1:$I$397<>\"Yes\")*1048577, 0, 0), ROW(A7))),\"\")","v":""},{"$f":"IFERROR(VLOOKUP(B11,'Lista Verificação Propriedade'!B:C,2,0),\"\")","v":""},{"$f":"IFERROR(VLOOKUP(VLOOKUP(B11,'Lista Verificação Propriedade'!B:J,9,0),DropDowns!G:H,2,0),\"\")","v":""},{"$f":"IFERROR(VLOOKUP(B11,'Lista Verificação Propriedade'!B:E,4,0),\"\")","v":""},{"$f":"IFERROR(VLOOKUP(B11,'Lista Verificação Propriedade'!B:G,6,0),\"\")","v":""},null,"",null,""]
[null,{"$f":"IFERROR(INDEX('Lista Verificação Propriedade'!$B$1:$B$397, SMALL(INDEX(('Lista Verificação Propriedade'!$I$1:$I$397=\"Yes\")*(MATCH(ROW('Lista Verificação Propriedade'!$I$1:$I$397), ROW('Lista Verificação Propriedade'!$I$1:$I$397)))+('Lista Verificação Propriedade'!$I$1:$I$397<>\"Yes\")*1048577, 0, 0), ROW(A8))),\"\")","v":""},{"$f":"IFERROR(VLOOKUP(B12,'Lista Verificação Propriedade'!B:C,2,0),\"\")","v":""},{"$f":"IFERROR(VLOOKUP(VLOOKUP(B12,'Lista Verificação Propriedade'!B:J,9,0),DropDowns!G:H,2,0),\"\")","v":""},{"$f":"IFERROR(VLOOKUP(B12,'Lista Verificação Propriedade'!B:E,4,0),\"\")","v":""},{"$f":"IFERROR(VLOOKUP(B12,'Lista Verificação Propriedade'!B:G,6,0),\"\")","v":""},null,"",null,""]
[null,{"$f":"IFERROR(INDEX('Lista Verificação Propriedade'!$B$1:$B$397, SMALL(INDEX(('Lista Verificação Propriedade'!$I$1:$I$397=\"Yes\")*(MATCH(ROW('Lista Verificação Propriedade'!$I$1:$I$397), ROW('Lista Verificação Propriedade'!$I$1:$I$397)))+('Lista Verificação Propriedade'!$I$1:$I$397<>\"Yes\")*1048577, 0, 0), ROW(A9))),\"\")","v":""},{"$f":"IFERROR(VLOOKUP(B13,'Lista Verificação Propriedade'!B:C,2,0),\"\")","v":""},{"$f":"IFERROR(VLOOKUP(VLOOKUP(B13,'Lista Verificação Propriedade'!B:J,9,0),DropDowns!G:H,2,0),\"\")","v":""},{"$f":"IFERROR(VLOOKUP(B13,'Lista Verificação Propriedade'!B:E,4,0),\"\")","v":""},{"$f":"IFERROR(VLOOKUP(B13,'Lista Verificação Propriedade'!B:G,6,0),\"\")","v":""},null,"",null,""]
[null,{"$f":"IFERROR(INDEX('Lista Verificação Propriedade'!$B$1:$B$397, SMALL(INDEX(('Lista Verificação Propriedade'!$I$1:$I$397=\"Yes\")*(MATCH(ROW('Lista Verificação Propriedade'!$I$1:$I$397), ROW('Lista Verificação Propriedade'!$I$1:$I$397)))+('Lista Verificação Propriedade'!$I$1:$I$397<>\"Yes\")*1048577, 0, 0), ROW(A10))),\"\")","v":""},{"$f":"IFERROR(VLOOKUP(B14,'Lista Verificação Propriedade'!B:C,2,0),\"\")","v":""},{"$f":"IFERROR(VLOOKUP(VLOOKUP(B14,'Lista Verificação Propriedade'!B:J,9,0),DropDowns!G:H,2,0),\"\")","v":""},{"$f":"IFERROR(VLOOKUP(B14,'Lista Verificação Propriedade'!B:E,4,0),\"\")","v":""},{"$f":"IFERROR(VLOOKUP(B14,'Lista Verificação Propriedade'!B:G,6,0),\"\")","v":""},null,"",null,""]
[null,{"$f":"IFERROR(INDEX('Lista Verificação Propriedade'!$B$1:$B$397, SMALL(INDEX(('Lista Verificação Propriedade'!$I$1:$I$397=\"Yes\")*(MATCH(ROW('Lista Verificação Propriedade'!$I$1:$I$397), ROW('Lista Verificação Propriedade'!$I$1:$I$397)))+('Lista Verificação Propriedade'!$I$1:$I$397<>\"Yes\")*1048577, 0, 0), ROW(A11))),\"\")","v":""},{"$f":"IFERROR(VLOOKUP(B15,'Lista Verificação Propriedade'!B:C,2,0),\"\")","v":""},{"$f":"IFERROR(VLOOKUP(VLOOKUP(B15,'Lista Verificação Propriedade'!B:J,9,0),DropDowns!G:H,2,0),\"\")","v":""},{"$f":"IFERROR(VLOOKUP(B15,'Lista Verificação Propriedade'!B:E,4,0),\"\")","v":""},{"$f":"IFERROR(VLOOKUP(B15,'Lista Verificação Propriedade'!B:G,6,0),\"\")","v":""},null,"",null,""]
[null,{"$f":"IFERROR(INDEX('Lista Verificação Propriedade'!$B$1:$B$397, SMALL(INDEX(('Lista Verificação Propriedade'!$I$1:$I$397=\"Yes\")*(MATCH(ROW('Lista Verificação Propriedade'!$I$1:$I$397), ROW('Lista Verificação Propriedade'!$I$1:$I$397)))+('Lista Verificação Propriedade'!$I$1:$I$397<>\"Yes\")*1048577, 0, 0), ROW(A12))),\"\")","v":""},{"$f":"IFERROR(VLOOKUP(B16,'Lista Verificação Propriedade'!B:C,2,0),\"\")","v":""},{"$f":"IFERROR(VLOOKUP(VLOOKUP(B16,'Lista Verificação Propriedade'!B:J,9,0),DropDowns!G:H,2,0),\"\")","v":""},{"$f":"IFERROR(VLOOKUP(B16,'Lista Verificação Propriedade'!B:E,4,0),\"\")","v":""},{"$f":"IFERROR(VLOOKUP(B16,'Lista Verificação Propriedade'!B:G,6,0),\"\")","v":""},null,"",null,""]
[null,{"$f":"IFERROR(INDEX('Lista Verificação Propriedade'!$B$1:$B$397, SMALL(INDEX(('Lista Verificação Propriedade'!$I$1:$I$397=\"Yes\")*(MATCH(ROW('Lista Verificação Propriedade'!$I$1:$I$397), ROW('Lista Verificação Propriedade'!$I$1:$I$397)))+('Lista Verificação Propriedade'!$I$1:$I$397<>\"Yes\")*1048577, 0, 0), ROW(A13))),\"\")","v":""},{"$f":"IFERROR(VLOOKUP(B17,'Lista Verificação Propriedade'!B:C,2,0),\"\")","v":""},{"$f":"IFERROR(VLOOKUP(VLOOKUP(B17,'Lista Verificação Propriedade'!B:J,9,0),DropDowns!G:H,2,0),\"\")","v":""},{"$f":"IFERROR(VLOOKUP(B17,'Lista Verificação Propriedade'!B:E,4,0),\"\")","v":""},{"$f":"IFERROR(VLOOKUP(B17,'Lista Verificação Propriedade'!B:G,6,0),\"\")","v":""},null,"",null,""]
[null,{"$f":"IFERROR(INDEX('Lista Verificação Propriedade'!$B$1:$B$397, SMALL(INDEX(('Lista Verificação Propriedade'!$I$1:$I$397=\"Yes\")*(MATCH(ROW('Lista Verificação Propriedade'!$I$1:$I$397), ROW('Lista Verificação Propriedade'!$I$1:$I$397)))+('Lista Verificação Propriedade'!$I$1:$I$397<>\"Yes\")*1048577, 0, 0), ROW(A14))),\"\")","v":""},{"$f":"IFERROR(VLOOKUP(B18,'Lista Verificação Propriedade'!B:C,2,0),\"\")","v":""},{"$f":"IFERROR(VLOOKUP(VLOOKUP(B18,'Lista Verificação Propriedade'!B:J,9,0),DropDowns!G:H,2,0),\"\")","v":""},{"$f":"IFERROR(VLOOKUP(B18,'Lista Verificação Propriedade'!B:E,4,0),\"\")","v":""},{"$f":"IFERROR(VLOOKUP(B18,'Lista Verificação Propriedade'!B:G,6,0),\"\")","v":""},null,"",null,""]
[null,{"$f":"IFERROR(INDEX('Lista Verificação Propriedade'!$B$1:$B$397, SMALL(INDEX(('Lista Verificação Propriedade'!$I$1:$I$397=\"Yes\")*(MATCH(ROW('Lista Verificação Propriedade'!$I$1:$I$397), ROW('Lista Verificação Propriedade'!$I$1:$I$397)))+('Lista Verificação Propriedade'!$I$1:$I$397<>\"Yes\")*1048577, 0, 0), ROW(A15))),\"\")","v":""},{"$f":"IFERROR(VLOOKUP(B19,'Lista Verificação Propriedade'!B:C,2,0),\"\")","v":""},{"$f":"IFERROR(VLOOKUP(VLOOKUP(B19,'Lista Verificação Propriedade'!B:J,9,0),DropDowns!G:H,2,0),\"\")","v":""},{"$f":"IFERROR(VLOOKUP(B19,'Lista Verificação Propriedade'!B:E,4,0),\"\")","v":""},{"$f":"IFERROR(VLOOKUP(B19,'Lista Verificação Propriedade'!B:G,6,0),\"\")","v":""},null,"",null,""]
[null,{"$f":"IFERROR(INDEX('Lista Verificação Propriedade'!$B$1:$B$397, SMALL(INDEX(('Lista Verificação Propriedade'!$I$1:$I$397=\"Yes\")*(MATCH(ROW('Lista Verificação Propriedade'!$I$1:$I$397), ROW('Lista Verificação Propriedade'!$I$1:$I$397)))+('Lista Verificação Propriedade'!$I$1:$I$397<>\"Yes\")*1048577, 0, 0), ROW(A16))),\"\")","v":""},{"$f":"IFERROR(VLOOKUP(B20,'Lista Verificação Propriedade'!B:C,2,0),\"\")","v":""},{"$f":"IFERROR(VLOOKUP(VLOOKUP(B20,'Lista Verificação Propriedade'!B:J,9,0),DropDowns!G:H,2,0),\"\")","v":""},{"$f":"IFERROR(VLOOKUP(B20,'Lista Verificação Propriedade'!B:E,4,0),\"\")","v":""},{"$f":"IFERROR(VLOOKUP(B20,'Lista Verificação Propriedade'!B:G,6,0),\"\")","v":""},null,"",null,""]
[null,{"$f":"IFERROR(INDEX('Lista Verificação Propriedade'!$B$1:$B$397, SMALL(INDEX(('Lista Verificação Propriedade'!$I$1:$I$397=\"Yes\")*(MATCH(ROW('Lista Verificação Propriedade'!$I$1:$I$397), ROW('Lista Verificação Propriedade'!$I$1:$I$397)))+('Lista Verificação Propriedade'!$I$1:$I$397<>\"Yes\")*1048577, 0, 0), ROW(A17))),\"\")","v":""},{"$f":"IFERROR(VLOOKUP(B21,'Lista Verificação Propriedade'!B:C,2,0),\"\")","v":""},{"$f":"IFERROR(VLOOKUP(VLOOKUP(B21,'Lista Verificação Propriedade'!B:J,9,0),DropDowns!G:H,2,0),\"\")","v":""},{"$f":"IFERROR(VLOOKUP(B21,'Lista Verificação Propriedade'!B:E,4,0),\"\")","v":""},{"$f":"IFERROR(VLOOKUP(B21,'Lista Verificação Propriedade'!B:G,6,0),\"\")","v":""},null,"",null,""]
[null,{"$f":"IFERROR(INDEX('Lista Verificação Propriedade'!$B$1:$B$397, SMALL(INDEX(('Lista Verificação Propriedade'!$I$1:$I$397=\"Yes\")*(MATCH(ROW('Lista Verificação Propriedade'!$I$1:$I$397), ROW('Lista Verificação Propriedade'!$I$1:$I$397)))+('Lista Verificação Propriedade'!$I$1:$I$397<>\"Yes\")*1048577, 0, 0), ROW(A18))),\"\")","v":""},{"$f":"IFERROR(VLOOKUP(B22,'Lista Verificação Propriedade'!B:C,2,0),\"\")","v":""},{"$f":"IFERROR(VLOOKUP(VLOOKUP(B22,'Lista Verificação Propriedade'!B:J,9,0),DropDowns!G:H,2,0),\"\")","v":""},{"$f":"IFERROR(VLOOKUP(B22,'Lista Verificação Propriedade'!B:E,4,0),\"\")","v":""},{"$f":"IFERROR(VLOOKUP(B22,'Lista Verificação Propriedade'!B:G,6,0),\"\")","v":""},null,"",null,""]
[null,{"$f":"IFERROR(INDEX('Lista Verificação Propriedade'!$B$1:$B$397, SMALL(INDEX(('Lista Verificação Propriedade'!$I$1:$I$397=\"Yes\")*(MATCH(ROW('Lista Verificação Propriedade'!$I$1:$I$397), ROW('Lista Verificação Propriedade'!$I$1:$I$397)))+('Lista Verificação Propriedade'!$I$1:$I$397<>\"Yes\")*1048577, 0, 0), ROW(A19))),\"\")","v":""},{"$f":"IFERROR(VLOOKUP(B23,'Lista Verificação Propriedade'!B:C,2,0),\"\")","v":""},{"$f":"IFERROR(VLOOKUP(VLOOKUP(B23,'Lista Verificação Propriedade'!B:J,9,0),DropDowns!G:H,2,0),\"\")","v":""},{"$f":"IFERROR(VLOOKUP(B23,'Lista Verificação Propriedade'!B:E,4,0),\"\")","v":""},{"$f":"IFERROR(VLOOKUP(B23,'Lista Verificação Propriedade'!B:G,6,0),\"\")","v":""},null,"",null,""]
[null,{"$f":"IFERROR(INDEX('Lista Verificação Propriedade'!$B$1:$B$397, SMALL(INDEX(('Lista Verificação Propriedade'!$I$1:$I$397=\"Yes\")*(MATCH(ROW('Lista Verificação Propriedade'!$I$1:$I$397), ROW('Lista Verificação Propriedade'!$I$1:$I$397)))+('Lista Verificação Propriedade'!$I$1:$I$397<>\"Yes\")*1048577, 0, 0), ROW(A20))),\"\")","v":""},{"$f":"IFERROR(VLOOKUP(B24,'Lista Verificação Propriedade'!B:C,2,0),\"\")","v":""},{"$f":"IFERROR(VLOOKUP(VLOOKUP(B24,'Lista Verificação Propriedade'!B:J,9,0),DropDowns!G:H,2,0),\"\")","v":""},{"$f":"IFERROR(VLOOKUP(B24,'Lista Verificação Propriedade'!B:E,4,0),\"\")","v":""},{"$f":"IFERROR(VLOOKUP(B24,'Lista Verificação Propriedade'!B:G,6,0),\"\")","v":""},null,"",null,""]
[null,{"$f":"IFERROR(INDEX('Lista Verificação Propriedade'!$B$1:$B$397, SMALL(INDEX(('Lista Verificação Propriedade'!$I$1:$I$397=\"Yes\")*(MATCH(ROW('Lista Verificação Propriedade'!$I$1:$I$397), ROW('Lista Verificação Propriedade'!$I$1:$I$397)))+('Lista Verificação Propriedade'!$I$1:$I$397<>\"Yes\")*1048577, 0, 0), ROW(A21))),\"\")","v":""},{"$f":"IFERROR(VLOOKUP(B25,'Lista Verificação Propriedade'!B:C,2,0),\"\")","v":""},{"$f":"IFERROR(VLOOKUP(VLOOKUP(B25,'Lista Verificação Propriedade'!B:J,9,0),DropDowns!G:H,2,0),\"\")","v":""},{"$f":"IFERROR(VLOOKUP(B25,'Lista Verificação Propriedade'!B:E,4,0),\"\")","v":""},{"$f":"IFERROR(VLOOKUP(B25,'Lista Verificação Propriedade'!B:G,6,0),\"\")","v":""},null,"",null,""]
[null,{"$f":"IFERROR(INDEX('Lista Verificação Propriedade'!$B$1:$B$397, SMALL(INDEX(('Lista Verificação Propriedade'!$I$1:$I$397=\"Yes\")*(MATCH(ROW('Lista Verificação Propriedade'!$I$1:$I$397), ROW('Lista Verificação Propriedade'!$I$1:$I$397)))+('Lista Verificação Propriedade'!$I$1:$I$397<>\"Yes\")*1048577, 0, 0), ROW(A22))),\"\")","v":""},{"$f":"IFERROR(VLOOKUP(B26,'Lista Verificação Propriedade'!B:C,2,0),\"\")","v":""},{"$f":"IFERROR(VLOOKUP(VLOOKUP(B26,'Lista Verificação Propriedade'!B:J,9,0),DropDowns!G:H,2,0),\"\")","v":""},{"$f":"IFERROR(VLOOKUP(B26,'Lista Verificação Propriedade'!B:E,4,0),\"\")","v":""},{"$f":"IFERROR(VLOOKUP(B26,'Lista Verificação Propriedade'!B:G,6,0),\"\")","v":""},null,"",null,""]
[null,{"$f":"IFERROR(INDEX('Lista Verificação Propriedade'!$B$1:$B$397, SMALL(INDEX(('Lista Verificação Propriedade'!$I$1:$I$397=\"Yes\")*(MATCH(ROW('Lista Verificação Propriedade'!$I$1:$I$397), ROW('Lista Verificação Propriedade'!$I$1:$I$397)))+('Lista Verificação Propriedade'!$I$1:$I$397<>\"Yes\")*1048577, 0, 0), ROW(A23))),\"\")","v":""},{"$f":"IFERROR(VLOOKUP(B27,'Lista Verificação Propriedade'!B:C,2,0),\"\")","v":""},{"$f":"IFERROR(VLOOKUP(VLOOKUP(B27,'Lista Verificação Propriedade'!B:J,9,0),DropDowns!G:H,2,0),\"\")","v":""},{"$f":"IFERROR(VLOOKUP(B27,'Lista Verificação Propriedade'!B:E,4,0),\"\")","v":""},{"$f":"IFERROR(VLOOKUP(B27,'Lista Verificação Propriedade'!B:G,6,0),\"\")","v":""},null,"",null,""]
[null,{"$f":"IFERROR(INDEX('Lista Verificação Propriedade'!$B$1:$B$397, SMALL(INDEX(('Lista Verificação Propriedade'!$I$1:$I$397=\"Yes\")*(MATCH(ROW('Lista Verificação Propriedade'!$I$1:$I$397), ROW('Lista Verificação Propriedade'!$I$1:$I$397)))+('Lista Verificação Propriedade'!$I$1:$I$397<>\"Yes\")*1048577, 0, 0), ROW(A24))),\"\")","v":""},{"$f":"IFERROR(VLOOKUP(B28,'Lista Verificação Propriedade'!B:C,2,0),\"\")","v":""},{"$f":"IFERROR(VLOOKUP(VLOOKUP(B28,'Lista Verificação Propriedade'!B:J,9,0),DropDowns!G:H,2,0),\"\")","v":""},{"$f":"IFERROR(VLOOKUP(B28,'Lista Verificação Propriedade'!B:E,4,0),\"\")","v":""},{"$f":"IFERROR(VLOOKUP(B28,'Lista Verificação Propriedade'!B:G,6,0),\"\")","v":""},null,"",null,""]
[null,{"$f":"IFERROR(INDEX('Lista Verificação Propriedade'!$B$1:$B$397, SMALL(INDEX(('Lista Verificação Propriedade'!$I$1:$I$397=\"Yes\")*(MATCH(ROW('Lista Verificação Propriedade'!$I$1:$I$397), ROW('Lista Verificação Propriedade'!$I$1:$I$397)))+('Lista Verificação Propriedade'!$I$1:$I$397<>\"Yes\")*1048577, 0, 0), ROW(A25))),\"\")","v":""},{"$f":"IFERROR(VLOOKUP(B29,'Lista Verificação Propriedade'!B:C,2,0),\"\")","v":""},{"$f":"IFERROR(VLOOKUP(VLOOKUP(B29,'Lista Verificação Propriedade'!B:J,9,0),DropDowns!G:H,2,0),\"\")","v":""},{"$f":"IFERROR(VLOOKUP(B29,'Lista Verificação Propriedade'!B:E,4,0),\"\")","v":""},{"$f":"IFERROR(VLOOKUP(B29,'Lista Verificação Propriedade'!B:G,6,0),\"\")","v":""},null,"",null,""]
[null,{"$f":"IFERROR(INDEX('Lista Verificação Propriedade'!$B$1:$B$397, SMALL(INDEX(('Lista Verificação Propriedade'!$I$1:$I$397=\"Yes\")*(MATCH(ROW('Lista Verificação Propriedade'!$I$1:$I$397), ROW('Lista Verificação Propriedade'!$I$1:$I$397)))+('Lista Verificação Propriedade'!$I$1:$I$397<>\"Yes\")*1048577, 0, 0), ROW(A26))),\"\")","v":""},{"$f":"IFERROR(VLOOKUP(B30,'Lista Verificação Propriedade'!B:C,2,0),\"\")","v":""},{"$f":"IFERROR(VLOOKUP(VLOOKUP(B30,'Lista Verificação Propriedade'!B:J,9,0),DropDowns!G:H,2,0),\"\")","v":""},{"$f":"IFERROR(VLOOKUP(B30,'Lista Verificação Propriedade'!B:E,4,0),\"\")","v":""},{"$f":"IFERROR(VLOOKUP(B30,'Lista Verificação Propriedade'!B:G,6,0),\"\")","v":""},null,"",null,""]
[null,{"$f":"IFERROR(INDEX('Lista Verificação Propriedade'!$B$1:$B$397, SMALL(INDEX(('Lista Verificação Propriedade'!$I$1:$I$397=\"Yes\")*(MATCH(ROW('Lista Verificação Propriedade'!$I$1:$I$397), ROW('Lista Verificação Propriedade'!$I$1:$I$397)))+('Lista Verificação Propriedade'!$I$1:$I$397<>\"Yes\")*1048577, 0, 0), ROW(A27))),\"\")","v":""},{"$f":"IFERROR(VLOOKUP(B31,'Lista Verificação Propriedade'!B:C,2,0),\"\")","v":""},{"$f":"IFERROR(VLOOKUP(VLOOKUP(B31,'Lista Verificação Propriedade'!B:J,9,0),DropDowns!G:H,2,0),\"\")","v":""},{"$f":"IFERROR(VLOOKUP(B31,'Lista Verificação Propriedade'!B:E,4,0),\"\")","v":""},{"$f":"IFERROR(VLOOKUP(B31,'Lista Verificação Propriedade'!B:G,6,0),\"\")","v":""},null,"",null,""]
[null,{"$f":"IFERROR(INDEX('Lista Verificação Propriedade'!$B$1:$B$397, SMALL(INDEX(('Lista Verificação Propriedade'!$I$1:$I$397=\"Yes\")*(MATCH(ROW('Lista Verificação Propriedade'!$I$1:$I$397), ROW('Lista Verificação Propriedade'!$I$1:$I$397)))+('Lista Verificação Propriedade'!$I$1:$I$397<>\"Yes\")*1048577, 0, 0), ROW(A28))),\"\")","v":""},{"$f":"IFERROR(VLOOKUP(B32,'Lista Verificação Propriedade'!B:C,2,0),\"\")","v":""},{"$f":"IFERROR(VLOOKUP(VLOOKUP(B32,'Lista Verificação Propriedade'!B:J,9,0),DropDowns!G:H,2,0),\"\")","v":""},{"$f":"IFERROR(VLOOKUP(B32,'Lista Verificação Propriedade'!B:E,4,0),\"\")","v":""},{"$f":"IFERROR(VLOOKUP(B32,'Lista Verificação Propriedade'!B:G,6,0),\"\")","v":""},null,"",null,""]
[null,{"$f":"IFERROR(INDEX('Lista Verificação Propriedade'!$B$1:$B$397, SMALL(INDEX(('Lista Verificação Propriedade'!$I$1:$I$397=\"Yes\")*(MATCH(ROW('Lista Verificação Propriedade'!$I$1:$I$397), ROW('Lista Verificação Propriedade'!$I$1:$I$397)))+('Lista Verificação Propriedade'!$I$1:$I$397<>\"Yes\")*1048577, 0, 0), ROW(A29))),\"\")","v":""},{"$f":"IFERROR(VLOOKUP(B33,'Lista Verificação Propriedade'!B:C,2,0),\"\")","v":""},{"$f":"IFERROR(VLOOKUP(VLOOKUP(B33,'Lista Verificação Propriedade'!B:J,9,0),DropDowns!G:H,2,0),\"\")","v":""},{"$f":"IFERROR(VLOOKUP(B33,'Lista Verificação Propriedade'!B:E,4,0),\"\")","v":""},{"$f":"IFERROR(VLOOKUP(B33,'Lista Verificação Propriedade'!B:G,6,0),\"\")","v":""},null,"",null,""]
[null,{"$f":"IFERROR(INDEX('Lista Verificação Propriedade'!$B$1:$B$397, SMALL(INDEX(('Lista Verificação Propriedade'!$I$1:$I$397=\"Yes\")*(MATCH(ROW('Lista Verificação Propriedade'!$I$1:$I$397), ROW('Lista Verificação Propriedade'!$I$1:$I$397)))+('Lista Verificação Propriedade'!$I$1:$I$397<>\"Yes\")*1048577, 0, 0), ROW(A30))),\"\")","v":""},{"$f":"IFERROR(VLOOKUP(B34,'Lista Verificação Propriedade'!B:C,2,0),\"\")","v":""},{"$f":"IFERROR(VLOOKUP(VLOOKUP(B34,'Lista Verificação Propriedade'!B:J,9,0),DropDowns!G:H,2,0),\"\")","v":""},{"$f":"IFERROR(VLOOKUP(B34,'Lista Verificação Propriedade'!B:E,4,0),\"\")","v":""},{"$f":"IFERROR(VLOOKUP(B34,'Lista Verificação Propriedade'!B:G,6,0),\"\")","v":""},null,"",null,""]
[null,{"$f":"IFERROR(INDEX('Lista Verificação Propriedade'!$B$1:$B$397, SMALL(INDEX(('Lista Verificação Propriedade'!$I$1:$I$397=\"Yes\")*(MATCH(ROW('Lista Verificação Propriedade'!$I$1:$I$397), ROW('Lista Verificação Propriedade'!$I$1:$I$397)))+('Lista Verificação Propriedade'!$I$1:$I$397<>\"Yes\")*1048577, 0, 0), ROW(A31))),\"\")","v":""},{"$f":"IFERROR(VLOOKUP(B35,'Lista Verificação Propriedade'!B:C,2,0),\"\")","v":""},{"$f":"IFERROR(VLOOKUP(VLOOKUP(B35,'Lista Verificação Propriedade'!B:J,9,0),DropDowns!G:H,2,0),\"\")","v":""},{"$f":"IFERROR(VLOOKUP(B35,'Lista Verificação Propriedade'!B:E,4,0),\"\")","v":""},{"$f":"IFERROR(VLOOKUP(B35,'Lista Verificação Propriedade'!B:G,6,0),\"\")","v":""},null,"",null,""]
[null,{"$f":"IFERROR(INDEX('Lista Verificação Propriedade'!$B$1:$B$397, SMALL(INDEX(('Lista Verificação Propriedade'!$I$1:$I$397=\"Yes\")*(MATCH(ROW('Lista Verificação Propriedade'!$I$1:$I$397), ROW('Lista Verificação Propriedade'!$I$1:$I$397)))+('Lista Verificação Propriedade'!$I$1:$I$397<>\"Yes\")*1048577, 0, 0), ROW(A32))),\"\")","v":""},{"$f":"IFERROR(VLOOKUP(B36,'Lista Verificação Propriedade'!B:C,2,0),\"\")","v":""},{"$f":"IFERROR(VLOOKUP(VLOOKUP(B36,'Lista Verificação Propriedade'!B:J,9,0),DropDowns!G:H,2,0),\"\")","v":""},{"$f":"IFERROR(VLOOKUP(B36,'Lista Verificação Propriedade'!B:E,4,0),\"\")","v":""},{"$f":"IFERROR(VLOOKUP(B36,'Lista Verificação Propriedade'!B:G,6,0),\"\")","v":""},null,"",null,""]
[null,{"$f":"IFERROR(INDEX('Lista Verificação Propriedade'!$B$1:$B$397, SMALL(INDEX(('Lista Verificação Propriedade'!$I$1:$I$397=\"Yes\")*(MATCH(ROW('Lista Verificação Propriedade'!$I$1:$I$397), ROW('Lista Verificação Propriedade'!$I$1:$I$397)))+('Lista Verificação Propriedade'!$I$1:$I$397<>\"Yes\")*1048577, 0, 0), ROW(A33))),\"\")","v":""},{"$f":"IFERROR(VLOOKUP(B37,'Lista Verificação Propriedade'!B:C,2,0),\"\")","v":""},{"$f":"IFERROR(VLOOKUP(VLOOKUP(B37,'Lista Verificação Propriedade'!B:J,9,0),DropDowns!G:H,2,0),\"\")","v":""},{"$f":"IFERROR(VLOOKUP(B37,'Lista Verificação Propriedade'!B:E,4,0),\"\")","v":""},{"$f":"IFERROR(VLOOKUP(B37,'Lista Verificação Propriedade'!B:G,6,0),\"\")","v":""},null,"",null,""]
[null,{"$f":"IFERROR(INDEX('Lista Verificação Propriedade'!$B$1:$B$397, SMALL(INDEX(('Lista Verificação Propriedade'!$I$1:$I$397=\"Yes\")*(MATCH(ROW('Lista Verificação Propriedade'!$I$1:$I$397), ROW('Lista Verificação Propriedade'!$I$1:$I$397)))+('Lista Verificação Propriedade'!$I$1:$I$397<>\"Yes\")*1048577, 0, 0), ROW(A34))),\"\")","v":""},{"$f":"IFERROR(VLOOKUP(B38,'Lista Verificação Propriedade'!B:C,2,0),\"\")","v":""},{"$f":"IFERROR(VLOOKUP(VLOOKUP(B38,'Lista Verificação Propriedade'!B:J,9,0),DropDowns!G:H,2,0),\"\")","v":""},{"$f":"IFERROR(VLOOKUP(B38,'Lista Verificação Propriedade'!B:E,4,0),\"\")","v":""},{"$f":"IFERROR(VLOOKUP(B38,'Lista Verificação Propriedade'!B:G,6,0),\"\")","v":""},null,"",null,""]
[null,{"$f":"IFERROR(INDEX('Lista Verificação Propriedade'!$B$1:$B$397, SMALL(INDEX(('Lista Verificação Propriedade'!$I$1:$I$397=\"Yes\")*(MATCH(ROW('Lista Verificação Propriedade'!$I$1:$I$397), ROW('Lista Verificação Propriedade'!$I$1:$I$397)))+('Lista Verificação Propriedade'!$I$1:$I$397<>\"Yes\")*1048577, 0, 0), ROW(A35))),\"\")","v":""},{"$f":"IFERROR(VLOOKUP(B39,'Lista Verificação Propriedade'!B:C,2,0),\"\")","v":""},{"$f":"IFERROR(VLOOKUP(VLOOKUP(B39,'Lista Verificação Propriedade'!B:J,9,0),DropDowns!G:H,2,0),\"\")","v":""},{"$f":"IFERROR(VLOOKUP(B39,'Lista Verificação Propriedade'!B:E,4,0),\"\")","v":""},{"$f":"IFERROR(VLOOKUP(B39,'Lista Verificação Propriedade'!B:G,6,0),\"\")","v":""},null,"",null,""]
[null,{"$f":"IFERROR(INDEX('Lista Verificação Propriedade'!$B$1:$B$397, SMALL(INDEX(('Lista Verificação Propriedade'!$I$1:$I$397=\"Yes\")*(MATCH(ROW('Lista Verificação Propriedade'!$I$1:$I$397), ROW('Lista Verificação Propriedade'!$I$1:$I$397)))+('Lista Verificação Propriedade'!$I$1:$I$397<>\"Yes\")*1048577, 0, 0), ROW(A36))),\"\")","v":""},{"$f":"IFERROR(VLOOKUP(B40,'Lista Verificação Propriedade'!B:C,2,0),\"\")","v":""},{"$f":"IFERROR(VLOOKUP(VLOOKUP(B40,'Lista Verificação Propriedade'!B:J,9,0),DropDowns!G:H,2,0),\"\")","v":""},{"$f":"IFERROR(VLOOKUP(B40,'Lista Verificação Propriedade'!B:E,4,0),\"\")","v":""},{"$f":"IFERROR(VLOOKUP(B40,'Lista Verificação Propriedade'!B:G,6,0),\"\")","v":""},null,"",null,""]
[null,{"$f":"IFERROR(INDEX('Lista Verificação Propriedade'!$B$1:$B$397, SMALL(INDEX(('Lista Verificação Propriedade'!$I$1:$I$397=\"Yes\")*(MATCH(ROW('Lista Verificação Propriedade'!$I$1:$I$397), ROW('Lista Verificação Propriedade'!$I$1:$I$397)))+('Lista Verificação Propriedade'!$I$1:$I$397<>\"Yes\")*1048577, 0, 0), ROW(A37))),\"\")","v":""},{"$f":"IFERROR(VLOOKUP(B41,'Lista Verificação Propriedade'!B:C,2,0),\"\")","v":""},{"$f":"IFERROR(VLOOKUP(VLOOKUP(B41,'Lista Verificação Propriedade'!B:J,9,0),DropDowns!G:H,2,0),\"\")","v":""},{"$f":"IFERROR(VLOOKUP(B41,'Lista Verificação Propriedade'!B:E,4,0),\"\")","v":""},{"$f":"IFERROR(VLOOKUP(B41,'Lista Verificação Propriedade'!B:G,6,0),\"\")","v":""},null,"",null,""]
[null,{"$f":"IFERROR(INDEX('Lista Verificação Propriedade'!$B$1:$B$397, SMALL(INDEX(('Lista Verificação Propriedade'!$I$1:$I$397=\"Yes\")*(MATCH(ROW('Lista Verificação Propriedade'!$I$1:$I$397), ROW('Lista Verificação Propriedade'!$I$1:$I$397)))+('Lista Verificação Propriedade'!$I$1:$I$397<>\"Yes\")*1048577, 0, 0), ROW(A38))),\"\")","v":""},{"$f":"IFERROR(VLOOKUP(B42,'Lista Verificação Propriedade'!B:C,2,0),\"\")","v":""},{"$f":"IFERROR(VLOOKUP(VLOOKUP(B42,'Lista Verificação Propriedade'!B:J,9,0),DropDowns!G:H,2,0),\"\")","v":""},{"$f":"IFERROR(VLOOKUP(B42,'Lista Verificação Propriedade'!B:E,4,0),\"\")","v":""},{"$f":"IFERROR(VLOOKUP(B42,'Lista Verificação Propriedade'!B:G,6,0),\"\")","v":""},null,"",null,""]
[null,{"$f":"IFERROR(INDEX('Lista Verificação Propriedade'!$B$1:$B$397, SMALL(INDEX(('Lista Verificação Propriedade'!$I$1:$I$397=\"Yes\")*(MATCH(ROW('Lista Verificação Propriedade'!$I$1:$I$397), ROW('Lista Verificação Propriedade'!$I$1:$I$397)))+('Lista Verificação Propriedade'!$I$1:$I$397<>\"Yes\")*1048577, 0, 0), ROW(A39))),\"\")","v":""},{"$f":"IFERROR(VLOOKUP(B43,'Lista Verificação Propriedade'!B:C,2,0),\"\")","v":""},{"$f":"IFERROR(VLOOKUP(VLOOKUP(B43,'Lista Verificação Propriedade'!B:J,9,0),DropDowns!G:H,2,0),\"\")","v":""},{"$f":"IFERROR(VLOOKUP(B43,'Lista Verificação Propriedade'!B:E,4,0),\"\")","v":""},{"$f":"IFERROR(VLOOKUP(B43,'Lista Verificação Propriedade'!B:G,6,0),\"\")","v":""},null,"",null,""]
[null,{"$f":"IFERROR(INDEX('Lista Verificação Propriedade'!$B$1:$B$397, SMALL(INDEX(('Lista Verificação Propriedade'!$I$1:$I$397=\"Yes\")*(MATCH(ROW('Lista Verificação Propriedade'!$I$1:$I$397), ROW('Lista Verificação Propriedade'!$I$1:$I$397)))+('Lista Verificação Propriedade'!$I$1:$I$397<>\"Yes\")*1048577, 0, 0), ROW(A40))),\"\")","v":""},{"$f":"IFERROR(VLOOKUP(B44,'Lista Verificação Propriedade'!B:C,2,0),\"\")","v":""},{"$f":"IFERROR(VLOOKUP(VLOOKUP(B44,'Lista Verificação Propriedade'!B:J,9,0),DropDowns!G:H,2,0),\"\")","v":""},{"$f":"IFERROR(VLOOKUP(B44,'Lista Verificação Propriedade'!B:E,4,0),\"\")","v":""},{"$f":"IFERROR(VLOOKUP(B44,'Lista Verificação Propriedade'!B:G,6,0),\"\")","v":""},null,"",null,""]
[null,{"$f":"IFERROR(INDEX('Lista Verificação Propriedade'!$B$1:$B$397, SMALL(INDEX(('Lista Verificação Propriedade'!$I$1:$I$397=\"Yes\")*(MATCH(ROW('Lista Verificação Propriedade'!$I$1:$I$397), ROW('Lista Verificação Propriedade'!$I$1:$I$397)))+('Lista Verificação Propriedade'!$I$1:$I$397<>\"Yes\")*1048577, 0, 0), ROW(A41))),\"\")","v":""},{"$f":"IFERROR(VLOOKUP(B45,'Lista Verificação Propriedade'!B:C,2,0),\"\")","v":""},{"$f":"IFERROR(VLOOKUP(VLOOKUP(B45,'Lista Verificação Propriedade'!B:J,9,0),DropDowns!G:H,2,0),\"\")","v":""},{"$f":"IFERROR(VLOOKUP(B45,'Lista Verificação Propriedade'!B:E,4,0),\"\")","v":""},{"$f":"IFERROR(VLOOKUP(B45,'Lista Verificação Propriedade'!B:G,6,0),\"\")","v":""},null,"",null,""]
[null,{"$f":"IFERROR(INDEX('Lista Verificação Propriedade'!$B$1:$B$397, SMALL(INDEX(('Lista Verificação Propriedade'!$I$1:$I$397=\"Yes\")*(MATCH(ROW('Lista Verificação Propriedade'!$I$1:$I$397), ROW('Lista Verificação Propriedade'!$I$1:$I$397)))+('Lista Verificação Propriedade'!$I$1:$I$397<>\"Yes\")*1048577, 0, 0), ROW(A42))),\"\")","v":""},{"$f":"IFERROR(VLOOKUP(B46,'Lista Verificação Propriedade'!B:C,2,0),\"\")","v":""},{"$f":"IFERROR(VLOOKUP(VLOOKUP(B46,'Lista Verificação Propriedade'!B:J,9,0),DropDowns!G:H,2,0),\"\")","v":""},{"$f":"IFERROR(VLOOKUP(B46,'Lista Verificação Propriedade'!B:E,4,0),\"\")","v":""},{"$f":"IFERROR(VLOOKUP(B46,'Lista Verificação Propriedade'!B:G,6,0),\"\")","v":""},null,"",null,""]
[null,{"$f":"IFERROR(INDEX('Lista Verificação Propriedade'!$B$1:$B$397, SMALL(INDEX(('Lista Verificação Propriedade'!$I$1:$I$397=\"Yes\")*(MATCH(ROW('Lista Verificação Propriedade'!$I$1:$I$397), ROW('Lista Verificação Propriedade'!$I$1:$I$397)))+('Lista Verificação Propriedade'!$I$1:$I$397<>\"Yes\")*1048577, 0, 0), ROW(A43))),\"\")","v":""},{"$f":"IFERROR(VLOOKUP(B47,'Lista Verificação Propriedade'!B:C,2,0),\"\")","v":""},{"$f":"IFERROR(VLOOKUP(VLOOKUP(B47,'Lista Verificação Propriedade'!B:J,9,0),DropDowns!G:H,2,0),\"\")","v":""},{"$f":"IFERROR(VLOOKUP(B47,'Lista Verificação Propriedade'!B:E,4,0),\"\")","v":""},{"$f":"IFERROR(VLOOKUP(B47,'Lista Verificação Propriedade'!B:G,6,0),\"\")","v":""},null,"",null,""]
[null,{"$f":"IFERROR(INDEX('Lista Verificação Propriedade'!$B$1:$B$397, SMALL(INDEX(('Lista Verificação Propriedade'!$I$1:$I$397=\"Yes\")*(MATCH(ROW('Lista Verificação Propriedade'!$I$1:$I$397), ROW('Lista Verificação Propriedade'!$I$1:$I$397)))+('Lista Verificação Propriedade'!$I$1:$I$397<>\"Yes\")*1048577, 0, 0), ROW(A44))),\"\")","v":""},{"$f":"IFERROR(VLOOKUP(B48,'Lista Verificação Propriedade'!B:C,2,0),\"\")","v":""},{"$f":"IFERROR(VLOOKUP(VLOOKUP(B48,'Lista Verificação Propriedade'!B:J,9,0),DropDowns!G:H,2,0),\"\")","v":""},{"$f":"IFERROR(VLOOKUP(B48,'Lista Verificação Propriedade'!B:E,4,0),\"\")","v":""},{"$f":"IFERROR(VLOOKUP(B48,'Lista Verificação Propriedade'!B:G,6,0),\"\")","v":""},null,"",null,""]
[null,{"$f":"IFERROR(INDEX('Lista Verificação Propriedade'!$B$1:$B$397, SMALL(INDEX(('Lista Verificação Propriedade'!$I$1:$I$397=\"Yes\")*(MATCH(ROW('Lista Verificação Propriedade'!$I$1:$I$397), ROW('Lista Verificação Propriedade'!$I$1:$I$397)))+('Lista Verificação Propriedade'!$I$1:$I$397<>\"Yes\")*1048577, 0, 0), ROW(A45))),\"\")","v":""},{"$f":"IFERROR(VLOOKUP(B49,'Lista Verificação Propriedade'!B:C,2,0),\"\")","v":""},{"$f":"IFERROR(VLOOKUP(VLOOKUP(B49,'Lista Verificação Propriedade'!B:J,9,0),DropDowns!G:H,2,0),\"\")","v":""},{"$f":"IFERROR(VLOOKUP(B49,'Lista Verificação Propriedade'!B:E,4,0),\"\")","v":""},{"$f":"IFERROR(VLOOKUP(B49,'Lista Verificação Propriedade'!B:G,6,0),\"\")","v":""},null,"",null,""]
[null,{"$f":"IFERROR(INDEX('Lista Verificação Propriedade'!$B$1:$B$397, SMALL(INDEX(('Lista Verificação Propriedade'!$I$1:$I$397=\"Yes\")*(MATCH(ROW('Lista Verificação Propriedade'!$I$1:$I$397), ROW('Lista Verificação Propriedade'!$I$1:$I$397)))+('Lista Verificação Propriedade'!$I$1:$I$397<>\"Yes\")*1048577, 0, 0), ROW(A46))),\"\")","v":""},{"$f":"IFERROR(VLOOKUP(B50,'Lista Verificação Propriedade'!B:C,2,0),\"\")","v":""},{"$f":"IFERROR(VLOOKUP(VLOOKUP(B50,'Lista Verificação Propriedade'!B:J,9,0),DropDowns!G:H,2,0),\"\")","v":""},{"$f":"IFERROR(VLOOKUP(B50,'Lista Verificação Propriedade'!B:E,4,0),\"\")","v":""},{"$f":"IFERROR(VLOOKUP(B50,'Lista Verificação Propriedade'!B:G,6,0),\"\")","v":""},null,"",null,""]
[null,{"$f":"IFERROR(INDEX('Lista Verificação Propriedade'!$B$1:$B$397, SMALL(INDEX(('Lista Verificação Propriedade'!$I$1:$I$397=\"Yes\")*(MATCH(ROW('Lista Verificação Propriedade'!$I$1:$I$397), ROW('Lista Verificação Propriedade'!$I$1:$I$397)))+('Lista Verificação Propriedade'!$I$1:$I$397<>\"Yes\")*1048577, 0, 0), ROW(A47))),\"\")","v":""},{"$f":"IFERROR(VLOOKUP(B51,'Lista Verificação Propriedade'!B:C,2,0),\"\")","v":""},{"$f":"IFERROR(VLOOKUP(VLOOKUP(B51,'Lista Verificação Propriedade'!B:J,9,0),DropDowns!G:H,2,0),\"\")","v":""},{"$f":"IFERROR(VLOOKUP(B51,'Lista Verificação Propriedade'!B:E,4,0),\"\")","v":""},{"$f":"IFERROR(VLOOKUP(B51,'Lista Verificação Propriedade'!B:G,6,0),\"\")","v":""},null,"",null,""]
[null,{"$f":"IFERROR(INDEX('Lista Verificação Propriedade'!$B$1:$B$397, SMALL(INDEX(('Lista Verificação Propriedade'!$I$1:$I$397=\"Yes\")*(MATCH(ROW('Lista Verificação Propriedade'!$I$1:$I$397), ROW('Lista Verificação Propriedade'!$I$1:$I$397)))+('Lista Verificação Propriedade'!$I$1:$I$397<>\"Yes\")*1048577, 0, 0), ROW(A48))),\"\")","v":""},{"$f":"IFERROR(VLOOKUP(B52,'Lista Verificação Propriedade'!B:C,2,0),\"\")","v":""},{"$f":"IFERROR(VLOOKUP(VLOOKUP(B52,'Lista Verificação Propriedade'!B:J,9,0),DropDowns!G:H,2,0),\"\")","v":""},{"$f":"IFERROR(VLOOKUP(B52,'Lista Verificação Propriedade'!B:E,4,0),\"\")","v":""},{"$f":"IFERROR(VLOOKUP(B52,'Lista Verificação Propriedade'!B:G,6,0),\"\")","v":""},null,"",null,""]
[null,{"$f":"IFERROR(INDEX('Lista Verificação Propriedade'!$B$1:$B$397, SMALL(INDEX(('Lista Verificação Propriedade'!$I$1:$I$397=\"Yes\")*(MATCH(ROW('Lista Verificação Propriedade'!$I$1:$I$397), ROW('Lista Verificação Propriedade'!$I$1:$I$397)))+('Lista Verificação Propriedade'!$I$1:$I$397<>\"Yes\")*1048577, 0, 0), ROW(A49))),\"\")","v":""},{"$f":"IFERROR(VLOOKUP(B53,'Lista Verificação Propriedade'!B:C,2,0),\"\")","v":""},{"$f":"IFERROR(VLOOKUP(VLOOKUP(B53,'Lista Verificação Propriedade'!B:J,9,0),DropDowns!G:H,2,0),\"\")","v":""},{"$f":"IFERROR(VLOOKUP(B53,'Lista Verificação Propriedade'!B:E,4,0),\"\")","v":""},{"$f":"IFERROR(VLOOKUP(B53,'Lista Verificação Propriedade'!B:G,6,0),\"\")","v":""},null,"",null,""]
[null,{"$f":"IFERROR(INDEX('Lista Verificação Propriedade'!$B$1:$B$397, SMALL(INDEX(('Lista Verificação Propriedade'!$I$1:$I$397=\"Yes\")*(MATCH(ROW('Lista Verificação Propriedade'!$I$1:$I$397), ROW('Lista Verificação Propriedade'!$I$1:$I$397)))+('Lista Verificação Propriedade'!$I$1:$I$397<>\"Yes\")*1048577, 0, 0), ROW(A50))),\"\")","v":""},{"$f":"IFERROR(VLOOKUP(B54,'Lista Verificação Propriedade'!B:C,2,0),\"\")","v":""},{"$f":"IFERROR(VLOOKUP(VLOOKUP(B54,'Lista Verificação Propriedade'!B:J,9,0),DropDowns!G:H,2,0),\"\")","v":""},{"$f":"IFERROR(VLOOKUP(B54,'Lista Verificação Propriedade'!B:E,4,0),\"\")","v":""},{"$f":"IFERROR(VLOOKUP(B54,'Lista Verificação Propriedade'!B:G,6,0),\"\")","v":""},null,"",null,""]
[null,{"$f":"IFERROR(INDEX('Lista Verificação Propriedade'!$B$1:$B$397, SMALL(INDEX(('Lista Verificação Propriedade'!$I$1:$I$397=\"Yes\")*(MATCH(ROW('Lista Verificação Propriedade'!$I$1:$I$397), ROW('Lista Verificação Propriedade'!$I$1:$I$397)))+('Lista Verificação Propriedade'!$I$1:$I$397<>\"Yes\")*1048577, 0, 0), ROW(A51))),\"\")","v":""},{"$f":"IFERROR(VLOOKUP(B55,'Lista Verificação Propriedade'!B:C,2,0),\"\")","v":""},{"$f":"IFERROR(VLOOKUP(VLOOKUP(B55,'Lista Verificação Propriedade'!B:J,9,0),DropDowns!G:H,2,0),\"\")","v":""},{"$f":"IFERROR(VLOOKUP(B55,'Lista Verificação Propriedade'!B:E,4,0),\"\")","v":""},{"$f":"IFERROR(VLOOKUP(B55,'Lista Verificação Propriedade'!B:G,6,0),\"\")","v":""},null,"",null,""]
[null,{"$f":"IFERROR(INDEX('Lista Verificação Propriedade'!$B$1:$B$397, SMALL(INDEX(('Lista Verificação Propriedade'!$I$1:$I$397=\"Yes\")*(MATCH(ROW('Lista Verificação Propriedade'!$I$1:$I$397), ROW('Lista Verificação Propriedade'!$I$1:$I$397)))+('Lista Verificação Propriedade'!$I$1:$I$397<>\"Yes\")*1048577, 0, 0), ROW(A52))),\"\")","v":""},{"$f":"IFERROR(VLOOKUP(B56,'Lista Verificação Propriedade'!B:C,2,0),\"\")","v":""},{"$f":"IFERROR(VLOOKUP(VLOOKUP(B56,'Lista Verificação Propriedade'!B:J,9,0),DropDowns!G:H,2,0),\"\")","v":""},{"$f":"IFERROR(VLOOKUP(B56,'Lista Verificação Propriedade'!B:E,4,0),\"\")","v":""},{"$f":"IFERROR(VLOOKUP(B56,'Lista Verificação Propriedade'!B:G,6,0),\"\")","v":""},null,"",null,""]
[null,{"$f":"IFERROR(INDEX('Lista Verificação Propriedade'!$B$1:$B$397, SMALL(INDEX(('Lista Verificação Propriedade'!$I$1:$I$397=\"Yes\")*(MATCH(ROW('Lista Verificação Propriedade'!$I$1:$I$397), ROW('Lista Verificação Propriedade'!$I$1:$I$397)))+('Lista Verificação Propriedade'!$I$1:$I$397<>\"Yes\")*1048577, 0, 0), ROW(A53))),\"\")","v":""},{"$f":"IFERROR(VLOOKUP(B57,'Lista Verificação Propriedade'!B:C,2,0),\"\")","v":""},{"$f":"IFERROR(VLOOKUP(VLOOKUP(B57,'Lista Verificação Propriedade'!B:J,9,0),DropDowns!G:H,2,0),\"\")","v":""},{"$f":"IFERROR(VLOOKUP(B57,'Lista Verificação Propriedade'!B:E,4,0),\"\")","v":""},{"$f":"IFERROR(VLOOKUP(B57,'Lista Verificação Propriedade'!B:G,6,0),\"\")","v":""},null,"",null,""]
[null,{"$f":"IFERROR(INDEX('Lista Verificação Propriedade'!$B$1:$B$397, SMALL(INDEX(('Lista Verificação Propriedade'!$I$1:$I$397=\"Yes\")*(MATCH(ROW('Lista Verificação Propriedade'!$I$1:$I$397), ROW('Lista Verificação Propriedade'!$I$1:$I$397)))+('Lista Verificação Propriedade'!$I$1:$I$397<>\"Yes\")*1048577, 0, 0), ROW(A54))),\"\")","v":""},{"$f":"IFERROR(VLOOKUP(B58,'Lista Verificação Propriedade'!B:C,2,0),\"\")","v":""},{"$f":"IFERROR(VLOOKUP(VLOOKUP(B58,'Lista Verificação Propriedade'!B:J,9,0),DropDowns!G:H,2,0),\"\")","v":""},{"$f":"IFERROR(VLOOKUP(B58,'Lista Verificação Propriedade'!B:E,4,0),\"\")","v":""},{"$f":"IFERROR(VLOOKUP(B58,'Lista Verificação Propriedade'!B:G,6,0),\"\")","v":""},null,"",null,""]
[null,{"$f":"IFERROR(INDEX('Lista Verificação Propriedade'!$B$1:$B$397, SMALL(INDEX(('Lista Verificação Propriedade'!$I$1:$I$397=\"Yes\")*(MATCH(ROW('Lista Verificação Propriedade'!$I$1:$I$397), ROW('Lista Verificação Propriedade'!$I$1:$I$397)))+('Lista Verificação Propriedade'!$I$1:$I$397<>\"Yes\")*1048577, 0, 0), ROW(A55))),\"\")","v":""},{"$f":"IFERROR(VLOOKUP(B59,'Lista Verificação Propriedade'!B:C,2,0),\"\")","v":""},{"$f":"IFERROR(VLOOKUP(VLOOKUP(B59,'Lista Verificação Propriedade'!B:J,9,0),DropDowns!G:H,2,0),\"\")","v":""},{"$f":"IFERROR(VLOOKUP(B59,'Lista Verificação Propriedade'!B:E,4,0),\"\")","v":""},{"$f":"IFERROR(VLOOKUP(B59,'Lista Verificação Propriedade'!B:G,6,0),\"\")","v":""},null,"",null,""]
[null,{"$f":"IFERROR(INDEX('Lista Verificação Propriedade'!$B$1:$B$397, SMALL(INDEX(('Lista Verificação Propriedade'!$I$1:$I$397=\"Yes\")*(MATCH(ROW('Lista Verificação Propriedade'!$I$1:$I$397), ROW('Lista Verificação Propriedade'!$I$1:$I$397)))+('Lista Verificação Propriedade'!$I$1:$I$397<>\"Yes\")*1048577, 0, 0), ROW(A56))),\"\")","v":""},{"$f":"IFERROR(VLOOKUP(B60,'Lista Verificação Propriedade'!B:C,2,0),\"\")","v":""},{"$f":"IFERROR(VLOOKUP(VLOOKUP(B60,'Lista Verificação Propriedade'!B:J,9,0),DropDowns!G:H,2,0),\"\")","v":""},{"$f":"IFERROR(VLOOKUP(B60,'Lista Verificação Propriedade'!B:E,4,0),\"\")","v":""},{"$f":"IFERROR(VLOOKUP(B60,'Lista Verificação Propriedade'!B:G,6,0),\"\")","v":""},null,"",null,""]
[null,{"$f":"IFERROR(INDEX('Lista Verificação Propriedade'!$B$1:$B$397, SMALL(INDEX(('Lista Verificação Propriedade'!$I$1:$I$397=\"Yes\")*(MATCH(ROW('Lista Verificação Propriedade'!$I$1:$I$397), ROW('Lista Verificação Propriedade'!$I$1:$I$397)))+('Lista Verificação Propriedade'!$I$1:$I$397<>\"Yes\")*1048577, 0, 0), ROW(A57))),\"\")","v":""},{"$f":"IFERROR(VLOOKUP(B61,'Lista Verificação Propriedade'!B:C,2,0),\"\")","v":""},{"$f":"IFERROR(VLOOKUP(VLOOKUP(B61,'Lista Verificação Propriedade'!B:J,9,0),DropDowns!G:H,2,0),\"\")","v":""},{"$f":"IFERROR(VLOOKUP(B61,'Lista Verificação Propriedade'!B:E,4,0),\"\")","v":""},{"$f":"IFERROR(VLOOKUP(B61,'Lista Verificação Propriedade'!B:G,6,0),\"\")","v":""},null,"",null,""]
[null,{"$f":"IFERROR(INDEX('Lista Verificação Propriedade'!$B$1:$B$397, SMALL(INDEX(('Lista Verificação Propriedade'!$I$1:$I$397=\"Yes\")*(MATCH(ROW('Lista Verificação Propriedade'!$I$1:$I$397), ROW('Lista Verificação Propriedade'!$I$1:$I$397)))+('Lista Verificação Propriedade'!$I$1:$I$397<>\"Yes\")*1048577, 0, 0), ROW(A58))),\"\")","v":""},{"$f":"IFERROR(VLOOKUP(B62,'Lista Verificação Propriedade'!B:C,2,0),\"\")","v":""},{"$f":"IFERROR(VLOOKUP(VLOOKUP(B62,'Lista Verificação Propriedade'!B:J,9,0),DropDowns!G:H,2,0),\"\")","v":""},{"$f":"IFERROR(VLOOKUP(B62,'Lista Verificação Propriedade'!B:E,4,0),\"\")","v":""},{"$f":"IFERROR(VLOOKUP(B62,'Lista Verificação Propriedade'!B:G,6,0),\"\")","v":""},null,"",null,""]
[null,{"$f":"IFERROR(INDEX('Lista Verificação Propriedade'!$B$1:$B$397, SMALL(INDEX(('Lista Verificação Propriedade'!$I$1:$I$397=\"Yes\")*(MATCH(ROW('Lista Verificação Propriedade'!$I$1:$I$397), ROW('Lista Verificação Propriedade'!$I$1:$I$397)))+('Lista Verificação Propriedade'!$I$1:$I$397<>\"Yes\")*1048577, 0, 0), ROW(A59))),\"\")","v":""},{"$f":"IFERROR(VLOOKUP(B63,'Lista Verificação Propriedade'!B:C,2,0),\"\")","v":""},{"$f":"IFERROR(VLOOKUP(VLOOKUP(B63,'Lista Verificação Propriedade'!B:J,9,0),DropDowns!G:H,2,0),\"\")","v":""},{"$f":"IFERROR(VLOOKUP(B63,'Lista Verificação Propriedade'!B:E,4,0),\"\")","v":""},{"$f":"IFERROR(VLOOKUP(B63,'Lista Verificação Propriedade'!B:G,6,0),\"\")","v":""},null,"",null,""]
[null,{"$f":"IFERROR(INDEX('Lista Verificação Propriedade'!$B$1:$B$397, SMALL(INDEX(('Lista Verificação Propriedade'!$I$1:$I$397=\"Yes\")*(MATCH(ROW('Lista Verificação Propriedade'!$I$1:$I$397), ROW('Lista Verificação Propriedade'!$I$1:$I$397)))+('Lista Verificação Propriedade'!$I$1:$I$397<>\"Yes\")*1048577, 0, 0), ROW(A60))),\"\")","v":""},{"$f":"IFERROR(VLOOKUP(B64,'Lista Verificação Propriedade'!B:C,2,0),\"\")","v":""},{"$f":"IFERROR(VLOOKUP(VLOOKUP(B64,'Lista Verificação Propriedade'!B:J,9,0),DropDowns!G:H,2,0),\"\")","v":""},{"$f":"IFERROR(VLOOKUP(B64,'Lista Verificação Propriedade'!B:E,4,0),\"\")","v":""},{"$f":"IFERROR(VLOOKUP(B64,'Lista Verificação Propriedade'!B:G,6,0),\"\")","v":""},null,"",null,""]
[null,{"$f":"IFERROR(INDEX('Lista Verificação Propriedade'!$B$1:$B$397, SMALL(INDEX(('Lista Verificação Propriedade'!$I$1:$I$397=\"Yes\")*(MATCH(ROW('Lista Verificação Propriedade'!$I$1:$I$397), ROW('Lista Verificação Propriedade'!$I$1:$I$397)))+('Lista Verificação Propriedade'!$I$1:$I$397<>\"Yes\")*1048577, 0, 0), ROW(A61))),\"\")","v":""},{"$f":"IFERROR(VLOOKUP(B65,'Lista Verificação Propriedade'!B:C,2,0),\"\")","v":""},{"$f":"IFERROR(VLOOKUP(VLOOKUP(B65,'Lista Verificação Propriedade'!B:J,9,0),DropDowns!G:H,2,0),\"\")","v":""},{"$f":"IFERROR(VLOOKUP(B65,'Lista Verificação Propriedade'!B:E,4,0),\"\")","v":""},{"$f":"IFERROR(VLOOKUP(B65,'Lista Verificação Propriedade'!B:G,6,0),\"\")","v":""},null,"",null,""]
[null,{"$f":"IFERROR(INDEX('Lista Verificação Propriedade'!$B$1:$B$397, SMALL(INDEX(('Lista Verificação Propriedade'!$I$1:$I$397=\"Yes\")*(MATCH(ROW('Lista Verificação Propriedade'!$I$1:$I$397), ROW('Lista Verificação Propriedade'!$I$1:$I$397)))+('Lista Verificação Propriedade'!$I$1:$I$397<>\"Yes\")*1048577, 0, 0), ROW(A62))),\"\")","v":""},{"$f":"IFERROR(VLOOKUP(B66,'Lista Verificação Propriedade'!B:C,2,0),\"\")","v":""},{"$f":"IFERROR(VLOOKUP(VLOOKUP(B66,'Lista Verificação Propriedade'!B:J,9,0),DropDowns!G:H,2,0),\"\")","v":""},{"$f":"IFERROR(VLOOKUP(B66,'Lista Verificação Propriedade'!B:E,4,0),\"\")","v":""},{"$f":"IFERROR(VLOOKUP(B66,'Lista Verificação Propriedade'!B:G,6,0),\"\")","v":""},null,"",null,""]
[null,{"$f":"IFERROR(INDEX('Lista Verificação Propriedade'!$B$1:$B$397, SMALL(INDEX(('Lista Verificação Propriedade'!$I$1:$I$397=\"Yes\")*(MATCH(ROW('Lista Verificação Propriedade'!$I$1:$I$397), ROW('Lista Verificação Propriedade'!$I$1:$I$397)))+('Lista Verificação Propriedade'!$I$1:$I$397<>\"Yes\")*1048577, 0, 0), ROW(A63))),\"\")","v":""},{"$f":"IFERROR(VLOOKUP(B67,'Lista Verificação Propriedade'!B:C,2,0),\"\")","v":""},{"$f":"IFERROR(VLOOKUP(VLOOKUP(B67,'Lista Verificação Propriedade'!B:J,9,0),DropDowns!G:H,2,0),\"\")","v":""},{"$f":"IFERROR(VLOOKUP(B67,'Lista Verificação Propriedade'!B:E,4,0),\"\")","v":""},{"$f":"IFERROR(VLOOKUP(B67,'Lista Verificação Propriedade'!B:G,6,0),\"\")","v":""},null,"",null,""]
[null,{"$f":"IFERROR(INDEX('Lista Verificação Propriedade'!$B$1:$B$397, SMALL(INDEX(('Lista Verificação Propriedade'!$I$1:$I$397=\"Yes\")*(MATCH(ROW('Lista Verificação Propriedade'!$I$1:$I$397), ROW('Lista Verificação Propriedade'!$I$1:$I$397)))+('Lista Verificação Propriedade'!$I$1:$I$397<>\"Yes\")*1048577, 0, 0), ROW(A64))),\"\")","v":""},{"$f":"IFERROR(VLOOKUP(B68,'Lista Verificação Propriedade'!B:C,2,0),\"\")","v":""},{"$f":"IFERROR(VLOOKUP(VLOOKUP(B68,'Lista Verificação Propriedade'!B:J,9,0),DropDowns!G:H,2,0),\"\")","v":""},{"$f":"IFERROR(VLOOKUP(B68,'Lista Verificação Propriedade'!B:E,4,0),\"\")","v":""},{"$f":"IFERROR(VLOOKUP(B68,'Lista Verificação Propriedade'!B:G,6,0),\"\")","v":""},null,"",null,""]
[null,{"$f":"IFERROR(INDEX('Lista Verificação Propriedade'!$B$1:$B$397, SMALL(INDEX(('Lista Verificação Propriedade'!$I$1:$I$397=\"Yes\")*(MATCH(ROW('Lista Verificação Propriedade'!$I$1:$I$397), ROW('Lista Verificação Propriedade'!$I$1:$I$397)))+('Lista Verificação Propriedade'!$I$1:$I$397<>\"Yes\")*1048577, 0, 0), ROW(A65))),\"\")","v":""},{"$f":"IFERROR(VLOOKUP(B69,'Lista Verificação Propriedade'!B:C,2,0),\"\")","v":""},{"$f":"IFERROR(VLOOKUP(VLOOKUP(B69,'Lista Verificação Propriedade'!B:J,9,0),DropDowns!G:H,2,0),\"\")","v":""},{"$f":"IFERROR(VLOOKUP(B69,'Lista Verificação Propriedade'!B:E,4,0),\"\")","v":""},{"$f":"IFERROR(VLOOKUP(B69,'Lista Verificação Propriedade'!B:G,6,0),\"\")","v":""},null,"",null,""]
[null,{"$f":"IFERROR(INDEX('Lista Verificação Propriedade'!$B$1:$B$397, SMALL(INDEX(('Lista Verificação Propriedade'!$I$1:$I$397=\"Yes\")*(MATCH(ROW('Lista Verificação Propriedade'!$I$1:$I$397), ROW('Lista Verificação Propriedade'!$I$1:$I$397)))+('Lista Verificação Propriedade'!$I$1:$I$397<>\"Yes\")*1048577, 0, 0), ROW(A66))),\"\")","v":""},{"$f":"IFERROR(VLOOKUP(B70,'Lista Verificação Propriedade'!B:C,2,0),\"\")","v":""},{"$f":"IFERROR(VLOOKUP(VLOOKUP(B70,'Lista Verificação Propriedade'!B:J,9,0),DropDowns!G:H,2,0),\"\")","v":""},{"$f":"IFERROR(VLOOKUP(B70,'Lista Verificação Propriedade'!B:E,4,0),\"\")","v":""},{"$f":"IFERROR(VLOOKUP(B70,'Lista Verificação Propriedade'!B:G,6,0),\"\")","v":""},null,{"$f":"IF(B70<>\"\",\"Interna:\",\"\")","v":""},null,{"$f":"IF(B70<>\"\",\"Externa:\",\"\")","v":""}]
[null,{"$f":"IFERROR(INDEX('Lista Verificação Propriedade'!$B$1:$B$397, SMALL(INDEX(('Lista Verificação Propriedade'!$I$1:$I$397=\"Yes\")*(MATCH(ROW('Lista Verificação Propriedade'!$I$1:$I$397), ROW('Lista Verificação Propriedade'!$I$1:$I$397)))+('Lista Verificação Propriedade'!$I$1:$I$397<>\"Yes\")*1048577, 0, 0), ROW(A67))),\"\")","v":""},{"$f":"IFERROR(VLOOKUP(B71,'Lista Verificação Propriedade'!B:C,2,0),\"\")","v":""},{"$f":"IFERROR(VLOOKUP(VLOOKUP(B71,'Lista Verificação Propriedade'!B:J,9,0),DropDowns!G:H,2,0),\"\")","v":""},{"$f":"IFERROR(VLOOKUP(B71,'Lista Verificação Propriedade'!B:E,4,0),\"\")","v":""},{"$f":"IFERROR(VLOOKUP(B71,'Lista Verificação Propriedade'!B:G,6,0),\"\")","v":""},null,"",null,""]
[null,{"$f":"IFERROR(INDEX('Lista Verificação Propriedade'!$B$1:$B$397, SMALL(INDEX(('Lista Verificação Propriedade'!$I$1:$I$397=\"Yes\")*(MATCH(ROW('Lista Verificação Propriedade'!$I$1:$I$397), ROW('Lista Verificação Propriedade'!$I$1:$I$397)))+('Lista Verificação Propriedade'!$I$1:$I$397<>\"Yes\")*1048577, 0, 0), ROW(A68))),\"\")","v":""},{"$f":"IFERROR(VLOOKUP(B72,'Lista Verificação Propriedade'!B:C,2,0),\"\")","v":""},{"$f":"IFERROR(VLOOKUP(VLOOKUP(B72,'Lista Verificação Propriedade'!B:J,9,0),DropDowns!G:H,2,0),\"\")","v":""},{"$f":"IFERROR(VLOOKUP(B72,'Lista Verificação Propriedade'!B:E,4,0),\"\")","v":""},{"$f":"IFERROR(VLOOKUP(B72,'Lista Verificação Propriedade'!B:G,6,0),\"\")","v":""},null,"",null,""]
[null,{"$f":"IFERROR(INDEX('Lista Verificação Propriedade'!$B$1:$B$397, SMALL(INDEX(('Lista Verificação Propriedade'!$I$1:$I$397=\"Yes\")*(MATCH(ROW('Lista Verificação Propriedade'!$I$1:$I$397), ROW('Lista Verificação Propriedade'!$I$1:$I$397)))+('Lista Verificação Propriedade'!$I$1:$I$397<>\"Yes\")*1048577, 0, 0), ROW(A69))),\"\")","v":""},{"$f":"IFERROR(VLOOKUP(B73,'Lista Verificação Propriedade'!B:C,2,0),\"\")","v":""},{"$f":"IFERROR(VLOOKUP(VLOOKUP(B73,'Lista Verificação Propriedade'!B:J,9,0),DropDowns!G:H,2,0),\"\")","v":""},{"$f":"IFERROR(VLOOKUP(B73,'Lista Verificação Propriedade'!B:E,4,0),\"\")","v":""},{"$f":"IFERROR(VLOOKUP(B73,'Lista Verificação Propriedade'!B:G,6,0),\"\")","v":""},null,"",null,""]
[null,{"$f":"IFERROR(INDEX('Lista Verificação Propriedade'!$B$1:$B$397, SMALL(INDEX(('Lista Verificação Propriedade'!$I$1:$I$397=\"Yes\")*(MATCH(ROW('Lista Verificação Propriedade'!$I$1:$I$397), ROW('Lista Verificação Propriedade'!$I$1:$I$397)))+('Lista Verificação Propriedade'!$I$1:$I$397<>\"Yes\")*1048577, 0, 0), ROW(A70))),\"\")","v":""},{"$f":"IFERROR(VLOOKUP(B74,'Lista Verificação Propriedade'!B:C,2,0),\"\")","v":""},{"$f":"IFERROR(VLOOKUP(VLOOKUP(B74,'Lista Verificação Propriedade'!B:J,9,0),DropDowns!G:H,2,0),\"\")","v":""},{"$f":"IFERROR(VLOOKUP(B74,'Lista Verificação Propriedade'!B:E,4,0),\"\")","v":""},{"$f":"IFERROR(VLOOKUP(B74,'Lista Verificação Propriedade'!B:G,6,0),\"\")","v":""},null,"",null,""]
[null,{"$f":"IFERROR(INDEX('Lista Verificação Propriedade'!$B$1:$B$397, SMALL(INDEX(('Lista Verificação Propriedade'!$I$1:$I$397=\"Yes\")*(MATCH(ROW('Lista Verificação Propriedade'!$I$1:$I$397), ROW('Lista Verificação Propriedade'!$I$1:$I$397)))+('Lista Verificação Propriedade'!$I$1:$I$397<>\"Yes\")*1048577, 0, 0), ROW(A71))),\"\")","v":""},{"$f":"IFERROR(VLOOKUP(B75,'Lista Verificação Propriedade'!B:C,2,0),\"\")","v":""},{"$f":"IFERROR(VLOOKUP(VLOOKUP(B75,'Lista Verificação Propriedade'!B:J,9,0),DropDowns!G:H,2,0),\"\")","v":""},{"$f":"IFERROR(VLOOKUP(B75,'Lista Verificação Propriedade'!B:E,4,0),\"\")","v":""},{"$f":"IFERROR(VLOOKUP(B75,'Lista Verificação Propriedade'!B:G,6,0),\"\")","v":""},null,"",null,""]
[null,{"$f":"IFERROR(INDEX('Lista Verificação Propriedade'!$B$1:$B$397, SMALL(INDEX(('Lista Verificação Propriedade'!$I$1:$I$397=\"Yes\")*(MATCH(ROW('Lista Verificação Propriedade'!$I$1:$I$397), ROW('Lista Verificação Propriedade'!$I$1:$I$397)))+('Lista Verificação Propriedade'!$I$1:$I$397<>\"Yes\")*1048577, 0, 0), ROW(A72))),\"\")","v":""},{"$f":"IFERROR(VLOOKUP(B76,'Lista Verificação Propriedade'!B:C,2,0),\"\")","v":""},{"$f":"IFERROR(VLOOKUP(VLOOKUP(B76,'Lista Verificação Propriedade'!B:J,9,0),DropDowns!G:H,2,0),\"\")","v":""},{"$f":"IFERROR(VLOOKUP(B76,'Lista Verificação Propriedade'!B:E,4,0),\"\")","v":""},{"$f":"IFERROR(VLOOKUP(B76,'Lista Verificação Propriedade'!B:G,6,0),\"\")","v":""},null,"",null,""]
[null,{"$f":"IFERROR(INDEX('Lista Verificação Propriedade'!$B$1:$B$397, SMALL(INDEX(('Lista Verificação Propriedade'!$I$1:$I$397=\"Yes\")*(MATCH(ROW('Lista Verificação Propriedade'!$I$1:$I$397), ROW('Lista Verificação Propriedade'!$I$1:$I$397)))+('Lista Verificação Propriedade'!$I$1:$I$397<>\"Yes\")*1048577, 0, 0), ROW(A73))),\"\")","v":""},{"$f":"IFERROR(VLOOKUP(B77,'Lista Verificação Propriedade'!B:C,2,0),\"\")","v":""},{"$f":"IFERROR(VLOOKUP(VLOOKUP(B77,'Lista Verificação Propriedade'!B:J,9,0),DropDowns!G:H,2,0),\"\")","v":""},{"$f":"IFERROR(VLOOKUP(B77,'Lista Verificação Propriedade'!B:E,4,0),\"\")","v":""},{"$f":"IFERROR(VLOOKUP(B77,'Lista Verificação Propriedade'!B:G,6,0),\"\")","v":""},null,"",null,""]
[null,{"$f":"IFERROR(INDEX('Lista Verificação Propriedade'!$B$1:$B$397, SMALL(INDEX(('Lista Verificação Propriedade'!$I$1:$I$397=\"Yes\")*(MATCH(ROW('Lista Verificação Propriedade'!$I$1:$I$397), ROW('Lista Verificação Propriedade'!$I$1:$I$397)))+('Lista Verificação Propriedade'!$I$1:$I$397<>\"Yes\")*1048577, 0, 0), ROW(A74))),\"\")","v":""},{"$f":"IFERROR(VLOOKUP(B78,'Lista Verificação Propriedade'!B:C,2,0),\"\")","v":""},{"$f":"IFERROR(VLOOKUP(VLOOKUP(B78,'Lista Verificação Propriedade'!B:J,9,0),DropDowns!G:H,2,0),\"\")","v":""},{"$f":"IFERROR(VLOOKUP(B78,'Lista Verificação Propriedade'!B:E,4,0),\"\")","v":""},{"$f":"IFERROR(VLOOKUP(B78,'Lista Verificação Propriedade'!B:G,6,0),\"\")","v":""},null,"",null,""]
[null,{"$f":"IFERROR(INDEX('Lista Verificação Propriedade'!$B$1:$B$397, SMALL(INDEX(('Lista Verificação Propriedade'!$I$1:$I$397=\"Yes\")*(MATCH(ROW('Lista Verificação Propriedade'!$I$1:$I$397), ROW('Lista Verificação Propriedade'!$I$1:$I$397)))+('Lista Verificação Propriedade'!$I$1:$I$397<>\"Yes\")*1048577, 0, 0), ROW(A75))),\"\")","v":""},{"$f":"IFERROR(VLOOKUP(B79,'Lista Verificação Propriedade'!B:C,2,0),\"\")","v":""},{"$f":"IFERROR(VLOOKUP(VLOOKUP(B79,'Lista Verificação Propriedade'!B:J,9,0),DropDowns!G:H,2,0),\"\")","v":""},{"$f":"IFERROR(VLOOKUP(B79,'Lista Verificação Propriedade'!B:E,4,0),\"\")","v":""},{"$f":"IFERROR(VLOOKUP(B79,'Lista Verificação Propriedade'!B:G,6,0),\"\")","v":""},null,"",null,""]
[null,{"$f":"IFERROR(INDEX('Lista Verificação Propriedade'!$B$1:$B$397, SMALL(INDEX(('Lista Verificação Propriedade'!$I$1:$I$397=\"Yes\")*(MATCH(ROW('Lista Verificação Propriedade'!$I$1:$I$397), ROW('Lista Verificação Propriedade'!$I$1:$I$397)))+('Lista Verificação Propriedade'!$I$1:$I$397<>\"Yes\")*1048577, 0, 0), ROW(A76))),\"\")","v":""},{"$f":"IFERROR(VLOOKUP(B80,'Lista Verificação Propriedade'!B:C,2,0),\"\")","v":""},{"$f":"IFERROR(VLOOKUP(VLOOKUP(B80,'Lista Verificação Propriedade'!B:J,9,0),DropDowns!G:H,2,0),\"\")","v":""},{"$f":"IFERROR(VLOOKUP(B80,'Lista Verificação Propriedade'!B:E,4,0),\"\")","v":""},{"$f":"IFERROR(VLOOKUP(B80,'Lista Verificação Propriedade'!B:G,6,0),\"\")","v":""},null,"",null,""]
[null,{"$f":"IFERROR(INDEX('Lista Verificação Propriedade'!$B$1:$B$397, SMALL(INDEX(('Lista Verificação Propriedade'!$I$1:$I$397=\"Yes\")*(MATCH(ROW('Lista Verificação Propriedade'!$I$1:$I$397), ROW('Lista Verificação Propriedade'!$I$1:$I$397)))+('Lista Verificação Propriedade'!$I$1:$I$397<>\"Yes\")*1048577, 0, 0), ROW(A77))),\"\")","v":""},{"$f":"IFERROR(VLOOKUP(B81,'Lista Verificação Propriedade'!B:C,2,0),\"\")","v":""},{"$f":"IFERROR(VLOOKUP(VLOOKUP(B81,'Lista Verificação Propriedade'!B:J,9,0),DropDowns!G:H,2,0),\"\")","v":""},{"$f":"IFERROR(VLOOKUP(B81,'Lista Verificação Propriedade'!B:E,4,0),\"\")","v":""},{"$f":"IFERROR(VLOOKUP(B81,'Lista Verificação Propriedade'!B:G,6,0),\"\")","v":""},null,"",null,""]
[null,{"$f":"IFERROR(INDEX('Lista Verificação Propriedade'!$B$1:$B$397, SMALL(INDEX(('Lista Verificação Propriedade'!$I$1:$I$397=\"Yes\")*(MATCH(ROW('Lista Verificação Propriedade'!$I$1:$I$397), ROW('Lista Verificação Propriedade'!$I$1:$I$397)))+('Lista Verificação Propriedade'!$I$1:$I$397<>\"Yes\")*1048577, 0, 0), ROW(A78))),\"\")","v":""},{"$f":"IFERROR(VLOOKUP(B82,'Lista Verificação Propriedade'!B:C,2,0),\"\")","v":""},{"$f":"IFERROR(VLOOKUP(VLOOKUP(B82,'Lista Verificação Propriedade'!B:J,9,0),DropDowns!G:H,2,0),\"\")","v":""},{"$f":"IFERROR(VLOOKUP(B82,'Lista Verificação Propriedade'!B:E,4,0),\"\")","v":""},{"$f":"IFERROR(VLOOKUP(B82,'Lista Verificação Propriedade'!B:G,6,0),\"\")","v":""},null,"",null,""]
[null,{"$f":"IFERROR(INDEX('Lista Verificação Propriedade'!$B$1:$B$397, SMALL(INDEX(('Lista Verificação Propriedade'!$I$1:$I$397=\"Yes\")*(MATCH(ROW('Lista Verificação Propriedade'!$I$1:$I$397), ROW('Lista Verificação Propriedade'!$I$1:$I$397)))+('Lista Verificação Propriedade'!$I$1:$I$397<>\"Yes\")*1048577, 0, 0), ROW(A79))),\"\")","v":""},{"$f":"IFERROR(VLOOKUP(B83,'Lista Verificação Propriedade'!B:C,2,0),\"\")","v":""},{"$f":"IFERROR(VLOOKUP(VLOOKUP(B83,'Lista Verificação Propriedade'!B:J,9,0),DropDowns!G:H,2,0),\"\")","v":""},{"$f":"IFERROR(VLOOKUP(B83,'Lista Verificação Propriedade'!B:E,4,0),\"\")","v":""},{"$f":"IFERROR(VLOOKUP(B83,'Lista Verificação Propriedade'!B:G,6,0),\"\")","v":""},null,"",null,""]
[null,{"$f":"IFERROR(INDEX('Lista Verificação Propriedade'!$B$1:$B$397, SMALL(INDEX(('Lista Verificação Propriedade'!$I$1:$I$397=\"Yes\")*(MATCH(ROW('Lista Verificação Propriedade'!$I$1:$I$397), ROW('Lista Verificação Propriedade'!$I$1:$I$397)))+('Lista Verificação Propriedade'!$I$1:$I$397<>\"Yes\")*1048577, 0, 0), ROW(A80))),\"\")","v":""},{"$f":"IFERROR(VLOOKUP(B84,'Lista Verificação Propriedade'!B:C,2,0),\"\")","v":""},{"$f":"IFERROR(VLOOKUP(VLOOKUP(B84,'Lista Verificação Propriedade'!B:J,9,0),DropDowns!G:H,2,0),\"\")","v":""},{"$f":"IFERROR(VLOOKUP(B84,'Lista Verificação Propriedade'!B:E,4,0),\"\")","v":""},{"$f":"IFERROR(VLOOKUP(B84,'Lista Verificação Propriedade'!B:G,6,0),\"\")","v":""},null,"",null,""]
[null,{"$f":"IFERROR(INDEX('Lista Verificação Propriedade'!$B$1:$B$397, SMALL(INDEX(('Lista Verificação Propriedade'!$I$1:$I$397=\"Yes\")*(MATCH(ROW('Lista Verificação Propriedade'!$I$1:$I$397), ROW('Lista Verificação Propriedade'!$I$1:$I$397)))+('Lista Verificação Propriedade'!$I$1:$I$397<>\"Yes\")*1048577, 0, 0), ROW(A81))),\"\")","v":""},{"$f":"IFERROR(VLOOKUP(B85,'Lista Verificação Propriedade'!B:C,2,0),\"\")","v":""},{"$f":"IFERROR(VLOOKUP(VLOOKUP(B85,'Lista Verificação Propriedade'!B:J,9,0),DropDowns!G:H,2,0),\"\")","v":""},{"$f":"IFERROR(VLOOKUP(B85,'Lista Verificação Propriedade'!B:E,4,0),\"\")","v":""},{"$f":"IFERROR(VLOOKUP(B85,'Lista Verificação Propriedade'!B:G,6,0),\"\")","v":""},null,"",null,""]
[null,{"$f":"IFERROR(INDEX('Lista Verificação Propriedade'!$B$1:$B$397, SMALL(INDEX(('Lista Verificação Propriedade'!$I$1:$I$397=\"Yes\")*(MATCH(ROW('Lista Verificação Propriedade'!$I$1:$I$397), ROW('Lista Verificação Propriedade'!$I$1:$I$397)))+('Lista Verificação Propriedade'!$I$1:$I$397<>\"Yes\")*1048577, 0, 0), ROW(A82))),\"\")","v":""},{"$f":"IFERROR(VLOOKUP(B86,'Lista Verificação Propriedade'!B:C,2,0),\"\")","v":""},{"$f":"IFERROR(VLOOKUP(VLOOKUP(B86,'Lista Verificação Propriedade'!B:J,9,0),DropDowns!G:H,2,0),\"\")","v":""},{"$f":"IFERROR(VLOOKUP(B86,'Lista Verificação Propriedade'!B:E,4,0),\"\")","v":""},{"$f":"IFERROR(VLOOKUP(B86,'Lista Verificação Propriedade'!B:G,6,0),\"\")","v":""},null,"",null,""]
[null,{"$f":"IFERROR(INDEX('Lista Verificação Propriedade'!$B$1:$B$397, SMALL(INDEX(('Lista Verificação Propriedade'!$I$1:$I$397=\"Yes\")*(MATCH(ROW('Lista Verificação Propriedade'!$I$1:$I$397), ROW('Lista Verificação Propriedade'!$I$1:$I$397)))+('Lista Verificação Propriedade'!$I$1:$I$397<>\"Yes\")*1048577, 0, 0), ROW(A83))),\"\")","v":""},{"$f":"IFERROR(VLOOKUP(B87,'Lista Verificação Propriedade'!B:C,2,0),\"\")","v":""},{"$f":"IFERROR(VLOOKUP(VLOOKUP(B87,'Lista Verificação Propriedade'!B:J,9,0),DropDowns!G:H,2,0),\"\")","v":""},{"$f":"IFERROR(VLOOKUP(B87,'Lista Verificação Propriedade'!B:E,4,0),\"\")","v":""},{"$f":"IFERROR(VLOOKUP(B87,'Lista Verificação Propriedade'!B:G,6,0),\"\")","v":""},null,"",null,""]
[null,{"$f":"IFERROR(INDEX('Lista Verificação Propriedade'!$B$1:$B$397, SMALL(INDEX(('Lista Verificação Propriedade'!$I$1:$I$397=\"Yes\")*(MATCH(ROW('Lista Verificação Propriedade'!$I$1:$I$397), ROW('Lista Verificação Propriedade'!$I$1:$I$397)))+('Lista Verificação Propriedade'!$I$1:$I$397<>\"Yes\")*1048577, 0, 0), ROW(A84))),\"\")","v":""},{"$f":"IFERROR(VLOOKUP(B88,'Lista Verificação Propriedade'!B:C,2,0),\"\")","v":""},{"$f":"IFERROR(VLOOKUP(VLOOKUP(B88,'Lista Verificação Propriedade'!B:J,9,0),DropDowns!G:H,2,0),\"\")","v":""},{"$f":"IFERROR(VLOOKUP(B88,'Lista Verificação Propriedade'!B:E,4,0),\"\")","v":""},{"$f":"IFERROR(VLOOKUP(B88,'Lista Verificação Propriedade'!B:G,6,0),\"\")","v":""},null,"",null,""]
[null,{"$f":"IFERROR(INDEX('Lista Verificação Propriedade'!$B$1:$B$397, SMALL(INDEX(('Lista Verificação Propriedade'!$I$1:$I$397=\"Yes\")*(MATCH(ROW('Lista Verificação Propriedade'!$I$1:$I$397), ROW('Lista Verificação Propriedade'!$I$1:$I$397)))+('Lista Verificação Propriedade'!$I$1:$I$397<>\"Yes\")*1048577, 0, 0), ROW(A85))),\"\")","v":""},{"$f":"IFERROR(VLOOKUP(B89,'Lista Verificação Propriedade'!B:C,2,0),\"\")","v":""},{"$f":"IFERROR(VLOOKUP(VLOOKUP(B89,'Lista Verificação Propriedade'!B:J,9,0),DropDowns!G:H,2,0),\"\")","v":""},{"$f":"IFERROR(VLOOKUP(B89,'Lista Verificação Propriedade'!B:E,4,0),\"\")","v":""},{"$f":"IFERROR(VLOOKUP(B89,'Lista Verificação Propriedade'!B:G,6,0),\"\")","v":""},null,"",null,""]
[null,{"$f":"IFERROR(INDEX('Lista Verificação Propriedade'!$B$1:$B$397, SMALL(INDEX(('Lista Verificação Propriedade'!$I$1:$I$397=\"Yes\")*(MATCH(ROW('Lista Verificação Propriedade'!$I$1:$I$397), ROW('Lista Verificação Propriedade'!$I$1:$I$397)))+('Lista Verificação Propriedade'!$I$1:$I$397<>\"Yes\")*1048577, 0, 0), ROW(A86))),\"\")","v":""},{"$f":"IFERROR(VLOOKUP(B90,'Lista Verificação Propriedade'!B:C,2,0),\"\")","v":""},{"$f":"IFERROR(VLOOKUP(VLOOKUP(B90,'Lista Verificação Propriedade'!B:J,9,0),DropDowns!G:H,2,0),\"\")","v":""},{"$f":"IFERROR(VLOOKUP(B90,'Lista Verificação Propriedade'!B:E,4,0),\"\")","v":""},{"$f":"IFERROR(VLOOKUP(B90,'Lista Verificação Propriedade'!B:G,6,0),\"\")","v":""},null,"",null,""]
[null,{"$f":"IFERROR(INDEX('Lista Verificação Propriedade'!$B$1:$B$397, SMALL(INDEX(('Lista Verificação Propriedade'!$I$1:$I$397=\"Yes\")*(MATCH(ROW('Lista Verificação Propriedade'!$I$1:$I$397), ROW('Lista Verificação Propriedade'!$I$1:$I$397)))+('Lista Verificação Propriedade'!$I$1:$I$397<>\"Yes\")*1048577, 0, 0), ROW(A87))),\"\")","v":""},{"$f":"IFERROR(VLOOKUP(B91,'Lista Verificação Propriedade'!B:C,2,0),\"\")","v":""},{"$f":"IFERROR(VLOOKUP(VLOOKUP(B91,'Lista Verificação Propriedade'!B:J,9,0),DropDowns!G:H,2,0),\"\")","v":""},{"$f":"IFERROR(VLOOKUP(B91,'Lista Verificação Propriedade'!B:E,4,0),\"\")","v":""},{"$f":"IFERROR(VLOOKUP(B91,'Lista Verificação Propriedade'!B:G,6,0),\"\")","v":""},null,"",null,""]
[null,{"$f":"IFERROR(INDEX('Lista Verificação Propriedade'!$B$1:$B$397, SMALL(INDEX(('Lista Verificação Propriedade'!$I$1:$I$397=\"Yes\")*(MATCH(ROW('Lista Verificação Propriedade'!$I$1:$I$397), ROW('Lista Verificação Propriedade'!$I$1:$I$397)))+('Lista Verificação Propriedade'!$I$1:$I$397<>\"Yes\")*1048577, 0, 0), ROW(A88))),\"\")","v":""},{"$f":"IFERROR(VLOOKUP(B92,'Lista Verificação Propriedade'!B:C,2,0),\"\")","v":""},{"$f":"IFERROR(VLOOKUP(VLOOKUP(B92,'Lista Verificação Propriedade'!B:J,9,0),DropDowns!G:H,2,0),\"\")","v":""},{"$f":"IFERROR(VLOOKUP(B92,'Lista Verificação Propriedade'!B:E,4,0),\"\")","v":""},{"$f":"IFERROR(VLOOKUP(B92,'Lista Verificação Propriedade'!B:G,6,0),\"\")","v":""},null,"",null,""]
[null,{"$f":"IFERROR(INDEX('Lista Verificação Propriedade'!$B$1:$B$397, SMALL(INDEX(('Lista Verificação Propriedade'!$I$1:$I$397=\"Yes\")*(MATCH(ROW('Lista Verificação Propriedade'!$I$1:$I$397), ROW('Lista Verificação Propriedade'!$I$1:$I$397)))+('Lista Verificação Propriedade'!$I$1:$I$397<>\"Yes\")*1048577, 0, 0), ROW(A89))),\"\")","v":""},{"$f":"IFERROR(VLOOKUP(B93,'Lista Verificação Propriedade'!B:C,2,0),\"\")","v":""},{"$f":"IFERROR(VLOOKUP(VLOOKUP(B93,'Lista Verificação Propriedade'!B:J,9,0),DropDowns!G:H,2,0),\"\")","v":""},{"$f":"IFERROR(VLOOKUP(B93,'Lista Verificação Propriedade'!B:E,4,0),\"\")","v":""},{"$f":"IFERROR(VLOOKUP(B93,'Lista Verificação Propriedade'!B:G,6,0),\"\")","v":""},null,"",null,""]
[null,{"$f":"IFERROR(INDEX('Lista Verificação Propriedade'!$B$1:$B$397, SMALL(INDEX(('Lista Verificação Propriedade'!$I$1:$I$397=\"Yes\")*(MATCH(ROW('Lista Verificação Propriedade'!$I$1:$I$397), ROW('Lista Verificação Propriedade'!$I$1:$I$397)))+('Lista Verificação Propriedade'!$I$1:$I$397<>\"Yes\")*1048577, 0, 0), ROW(A90))),\"\")","v":""},{"$f":"IFERROR(VLOOKUP(B94,'Lista Verificação Propriedade'!B:C,2,0),\"\")","v":""},{"$f":"IFERROR(VLOOKUP(VLOOKUP(B94,'Lista Verificação Propriedade'!B:J,9,0),DropDowns!G:H,2,0),\"\")","v":""},{"$f":"IFERROR(VLOOKUP(B94,'Lista Verificação Propriedade'!B:E,4,0),\"\")","v":""},{"$f":"IFERROR(VLOOKUP(B94,'Lista Verificação Propriedade'!B:G,6,0),\"\")","v":""},null,"",null,""]
[null,{"$f":"IFERROR(INDEX('Lista Verificação Propriedade'!$B$1:$B$397, SMALL(INDEX(('Lista Verificação Propriedade'!$I$1:$I$397=\"Yes\")*(MATCH(ROW('Lista Verificação Propriedade'!$I$1:$I$397), ROW('Lista Verificação Propriedade'!$I$1:$I$397)))+('Lista Verificação Propriedade'!$I$1:$I$397<>\"Yes\")*1048577, 0, 0), ROW(A91))),\"\")","v":""},{"$f":"IFERROR(VLOOKUP(B95,'Lista Verificação Propriedade'!B:C,2,0),\"\")","v":""},{"$f":"IFERROR(VLOOKUP(VLOOKUP(B95,'Lista Verificação Propriedade'!B:J,9,0),DropDowns!G:H,2,0),\"\")","v":""},{"$f":"IFERROR(VLOOKUP(B95,'Lista Verificação Propriedade'!B:E,4,0),\"\")","v":""},{"$f":"IFERROR(VLOOKUP(B95,'Lista Verificação Propriedade'!B:G,6,0),\"\")","v":""},null,"",null,""]
[null,{"$f":"IFERROR(INDEX('Lista Verificação Propriedade'!$B$1:$B$397, SMALL(INDEX(('Lista Verificação Propriedade'!$I$1:$I$397=\"Yes\")*(MATCH(ROW('Lista Verificação Propriedade'!$I$1:$I$397), ROW('Lista Verificação Propriedade'!$I$1:$I$397)))+('Lista Verificação Propriedade'!$I$1:$I$397<>\"Yes\")*1048577, 0, 0), ROW(A92))),\"\")","v":""},{"$f":"IFERROR(VLOOKUP(B96,'Lista Verificação Propriedade'!B:C,2,0),\"\")","v":""},{"$f":"IFERROR(VLOOKUP(VLOOKUP(B96,'Lista Verificação Propriedade'!B:J,9,0),DropDowns!G:H,2,0),\"\")","v":""},{"$f":"IFERROR(VLOOKUP(B96,'Lista Verificação Propriedade'!B:E,4,0),\"\")","v":""},{"$f":"IFERROR(VLOOKUP(B96,'Lista Verificação Propriedade'!B:G,6,0),\"\")","v":""},null,"",null,""]
[null,{"$f":"IFERROR(INDEX('Lista Verificação Propriedade'!$B$1:$B$397, SMALL(INDEX(('Lista Verificação Propriedade'!$I$1:$I$397=\"Yes\")*(MATCH(ROW('Lista Verificação Propriedade'!$I$1:$I$397), ROW('Lista Verificação Propriedade'!$I$1:$I$397)))+('Lista Verificação Propriedade'!$I$1:$I$397<>\"Yes\")*1048577, 0, 0), ROW(A93))),\"\")","v":""},{"$f":"IFERROR(VLOOKUP(B97,'Lista Verificação Propriedade'!B:C,2,0),\"\")","v":""},{"$f":"IFERROR(VLOOKUP(VLOOKUP(B97,'Lista Verificação Propriedade'!B:J,9,0),DropDowns!G:H,2,0),\"\")","v":""},{"$f":"IFERROR(VLOOKUP(B97,'Lista Verificação Propriedade'!B:E,4,0),\"\")","v":""},{"$f":"IFERROR(VLOOKUP(B97,'Lista Verificação Propriedade'!B:G,6,0),\"\")","v":""},null,"",null,""]
[null,{"$f":"IFERROR(INDEX('Lista Verificação Propriedade'!$B$1:$B$397, SMALL(INDEX(('Lista Verificação Propriedade'!$I$1:$I$397=\"Yes\")*(MATCH(ROW('Lista Verificação Propriedade'!$I$1:$I$397), ROW('Lista Verificação Propriedade'!$I$1:$I$397)))+('Lista Verificação Propriedade'!$I$1:$I$397<>\"Yes\")*1048577, 0, 0), ROW(A94))),\"\")","v":""},{"$f":"IFERROR(VLOOKUP(B98,'Lista Verificação Propriedade'!B:C,2,0),\"\")","v":""},{"$f":"IFERROR(VLOOKUP(VLOOKUP(B98,'Lista Verificação Propriedade'!B:J,9,0),DropDowns!G:H,2,0),\"\")","v":""},{"$f":"IFERROR(VLOOKUP(B98,'Lista Verificação Propriedade'!B:E,4,0),\"\")","v":""},{"$f":"IFERROR(VLOOKUP(B98,'Lista Verificação Propriedade'!B:G,6,0),\"\")","v":""},null,"",null,""]
[null,{"$f":"IFERROR(INDEX('Lista Verificação Propriedade'!$B$1:$B$397, SMALL(INDEX(('Lista Verificação Propriedade'!$I$1:$I$397=\"Yes\")*(MATCH(ROW('Lista Verificação Propriedade'!$I$1:$I$397), ROW('Lista Verificação Propriedade'!$I$1:$I$397)))+('Lista Verificação Propriedade'!$I$1:$I$397<>\"Yes\")*1048577, 0, 0), ROW(A95))),\"\")","v":""},{"$f":"IFERROR(VLOOKUP(B99,'Lista Verificação Propriedade'!B:C,2,0),\"\")","v":""},{"$f":"IFERROR(VLOOKUP(VLOOKUP(B99,'Lista Verificação Propriedade'!B:J,9,0),DropDowns!G:H,2,0),\"\")","v":""},{"$f":"IFERROR(VLOOKUP(B99,'Lista Verificação Propriedade'!B:E,4,0),\"\")","v":""},{"$f":"IFERROR(VLOOKUP(B99,'Lista Verificação Propriedade'!B:G,6,0),\"\")","v":""},null,"",null,""]
[null,{"$f":"IFERROR(INDEX('Lista Verificação Propriedade'!$B$1:$B$397, SMALL(INDEX(('Lista Verificação Propriedade'!$I$1:$I$397=\"Yes\")*(MATCH(ROW('Lista Verificação Propriedade'!$I$1:$I$397), ROW('Lista Verificação Propriedade'!$I$1:$I$397)))+('Lista Verificação Propriedade'!$I$1:$I$397<>\"Yes\")*1048577, 0, 0), ROW(A96))),\"\")","v":""},{"$f":"IFERROR(VLOOKUP(B100,'Lista Verificação Propriedade'!B:C,2,0),\"\")","v":""},{"$f":"IFERROR(VLOOKUP(VLOOKUP(B100,'Lista Verificação Propriedade'!B:J,9,0),DropDowns!G:H,2,0),\"\")","v":""},{"$f":"IFERROR(VLOOKUP(B100,'Lista Verificação Propriedade'!B:E,4,0),\"\")","v":""},{"$f":"IFERROR(VLOOKUP(B100,'Lista Verificação Propriedade'!B:G,6,0),\"\")","v":""},null,"",null,""]
[null,{"$f":"IFERROR(INDEX('Lista Verificação Propriedade'!$B$1:$B$397, SMALL(INDEX(('Lista Verificação Propriedade'!$I$1:$I$397=\"Yes\")*(MATCH(ROW('Lista Verificação Propriedade'!$I$1:$I$397), ROW('Lista Verificação Propriedade'!$I$1:$I$397)))+('Lista Verificação Propriedade'!$I$1:$I$397<>\"Yes\")*1048577, 0, 0), ROW(A97))),\"\")","v":""},{"$f":"IFERROR(VLOOKUP(B101,'Lista Verificação Propriedade'!B:C,2,0),\"\")","v":""},{"$f":"IFERROR(VLOOKUP(VLOOKUP(B101,'Lista Verificação Propriedade'!B:J,9,0),DropDowns!G:H,2,0),\"\")","v":""},{"$f":"IFERROR(VLOOKUP(B101,'Lista Verificação Propriedade'!B:E,4,0),\"\")","v":""},{"$f":"IFERROR(VLOOKUP(B101,'Lista Verificação Propriedade'!B:G,6,0),\"\")","v":""},null,"",null,""]
[null,{"$f":"IFERROR(INDEX('Lista Verificação Propriedade'!$B$1:$B$397, SMALL(INDEX(('Lista Verificação Propriedade'!$I$1:$I$397=\"Yes\")*(MATCH(ROW('Lista Verificação Propriedade'!$I$1:$I$397), ROW('Lista Verificação Propriedade'!$I$1:$I$397)))+('Lista Verificação Propriedade'!$I$1:$I$397<>\"Yes\")*1048577, 0, 0), ROW(A98))),\"\")","v":""},{"$f":"IFERROR(VLOOKUP(B102,'Lista Verificação Propriedade'!B:C,2,0),\"\")","v":""},{"$f":"IFERROR(VLOOKUP(VLOOKUP(B102,'Lista Verificação Propriedade'!B:J,9,0),DropDowns!G:H,2,0),\"\")","v":""},{"$f":"IFERROR(VLOOKUP(B102,'Lista Verificação Propriedade'!B:E,4,0),\"\")","v":""},{"$f":"IFERROR(VLOOKUP(B102,'Lista Verificação Propriedade'!B:G,6,0),\"\")","v":""},null,"",null,""]
[null,{"$f":"IFERROR(INDEX('Lista Verificação Propriedade'!$B$1:$B$397, SMALL(INDEX(('Lista Verificação Propriedade'!$I$1:$I$397=\"Yes\")*(MATCH(ROW('Lista Verificação Propriedade'!$I$1:$I$397), ROW('Lista Verificação Propriedade'!$I$1:$I$397)))+('Lista Verificação Propriedade'!$I$1:$I$397<>\"Yes\")*1048577, 0, 0), ROW(A99))),\"\")","v":""},{"$f":"IFERROR(VLOOKUP(B103,'Lista Verificação Propriedade'!B:C,2,0),\"\")","v":""},{"$f":"IFERROR(VLOOKUP(VLOOKUP(B103,'Lista Verificação Propriedade'!B:J,9,0),DropDowns!G:H,2,0),\"\")","v":""},{"$f":"IFERROR(VLOOKUP(B103,'Lista Verificação Propriedade'!B:E,4,0),\"\")","v":""},{"$f":"IFERROR(VLOOKUP(B103,'Lista Verificação Propriedade'!B:G,6,0),\"\")","v":""},null,"",null,""]
[null,{"$f":"IFERROR(INDEX('Lista Verificação Propriedade'!$B$1:$B$397, SMALL(INDEX(('Lista Verificação Propriedade'!$I$1:$I$397=\"Yes\")*(MATCH(ROW('Lista Verificação Propriedade'!$I$1:$I$397), ROW('Lista Verificação Propriedade'!$I$1:$I$397)))+('Lista Verificação Propriedade'!$I$1:$I$397<>\"Yes\")*1048577, 0, 0), ROW(A100))),\"\")","v":""},{"$f":"IFERROR(VLOOKUP(B104,'Lista Verificação Propriedade'!B:C,2,0),\"\")","v":""},{"$f":"IFERROR(VLOOKUP(VLOOKUP(B104,'Lista Verificação Propriedade'!B:J,9,0),DropDowns!G:H,2,0),\"\")","v":""},{"$f":"IFERROR(VLOOKUP(B104,'Lista Verificação Propriedade'!B:E,4,0),\"\")","v":""},{"$f":"IFERROR(VLOOKUP(B104,'Lista Verificação Propriedade'!B:G,6,0),\"\")","v":""},null,"",null,""]
[null,{"$f":"IFERROR(INDEX('Lista Verificação Propriedade'!$B$1:$B$397, SMALL(INDEX(('Lista Verificação Propriedade'!$I$1:$I$397=\"Yes\")*(MATCH(ROW('Lista Verificação Propriedade'!$I$1:$I$397), ROW('Lista Verificação Propriedade'!$I$1:$I$397)))+('Lista Verificação Propriedade'!$I$1:$I$397<>\"Yes\")*1048577, 0, 0), ROW(A101))),\"\")","v":""},{"$f":"IFERROR(VLOOKUP(B105,'Lista Verificação Propriedade'!B:C,2,0),\"\")","v":""},{"$f":"IFERROR(VLOOKUP(VLOOKUP(B105,'Lista Verificação Propriedade'!B:J,9,0),DropDowns!G:H,2,0),\"\")","v":""},{"$f":"IFERROR(VLOOKUP(B105,'Lista Verificação Propriedade'!B:E,4,0),\"\")","v":""},{"$f":"IFERROR(VLOOKUP(B105,'Lista Verificação Propriedade'!B:G,6,0),\"\")","v":""},null,"",null,""]
[null,{"$f":"IFERROR(INDEX('Lista Verificação Propriedade'!$B$1:$B$397, SMALL(INDEX(('Lista Verificação Propriedade'!$I$1:$I$397=\"Yes\")*(MATCH(ROW('Lista Verificação Propriedade'!$I$1:$I$397), ROW('Lista Verificação Propriedade'!$I$1:$I$397)))+('Lista Verificação Propriedade'!$I$1:$I$397<>\"Yes\")*1048577, 0, 0), ROW(A102))),\"\")","v":""},{"$f":"IFERROR(VLOOKUP(B106,'Lista Verificação Propriedade'!B:C,2,0),\"\")","v":""},{"$f":"IFERROR(VLOOKUP(VLOOKUP(B106,'Lista Verificação Propriedade'!B:J,9,0),DropDowns!G:H,2,0),\"\")","v":""},{"$f":"IFERROR(VLOOKUP(B106,'Lista Verificação Propriedade'!B:E,4,0),\"\")","v":""},{"$f":"IFERROR(VLOOKUP(B106,'Lista Verificação Propriedade'!B:G,6,0),\"\")","v":""},null,"",null,""]
[null,{"$f":"IFERROR(INDEX('Lista Verificação Propriedade'!$B$1:$B$397, SMALL(INDEX(('Lista Verificação Propriedade'!$I$1:$I$397=\"Yes\")*(MATCH(ROW('Lista Verificação Propriedade'!$I$1:$I$397), ROW('Lista Verificação Propriedade'!$I$1:$I$397)))+('Lista Verificação Propriedade'!$I$1:$I$397<>\"Yes\")*1048577, 0, 0), ROW(A103))),\"\")","v":""},{"$f":"IFERROR(VLOOKUP(B107,'Lista Verificação Propriedade'!B:C,2,0),\"\")","v":""},{"$f":"IFERROR(VLOOKUP(VLOOKUP(B107,'Lista Verificação Propriedade'!B:J,9,0),DropDowns!G:H,2,0),\"\")","v":""},{"$f":"IFERROR(VLOOKUP(B107,'Lista Verificação Propriedade'!B:E,4,0),\"\")","v":""},{"$f":"IFERROR(VLOOKUP(B107,'Lista Verificação Propriedade'!B:G,6,0),\"\")","v":""},null,"",null,""]
[null,{"$f":"IFERROR(INDEX('Lista Verificação Propriedade'!$B$1:$B$397, SMALL(INDEX(('Lista Verificação Propriedade'!$I$1:$I$397=\"Yes\")*(MATCH(ROW('Lista Verificação Propriedade'!$I$1:$I$397), ROW('Lista Verificação Propriedade'!$I$1:$I$397)))+('Lista Verificação Propriedade'!$I$1:$I$397<>\"Yes\")*1048577, 0, 0), ROW(A104))),\"\")","v":""},{"$f":"IFERROR(VLOOKUP(B108,'Lista Verificação Propriedade'!B:C,2,0),\"\")","v":""},{"$f":"IFERROR(VLOOKUP(VLOOKUP(B108,'Lista Verificação Propriedade'!B:J,9,0),DropDowns!G:H,2,0),\"\")","v":""},{"$f":"IFERROR(VLOOKUP(B108,'Lista Verificação Propriedade'!B:E,4,0),\"\")","v":""},{"$f":"IFERROR(VLOOKUP(B108,'Lista Verificação Propriedade'!B:G,6,0),\"\")","v":""},null,"",null,""]
[null,{"$f":"IFERROR(INDEX('Lista Verificação Propriedade'!$B$1:$B$397, SMALL(INDEX(('Lista Verificação Propriedade'!$I$1:$I$397=\"Yes\")*(MATCH(ROW('Lista Verificação Propriedade'!$I$1:$I$397), ROW('Lista Verificação Propriedade'!$I$1:$I$397)))+('Lista Verificação Propriedade'!$I$1:$I$397<>\"Yes\")*1048577, 0, 0), ROW(A105))),\"\")","v":""},{"$f":"IFERROR(VLOOKUP(B109,'Lista Verificação Propriedade'!B:C,2,0),\"\")","v":""},{"$f":"IFERROR(VLOOKUP(VLOOKUP(B109,'Lista Verificação Propriedade'!B:J,9,0),DropDowns!G:H,2,0),\"\")","v":""},{"$f":"IFERROR(VLOOKUP(B109,'Lista Verificação Propriedade'!B:E,4,0),\"\")","v":""},{"$f":"IFERROR(VLOOKUP(B109,'Lista Verificação Propriedade'!B:G,6,0),\"\")","v":""},null,"",null,""]
[null,{"$f":"IFERROR(INDEX('Lista Verificação Propriedade'!$B$1:$B$397, SMALL(INDEX(('Lista Verificação Propriedade'!$I$1:$I$397=\"Yes\")*(MATCH(ROW('Lista Verificação Propriedade'!$I$1:$I$397), ROW('Lista Verificação Propriedade'!$I$1:$I$397)))+('Lista Verificação Propriedade'!$I$1:$I$397<>\"Yes\")*1048577, 0, 0), ROW(A106))),\"\")","v":""},{"$f":"IFERROR(VLOOKUP(B110,'Lista Verificação Propriedade'!B:C,2,0),\"\")","v":""},{"$f":"IFERROR(VLOOKUP(VLOOKUP(B110,'Lista Verificação Propriedade'!B:J,9,0),DropDowns!G:H,2,0),\"\")","v":""},{"$f":"IFERROR(VLOOKUP(B110,'Lista Verificação Propriedade'!B:E,4,0),\"\")","v":""},{"$f":"IFERROR(VLOOKUP(B110,'Lista Verificação Propriedade'!B:G,6,0),\"\")","v":""},null,"",null,""]
[null,{"$f":"IFERROR(INDEX('Lista Verificação Propriedade'!$B$1:$B$397, SMALL(INDEX(('Lista Verificação Propriedade'!$I$1:$I$397=\"Yes\")*(MATCH(ROW('Lista Verificação Propriedade'!$I$1:$I$397), ROW('Lista Verificação Propriedade'!$I$1:$I$397)))+('Lista Verificação Propriedade'!$I$1:$I$397<>\"Yes\")*1048577, 0, 0), ROW(A107))),\"\")","v":""},{"$f":"IFERROR(VLOOKUP(B111,'Lista Verificação Propriedade'!B:C,2,0),\"\")","v":""},{"$f":"IFERROR(VLOOKUP(VLOOKUP(B111,'Lista Verificação Propriedade'!B:J,9,0),DropDowns!G:H,2,0),\"\")","v":""},{"$f":"IFERROR(VLOOKUP(B111,'Lista Verificação Propriedade'!B:E,4,0),\"\")","v":""},{"$f":"IFERROR(VLOOKUP(B111,'Lista Verificação Propriedade'!B:G,6,0),\"\")","v":""},null,"",null,""]
[null,{"$f":"IFERROR(INDEX('Lista Verificação Propriedade'!$B$1:$B$397, SMALL(INDEX(('Lista Verificação Propriedade'!$I$1:$I$397=\"Yes\")*(MATCH(ROW('Lista Verificação Propriedade'!$I$1:$I$397), ROW('Lista Verificação Propriedade'!$I$1:$I$397)))+('Lista Verificação Propriedade'!$I$1:$I$397<>\"Yes\")*1048577, 0, 0), ROW(A108))),\"\")","v":""},{"$f":"IFERROR(VLOOKUP(B112,'Lista Verificação Propriedade'!B:C,2,0),\"\")","v":""},{"$f":"IFERROR(VLOOKUP(VLOOKUP(B112,'Lista Verificação Propriedade'!B:J,9,0),DropDowns!G:H,2,0),\"\")","v":""},{"$f":"IFERROR(VLOOKUP(B112,'Lista Verificação Propriedade'!B:E,4,0),\"\")","v":""},{"$f":"IFERROR(VLOOKUP(B112,'Lista Verificação Propriedade'!B:G,6,0),\"\")","v":""},null,"",null,""]
[null,{"$f":"IFERROR(INDEX('Lista Verificação Propriedade'!$B$1:$B$397, SMALL(INDEX(('Lista Verificação Propriedade'!$I$1:$I$397=\"Yes\")*(MATCH(ROW('Lista Verificação Propriedade'!$I$1:$I$397), ROW('Lista Verificação Propriedade'!$I$1:$I$397)))+('Lista Verificação Propriedade'!$I$1:$I$397<>\"Yes\")*1048577, 0, 0), ROW(A109))),\"\")","v":""},{"$f":"IFERROR(VLOOKUP(B113,'Lista Verificação Propriedade'!B:C,2,0),\"\")","v":""},{"$f":"IFERROR(VLOOKUP(VLOOKUP(B113,'Lista Verificação Propriedade'!B:J,9,0),DropDowns!G:H,2,0),\"\")","v":""},{"$f":"IFERROR(VLOOKUP(B113,'Lista Verificação Propriedade'!B:E,4,0),\"\")","v":""},{"$f":"IFERROR(VLOOKUP(B113,'Lista Verificação Propriedade'!B:G,6,0),\"\")","v":""},null,"",null,""]
[null,{"$f":"IFERROR(INDEX('Lista Verificação Propriedade'!$B$1:$B$397, SMALL(INDEX(('Lista Verificação Propriedade'!$I$1:$I$397=\"Yes\")*(MATCH(ROW('Lista Verificação Propriedade'!$I$1:$I$397), ROW('Lista Verificação Propriedade'!$I$1:$I$397)))+('Lista Verificação Propriedade'!$I$1:$I$397<>\"Yes\")*1048577, 0, 0), ROW(A110))),\"\")","v":""},{"$f":"IFERROR(VLOOKUP(B114,'Lista Verificação Propriedade'!B:C,2,0),\"\")","v":""},{"$f":"IFERROR(VLOOKUP(VLOOKUP(B114,'Lista Verificação Propriedade'!B:J,9,0),DropDowns!G:H,2,0),\"\")","v":""},{"$f":"IFERROR(VLOOKUP(B114,'Lista Verificação Propriedade'!B:E,4,0),\"\")","v":""},{"$f":"IFERROR(VLOOKUP(B114,'Lista Verificação Propriedade'!B:G,6,0),\"\")","v":""},null,"",null,""]
[null,{"$f":"IFERROR(INDEX('Lista Verificação Propriedade'!$B$1:$B$397, SMALL(INDEX(('Lista Verificação Propriedade'!$I$1:$I$397=\"Yes\")*(MATCH(ROW('Lista Verificação Propriedade'!$I$1:$I$397), ROW('Lista Verificação Propriedade'!$I$1:$I$397)))+('Lista Verificação Propriedade'!$I$1:$I$397<>\"Yes\")*1048577, 0, 0), ROW(A111))),\"\")","v":""},{"$f":"IFERROR(VLOOKUP(B115,'Lista Verificação Propriedade'!B:C,2,0),\"\")","v":""},{"$f":"IFERROR(VLOOKUP(VLOOKUP(B115,'Lista Verificação Propriedade'!B:J,9,0),DropDowns!G:H,2,0),\"\")","v":""},{"$f":"IFERROR(VLOOKUP(B115,'Lista Verificação Propriedade'!B:E,4,0),\"\")","v":""},{"$f":"IFERROR(VLOOKUP(B115,'Lista Verificação Propriedade'!B:G,6,0),\"\")","v":""},null,"",null,""]
[null,{"$f":"IFERROR(INDEX('Lista Verificação Propriedade'!$B$1:$B$397, SMALL(INDEX(('Lista Verificação Propriedade'!$I$1:$I$397=\"Yes\")*(MATCH(ROW('Lista Verificação Propriedade'!$I$1:$I$397), ROW('Lista Verificação Propriedade'!$I$1:$I$397)))+('Lista Verificação Propriedade'!$I$1:$I$397<>\"Yes\")*1048577, 0, 0), ROW(A112))),\"\")","v":""},{"$f":"IFERROR(VLOOKUP(B116,'Lista Verificação Propriedade'!B:C,2,0),\"\")","v":""},{"$f":"IFERROR(VLOOKUP(VLOOKUP(B116,'Lista Verificação Propriedade'!B:J,9,0),DropDowns!G:H,2,0),\"\")","v":""},{"$f":"IFERROR(VLOOKUP(B116,'Lista Verificação Propriedade'!B:E,4,0),\"\")","v":""},{"$f":"IFERROR(VLOOKUP(B116,'Lista Verificação Propriedade'!B:G,6,0),\"\")","v":""},null,"",null,""]
[null,{"$f":"IFERROR(INDEX('Lista Verificação Propriedade'!$B$1:$B$397, SMALL(INDEX(('Lista Verificação Propriedade'!$I$1:$I$397=\"Yes\")*(MATCH(ROW('Lista Verificação Propriedade'!$I$1:$I$397), ROW('Lista Verificação Propriedade'!$I$1:$I$397)))+('Lista Verificação Propriedade'!$I$1:$I$397<>\"Yes\")*1048577, 0, 0), ROW(A113))),\"\")","v":""},{"$f":"IFERROR(VLOOKUP(B117,'Lista Verificação Propriedade'!B:C,2,0),\"\")","v":""},{"$f":"IFERROR(VLOOKUP(VLOOKUP(B117,'Lista Verificação Propriedade'!B:J,9,0),DropDowns!G:H,2,0),\"\")","v":""},{"$f":"IFERROR(VLOOKUP(B117,'Lista Verificação Propriedade'!B:E,4,0),\"\")","v":""},{"$f":"IFERROR(VLOOKUP(B117,'Lista Verificação Propriedade'!B:G,6,0),\"\")","v":""},null,"",null,""]
[null,{"$f":"IFERROR(INDEX('Lista Verificação Propriedade'!$B$1:$B$397, SMALL(INDEX(('Lista Verificação Propriedade'!$I$1:$I$397=\"Yes\")*(MATCH(ROW('Lista Verificação Propriedade'!$I$1:$I$397), ROW('Lista Verificação Propriedade'!$I$1:$I$397)))+('Lista Verificação Propriedade'!$I$1:$I$397<>\"Yes\")*1048577, 0, 0), ROW(A114))),\"\")","v":""},{"$f":"IFERROR(VLOOKUP(B118,'Lista Verificação Propriedade'!B:C,2,0),\"\")","v":""},{"$f":"IFERROR(VLOOKUP(VLOOKUP(B118,'Lista Verificação Propriedade'!B:J,9,0),DropDowns!G:H,2,0),\"\")","v":""},{"$f":"IFERROR(VLOOKUP(B118,'Lista Verificação Propriedade'!B:E,4,0),\"\")","v":""},{"$f":"IFERROR(VLOOKUP(B118,'Lista Verificação Propriedade'!B:G,6,0),\"\")","v":""},null,"",null,""]
[null,{"$f":"IFERROR(INDEX('Lista Verificação Propriedade'!$B$1:$B$397, SMALL(INDEX(('Lista Verificação Propriedade'!$I$1:$I$397=\"Yes\")*(MATCH(ROW('Lista Verificação Propriedade'!$I$1:$I$397), ROW('Lista Verificação Propriedade'!$I$1:$I$397)))+('Lista Verificação Propriedade'!$I$1:$I$397<>\"Yes\")*1048577, 0, 0), ROW(A115))),\"\")","v":""},{"$f":"IFERROR(VLOOKUP(B119,'Lista Verificação Propriedade'!B:C,2,0),\"\")","v":""},{"$f":"IFERROR(VLOOKUP(VLOOKUP(B119,'Lista Verificação Propriedade'!B:J,9,0),DropDowns!G:H,2,0),\"\")","v":""},{"$f":"IFERROR(VLOOKUP(B119,'Lista Verificação Propriedade'!B:E,4,0),\"\")","v":""},{"$f":"IFERROR(VLOOKUP(B119,'Lista Verificação Propriedade'!B:G,6,0),\"\")","v":""},null,"",null,""]
[null,{"$f":"IFERROR(INDEX('Lista Verificação Propriedade'!$B$1:$B$397, SMALL(INDEX(('Lista Verificação Propriedade'!$I$1:$I$397=\"Yes\")*(MATCH(ROW('Lista Verificação Propriedade'!$I$1:$I$397), ROW('Lista Verificação Propriedade'!$I$1:$I$397)))+('Lista Verificação Propriedade'!$I$1:$I$397<>\"Yes\")*1048577, 0, 0), ROW(A116))),\"\")","v":""},{"$f":"IFERROR(VLOOKUP(B120,'Lista Verificação Propriedade'!B:C,2,0),\"\")","v":""},{"$f":"IFERROR(VLOOKUP(VLOOKUP(B120,'Lista Verificação Propriedade'!B:J,9,0),DropDowns!G:H,2,0),\"\")","v":""},{"$f":"IFERROR(VLOOKUP(B120,'Lista Verificação Propriedade'!B:E,4,0),\"\")","v":""},{"$f":"IFERROR(VLOOKUP(B120,'Lista Verificação Propriedade'!B:G,6,0),\"\")","v":""},null,"",null,""]
[null,{"$f":"IFERROR(INDEX('Lista Verificação Propriedade'!$B$1:$B$397, SMALL(INDEX(('Lista Verificação Propriedade'!$I$1:$I$397=\"Yes\")*(MATCH(ROW('Lista Verificação Propriedade'!$I$1:$I$397), ROW('Lista Verificação Propriedade'!$I$1:$I$397)))+('Lista Verificação Propriedade'!$I$1:$I$397<>\"Yes\")*1048577, 0, 0), ROW(A117))),\"\")","v":""},{"$f":"IFERROR(VLOOKUP(B121,'Lista Verificação Propriedade'!B:C,2,0),\"\")","v":""},{"$f":"IFERROR(VLOOKUP(VLOOKUP(B121,'Lista Verificação Propriedade'!B:J,9,0),DropDowns!G:H,2,0),\"\")","v":""},{"$f":"IFERROR(VLOOKUP(B121,'Lista Verificação Propriedade'!B:E,4,0),\"\")","v":""},{"$f":"IFERROR(VLOOKUP(B121,'Lista Verificação Propriedade'!B:G,6,0),\"\")","v":""},null,"",null,""]
[null,{"$f":"IFERROR(INDEX('Lista Verificação Propriedade'!$B$1:$B$397, SMALL(INDEX(('Lista Verificação Propriedade'!$I$1:$I$397=\"Yes\")*(MATCH(ROW('Lista Verificação Propriedade'!$I$1:$I$397), ROW('Lista Verificação Propriedade'!$I$1:$I$397)))+('Lista Verificação Propriedade'!$I$1:$I$397<>\"Yes\")*1048577, 0, 0), ROW(A118))),\"\")","v":""},{"$f":"IFERROR(VLOOKUP(B122,'Lista Verificação Propriedade'!B:C,2,0),\"\")","v":""},{"$f":"IFERROR(VLOOKUP(VLOOKUP(B122,'Lista Verificação Propriedade'!B:J,9,0),DropDowns!G:H,2,0),\"\")","v":""},{"$f":"IFERROR(VLOOKUP(B122,'Lista Verificação Propriedade'!B:E,4,0),\"\")","v":""},{"$f":"IFERROR(VLOOKUP(B122,'Lista Verificação Propriedade'!B:G,6,0),\"\")","v":""},null,"",null,""]
[null,{"$f":"IFERROR(INDEX('Lista Verificação Propriedade'!$B$1:$B$397, SMALL(INDEX(('Lista Verificação Propriedade'!$I$1:$I$397=\"Yes\")*(MATCH(ROW('Lista Verificação Propriedade'!$I$1:$I$397), ROW('Lista Verificação Propriedade'!$I$1:$I$397)))+('Lista Verificação Propriedade'!$I$1:$I$397<>\"Yes\")*1048577, 0, 0), ROW(A119))),\"\")","v":""},{"$f":"IFERROR(VLOOKUP(B123,'Lista Verificação Propriedade'!B:C,2,0),\"\")","v":""},{"$f":"IFERROR(VLOOKUP(VLOOKUP(B123,'Lista Verificação Propriedade'!B:J,9,0),DropDowns!G:H,2,0),\"\")","v":""},{"$f":"IFERROR(VLOOKUP(B123,'Lista Verificação Propriedade'!B:E,4,0),\"\")","v":""},{"$f":"IFERROR(VLOOKUP(B123,'Lista Verificação Propriedade'!B:G,6,0),\"\")","v":""},null,"",null,""]
[null,{"$f":"IFERROR(INDEX('Lista Verificação Propriedade'!$B$1:$B$397, SMALL(INDEX(('Lista Verificação Propriedade'!$I$1:$I$397=\"Yes\")*(MATCH(ROW('Lista Verificação Propriedade'!$I$1:$I$397), ROW('Lista Verificação Propriedade'!$I$1:$I$397)))+('Lista Verificação Propriedade'!$I$1:$I$397<>\"Yes\")*1048577, 0, 0), ROW(A120))),\"\")","v":""},{"$f":"IFERROR(VLOOKUP(B124,'Lista Verificação Propriedade'!B:C,2,0),\"\")","v":""},{"$f":"IFERROR(VLOOKUP(VLOOKUP(B124,'Lista Verificação Propriedade'!B:J,9,0),DropDowns!G:H,2,0),\"\")","v":""},{"$f":"IFERROR(VLOOKUP(B124,'Lista Verificação Propriedade'!B:E,4,0),\"\")","v":""},{"$f":"IFERROR(VLOOKUP(B124,'Lista Verificação Propriedade'!B:G,6,0),\"\")","v":""},null,"",null,""]
[null,{"$f":"IFERROR(INDEX('Lista Verificação Propriedade'!$B$1:$B$397, SMALL(INDEX(('Lista Verificação Propriedade'!$I$1:$I$397=\"Yes\")*(MATCH(ROW('Lista Verificação Propriedade'!$I$1:$I$397), ROW('Lista Verificação Propriedade'!$I$1:$I$397)))+('Lista Verificação Propriedade'!$I$1:$I$397<>\"Yes\")*1048577, 0, 0), ROW(A121))),\"\")","v":""},{"$f":"IFERROR(VLOOKUP(B125,'Lista Verificação Propriedade'!B:C,2,0),\"\")","v":""},{"$f":"IFERROR(VLOOKUP(VLOOKUP(B125,'Lista Verificação Propriedade'!B:J,9,0),DropDowns!G:H,2,0),\"\")","v":""},{"$f":"IFERROR(VLOOKUP(B125,'Lista Verificação Propriedade'!B:E,4,0),\"\")","v":""},{"$f":"IFERROR(VLOOKUP(B125,'Lista Verificação Propriedade'!B:G,6,0),\"\")","v":""},null,"",null,""]
[null,{"$f":"IFERROR(INDEX('Lista Verificação Propriedade'!$B$1:$B$397, SMALL(INDEX(('Lista Verificação Propriedade'!$I$1:$I$397=\"Yes\")*(MATCH(ROW('Lista Verificação Propriedade'!$I$1:$I$397), ROW('Lista Verificação Propriedade'!$I$1:$I$397)))+('Lista Verificação Propriedade'!$I$1:$I$397<>\"Yes\")*1048577, 0, 0), ROW(A122))),\"\")","v":""},{"$f":"IFERROR(VLOOKUP(B126,'Lista Verificação Propriedade'!B:C,2,0),\"\")","v":""},{"$f":"IFERROR(VLOOKUP(VLOOKUP(B126,'Lista Verificação Propriedade'!B:J,9,0),DropDowns!G:H,2,0),\"\")","v":""},{"$f":"IFERROR(VLOOKUP(B126,'Lista Verificação Propriedade'!B:E,4,0),\"\")","v":""},{"$f":"IFERROR(VLOOKUP(B126,'Lista Verificação Propriedade'!B:G,6,0),\"\")","v":""},null,"",null,""]
[null,{"$f":"IFERROR(INDEX('Lista Verificação Propriedade'!$B$1:$B$397, SMALL(INDEX(('Lista Verificação Propriedade'!$I$1:$I$397=\"Yes\")*(MATCH(ROW('Lista Verificação Propriedade'!$I$1:$I$397), ROW('Lista Verificação Propriedade'!$I$1:$I$397)))+('Lista Verificação Propriedade'!$I$1:$I$397<>\"Yes\")*1048577, 0, 0), ROW(A123))),\"\")","v":""},{"$f":"IFERROR(VLOOKUP(B127,'Lista Verificação Propriedade'!B:C,2,0),\"\")","v":""},{"$f":"IFERROR(VLOOKUP(VLOOKUP(B127,'Lista Verificação Propriedade'!B:J,9,0),DropDowns!G:H,2,0),\"\")","v":""},{"$f":"IFERROR(VLOOKUP(B127,'Lista Verificação Propriedade'!B:E,4,0),\"\")","v":""},{"$f":"IFERROR(VLOOKUP(B127,'Lista Verificação Propriedade'!B:G,6,0),\"\")","v":""},null,"",null,""]
[null,{"$f":"IFERROR(INDEX('Lista Verificação Propriedade'!$B$1:$B$397, SMALL(INDEX(('Lista Verificação Propriedade'!$I$1:$I$397=\"Yes\")*(MATCH(ROW('Lista Verificação Propriedade'!$I$1:$I$397), ROW('Lista Verificação Propriedade'!$I$1:$I$397)))+('Lista Verificação Propriedade'!$I$1:$I$397<>\"Yes\")*1048577, 0, 0), ROW(A124))),\"\")","v":""},{"$f":"IFERROR(VLOOKUP(B128,'Lista Verificação Propriedade'!B:C,2,0),\"\")","v":""},{"$f":"IFERROR(VLOOKUP(VLOOKUP(B128,'Lista Verificação Propriedade'!B:J,9,0),DropDowns!G:H,2,0),\"\")","v":""},{"$f":"IFERROR(VLOOKUP(B128,'Lista Verificação Propriedade'!B:E,4,0),\"\")","v":""},{"$f":"IFERROR(VLOOKUP(B128,'Lista Verificação Propriedade'!B:G,6,0),\"\")","v":""},null,"",null,""]
[null,{"$f":"IFERROR(INDEX('Lista Verificação Propriedade'!$B$1:$B$397, SMALL(INDEX(('Lista Verificação Propriedade'!$I$1:$I$397=\"Yes\")*(MATCH(ROW('Lista Verificação Propriedade'!$I$1:$I$397), ROW('Lista Verificação Propriedade'!$I$1:$I$397)))+('Lista Verificação Propriedade'!$I$1:$I$397<>\"Yes\")*1048577, 0, 0), ROW(A125))),\"\")","v":""},{"$f":"IFERROR(VLOOKUP(B129,'Lista Verificação Propriedade'!B:C,2,0),\"\")","v":""},{"$f":"IFERROR(VLOOKUP(VLOOKUP(B129,'Lista Verificação Propriedade'!B:J,9,0),DropDowns!G:H,2,0),\"\")","v":""},{"$f":"IFERROR(VLOOKUP(B129,'Lista Verificação Propriedade'!B:E,4,0),\"\")","v":""},{"$f":"IFERROR(VLOOKUP(B129,'Lista Verificação Propriedade'!B:G,6,0),\"\")","v":""},null,"",null,""]
[null,{"$f":"IFERROR(INDEX('Lista Verificação Propriedade'!$B$1:$B$397, SMALL(INDEX(('Lista Verificação Propriedade'!$I$1:$I$397=\"Yes\")*(MATCH(ROW('Lista Verificação Propriedade'!$I$1:$I$397), ROW('Lista Verificação Propriedade'!$I$1:$I$397)))+('Lista Verificação Propriedade'!$I$1:$I$397<>\"Yes\")*1048577, 0, 0), ROW(A126))),\"\")","v":""},{"$f":"IFERROR(VLOOKUP(B130,'Lista Verificação Propriedade'!B:C,2,0),\"\")","v":""},{"$f":"IFERROR(VLOOKUP(VLOOKUP(B130,'Lista Verificação Propriedade'!B:J,9,0),DropDowns!G:H,2,0),\"\")","v":""},{"$f":"IFERROR(VLOOKUP(B130,'Lista Verificação Propriedade'!B:E,4,0),\"\")","v":""},{"$f":"IFERROR(VLOOKUP(B130,'Lista Verificação Propriedade'!B:G,6,0),\"\")","v":""},null,"",null,""]
[null,{"$f":"IFERROR(INDEX('Lista Verificação Propriedade'!$B$1:$B$397, SMALL(INDEX(('Lista Verificação Propriedade'!$I$1:$I$397=\"Yes\")*(MATCH(ROW('Lista Verificação Propriedade'!$I$1:$I$397), ROW('Lista Verificação Propriedade'!$I$1:$I$397)))+('Lista Verificação Propriedade'!$I$1:$I$397<>\"Yes\")*1048577, 0, 0), ROW(A127))),\"\")","v":""},{"$f":"IFERROR(VLOOKUP(B131,'Lista Verificação Propriedade'!B:C,2,0),\"\")","v":""},{"$f":"IFERROR(VLOOKUP(VLOOKUP(B131,'Lista Verificação Propriedade'!B:J,9,0),DropDowns!G:H,2,0),\"\")","v":""},{"$f":"IFERROR(VLOOKUP(B131,'Lista Verificação Propriedade'!B:E,4,0),\"\")","v":""},{"$f":"IFERROR(VLOOKUP(B131,'Lista Verificação Propriedade'!B:G,6,0),\"\")","v":""},null,"",null,""]
[null,{"$f":"IFERROR(INDEX('Lista Verificação Propriedade'!$B$1:$B$397, SMALL(INDEX(('Lista Verificação Propriedade'!$I$1:$I$397=\"Yes\")*(MATCH(ROW('Lista Verificação Propriedade'!$I$1:$I$397), ROW('Lista Verificação Propriedade'!$I$1:$I$397)))+('Lista Verificação Propriedade'!$I$1:$I$397<>\"Yes\")*1048577, 0, 0), ROW(A128))),\"\")","v":""},{"$f":"IFERROR(VLOOKUP(B132,'Lista Verificação Propriedade'!B:C,2,0),\"\")","v":""},{"$f":"IFERROR(VLOOKUP(VLOOKUP(B132,'Lista Verificação Propriedade'!B:J,9,0),DropDowns!G:H,2,0),\"\")","v":""},{"$f":"IFERROR(VLOOKUP(B132,'Lista Verificação Propriedade'!B:E,4,0),\"\")","v":""},{"$f":"IFERROR(VLOOKUP(B132,'Lista Verificação Propriedade'!B:G,6,0),\"\")","v":""},null,"",null,""]
[null,{"$f":"IFERROR(INDEX('Lista Verificação Propriedade'!$B$1:$B$397, SMALL(INDEX(('Lista Verificação Propriedade'!$I$1:$I$397=\"Yes\")*(MATCH(ROW('Lista Verificação Propriedade'!$I$1:$I$397), ROW('Lista Verificação Propriedade'!$I$1:$I$397)))+('Lista Verificação Propriedade'!$I$1:$I$397<>\"Yes\")*1048577, 0, 0), ROW(A129))),\"\")","v":""},{"$f":"IFERROR(VLOOKUP(B133,'Lista Verificação Propriedade'!B:C,2,0),\"\")","v":""},{"$f":"IFERROR(VLOOKUP(VLOOKUP(B133,'Lista Verificação Propriedade'!B:J,9,0),DropDowns!G:H,2,0),\"\")","v":""},{"$f":"IFERROR(VLOOKUP(B133,'Lista Verificação Propriedade'!B:E,4,0),\"\")","v":""},{"$f":"IFERROR(VLOOKUP(B133,'Lista Verificação Propriedade'!B:G,6,0),\"\")","v":""},null,"",null,""]
[null,{"$f":"IFERROR(INDEX('Lista Verificação Propriedade'!$B$1:$B$397, SMALL(INDEX(('Lista Verificação Propriedade'!$I$1:$I$397=\"Yes\")*(MATCH(ROW('Lista Verificação Propriedade'!$I$1:$I$397), ROW('Lista Verificação Propriedade'!$I$1:$I$397)))+('Lista Verificação Propriedade'!$I$1:$I$397<>\"Yes\")*1048577, 0, 0), ROW(A130))),\"\")","v":""},{"$f":"IFERROR(VLOOKUP(B134,'Lista Verificação Propriedade'!B:C,2,0),\"\")","v":""},{"$f":"IFERROR(VLOOKUP(VLOOKUP(B134,'Lista Verificação Propriedade'!B:J,9,0),DropDowns!G:H,2,0),\"\")","v":""},{"$f":"IFERROR(VLOOKUP(B134,'Lista Verificação Propriedade'!B:E,4,0),\"\")","v":""},{"$f":"IFERROR(VLOOKUP(B134,'Lista Verificação Propriedade'!B:G,6,0),\"\")","v":""},null,{"$f":"IF(B134<>\"\",\"Interna:\",\"\")","v":""},null,{"$f":"IF(B134<>\"\",\"Externa:\",\"\")","v":""}]
[null,{"$f":"IFERROR(INDEX('Lista Verificação Propriedade'!$B$1:$B$397, SMALL(INDEX(('Lista Verificação Propriedade'!$I$1:$I$397=\"Yes\")*(MATCH(ROW('Lista Verificação Propriedade'!$I$1:$I$397), ROW('Lista Verificação Propriedade'!$I$1:$I$397)))+('Lista Verificação Propriedade'!$I$1:$I$397<>\"Yes\")*1048577, 0, 0), ROW(A131))),\"\")","v":""},{"$f":"IFERROR(VLOOKUP(B135,'Lista Verificação Propriedade'!B:C,2,0),\"\")","v":""},{"$f":"IFERROR(VLOOKUP(VLOOKUP(B135,'Lista Verificação Propriedade'!B:J,9,0),DropDowns!G:H,2,0),\"\")","v":""},{"$f":"IFERROR(VLOOKUP(B135,'Lista Verificação Propriedade'!B:E,4,0),\"\")","v":""},{"$f":"IFERROR(VLOOKUP(B135,'Lista Verificação Propriedade'!B:G,6,0),\"\")","v":""},null,"",null,""]
[null,{"$f":"IFERROR(INDEX('Lista Verificação Propriedade'!$B$1:$B$397, SMALL(INDEX(('Lista Verificação Propriedade'!$I$1:$I$397=\"Yes\")*(MATCH(ROW('Lista Verificação Propriedade'!$I$1:$I$397), ROW('Lista Verificação Propriedade'!$I$1:$I$397)))+('Lista Verificação Propriedade'!$I$1:$I$397<>\"Yes\")*1048577, 0, 0), ROW(A132))),\"\")","v":""},{"$f":"IFERROR(VLOOKUP(B136,'Lista Verificação Propriedade'!B:C,2,0),\"\")","v":""},{"$f":"IFERROR(VLOOKUP(VLOOKUP(B136,'Lista Verificação Propriedade'!B:J,9,0),DropDowns!G:H,2,0),\"\")","v":""},{"$f":"IFERROR(VLOOKUP(B136,'Lista Verificação Propriedade'!B:E,4,0),\"\")","v":""},{"$f":"IFERROR(VLOOKUP(B136,'Lista Verificação Propriedade'!B:G,6,0),\"\")","v":""},null,"",null,""]
[null,{"$f":"IFERROR(INDEX('Lista Verificação Propriedade'!$B$1:$B$397, SMALL(INDEX(('Lista Verificação Propriedade'!$I$1:$I$397=\"Yes\")*(MATCH(ROW('Lista Verificação Propriedade'!$I$1:$I$397), ROW('Lista Verificação Propriedade'!$I$1:$I$397)))+('Lista Verificação Propriedade'!$I$1:$I$397<>\"Yes\")*1048577, 0, 0), ROW(A133))),\"\")","v":""},{"$f":"IFERROR(VLOOKUP(B137,'Lista Verificação Propriedade'!B:C,2,0),\"\")","v":""},{"$f":"IFERROR(VLOOKUP(VLOOKUP(B137,'Lista Verificação Propriedade'!B:J,9,0),DropDowns!G:H,2,0),\"\")","v":""},{"$f":"IFERROR(VLOOKUP(B137,'Lista Verificação Propriedade'!B:E,4,0),\"\")","v":""},{"$f":"IFERROR(VLOOKUP(B137,'Lista Verificação Propriedade'!B:G,6,0),\"\")","v":""},null,"",null,""]
[null,{"$f":"IFERROR(INDEX('Lista Verificação Propriedade'!$B$1:$B$397, SMALL(INDEX(('Lista Verificação Propriedade'!$I$1:$I$397=\"Yes\")*(MATCH(ROW('Lista Verificação Propriedade'!$I$1:$I$397), ROW('Lista Verificação Propriedade'!$I$1:$I$397)))+('Lista Verificação Propriedade'!$I$1:$I$397<>\"Yes\")*1048577, 0, 0), ROW(A134))),\"\")","v":""},{"$f":"IFERROR(VLOOKUP(B138,'Lista Verificação Propriedade'!B:C,2,0),\"\")","v":""},{"$f":"IFERROR(VLOOKUP(VLOOKUP(B138,'Lista Verificação Propriedade'!B:J,9,0),DropDowns!G:H,2,0),\"\")","v":""},{"$f":"IFERROR(VLOOKUP(B138,'Lista Verificação Propriedade'!B:E,4,0),\"\")","v":""},{"$f":"IFERROR(VLOOKUP(B138,'Lista Verificação Propriedade'!B:G,6,0),\"\")","v":""},null,"",null,""]
[null,{"$f":"IFERROR(INDEX('Lista Verificação Propriedade'!$B$1:$B$397, SMALL(INDEX(('Lista Verificação Propriedade'!$I$1:$I$397=\"Yes\")*(MATCH(ROW('Lista Verificação Propriedade'!$I$1:$I$397), ROW('Lista Verificação Propriedade'!$I$1:$I$397)))+('Lista Verificação Propriedade'!$I$1:$I$397<>\"Yes\")*1048577, 0, 0), ROW(A135))),\"\")","v":""},{"$f":"IFERROR(VLOOKUP(B139,'Lista Verificação Propriedade'!B:C,2,0),\"\")","v":""},{"$f":"IFERROR(VLOOKUP(VLOOKUP(B139,'Lista Verificação Propriedade'!B:J,9,0),DropDowns!G:H,2,0),\"\")","v":""},{"$f":"IFERROR(VLOOKUP(B139,'Lista Verificação Propriedade'!B:E,4,0),\"\")","v":""},{"$f":"IFERROR(VLOOKUP(B139,'Lista Verificação Propriedade'!B:G,6,0),\"\")","v":""},null,"",null,""]
[null,{"$f":"IFERROR(INDEX('Lista Verificação Propriedade'!$B$1:$B$397, SMALL(INDEX(('Lista Verificação Propriedade'!$I$1:$I$397=\"Yes\")*(MATCH(ROW('Lista Verificação Propriedade'!$I$1:$I$397), ROW('Lista Verificação Propriedade'!$I$1:$I$397)))+('Lista Verificação Propriedade'!$I$1:$I$397<>\"Yes\")*1048577, 0, 0), ROW(A136))),\"\")","v":""},{"$f":"IFERROR(VLOOKUP(B140,'Lista Verificação Propriedade'!B:C,2,0),\"\")","v":""},{"$f":"IFERROR(VLOOKUP(VLOOKUP(B140,'Lista Verificação Propriedade'!B:J,9,0),DropDowns!G:H,2,0),\"\")","v":""},{"$f":"IFERROR(VLOOKUP(B140,'Lista Verificação Propriedade'!B:E,4,0),\"\")","v":""},{"$f":"IFERROR(VLOOKUP(B140,'Lista Verificação Propriedade'!B:G,6,0),\"\")","v":""},null,"",null,""]
[null,{"$f":"IFERROR(INDEX('Lista Verificação Propriedade'!$B$1:$B$397, SMALL(INDEX(('Lista Verificação Propriedade'!$I$1:$I$397=\"Yes\")*(MATCH(ROW('Lista Verificação Propriedade'!$I$1:$I$397), ROW('Lista Verificação Propriedade'!$I$1:$I$397)))+('Lista Verificação Propriedade'!$I$1:$I$397<>\"Yes\")*1048577, 0, 0), ROW(A137))),\"\")","v":""},{"$f":"IFERROR(VLOOKUP(B141,'Lista Verificação Propriedade'!B:C,2,0),\"\")","v":""},{"$f":"IFERROR(VLOOKUP(VLOOKUP(B141,'Lista Verificação Propriedade'!B:J,9,0),DropDowns!G:H,2,0),\"\")","v":""},{"$f":"IFERROR(VLOOKUP(B141,'Lista Verificação Propriedade'!B:E,4,0),\"\")","v":""},{"$f":"IFERROR(VLOOKUP(B141,'Lista Verificação Propriedade'!B:G,6,0),\"\")","v":""},null,"",null,""]
[null,{"$f":"IFERROR(INDEX('Lista Verificação Propriedade'!$B$1:$B$397, SMALL(INDEX(('Lista Verificação Propriedade'!$I$1:$I$397=\"Yes\")*(MATCH(ROW('Lista Verificação Propriedade'!$I$1:$I$397), ROW('Lista Verificação Propriedade'!$I$1:$I$397)))+('Lista Verificação Propriedade'!$I$1:$I$397<>\"Yes\")*1048577, 0, 0), ROW(A138))),\"\")","v":""},{"$f":"IFERROR(VLOOKUP(B142,'Lista Verificação Propriedade'!B:C,2,0),\"\")","v":""},{"$f":"IFERROR(VLOOKUP(VLOOKUP(B142,'Lista Verificação Propriedade'!B:J,9,0),DropDowns!G:H,2,0),\"\")","v":""},{"$f":"IFERROR(VLOOKUP(B142,'Lista Verificação Propriedade'!B:E,4,0),\"\")","v":""},{"$f":"IFERROR(VLOOKUP(B142,'Lista Verificação Propriedade'!B:G,6,0),\"\")","v":""},null,"",null,""]
[null,{"$f":"IFERROR(INDEX('Lista Verificação Propriedade'!$B$1:$B$397, SMALL(INDEX(('Lista Verificação Propriedade'!$I$1:$I$397=\"Yes\")*(MATCH(ROW('Lista Verificação Propriedade'!$I$1:$I$397), ROW('Lista Verificação Propriedade'!$I$1:$I$397)))+('Lista Verificação Propriedade'!$I$1:$I$397<>\"Yes\")*1048577, 0, 0), ROW(A139))),\"\")","v":""},{"$f":"IFERROR(VLOOKUP(B143,'Lista Verificação Propriedade'!B:C,2,0),\"\")","v":""},{"$f":"IFERROR(VLOOKUP(VLOOKUP(B143,'Lista Verificação Propriedade'!B:J,9,0),DropDowns!G:H,2,0),\"\")","v":""},{"$f":"IFERROR(VLOOKUP(B143,'Lista Verificação Propriedade'!B:E,4,0),\"\")","v":""},{"$f":"IFERROR(VLOOKUP(B143,'Lista Verificação Propriedade'!B:G,6,0),\"\")","v":""},null,"",null,""]
[null,{"$f":"IFERROR(INDEX('Lista Verificação Propriedade'!$B$1:$B$397, SMALL(INDEX(('Lista Verificação Propriedade'!$I$1:$I$397=\"Yes\")*(MATCH(ROW('Lista Verificação Propriedade'!$I$1:$I$397), ROW('Lista Verificação Propriedade'!$I$1:$I$397)))+('Lista Verificação Propriedade'!$I$1:$I$397<>\"Yes\")*1048577, 0, 0), ROW(A140))),\"\")","v":""},{"$f":"IFERROR(VLOOKUP(B144,'Lista Verificação Propriedade'!B:C,2,0),\"\")","v":""},{"$f":"IFERROR(VLOOKUP(VLOOKUP(B144,'Lista Verificação Propriedade'!B:J,9,0),DropDowns!G:H,2,0),\"\")","v":""},{"$f":"IFERROR(VLOOKUP(B144,'Lista Verificação Propriedade'!B:E,4,0),\"\")","v":""},{"$f":"IFERROR(VLOOKUP(B144,'Lista Verificação Propriedade'!B:G,6,0),\"\")","v":""},null,"",null,""]
[null,{"$f":"IFERROR(INDEX('Lista Verificação Propriedade'!$B$1:$B$397, SMALL(INDEX(('Lista Verificação Propriedade'!$I$1:$I$397=\"Yes\")*(MATCH(ROW('Lista Verificação Propriedade'!$I$1:$I$397), ROW('Lista Verificação Propriedade'!$I$1:$I$397)))+('Lista Verificação Propriedade'!$I$1:$I$397<>\"Yes\")*1048577, 0, 0), ROW(A141))),\"\")","v":""},{"$f":"IFERROR(VLOOKUP(B145,'Lista Verificação Propriedade'!B:C,2,0),\"\")","v":""},{"$f":"IFERROR(VLOOKUP(VLOOKUP(B145,'Lista Verificação Propriedade'!B:J,9,0),DropDowns!G:H,2,0),\"\")","v":""},{"$f":"IFERROR(VLOOKUP(B145,'Lista Verificação Propriedade'!B:E,4,0),\"\")","v":""},{"$f":"IFERROR(VLOOKUP(B145,'Lista Verificação Propriedade'!B:G,6,0),\"\")","v":""},null,"",null,""]
[null,{"$f":"IFERROR(INDEX('Lista Verificação Propriedade'!$B$1:$B$397, SMALL(INDEX(('Lista Verificação Propriedade'!$I$1:$I$397=\"Yes\")*(MATCH(ROW('Lista Verificação Propriedade'!$I$1:$I$397), ROW('Lista Verificação Propriedade'!$I$1:$I$397)))+('Lista Verificação Propriedade'!$I$1:$I$397<>\"Yes\")*1048577, 0, 0), ROW(A142))),\"\")","v":""},{"$f":"IFERROR(VLOOKUP(B146,'Lista Verificação Propriedade'!B:C,2,0),\"\")","v":""},{"$f":"IFERROR(VLOOKUP(VLOOKUP(B146,'Lista Verificação Propriedade'!B:J,9,0),DropDowns!G:H,2,0),\"\")","v":""},{"$f":"IFERROR(VLOOKUP(B146,'Lista Verificação Propriedade'!B:E,4,0),\"\")","v":""},{"$f":"IFERROR(VLOOKUP(B146,'Lista Verificação Propriedade'!B:G,6,0),\"\")","v":""},null,"",null,""]
[null,{"$f":"IFERROR(INDEX('Lista Verificação Propriedade'!$B$1:$B$397, SMALL(INDEX(('Lista Verificação Propriedade'!$I$1:$I$397=\"Yes\")*(MATCH(ROW('Lista Verificação Propriedade'!$I$1:$I$397), ROW('Lista Verificação Propriedade'!$I$1:$I$397)))+('Lista Verificação Propriedade'!$I$1:$I$397<>\"Yes\")*1048577, 0, 0), ROW(A143))),\"\")","v":""},{"$f":"IFERROR(VLOOKUP(B147,'Lista Verificação Propriedade'!B:C,2,0),\"\")","v":""},{"$f":"IFERROR(VLOOKUP(VLOOKUP(B147,'Lista Verificação Propriedade'!B:J,9,0),DropDowns!G:H,2,0),\"\")","v":""},{"$f":"IFERROR(VLOOKUP(B147,'Lista Verificação Propriedade'!B:E,4,0),\"\")","v":""},{"$f":"IFERROR(VLOOKUP(B147,'Lista Verificação Propriedade'!B:G,6,0),\"\")","v":""},null,"",null,""]
[null,{"$f":"IFERROR(INDEX('Lista Verificação Propriedade'!$B$1:$B$397, SMALL(INDEX(('Lista Verificação Propriedade'!$I$1:$I$397=\"Yes\")*(MATCH(ROW('Lista Verificação Propriedade'!$I$1:$I$397), ROW('Lista Verificação Propriedade'!$I$1:$I$397)))+('Lista Verificação Propriedade'!$I$1:$I$397<>\"Yes\")*1048577, 0, 0), ROW(A144))),\"\")","v":""},{"$f":"IFERROR(VLOOKUP(B148,'Lista Verificação Propriedade'!B:C,2,0),\"\")","v":""},{"$f":"IFERROR(VLOOKUP(VLOOKUP(B148,'Lista Verificação Propriedade'!B:J,9,0),DropDowns!G:H,2,0),\"\")","v":""},{"$f":"IFERROR(VLOOKUP(B148,'Lista Verificação Propriedade'!B:E,4,0),\"\")","v":""},{"$f":"IFERROR(VLOOKUP(B148,'Lista Verificação Propriedade'!B:G,6,0),\"\")","v":""},null,"",null,""]
[null,{"$f":"IFERROR(INDEX('Lista Verificação Propriedade'!$B$1:$B$397, SMALL(INDEX(('Lista Verificação Propriedade'!$I$1:$I$397=\"Yes\")*(MATCH(ROW('Lista Verificação Propriedade'!$I$1:$I$397), ROW('Lista Verificação Propriedade'!$I$1:$I$397)))+('Lista Verificação Propriedade'!$I$1:$I$397<>\"Yes\")*1048577, 0, 0), ROW(A145))),\"\")","v":""},{"$f":"IFERROR(VLOOKUP(B149,'Lista Verificação Propriedade'!B:C,2,0),\"\")","v":""},{"$f":"IFERROR(VLOOKUP(VLOOKUP(B149,'Lista Verificação Propriedade'!B:J,9,0),DropDowns!G:H,2,0),\"\")","v":""},{"$f":"IFERROR(VLOOKUP(B149,'Lista Verificação Propriedade'!B:E,4,0),\"\")","v":""},{"$f":"IFERROR(VLOOKUP(B149,'Lista Verificação Propriedade'!B:G,6,0),\"\")","v":""},null,"",null,""]
[null,{"$f":"IFERROR(INDEX('Lista Verificação Propriedade'!$B$1:$B$397, SMALL(INDEX(('Lista Verificação Propriedade'!$I$1:$I$397=\"Yes\")*(MATCH(ROW('Lista Verificação Propriedade'!$I$1:$I$397), ROW('Lista Verificação Propriedade'!$I$1:$I$397)))+('Lista Verificação Propriedade'!$I$1:$I$397<>\"Yes\")*1048577, 0, 0), ROW(A146))),\"\")","v":""},{"$f":"IFERROR(VLOOKUP(B150,'Lista Verificação Propriedade'!B:C,2,0),\"\")","v":""},{"$f":"IFERROR(VLOOKUP(VLOOKUP(B150,'Lista Verificação Propriedade'!B:J,9,0),DropDowns!G:H,2,0),\"\")","v":""},{"$f":"IFERROR(VLOOKUP(B150,'Lista Verificação Propriedade'!B:E,4,0),\"\")","v":""},{"$f":"IFERROR(VLOOKUP(B150,'Lista Verificação Propriedade'!B:G,6,0),\"\")","v":""},null,"",null,""]
[null,{"$f":"IFERROR(INDEX('Lista Verificação Propriedade'!$B$1:$B$397, SMALL(INDEX(('Lista Verificação Propriedade'!$I$1:$I$397=\"Yes\")*(MATCH(ROW('Lista Verificação Propriedade'!$I$1:$I$397), ROW('Lista Verificação Propriedade'!$I$1:$I$397)))+('Lista Verificação Propriedade'!$I$1:$I$397<>\"Yes\")*1048577, 0, 0), ROW(A147))),\"\")","v":""},{"$f":"IFERROR(VLOOKUP(B151,'Lista Verificação Propriedade'!B:C,2,0),\"\")","v":""},{"$f":"IFERROR(VLOOKUP(VLOOKUP(B151,'Lista Verificação Propriedade'!B:J,9,0),DropDowns!G:H,2,0),\"\")","v":""},{"$f":"IFERROR(VLOOKUP(B151,'Lista Verificação Propriedade'!B:E,4,0),\"\")","v":""},{"$f":"IFERROR(VLOOKUP(B151,'Lista Verificação Propriedade'!B:G,6,0),\"\")","v":""},null,"",null,""]
[null,{"$f":"IFERROR(INDEX('Lista Verificação Propriedade'!$B$1:$B$397, SMALL(INDEX(('Lista Verificação Propriedade'!$I$1:$I$397=\"Yes\")*(MATCH(ROW('Lista Verificação Propriedade'!$I$1:$I$397), ROW('Lista Verificação Propriedade'!$I$1:$I$397)))+('Lista Verificação Propriedade'!$I$1:$I$397<>\"Yes\")*1048577, 0, 0), ROW(A148))),\"\")","v":""},{"$f":"IFERROR(VLOOKUP(B152,'Lista Verificação Propriedade'!B:C,2,0),\"\")","v":""},{"$f":"IFERROR(VLOOKUP(VLOOKUP(B152,'Lista Verificação Propriedade'!B:J,9,0),DropDowns!G:H,2,0),\"\")","v":""},{"$f":"IFERROR(VLOOKUP(B152,'Lista Verificação Propriedade'!B:E,4,0),\"\")","v":""},{"$f":"IFERROR(VLOOKUP(B152,'Lista Verificação Propriedade'!B:G,6,0),\"\")","v":""},null,"",null,""]
[null,{"$f":"IFERROR(INDEX('Lista Verificação Propriedade'!$B$1:$B$397, SMALL(INDEX(('Lista Verificação Propriedade'!$I$1:$I$397=\"Yes\")*(MATCH(ROW('Lista Verificação Propriedade'!$I$1:$I$397), ROW('Lista Verificação Propriedade'!$I$1:$I$397)))+('Lista Verificação Propriedade'!$I$1:$I$397<>\"Yes\")*1048577, 0, 0), ROW(A149))),\"\")","v":""},{"$f":"IFERROR(VLOOKUP(B153,'Lista Verificação Propriedade'!B:C,2,0),\"\")","v":""},{"$f":"IFERROR(VLOOKUP(VLOOKUP(B153,'Lista Verificação Propriedade'!B:J,9,0),DropDowns!G:H,2,0),\"\")","v":""},{"$f":"IFERROR(VLOOKUP(B153,'Lista Verificação Propriedade'!B:E,4,0),\"\")","v":""},{"$f":"IFERROR(VLOOKUP(B153,'Lista Verificação Propriedade'!B:G,6,0),\"\")","v":""},null,"",null,""]
[null,{"$f":"IFERROR(INDEX('Lista Verificação Propriedade'!$B$1:$B$397, SMALL(INDEX(('Lista Verificação Propriedade'!$I$1:$I$397=\"Yes\")*(MATCH(ROW('Lista Verificação Propriedade'!$I$1:$I$397), ROW('Lista Verificação Propriedade'!$I$1:$I$397)))+('Lista Verificação Propriedade'!$I$1:$I$397<>\"Yes\")*1048577, 0, 0), ROW(A150))),\"\")","v":""},{"$f":"IFERROR(VLOOKUP(B154,'Lista Verificação Propriedade'!B:C,2,0),\"\")","v":""},{"$f":"IFERROR(VLOOKUP(VLOOKUP(B154,'Lista Verificação Propriedade'!B:J,9,0),DropDowns!G:H,2,0),\"\")","v":""},{"$f":"IFERROR(VLOOKUP(B154,'Lista Verificação Propriedade'!B:E,4,0),\"\")","v":""},{"$f":"IFERROR(VLOOKUP(B154,'Lista Verificação Propriedade'!B:G,6,0),\"\")","v":""},null,"",null,""]
[null,{"$f":"IFERROR(INDEX('Lista Verificação Propriedade'!$B$1:$B$397, SMALL(INDEX(('Lista Verificação Propriedade'!$I$1:$I$397=\"Yes\")*(MATCH(ROW('Lista Verificação Propriedade'!$I$1:$I$397), ROW('Lista Verificação Propriedade'!$I$1:$I$397)))+('Lista Verificação Propriedade'!$I$1:$I$397<>\"Yes\")*1048577, 0, 0), ROW(A151))),\"\")","v":""},{"$f":"IFERROR(VLOOKUP(B155,'Lista Verificação Propriedade'!B:C,2,0),\"\")","v":""},{"$f":"IFERROR(VLOOKUP(VLOOKUP(B155,'Lista Verificação Propriedade'!B:J,9,0),DropDowns!G:H,2,0),\"\")","v":""},{"$f":"IFERROR(VLOOKUP(B155,'Lista Verificação Propriedade'!B:E,4,0),\"\")","v":""},{"$f":"IFERROR(VLOOKUP(B155,'Lista Verificação Propriedade'!B:G,6,0),\"\")","v":""},null,"",null,""]
[null,{"$f":"IFERROR(INDEX('Lista Verificação Propriedade'!$B$1:$B$397, SMALL(INDEX(('Lista Verificação Propriedade'!$I$1:$I$397=\"Yes\")*(MATCH(ROW('Lista Verificação Propriedade'!$I$1:$I$397), ROW('Lista Verificação Propriedade'!$I$1:$I$397)))+('Lista Verificação Propriedade'!$I$1:$I$397<>\"Yes\")*1048577, 0, 0), ROW(A152))),\"\")","v":""},{"$f":"IFERROR(VLOOKUP(B156,'Lista Verificação Propriedade'!B:C,2,0),\"\")","v":""},{"$f":"IFERROR(VLOOKUP(VLOOKUP(B156,'Lista Verificação Propriedade'!B:J,9,0),DropDowns!G:H,2,0),\"\")","v":""},{"$f":"IFERROR(VLOOKUP(B156,'Lista Verificação Propriedade'!B:E,4,0),\"\")","v":""},{"$f":"IFERROR(VLOOKUP(B156,'Lista Verificação Propriedade'!B:G,6,0),\"\")","v":""},null,"",null,""]
[null,{"$f":"IFERROR(INDEX('Lista Verificação Propriedade'!$B$1:$B$397, SMALL(INDEX(('Lista Verificação Propriedade'!$I$1:$I$397=\"Yes\")*(MATCH(ROW('Lista Verificação Propriedade'!$I$1:$I$397), ROW('Lista Verificação Propriedade'!$I$1:$I$397)))+('Lista Verificação Propriedade'!$I$1:$I$397<>\"Yes\")*1048577, 0, 0), ROW(A153))),\"\")","v":""},{"$f":"IFERROR(VLOOKUP(B157,'Lista Verificação Propriedade'!B:C,2,0),\"\")","v":""},{"$f":"IFERROR(VLOOKUP(VLOOKUP(B157,'Lista Verificação Propriedade'!B:J,9,0),DropDowns!G:H,2,0),\"\")","v":""},{"$f":"IFERROR(VLOOKUP(B157,'Lista Verificação Propriedade'!B:E,4,0),\"\")","v":""},{"$f":"IFERROR(VLOOKUP(B157,'Lista Verificação Propriedade'!B:G,6,0),\"\")","v":""},null,"",null,""]
[null,{"$f":"IFERROR(INDEX('Lista Verificação Propriedade'!$B$1:$B$397, SMALL(INDEX(('Lista Verificação Propriedade'!$I$1:$I$397=\"Yes\")*(MATCH(ROW('Lista Verificação Propriedade'!$I$1:$I$397), ROW('Lista Verificação Propriedade'!$I$1:$I$397)))+('Lista Verificação Propriedade'!$I$1:$I$397<>\"Yes\")*1048577, 0, 0), ROW(A154))),\"\")","v":""},{"$f":"IFERROR(VLOOKUP(B158,'Lista Verificação Propriedade'!B:C,2,0),\"\")","v":""},{"$f":"IFERROR(VLOOKUP(VLOOKUP(B158,'Lista Verificação Propriedade'!B:J,9,0),DropDowns!G:H,2,0),\"\")","v":""},{"$f":"IFERROR(VLOOKUP(B158,'Lista Verificação Propriedade'!B:E,4,0),\"\")","v":""},{"$f":"IFERROR(VLOOKUP(B158,'Lista Verificação Propriedade'!B:G,6,0),\"\")","v":""},null,"",null,""]
[null,{"$f":"IFERROR(INDEX('Lista Verificação Propriedade'!$B$1:$B$397, SMALL(INDEX(('Lista Verificação Propriedade'!$I$1:$I$397=\"Yes\")*(MATCH(ROW('Lista Verificação Propriedade'!$I$1:$I$397), ROW('Lista Verificação Propriedade'!$I$1:$I$397)))+('Lista Verificação Propriedade'!$I$1:$I$397<>\"Yes\")*1048577, 0, 0), ROW(A155))),\"\")","v":""},{"$f":"IFERROR(VLOOKUP(B159,'Lista Verificação Propriedade'!B:C,2,0),\"\")","v":""},{"$f":"IFERROR(VLOOKUP(VLOOKUP(B159,'Lista Verificação Propriedade'!B:J,9,0),DropDowns!G:H,2,0),\"\")","v":""},{"$f":"IFERROR(VLOOKUP(B159,'Lista Verificação Propriedade'!B:E,4,0),\"\")","v":""},{"$f":"IFERROR(VLOOKUP(B159,'Lista Verificação Propriedade'!B:G,6,0),\"\")","v":""},null,"",null,""]
[null,{"$f":"IFERROR(INDEX('Lista Verificação Propriedade'!$B$1:$B$397, SMALL(INDEX(('Lista Verificação Propriedade'!$I$1:$I$397=\"Yes\")*(MATCH(ROW('Lista Verificação Propriedade'!$I$1:$I$397), ROW('Lista Verificação Propriedade'!$I$1:$I$397)))+('Lista Verificação Propriedade'!$I$1:$I$397<>\"Yes\")*1048577, 0, 0), ROW(A156))),\"\")","v":""},{"$f":"IFERROR(VLOOKUP(B160,'Lista Verificação Propriedade'!B:C,2,0),\"\")","v":""},{"$f":"IFERROR(VLOOKUP(VLOOKUP(B160,'Lista Verificação Propriedade'!B:J,9,0),DropDowns!G:H,2,0),\"\")","v":""},{"$f":"IFERROR(VLOOKUP(B160,'Lista Verificação Propriedade'!B:E,4,0),\"\")","v":""},{"$f":"IFERROR(VLOOKUP(B160,'Lista Verificação Propriedade'!B:G,6,0),\"\")","v":""},null,"",null,""]
[null,{"$f":"IFERROR(INDEX('Lista Verificação Propriedade'!$B$1:$B$397, SMALL(INDEX(('Lista Verificação Propriedade'!$I$1:$I$397=\"Yes\")*(MATCH(ROW('Lista Verificação Propriedade'!$I$1:$I$397), ROW('Lista Verificação Propriedade'!$I$1:$I$397)))+('Lista Verificação Propriedade'!$I$1:$I$397<>\"Yes\")*1048577, 0, 0), ROW(A157))),\"\")","v":""},{"$f":"IFERROR(VLOOKUP(B161,'Lista Verificação Propriedade'!B:C,2,0),\"\")","v":""},{"$f":"IFERROR(VLOOKUP(VLOOKUP(B161,'Lista Verificação Propriedade'!B:J,9,0),DropDowns!G:H,2,0),\"\")","v":""},{"$f":"IFERROR(VLOOKUP(B161,'Lista Verificação Propriedade'!B:E,4,0),\"\")","v":""},{"$f":"IFERROR(VLOOKUP(B161,'Lista Verificação Propriedade'!B:G,6,0),\"\")","v":""},null,"",null,""]
[null,{"$f":"IFERROR(INDEX('Lista Verificação Propriedade'!$B$1:$B$397, SMALL(INDEX(('Lista Verificação Propriedade'!$I$1:$I$397=\"Yes\")*(MATCH(ROW('Lista Verificação Propriedade'!$I$1:$I$397), ROW('Lista Verificação Propriedade'!$I$1:$I$397)))+('Lista Verificação Propriedade'!$I$1:$I$397<>\"Yes\")*1048577, 0, 0), ROW(A158))),\"\")","v":""},{"$f":"IFERROR(VLOOKUP(B162,'Lista Verificação Propriedade'!B:C,2,0),\"\")","v":""},{"$f":"IFERROR(VLOOKUP(VLOOKUP(B162,'Lista Verificação Propriedade'!B:J,9,0),DropDowns!G:H,2,0),\"\")","v":""},{"$f":"IFERROR(VLOOKUP(B162,'Lista Verificação Propriedade'!B:E,4,0),\"\")","v":""},{"$f":"IFERROR(VLOOKUP(B162,'Lista Verificação Propriedade'!B:G,6,0),\"\")","v":""},null,"",null,""]
[null,{"$f":"IFERROR(INDEX('Lista Verificação Propriedade'!$B$1:$B$397, SMALL(INDEX(('Lista Verificação Propriedade'!$I$1:$I$397=\"Yes\")*(MATCH(ROW('Lista Verificação Propriedade'!$I$1:$I$397), ROW('Lista Verificação Propriedade'!$I$1:$I$397)))+('Lista Verificação Propriedade'!$I$1:$I$397<>\"Yes\")*1048577, 0, 0), ROW(A159))),\"\")","v":""},{"$f":"IFERROR(VLOOKUP(B163,'Lista Verificação Propriedade'!B:C,2,0),\"\")","v":""},{"$f":"IFERROR(VLOOKUP(VLOOKUP(B163,'Lista Verificação Propriedade'!B:J,9,0),DropDowns!G:H,2,0),\"\")","v":""},{"$f":"IFERROR(VLOOKUP(B163,'Lista Verificação Propriedade'!B:E,4,0),\"\")","v":""},{"$f":"IFERROR(VLOOKUP(B163,'Lista Verificação Propriedade'!B:G,6,0),\"\")","v":""},null,"",null,""]
[null,{"$f":"IFERROR(INDEX('Lista Verificação Propriedade'!$B$1:$B$397, SMALL(INDEX(('Lista Verificação Propriedade'!$I$1:$I$397=\"Yes\")*(MATCH(ROW('Lista Verificação Propriedade'!$I$1:$I$397), ROW('Lista Verificação Propriedade'!$I$1:$I$397)))+('Lista Verificação Propriedade'!$I$1:$I$397<>\"Yes\")*1048577, 0, 0), ROW(A160))),\"\")","v":""},{"$f":"IFERROR(VLOOKUP(B164,'Lista Verificação Propriedade'!B:C,2,0),\"\")","v":""},{"$f":"IFERROR(VLOOKUP(VLOOKUP(B164,'Lista Verificação Propriedade'!B:J,9,0),DropDowns!G:H,2,0),\"\")","v":""},{"$f":"IFERROR(VLOOKUP(B164,'Lista Verificação Propriedade'!B:E,4,0),\"\")","v":""},{"$f":"IFERROR(VLOOKUP(B164,'Lista Verificação Propriedade'!B:G,6,0),\"\")","v":""},null,"",null,""]
[null,{"$f":"IFERROR(INDEX('Lista Verificação Propriedade'!$B$1:$B$397, SMALL(INDEX(('Lista Verificação Propriedade'!$I$1:$I$397=\"Yes\")*(MATCH(ROW('Lista Verificação Propriedade'!$I$1:$I$397), ROW('Lista Verificação Propriedade'!$I$1:$I$397)))+('Lista Verificação Propriedade'!$I$1:$I$397<>\"Yes\")*1048577, 0, 0), ROW(A161))),\"\")","v":""},{"$f":"IFERROR(VLOOKUP(B165,'Lista Verificação Propriedade'!B:C,2,0),\"\")","v":""},{"$f":"IFERROR(VLOOKUP(VLOOKUP(B165,'Lista Verificação Propriedade'!B:J,9,0),DropDowns!G:H,2,0),\"\")","v":""},{"$f":"IFERROR(VLOOKUP(B165,'Lista Verificação Propriedade'!B:E,4,0),\"\")","v":""},{"$f":"IFERROR(VLOOKUP(B165,'Lista Verificação Propriedade'!B:G,6,0),\"\")","v":""},null,"",null,""]
[null,{"$f":"IFERROR(INDEX('Lista Verificação Propriedade'!$B$1:$B$397, SMALL(INDEX(('Lista Verificação Propriedade'!$I$1:$I$397=\"Yes\")*(MATCH(ROW('Lista Verificação Propriedade'!$I$1:$I$397), ROW('Lista Verificação Propriedade'!$I$1:$I$397)))+('Lista Verificação Propriedade'!$I$1:$I$397<>\"Yes\")*1048577, 0, 0), ROW(A162))),\"\")","v":""},{"$f":"IFERROR(VLOOKUP(B166,'Lista Verificação Propriedade'!B:C,2,0),\"\")","v":""},{"$f":"IFERROR(VLOOKUP(VLOOKUP(B166,'Lista Verificação Propriedade'!B:J,9,0),DropDowns!G:H,2,0),\"\")","v":""},{"$f":"IFERROR(VLOOKUP(B166,'Lista Verificação Propriedade'!B:E,4,0),\"\")","v":""},{"$f":"IFERROR(VLOOKUP(B166,'Lista Verificação Propriedade'!B:G,6,0),\"\")","v":""},null,"",null,""]
[null,{"$f":"IFERROR(INDEX('Lista Verificação Propriedade'!$B$1:$B$397, SMALL(INDEX(('Lista Verificação Propriedade'!$I$1:$I$397=\"Yes\")*(MATCH(ROW('Lista Verificação Propriedade'!$I$1:$I$397), ROW('Lista Verificação Propriedade'!$I$1:$I$397)))+('Lista Verificação Propriedade'!$I$1:$I$397<>\"Yes\")*1048577, 0, 0), ROW(A163))),\"\")","v":""},{"$f":"IFERROR(VLOOKUP(B167,'Lista Verificação Propriedade'!B:C,2,0),\"\")","v":""},{"$f":"IFERROR(VLOOKUP(VLOOKUP(B167,'Lista Verificação Propriedade'!B:J,9,0),DropDowns!G:H,2,0),\"\")","v":""},{"$f":"IFERROR(VLOOKUP(B167,'Lista Verificação Propriedade'!B:E,4,0),\"\")","v":""},{"$f":"IFERROR(VLOOKUP(B167,'Lista Verificação Propriedade'!B:G,6,0),\"\")","v":""},null,"",null,""]
[null,{"$f":"IFERROR(INDEX('Lista Verificação Propriedade'!$B$1:$B$397, SMALL(INDEX(('Lista Verificação Propriedade'!$I$1:$I$397=\"Yes\")*(MATCH(ROW('Lista Verificação Propriedade'!$I$1:$I$397), ROW('Lista Verificação Propriedade'!$I$1:$I$397)))+('Lista Verificação Propriedade'!$I$1:$I$397<>\"Yes\")*1048577, 0, 0), ROW(A164))),\"\")","v":""},{"$f":"IFERROR(VLOOKUP(B168,'Lista Verificação Propriedade'!B:C,2,0),\"\")","v":""},{"$f":"IFERROR(VLOOKUP(VLOOKUP(B168,'Lista Verificação Propriedade'!B:J,9,0),DropDowns!G:H,2,0),\"\")","v":""},{"$f":"IFERROR(VLOOKUP(B168,'Lista Verificação Propriedade'!B:E,4,0),\"\")","v":""},{"$f":"IFERROR(VLOOKUP(B168,'Lista Verificação Propriedade'!B:G,6,0),\"\")","v":""},null,"",null,""]
[null,{"$f":"IFERROR(INDEX('Lista Verificação Propriedade'!$B$1:$B$397, SMALL(INDEX(('Lista Verificação Propriedade'!$I$1:$I$397=\"Yes\")*(MATCH(ROW('Lista Verificação Propriedade'!$I$1:$I$397), ROW('Lista Verificação Propriedade'!$I$1:$I$397)))+('Lista Verificação Propriedade'!$I$1:$I$397<>\"Yes\")*1048577, 0, 0), ROW(A165))),\"\")","v":""},{"$f":"IFERROR(VLOOKUP(B169,'Lista Verificação Propriedade'!B:C,2,0),\"\")","v":""},{"$f":"IFERROR(VLOOKUP(VLOOKUP(B169,'Lista Verificação Propriedade'!B:J,9,0),DropDowns!G:H,2,0),\"\")","v":""},{"$f":"IFERROR(VLOOKUP(B169,'Lista Verificação Propriedade'!B:E,4,0),\"\")","v":""},{"$f":"IFERROR(VLOOKUP(B169,'Lista Verificação Propriedade'!B:G,6,0),\"\")","v":""},null,"",null,""]
[null,{"$f":"IFERROR(INDEX('Lista Verificação Propriedade'!$B$1:$B$397, SMALL(INDEX(('Lista Verificação Propriedade'!$I$1:$I$397=\"Yes\")*(MATCH(ROW('Lista Verificação Propriedade'!$I$1:$I$397), ROW('Lista Verificação Propriedade'!$I$1:$I$397)))+('Lista Verificação Propriedade'!$I$1:$I$397<>\"Yes\")*1048577, 0, 0), ROW(A166))),\"\")","v":""},{"$f":"IFERROR(VLOOKUP(B170,'Lista Verificação Propriedade'!B:C,2,0),\"\")","v":""},{"$f":"IFERROR(VLOOKUP(VLOOKUP(B170,'Lista Verificação Propriedade'!B:J,9,0),DropDowns!G:H,2,0),\"\")","v":""},{"$f":"IFERROR(VLOOKUP(B170,'Lista Verificação Propriedade'!B:E,4,0),\"\")","v":""},{"$f":"IFERROR(VLOOKUP(B170,'Lista Verificação Propriedade'!B:G,6,0),\"\")","v":""},null,"",null,""]
[null,{"$f":"IFERROR(INDEX('Lista Verificação Propriedade'!$B$1:$B$397, SMALL(INDEX(('Lista Verificação Propriedade'!$I$1:$I$397=\"Yes\")*(MATCH(ROW('Lista Verificação Propriedade'!$I$1:$I$397), ROW('Lista Verificação Propriedade'!$I$1:$I$397)))+('Lista Verificação Propriedade'!$I$1:$I$397<>\"Yes\")*1048577, 0, 0), ROW(A167))),\"\")","v":""},{"$f":"IFERROR(VLOOKUP(B171,'Lista Verificação Propriedade'!B:C,2,0),\"\")","v":""},{"$f":"IFERROR(VLOOKUP(VLOOKUP(B171,'Lista Verificação Propriedade'!B:J,9,0),DropDowns!G:H,2,0),\"\")","v":""},{"$f":"IFERROR(VLOOKUP(B171,'Lista Verificação Propriedade'!B:E,4,0),\"\")","v":""},{"$f":"IFERROR(VLOOKUP(B171,'Lista Verificação Propriedade'!B:G,6,0),\"\")","v":""},null,"",null,""]
[null,{"$f":"IFERROR(INDEX('Lista Verificação Propriedade'!$B$1:$B$397, SMALL(INDEX(('Lista Verificação Propriedade'!$I$1:$I$397=\"Yes\")*(MATCH(ROW('Lista Verificação Propriedade'!$I$1:$I$397), ROW('Lista Verificação Propriedade'!$I$1:$I$397)))+('Lista Verificação Propriedade'!$I$1:$I$397<>\"Yes\")*1048577, 0, 0), ROW(A168))),\"\")","v":""},{"$f":"IFERROR(VLOOKUP(B172,'Lista Verificação Propriedade'!B:C,2,0),\"\")","v":""},{"$f":"IFERROR(VLOOKUP(VLOOKUP(B172,'Lista Verificação Propriedade'!B:J,9,0),DropDowns!G:H,2,0),\"\")","v":""},{"$f":"IFERROR(VLOOKUP(B172,'Lista Verificação Propriedade'!B:E,4,0),\"\")","v":""},{"$f":"IFERROR(VLOOKUP(B172,'Lista Verificação Propriedade'!B:G,6,0),\"\")","v":""},null,"",null,""]
[null,{"$f":"IFERROR(INDEX('Lista Verificação Propriedade'!$B$1:$B$397, SMALL(INDEX(('Lista Verificação Propriedade'!$I$1:$I$397=\"Yes\")*(MATCH(ROW('Lista Verificação Propriedade'!$I$1:$I$397), ROW('Lista Verificação Propriedade'!$I$1:$I$397)))+('Lista Verificação Propriedade'!$I$1:$I$397<>\"Yes\")*1048577, 0, 0), ROW(A169))),\"\")","v":""},{"$f":"IFERROR(VLOOKUP(B173,'Lista Verificação Propriedade'!B:C,2,0),\"\")","v":""},{"$f":"IFERROR(VLOOKUP(VLOOKUP(B173,'Lista Verificação Propriedade'!B:J,9,0),DropDowns!G:H,2,0),\"\")","v":""},{"$f":"IFERROR(VLOOKUP(B173,'Lista Verificação Propriedade'!B:E,4,0),\"\")","v":""},{"$f":"IFERROR(VLOOKUP(B173,'Lista Verificação Propriedade'!B:G,6,0),\"\")","v":""},null,"",null,""]
[null,{"$f":"IFERROR(INDEX('Lista Verificação Propriedade'!$B$1:$B$397, SMALL(INDEX(('Lista Verificação Propriedade'!$I$1:$I$397=\"Yes\")*(MATCH(ROW('Lista Verificação Propriedade'!$I$1:$I$397), ROW('Lista Verificação Propriedade'!$I$1:$I$397)))+('Lista Verificação Propriedade'!$I$1:$I$397<>\"Yes\")*1048577, 0, 0), ROW(A170))),\"\")","v":""},{"$f":"IFERROR(VLOOKUP(B174,'Lista Verificação Propriedade'!B:C,2,0),\"\")","v":""},{"$f":"IFERROR(VLOOKUP(VLOOKUP(B174,'Lista Verificação Propriedade'!B:J,9,0),DropDowns!G:H,2,0),\"\")","v":""},{"$f":"IFERROR(VLOOKUP(B174,'Lista Verificação Propriedade'!B:E,4,0),\"\")","v":""},{"$f":"IFERROR(VLOOKUP(B174,'Lista Verificação Propriedade'!B:G,6,0),\"\")","v":""},null,"",null,""]
[null,{"$f":"IFERROR(INDEX('Lista Verificação Propriedade'!$B$1:$B$397, SMALL(INDEX(('Lista Verificação Propriedade'!$I$1:$I$397=\"Yes\")*(MATCH(ROW('Lista Verificação Propriedade'!$I$1:$I$397), ROW('Lista Verificação Propriedade'!$I$1:$I$397)))+('Lista Verificação Propriedade'!$I$1:$I$397<>\"Yes\")*1048577, 0, 0), ROW(A171))),\"\")","v":""},{"$f":"IFERROR(VLOOKUP(B175,'Lista Verificação Propriedade'!B:C,2,0),\"\")","v":""},{"$f":"IFERROR(VLOOKUP(VLOOKUP(B175,'Lista Verificação Propriedade'!B:J,9,0),DropDowns!G:H,2,0),\"\")","v":""},{"$f":"IFERROR(VLOOKUP(B175,'Lista Verificação Propriedade'!B:E,4,0),\"\")","v":""},{"$f":"IFERROR(VLOOKUP(B175,'Lista Verificação Propriedade'!B:G,6,0),\"\")","v":""},null,"",null,""]
[null,{"$f":"IFERROR(INDEX('Lista Verificação Propriedade'!$B$1:$B$397, SMALL(INDEX(('Lista Verificação Propriedade'!$I$1:$I$397=\"Yes\")*(MATCH(ROW('Lista Verificação Propriedade'!$I$1:$I$397), ROW('Lista Verificação Propriedade'!$I$1:$I$397)))+('Lista Verificação Propriedade'!$I$1:$I$397<>\"Yes\")*1048577, 0, 0), ROW(A172))),\"\")","v":""},{"$f":"IFERROR(VLOOKUP(B176,'Lista Verificação Propriedade'!B:C,2,0),\"\")","v":""},{"$f":"IFERROR(VLOOKUP(VLOOKUP(B176,'Lista Verificação Propriedade'!B:J,9,0),DropDowns!G:H,2,0),\"\")","v":""},{"$f":"IFERROR(VLOOKUP(B176,'Lista Verificação Propriedade'!B:E,4,0),\"\")","v":""},{"$f":"IFERROR(VLOOKUP(B176,'Lista Verificação Propriedade'!B:G,6,0),\"\")","v":""},null,"",null,""]
[null,{"$f":"IFERROR(INDEX('Lista Verificação Propriedade'!$B$1:$B$397, SMALL(INDEX(('Lista Verificação Propriedade'!$I$1:$I$397=\"Yes\")*(MATCH(ROW('Lista Verificação Propriedade'!$I$1:$I$397), ROW('Lista Verificação Propriedade'!$I$1:$I$397)))+('Lista Verificação Propriedade'!$I$1:$I$397<>\"Yes\")*1048577, 0, 0), ROW(A173))),\"\")","v":""},{"$f":"IFERROR(VLOOKUP(B177,'Lista Verificação Propriedade'!B:C,2,0),\"\")","v":""},{"$f":"IFERROR(VLOOKUP(VLOOKUP(B177,'Lista Verificação Propriedade'!B:J,9,0),DropDowns!G:H,2,0),\"\")","v":""},{"$f":"IFERROR(VLOOKUP(B177,'Lista Verificação Propriedade'!B:E,4,0),\"\")","v":""},{"$f":"IFERROR(VLOOKUP(B177,'Lista Verificação Propriedade'!B:G,6,0),\"\")","v":""},null,"",null,""]
[null,{"$f":"IFERROR(INDEX('Lista Verificação Propriedade'!$B$1:$B$397, SMALL(INDEX(('Lista Verificação Propriedade'!$I$1:$I$397=\"Yes\")*(MATCH(ROW('Lista Verificação Propriedade'!$I$1:$I$397), ROW('Lista Verificação Propriedade'!$I$1:$I$397)))+('Lista Verificação Propriedade'!$I$1:$I$397<>\"Yes\")*1048577, 0, 0), ROW(A174))),\"\")","v":""},{"$f":"IFERROR(VLOOKUP(B178,'Lista Verificação Propriedade'!B:C,2,0),\"\")","v":""},{"$f":"IFERROR(VLOOKUP(VLOOKUP(B178,'Lista Verificação Propriedade'!B:J,9,0),DropDowns!G:H,2,0),\"\")","v":""},{"$f":"IFERROR(VLOOKUP(B178,'Lista Verificação Propriedade'!B:E,4,0),\"\")","v":""},{"$f":"IFERROR(VLOOKUP(B178,'Lista Verificação Propriedade'!B:G,6,0),\"\")","v":""},null,"",null,""]
[null,{"$f":"IFERROR(INDEX('Lista Verificação Propriedade'!$B$1:$B$397, SMALL(INDEX(('Lista Verificação Propriedade'!$I$1:$I$397=\"Yes\")*(MATCH(ROW('Lista Verificação Propriedade'!$I$1:$I$397), ROW('Lista Verificação Propriedade'!$I$1:$I$397)))+('Lista Verificação Propriedade'!$I$1:$I$397<>\"Yes\")*1048577, 0, 0), ROW(A175))),\"\")","v":""},{"$f":"IFERROR(VLOOKUP(B179,'Lista Verificação Propriedade'!B:C,2,0),\"\")","v":""},{"$f":"IFERROR(VLOOKUP(VLOOKUP(B179,'Lista Verificação Propriedade'!B:J,9,0),DropDowns!G:H,2,0),\"\")","v":""},{"$f":"IFERROR(VLOOKUP(B179,'Lista Verificação Propriedade'!B:E,4,0),\"\")","v":""},{"$f":"IFERROR(VLOOKUP(B179,'Lista Verificação Propriedade'!B:G,6,0),\"\")","v":""},null,"",null,""]
[null,{"$f":"IFERROR(INDEX('Lista Verificação Propriedade'!$B$1:$B$397, SMALL(INDEX(('Lista Verificação Propriedade'!$I$1:$I$397=\"Yes\")*(MATCH(ROW('Lista Verificação Propriedade'!$I$1:$I$397), ROW('Lista Verificação Propriedade'!$I$1:$I$397)))+('Lista Verificação Propriedade'!$I$1:$I$397<>\"Yes\")*1048577, 0, 0), ROW(A176))),\"\")","v":""},{"$f":"IFERROR(VLOOKUP(B180,'Lista Verificação Propriedade'!B:C,2,0),\"\")","v":""},{"$f":"IFERROR(VLOOKUP(VLOOKUP(B180,'Lista Verificação Propriedade'!B:J,9,0),DropDowns!G:H,2,0),\"\")","v":""},{"$f":"IFERROR(VLOOKUP(B180,'Lista Verificação Propriedade'!B:E,4,0),\"\")","v":""},{"$f":"IFERROR(VLOOKUP(B180,'Lista Verificação Propriedade'!B:G,6,0),\"\")","v":""},null,"",null,""]
[null,{"$f":"IFERROR(INDEX('Lista Verificação Propriedade'!$B$1:$B$397, SMALL(INDEX(('Lista Verificação Propriedade'!$I$1:$I$397=\"Yes\")*(MATCH(ROW('Lista Verificação Propriedade'!$I$1:$I$397), ROW('Lista Verificação Propriedade'!$I$1:$I$397)))+('Lista Verificação Propriedade'!$I$1:$I$397<>\"Yes\")*1048577, 0, 0), ROW(A177))),\"\")","v":""},{"$f":"IFERROR(VLOOKUP(B181,'Lista Verificação Propriedade'!B:C,2,0),\"\")","v":""},{"$f":"IFERROR(VLOOKUP(VLOOKUP(B181,'Lista Verificação Propriedade'!B:J,9,0),DropDowns!G:H,2,0),\"\")","v":""},{"$f":"IFERROR(VLOOKUP(B181,'Lista Verificação Propriedade'!B:E,4,0),\"\")","v":""},{"$f":"IFERROR(VLOOKUP(B181,'Lista Verificação Propriedade'!B:G,6,0),\"\")","v":""},null,"",null,""]
[null,{"$f":"IFERROR(INDEX('Lista Verificação Propriedade'!$B$1:$B$397, SMALL(INDEX(('Lista Verificação Propriedade'!$I$1:$I$397=\"Yes\")*(MATCH(ROW('Lista Verificação Propriedade'!$I$1:$I$397), ROW('Lista Verificação Propriedade'!$I$1:$I$397)))+('Lista Verificação Propriedade'!$I$1:$I$397<>\"Yes\")*1048577, 0, 0), ROW(A178))),\"\")","v":""},{"$f":"IFERROR(VLOOKUP(B182,'Lista Verificação Propriedade'!B:C,2,0),\"\")","v":""},{"$f":"IFERROR(VLOOKUP(VLOOKUP(B182,'Lista Verificação Propriedade'!B:J,9,0),DropDowns!G:H,2,0),\"\")","v":""},{"$f":"IFERROR(VLOOKUP(B182,'Lista Verificação Propriedade'!B:E,4,0),\"\")","v":""},{"$f":"IFERROR(VLOOKUP(B182,'Lista Verificação Propriedade'!B:G,6,0),\"\")","v":""},null,"",null,""]
[null,{"$f":"IFERROR(INDEX('Lista Verificação Propriedade'!$B$1:$B$397, SMALL(INDEX(('Lista Verificação Propriedade'!$I$1:$I$397=\"Yes\")*(MATCH(ROW('Lista Verificação Propriedade'!$I$1:$I$397), ROW('Lista Verificação Propriedade'!$I$1:$I$397)))+('Lista Verificação Propriedade'!$I$1:$I$397<>\"Yes\")*1048577, 0, 0), ROW(A179))),\"\")","v":""},{"$f":"IFERROR(VLOOKUP(B183,'Lista Verificação Propriedade'!B:C,2,0),\"\")","v":""},{"$f":"IFERROR(VLOOKUP(VLOOKUP(B183,'Lista Verificação Propriedade'!B:J,9,0),DropDowns!G:H,2,0),\"\")","v":""},{"$f":"IFERROR(VLOOKUP(B183,'Lista Verificação Propriedade'!B:E,4,0),\"\")","v":""},{"$f":"IFERROR(VLOOKUP(B183,'Lista Verificação Propriedade'!B:G,6,0),\"\")","v":""},null,"",null,""]
[null,{"$f":"IFERROR(INDEX('Lista Verificação Propriedade'!$B$1:$B$397, SMALL(INDEX(('Lista Verificação Propriedade'!$I$1:$I$397=\"Yes\")*(MATCH(ROW('Lista Verificação Propriedade'!$I$1:$I$397), ROW('Lista Verificação Propriedade'!$I$1:$I$397)))+('Lista Verificação Propriedade'!$I$1:$I$397<>\"Yes\")*1048577, 0, 0), ROW(A180))),\"\")","v":""},{"$f":"IFERROR(VLOOKUP(B184,'Lista Verificação Propriedade'!B:C,2,0),\"\")","v":""},{"$f":"IFERROR(VLOOKUP(VLOOKUP(B184,'Lista Verificação Propriedade'!B:J,9,0),DropDowns!G:H,2,0),\"\")","v":""},{"$f":"IFERROR(VLOOKUP(B184,'Lista Verificação Propriedade'!B:E,4,0),\"\")","v":""},{"$f":"IFERROR(VLOOKUP(B184,'Lista Verificação Propriedade'!B:G,6,0),\"\")","v":""},null,"",null,""]
[null,{"$f":"IFERROR(INDEX('Lista Verificação Propriedade'!$B$1:$B$397, SMALL(INDEX(('Lista Verificação Propriedade'!$I$1:$I$397=\"Yes\")*(MATCH(ROW('Lista Verificação Propriedade'!$I$1:$I$397), ROW('Lista Verificação Propriedade'!$I$1:$I$397)))+('Lista Verificação Propriedade'!$I$1:$I$397<>\"Yes\")*1048577, 0, 0), ROW(A181))),\"\")","v":""},{"$f":"IFERROR(VLOOKUP(B185,'Lista Verificação Propriedade'!B:C,2,0),\"\")","v":""},{"$f":"IFERROR(VLOOKUP(VLOOKUP(B185,'Lista Verificação Propriedade'!B:J,9,0),DropDowns!G:H,2,0),\"\")","v":""},{"$f":"IFERROR(VLOOKUP(B185,'Lista Verificação Propriedade'!B:E,4,0),\"\")","v":""},{"$f":"IFERROR(VLOOKUP(B185,'Lista Verificação Propriedade'!B:G,6,0),\"\")","v":""},null,"",null,""]
[null,{"$f":"IFERROR(INDEX('Lista Verificação Propriedade'!$B$1:$B$397, SMALL(INDEX(('Lista Verificação Propriedade'!$I$1:$I$397=\"Yes\")*(MATCH(ROW('Lista Verificação Propriedade'!$I$1:$I$397), ROW('Lista Verificação Propriedade'!$I$1:$I$397)))+('Lista Verificação Propriedade'!$I$1:$I$397<>\"Yes\")*1048577, 0, 0), ROW(A182))),\"\")","v":""},{"$f":"IFERROR(VLOOKUP(B186,'Lista Verificação Propriedade'!B:C,2,0),\"\")","v":""},{"$f":"IFERROR(VLOOKUP(VLOOKUP(B186,'Lista Verificação Propriedade'!B:J,9,0),DropDowns!G:H,2,0),\"\")","v":""},{"$f":"IFERROR(VLOOKUP(B186,'Lista Verificação Propriedade'!B:E,4,0),\"\")","v":""},{"$f":"IFERROR(VLOOKUP(B186,'Lista Verificação Propriedade'!B:G,6,0),\"\")","v":""},null,"",null,""]
[null,{"$f":"IFERROR(INDEX('Lista Verificação Propriedade'!$B$1:$B$397, SMALL(INDEX(('Lista Verificação Propriedade'!$I$1:$I$397=\"Yes\")*(MATCH(ROW('Lista Verificação Propriedade'!$I$1:$I$397), ROW('Lista Verificação Propriedade'!$I$1:$I$397)))+('Lista Verificação Propriedade'!$I$1:$I$397<>\"Yes\")*1048577, 0, 0), ROW(A183))),\"\")","v":""},{"$f":"IFERROR(VLOOKUP(B187,'Lista Verificação Propriedade'!B:C,2,0),\"\")","v":""},{"$f":"IFERROR(VLOOKUP(VLOOKUP(B187,'Lista Verificação Propriedade'!B:J,9,0),DropDowns!G:H,2,0),\"\")","v":""},{"$f":"IFERROR(VLOOKUP(B187,'Lista Verificação Propriedade'!B:E,4,0),\"\")","v":""},{"$f":"IFERROR(VLOOKUP(B187,'Lista Verificação Propriedade'!B:G,6,0),\"\")","v":""},null,"",null,""]
[null,{"$f":"IFERROR(INDEX('Lista Verificação Propriedade'!$B$1:$B$397, SMALL(INDEX(('Lista Verificação Propriedade'!$I$1:$I$397=\"Yes\")*(MATCH(ROW('Lista Verificação Propriedade'!$I$1:$I$397), ROW('Lista Verificação Propriedade'!$I$1:$I$397)))+('Lista Verificação Propriedade'!$I$1:$I$397<>\"Yes\")*1048577, 0, 0), ROW(A184))),\"\")","v":""},{"$f":"IFERROR(VLOOKUP(B188,'Lista Verificação Propriedade'!B:C,2,0),\"\")","v":""},{"$f":"IFERROR(VLOOKUP(VLOOKUP(B188,'Lista Verificação Propriedade'!B:J,9,0),DropDowns!G:H,2,0),\"\")","v":""},{"$f":"IFERROR(VLOOKUP(B188,'Lista Verificação Propriedade'!B:E,4,0),\"\")","v":""},{"$f":"IFERROR(VLOOKUP(B188,'Lista Verificação Propriedade'!B:G,6,0),\"\")","v":""},null,"",null,""]
[null,{"$f":"IFERROR(INDEX('Lista Verificação Propriedade'!$B$1:$B$397, SMALL(INDEX(('Lista Verificação Propriedade'!$I$1:$I$397=\"Yes\")*(MATCH(ROW('Lista Verificação Propriedade'!$I$1:$I$397), ROW('Lista Verificação Propriedade'!$I$1:$I$397)))+('Lista Verificação Propriedade'!$I$1:$I$397<>\"Yes\")*1048577, 0, 0), ROW(A185))),\"\")","v":""},{"$f":"IFERROR(VLOOKUP(B189,'Lista Verificação Propriedade'!B:C,2,0),\"\")","v":""},{"$f":"IFERROR(VLOOKUP(VLOOKUP(B189,'Lista Verificação Propriedade'!B:J,9,0),DropDowns!G:H,2,0),\"\")","v":""},{"$f":"IFERROR(VLOOKUP(B189,'Lista Verificação Propriedade'!B:E,4,0),\"\")","v":""},{"$f":"IFERROR(VLOOKUP(B189,'Lista Verificação Propriedade'!B:G,6,0),\"\")","v":""},null,"",null,""]
[null,{"$f":"IFERROR(INDEX('Lista Verificação Propriedade'!$B$1:$B$397, SMALL(INDEX(('Lista Verificação Propriedade'!$I$1:$I$397=\"Yes\")*(MATCH(ROW('Lista Verificação Propriedade'!$I$1:$I$397), ROW('Lista Verificação Propriedade'!$I$1:$I$397)))+('Lista Verificação Propriedade'!$I$1:$I$397<>\"Yes\")*1048577, 0, 0), ROW(A186))),\"\")","v":""},{"$f":"IFERROR(VLOOKUP(B190,'Lista Verificação Propriedade'!B:C,2,0),\"\")","v":""},{"$f":"IFERROR(VLOOKUP(VLOOKUP(B190,'Lista Verificação Propriedade'!B:J,9,0),DropDowns!G:H,2,0),\"\")","v":""},{"$f":"IFERROR(VLOOKUP(B190,'Lista Verificação Propriedade'!B:E,4,0),\"\")","v":""},{"$f":"IFERROR(VLOOKUP(B190,'Lista Verificação Propriedade'!B:G,6,0),\"\")","v":""},null,"",null,""]
[null,{"$f":"IFERROR(INDEX('Lista Verificação Propriedade'!$B$1:$B$397, SMALL(INDEX(('Lista Verificação Propriedade'!$I$1:$I$397=\"Yes\")*(MATCH(ROW('Lista Verificação Propriedade'!$I$1:$I$397), ROW('Lista Verificação Propriedade'!$I$1:$I$397)))+('Lista Verificação Propriedade'!$I$1:$I$397<>\"Yes\")*1048577, 0, 0), ROW(A187))),\"\")","v":""},{"$f":"IFERROR(VLOOKUP(B191,'Lista Verificação Propriedade'!B:C,2,0),\"\")","v":""},{"$f":"IFERROR(VLOOKUP(VLOOKUP(B191,'Lista Verificação Propriedade'!B:J,9,0),DropDowns!G:H,2,0),\"\")","v":""},{"$f":"IFERROR(VLOOKUP(B191,'Lista Verificação Propriedade'!B:E,4,0),\"\")","v":""},{"$f":"IFERROR(VLOOKUP(B191,'Lista Verificação Propriedade'!B:G,6,0),\"\")","v":""},null,"",null,""]
[null,{"$f":"IFERROR(INDEX('Lista Verificação Propriedade'!$B$1:$B$397, SMALL(INDEX(('Lista Verificação Propriedade'!$I$1:$I$397=\"Yes\")*(MATCH(ROW('Lista Verificação Propriedade'!$I$1:$I$397), ROW('Lista Verificação Propriedade'!$I$1:$I$397)))+('Lista Verificação Propriedade'!$I$1:$I$397<>\"Yes\")*1048577, 0, 0), ROW(A188))),\"\")","v":""},{"$f":"IFERROR(VLOOKUP(B192,'Lista Verificação Propriedade'!B:C,2,0),\"\")","v":""},{"$f":"IFERROR(VLOOKUP(VLOOKUP(B192,'Lista Verificação Propriedade'!B:J,9,0),DropDowns!G:H,2,0),\"\")","v":""},{"$f":"IFERROR(VLOOKUP(B192,'Lista Verificação Propriedade'!B:E,4,0),\"\")","v":""},{"$f":"IFERROR(VLOOKUP(B192,'Lista Verificação Propriedade'!B:G,6,0),\"\")","v":""},null,"",null,""]
[null,{"$f":"IFERROR(INDEX('Lista Verificação Propriedade'!$B$1:$B$397, SMALL(INDEX(('Lista Verificação Propriedade'!$I$1:$I$397=\"Yes\")*(MATCH(ROW('Lista Verificação Propriedade'!$I$1:$I$397), ROW('Lista Verificação Propriedade'!$I$1:$I$397)))+('Lista Verificação Propriedade'!$I$1:$I$397<>\"Yes\")*1048577, 0, 0), ROW(A189))),\"\")","v":""},{"$f":"IFERROR(VLOOKUP(B193,'Lista Verificação Propriedade'!B:C,2,0),\"\")","v":""},{"$f":"IFERROR(VLOOKUP(VLOOKUP(B193,'Lista Verificação Propriedade'!B:J,9,0),DropDowns!G:H,2,0),\"\")","v":""},{"$f":"IFERROR(VLOOKUP(B193,'Lista Verificação Propriedade'!B:E,4,0),\"\")","v":""},{"$f":"IFERROR(VLOOKUP(B193,'Lista Verificação Propriedade'!B:G,6,0),\"\")","v":""},null,"",null,""]
[null,{"$f":"IFERROR(INDEX('Lista Verificação Propriedade'!$B$1:$B$397, SMALL(INDEX(('Lista Verificação Propriedade'!$I$1:$I$397=\"Yes\")*(MATCH(ROW('Lista Verificação Propriedade'!$I$1:$I$397), ROW('Lista Verificação Propriedade'!$I$1:$I$397)))+('Lista Verificação Propriedade'!$I$1:$I$397<>\"Yes\")*1048577, 0, 0), ROW(A190))),\"\")","v":""},{"$f":"IFERROR(VLOOKUP(B194,'Lista Verificação Propriedade'!B:C,2,0),\"\")","v":""},{"$f":"IFERROR(VLOOKUP(VLOOKUP(B194,'Lista Verificação Propriedade'!B:J,9,0),DropDowns!G:H,2,0),\"\")","v":""},{"$f":"IFERROR(VLOOKUP(B194,'Lista Verificação Propriedade'!B:E,4,0),\"\")","v":""},{"$f":"IFERROR(VLOOKUP(B194,'Lista Verificação Propriedade'!B:G,6,0),\"\")","v":""},null,"",null,""]
[null,{"$f":"IFERROR(INDEX('Lista Verificação Propriedade'!$B$1:$B$397, SMALL(INDEX(('Lista Verificação Propriedade'!$I$1:$I$397=\"Yes\")*(MATCH(ROW('Lista Verificação Propriedade'!$I$1:$I$397), ROW('Lista Verificação Propriedade'!$I$1:$I$397)))+('Lista Verificação Propriedade'!$I$1:$I$397<>\"Yes\")*1048577, 0, 0), ROW(A191))),\"\")","v":""},{"$f":"IFERROR(VLOOKUP(B195,'Lista Verificação Propriedade'!B:C,2,0),\"\")","v":""},{"$f":"IFERROR(VLOOKUP(VLOOKUP(B195,'Lista Verificação Propriedade'!B:J,9,0),DropDowns!G:H,2,0),\"\")","v":""},{"$f":"IFERROR(VLOOKUP(B195,'Lista Verificação Propriedade'!B:E,4,0),\"\")","v":""},{"$f":"IFERROR(VLOOKUP(B195,'Lista Verificação Propriedade'!B:G,6,0),\"\")","v":""},null,"",null,""]
[null,{"$f":"IFERROR(INDEX('Lista Verificação Propriedade'!$B$1:$B$397, SMALL(INDEX(('Lista Verificação Propriedade'!$I$1:$I$397=\"Yes\")*(MATCH(ROW('Lista Verificação Propriedade'!$I$1:$I$397), ROW('Lista Verificação Propriedade'!$I$1:$I$397)))+('Lista Verificação Propriedade'!$I$1:$I$397<>\"Yes\")*1048577, 0, 0), ROW(A192))),\"\")","v":""},{"$f":"IFERROR(VLOOKUP(B196,'Lista Verificação Propriedade'!B:C,2,0),\"\")","v":""},{"$f":"IFERROR(VLOOKUP(VLOOKUP(B196,'Lista Verificação Propriedade'!B:J,9,0),DropDowns!G:H,2,0),\"\")","v":""},{"$f":"IFERROR(VLOOKUP(B196,'Lista Verificação Propriedade'!B:E,4,0),\"\")","v":""},{"$f":"IFERROR(VLOOKUP(B196,'Lista Verificação Propriedade'!B:G,6,0),\"\")","v":""},null,"",null,""]
[null,{"$f":"IFERROR(INDEX('Lista Verificação Propriedade'!$B$1:$B$397, SMALL(INDEX(('Lista Verificação Propriedade'!$I$1:$I$397=\"Yes\")*(MATCH(ROW('Lista Verificação Propriedade'!$I$1:$I$397), ROW('Lista Verificação Propriedade'!$I$1:$I$397)))+('Lista Verificação Propriedade'!$I$1:$I$397<>\"Yes\")*1048577, 0, 0), ROW(A193))),\"\")","v":""},{"$f":"IFERROR(VLOOKUP(B197,'Lista Verificação Propriedade'!B:C,2,0),\"\")","v":""},{"$f":"IFERROR(VLOOKUP(VLOOKUP(B197,'Lista Verificação Propriedade'!B:J,9,0),DropDowns!G:H,2,0),\"\")","v":""},{"$f":"IFERROR(VLOOKUP(B197,'Lista Verificação Propriedade'!B:E,4,0),\"\")","v":""},{"$f":"IFERROR(VLOOKUP(B197,'Lista Verificação Propriedade'!B:G,6,0),\"\")","v":""},null,"",null,""]
[null,{"$f":"IFERROR(INDEX('Lista Verificação Propriedade'!$B$1:$B$397, SMALL(INDEX(('Lista Verificação Propriedade'!$I$1:$I$397=\"Yes\")*(MATCH(ROW('Lista Verificação Propriedade'!$I$1:$I$397), ROW('Lista Verificação Propriedade'!$I$1:$I$397)))+('Lista Verificação Propriedade'!$I$1:$I$397<>\"Yes\")*1048577, 0, 0), ROW(A194))),\"\")","v":""},{"$f":"IFERROR(VLOOKUP(B198,'Lista Verificação Propriedade'!B:C,2,0),\"\")","v":""},{"$f":"IFERROR(VLOOKUP(VLOOKUP(B198,'Lista Verificação Propriedade'!B:J,9,0),DropDowns!G:H,2,0),\"\")","v":""},{"$f":"IFERROR(VLOOKUP(B198,'Lista Verificação Propriedade'!B:E,4,0),\"\")","v":""},{"$f":"IFERROR(VLOOKUP(B198,'Lista Verificação Propriedade'!B:G,6,0),\"\")","v":""},null,{"$f":"IF(B198<>\"\",\"Interna:\",\"\")","v":""},null,{"$f":"IF(B198<>\"\",\"Externa:\",\"\")","v":""}]
[null,{"$f":"IFERROR(INDEX('Lista Verificação Propriedade'!$B$1:$B$397, SMALL(INDEX(('Lista Verificação Propriedade'!$I$1:$I$397=\"Yes\")*(MATCH(ROW('Lista Verificação Propriedade'!$I$1:$I$397), ROW('Lista Verificação Propriedade'!$I$1:$I$397)))+('Lista Verificação Propriedade'!$I$1:$I$397<>\"Yes\")*1048577, 0, 0), ROW(A195))),\"\")","v":""},{"$f":"IFERROR(VLOOKUP(B199,'Lista Verificação Propriedade'!B:C,2,0),\"\")","v":""},{"$f":"IFERROR(VLOOKUP(VLOOKUP(B199,'Lista Verificação Propriedade'!B:J,9,0),DropDowns!G:H,2,0),\"\")","v":""},{"$f":"IFERROR(VLOOKUP(B199,'Lista Verificação Propriedade'!B:E,4,0),\"\")","v":""},{"$f":"IFERROR(VLOOKUP(B199,'Lista Verificação Propriedade'!B:G,6,0),\"\")","v":""},null,"",null,""]
[null,{"$f":"IFERROR(INDEX('Lista Verificação Propriedade'!$B$1:$B$397, SMALL(INDEX(('Lista Verificação Propriedade'!$I$1:$I$397=\"Yes\")*(MATCH(ROW('Lista Verificação Propriedade'!$I$1:$I$397), ROW('Lista Verificação Propriedade'!$I$1:$I$397)))+('Lista Verificação Propriedade'!$I$1:$I$397<>\"Yes\")*1048577, 0, 0), ROW(A196))),\"\")","v":""},{"$f":"IFERROR(VLOOKUP(B200,'Lista Verificação Propriedade'!B:C,2,0),\"\")","v":""},{"$f":"IFERROR(VLOOKUP(VLOOKUP(B200,'Lista Verificação Propriedade'!B:J,9,0),DropDowns!G:H,2,0),\"\")","v":""},{"$f":"IFERROR(VLOOKUP(B200,'Lista Verificação Propriedade'!B:E,4,0),\"\")","v":""},{"$f":"IFERROR(VLOOKUP(B200,'Lista Verificação Propriedade'!B:G,6,0),\"\")","v":""},null,"",null,""]

{"sheet":"Instruções - Fomento","index":3,"n_rows":40,"n_cols":2,"rows_kept":40,"cut":false,"hidden":false,"merged":[[1,1,1,16],[38,1,38,16],[39,1,39,16]]}
[]
[null,"NAVEGAÇÃO DE FERRAMENTAS & INSTRUÇÕES DE ENTRADA"]
[]
[]
[]
[]
[]
[]
[]
[]
[]
[]
[]
[]
[]
[]
[]
[]
[]
[]
[]
[]
[]
[]
[]
[]
[]
[]
[]
[]
[]
[]
[]
[]
[]
[]
[]
[]
[]
[null,"LISTA DE VERIFICAÇÃO DE FOMENTO AGRÍCOLA & INSTRUÇÕES DE REPORTE"]

{"sheet":"Lista de Verificação de Fomento","index":4,"n_rows":326,"n_cols":10,"rows_kept":326,"cut":false,"hidden":false,"merged":[]}
[]
[null,1,"Listas de verificação da avaliação",null,"Estado/Ponto de Situação","Comentários & Documentação","Risco (1=baixo; 3=alto)",null,"Report Ident","Group"]
[null,2]
[null,3,"I. Política de Fomento e Avaliação de Capacidade",{"$f":"IF(COUNT(D5:D19)=0,\"\",ROUND(SUM(D5:D19)/COUNT(D5:D19),0))","v":""},null,null,{"$f":"IFERROR(ROUND(SUM(G5:G18)/COUNT(G5:G18),0),\"\")","v":""}]
[null,4,null,{"$f":"IF(OR(E5=\"\",E5=\"(select option)\"),\"\",VLOOKUP(E5,DropDowns!C:D,2,0))","v":""}]
[null,5,"1.1 Política de Fomento"]
[null,6,"1.1.1 As políticas de direitos fundiários e da Avaliação de Impacto Social e Ambiental (AISA) da empresa aplicam-se a esquemas de fomento ou a outros modelos de negócios alternativos (além da propriedade que a empresa possui, arrenda ou usa directamente)?",{"$f":"IF(OR(E7=\"\",E7=\"(seleccione a opção)\"),\"\",IF(VLOOKUP(E7,DropDowns!B:D,3,0)=0,\"\",VLOOKUP(E7,DropDowns!B:D,3,0)))","v":""},"(seleccione a opção)",null,"(seleccione o nível)",null,{"$f":"IF(OR(AND(D7<3,E7<>\"N/A\" ),AND(G7>1,G7<>\"(seleccione o nível)\",E7<>\"N/A\")),\"Yes\",\"No\")","v":"No"},1]
[null,7,"1.1.2 Os organismos subcontratados (por exemplo, associações de produtores, trusts, cooperativas etc.) e agricultores estão cientes das políticas da empresa, incluindo se elas se aplicam a eles?",{"$f":"IF(OR(E8=\"\",E8=\"(seleccione a opção)\"),\"\",IF(VLOOKUP(E8,DropDowns!B:D,3,0)=0,\"\",VLOOKUP(E8,DropDowns!B:D,3,0)))","v":""},"(seleccione a opção)",null,"(seleccione o nível)",null,{"$f":"IF(OR(AND(D8<3,E8<>\"N/A\" ),AND(G8>1,G8<>\"(seleccione o nível)\",E8<>\"N/A\")),\"Yes\",\"No\")","v":"No"},1]
[null,8,"1.1.3 O direito à terra e as políticas da AISA são referenciados em documentos de governação corporativa e acordos entre os organismos subcontratados, os agricultores subcontratados e a empresa (por exemplo, estatutos, contratos de fornecimento de cana, etc.)?",{"$f":"IF(OR(E9=\"\",E9=\"(seleccione a opção)\"),\"\",IF(VLOOKUP(E9,DropDowns!B:D,3,0)=0,\"\",VLOOKUP(E9,DropDowns!B:D,3,0)))","v":""},"(seleccione a opção)",null,"(seleccione o nível)",null,"No",1]
[null,9,"1.1.4 As referências nos acordos entre os organismos subcontratados, os agricultores subcontratados e a empresa incluem quais ações a empresa tomará em resposta ao incumprimento (por exemplo, avisos, rescisão de contrato, etc.)?",{"$f":"IF(OR(E10=\"\",E10=\"(seleccione a opção)\"),\"\",IF(VLOOKUP(E10,DropDowns!B:D,3,0)=0,\"\",VLOOKUP(E10,DropDowns!B:D,3,0)))","v":""},"(seleccione a opção)",null,"(seleccione o nível)",null,"No",1]
[null,10,"1.1.5 A estratégia de desenvolvimento da empresa aborda como sensibilizar os produtores em relação aos direitos fundiários e às políticas da AISA?",{"$f":"IF(OR(E11=\"\",E11=\"(seleccione a opção)\"),\"\",IF(VLOOKUP(E11,DropDowns!B:D,3,0)=0,\"\",VLOOKUP(E11,DropDowns!B:D,3,0)))","v":""},"(seleccione a opção)",null,"(seleccione o nível)",null,"No",1]
[null,11,"1.1.6 A estratégia dos cultivadores subcontratados aborda como incentivar e fazer cumprir os órgãos de produtores externos e a conformidade dos agricultores com seus direitos fundiários e com as políticas da AISA?",{"$f":"IF(OR(E12=\"\",E12=\"(seleccione a opção)\"),\"\",IF(VLOOKUP(E12,DropDowns!B:D,3,0)=0,\"\",VLOOKUP(E12,DropDowns!B:D,3,0)))","v":""},"(seleccione a opção)",null,"(seleccione o nível)",null,"No",1]
[null,12,null,{"$f":"IF(OR(E13=\"\",E13=\"(select option)\"),\"\",VLOOKUP(E13,DropDowns!C:D,2,0))","v":""},null,null,null,null,"No",1]
[null,13,null,{"$f":"IF(OR(E14=\"\",E14=\"(select option)\"),\"\",VLOOKUP(E14,DropDowns!C:D,2,0))","v":""},null,null,null,null,"No",1]
[null,14,"1.2 Capacidade do Pessoal",{"$f":"IF(OR(E15=\"\",E15=\"(select option)\"),\"\",VLOOKUP(E15,DropDowns!C:D,2,0))","v":""},null,null,null,null,"No",1]
[null,15,"1.2.1 A empresa possui uma equipa cujos deveres incluem monitorar se os esquemas de fomento são estabelecidos e gerenciados de acordo com a política de terras da empresa?",{"$f":"IF(OR(E16=\"\",E16=\"(seleccione a opção)\"),\"\",IF(VLOOKUP(E16,DropDowns!B:D,3,0)=0,\"\",VLOOKUP(E16,DropDowns!B:D,3,0)))","v":""},"(seleccione a opção)",null,"(seleccione o nível)",null,"No",1]
[null,16,"1.2.2 O pessoal relevante tem tempo e recursos para se envolver com as partes interessadas relevantes para estabelecer ou gerenciar esquemas de outgrower (por exemplo, fundos fiduciários, associações, cooperativas, agricultores, líderes e membros da comunidade, governo local, etc.)?",{"$f":"IF(OR(E17=\"\",E17=\"(seleccione a opção)\"),\"\",IF(VLOOKUP(E17,DropDowns!B:D,3,0)=0,\"\",VLOOKUP(E17,DropDowns!B:D,3,0)))","v":""},"(seleccione a opção)",null,"(seleccione o nível)",null,"No",1]
[null,17,null,{"$f":"IF(OR(E18=\"\",E18=\"(select option)\"),\"\",VLOOKUP(E18,DropDowns!C:D,2,0))","v":""}]
[null,18,null,{"$f":"IF(OR(E19=\"\",E19=\"(select option)\"),\"\",VLOOKUP(E19,DropDowns!C:D,2,0))","v":""}]
[null,19,"II. Revisão Legal, Administrativa e Institucional",{"$f":"IF(COUNT(D21:D43)=0,\"\",ROUND(SUM(D21:D43)/COUNT(D21:D43),0))","v":""},null,null,{"$f":"IFERROR(ROUND(SUM(G21:G43)/COUNT(G21:G43),0),\"\")","v":""}]
[null,20,null,{"$f":"IF(OR(E21=\"\",E21=\"(select option)\"),\"\",VLOOKUP(E21,DropDowns!C:D,2,0))","v":""}]
[null,21,"2.1 Revisão Legal e de Políticas",{"$f":"IF(OR(E22=\"\",E22=\"(select option)\"),\"\",VLOOKUP(E22,DropDowns!C:D,2,0))","v":""}]
[null,22,"2.1.1 Existem leis ou regulamentações domésticas que regem como os esquemas de fomento devem ser estabelecidos e geridos? Essas leis são aplicadas?",{"$f":"IF(OR(E23=\"\",E23=\"(seleccione a opção)\"),\"\",IF(VLOOKUP(E23,DropDowns!B:D,3,0)=0,\"\",VLOOKUP(E23,DropDowns!B:D,3,0)))","v":""},"(seleccione a opção)",null,"(seleccione o nível)",null,{"$f":"IF(OR(AND(D23<3,E23<>\"N/A\" ),AND(G23>1,G23<>\"(seleccione o nível)\",E23<>\"N/A\")),\"Yes\",\"No\")","v":"No"},2]
[null,23,"2.1.2 Essas leis ou regulamentos fornecem protecções explícitas aos direitos humanos ou à terra? Essas leis ou regulamentos são aplicados?",{"$f":"IF(OR(E24=\"\",E24=\"(seleccione a opção)\"),\"\",IF(VLOOKUP(E24,DropDowns!B:D,3,0)=0,\"\",VLOOKUP(E24,DropDowns!B:D,3,0)))","v":""},"(seleccione a opção)",null,"(seleccione o nível)",null,"No",2]
[null,24,"2.1.3 As leis ou regulamentos domésticos reconhecem os direitos de posse da terra, incluindo direitos consuetudinários e informais de indivíduos e grupos? Essas leis são aplicadas?",{"$f":"IF(OR(E25=\"\",E25=\"(seleccione a opção)\"),\"\",IF(VLOOKUP(E25,DropDowns!B:D,3,0)=0,\"\",VLOOKUP(E25,DropDowns!B:D,3,0)))","v":""},"(seleccione a opção)",null,"(seleccione o nível)",null,"No",2]
[null,25,"2.1.4 Existem restrições à aplicação de leis ou regulamentos internos dentro da área do projecto de investimento que possam afectar os direitos daqueles que vivem e trabalham lá?",{"$f":"IF(OR(E26=\"\",E26=\"(seleccione a opção)\"),\"\",IF(VLOOKUP(E26,DropDowns!B:D,3,0)=0,\"\",VLOOKUP(E26,DropDowns!B:D,3,0)))","v":""},"(seleccione a opção)",null,"(seleccione o nível)",null,"No",2]
[null,26,"2.1.5 Existem leis domésticas relativas à expropriação? Se sim, quais são os requisitos que o governo deve reunir para expropriar a terra?",{"$f":"IF(OR(E27=\"\",E27=\"(seleccione a opção)\"),\"\",IF(VLOOKUP(E27,DropDowns!B:D,3,0)=0,\"\",VLOOKUP(E27,DropDowns!B:D,3,0)))","v":""},"(seleccione a opção)",null,"(seleccione o nível)",null,"No",2]
[null,27,"2.1.6 O estabelecimento ou implementação do(s) esquema(s) de fomento ou outros modelos de negócios alternativos exigem expropriação e reassentamento involuntário das comunidades que vivem dentro e ao redor da área do projecto?",{"$f":"IF(OR(E28=\"\",E28=\"(seleccione a opção)\"),\"\",IF(VLOOKUP(E28,DropDowns!B:D,3,0)=0,\"\",VLOOKUP(E28,DropDowns!B:D,3,0)))","v":""},"(seleccione a opção)",null,"(seleccione o nível)",null,"No",2]
[null,28,"2.1.7 As leis domésticas exigem esquemas de fomento para realizar avaliações de impacto ambiental e / ou social (AISA) antes de estabelecer o esquema?",{"$f":"IF(OR(E29=\"\",E29=\"(seleccione a opção)\"),\"\",IF(VLOOKUP(E29,DropDowns!B:D,3,0)=0,\"\",VLOOKUP(E29,DropDowns!B:D,3,0)))","v":""},"(seleccione a opção)",null,"(seleccione o nível)",null,"No",2]
[null,29,"2.1.8 Se sim, as leis especificam quando as AISA são necessárias (por exemplo, antes que os agricultores concordem em participar)?",{"$f":"IF(OR(E30=\"\",E30=\"(seleccione a opção)\"),\"\",IF(VLOOKUP(E30,DropDowns!B:D,3,0)=0,\"\",VLOOKUP(E30,DropDowns!B:D,3,0)))","v":""},"(seleccione a opção)",null,"(seleccione o nível)",null,"No",2]
[null,30,"2.1.9 As leis exigem a medição dos impactos relacionados à segurança da posse da terra, segurança alimentar e direitos humanos?",{"$f":"IF(OR(E31=\"\",E31=\"(seleccione a opção)\"),\"\",IF(VLOOKUP(E31,DropDowns!B:D,3,0)=0,\"\",VLOOKUP(E31,DropDowns!B:D,3,0)))","v":""},"(seleccione a opção)",null,"(seleccione o nível)",null,"No",2]
[null,31,"2.1.10 De acordo com as leis, políticas e costumes actuais, existem mecanismos de reclamações disponíveis para organismos subcontratados e agricultores?",{"$f":"IF(OR(E32=\"\",E32=\"(seleccione a opção)\"),\"\",IF(VLOOKUP(E32,DropDowns!B:D,3,0)=0,\"\",VLOOKUP(E32,DropDowns!B:D,3,0)))","v":""},"(seleccione a opção)",null,"(seleccione o nível)",null,"No",2]
[null,32,"2.1.11 Se sim, esses mecanismos de reclamações são acessíveis, funcionais e justos?",{"$f":"IF(OR(E33=\"\",E33=\"(seleccione a opção)\"),\"\",IF(VLOOKUP(E33,DropDowns!B:D,3,0)=0,\"\",VLOOKUP(E33,DropDowns!B:D,3,0)))","v":""},"(seleccione a opção)",null,"(seleccione o nível)",null,"No",2]
[null,33,null,{"$f":"IF(OR(E34=\"\",E34=\"(select option)\"),\"\",VLOOKUP(E34,DropDowns!C:D,2,0))","v":""},null,null,null,null,"No",2]
[null,34,null,{"$f":"IF(OR(E35=\"\",E35=\"(select option)\"),\"\",VLOOKUP(E35,DropDowns!C:D,2,0))","v":""},null,null,null,null,"No",2]
[null,35,"2.2 Revisão Administrativa",{"$f":"IF(OR(E36=\"\",E36=\"(select option)\"),\"\",VLOOKUP(E36,DropDowns!C:D,2,0))","v":""},null,null,null,null,"No",2]
[null,36,"2.2.1 Existem registos que documentam os direitos sobre a terra na área do projecto?",{"$f":"IF(OR(E37=\"\",E37=\"(seleccione a opção)\"),\"\",IF(VLOOKUP(E37,DropDowns!B:D,3,0)=0,\"\",VLOOKUP(E37,DropDowns!B:D,3,0)))","v":""},"(seleccione a opção)",null,"(seleccione o nível)",null,"No",2]
[null,37,"2.2.2 Esses registos documentam direitos estatutários, consuetudinários e secundários?",{"$f":"IF(OR(E38=\"\",E38=\"(seleccione a opção)\"),\"\",IF(VLOOKUP(E38,DropDowns!B:D,3,0)=0,\"\",VLOOKUP(E38,DropDowns!B:D,3,0)))","v":""},"(seleccione a opção)",null,"(seleccione o nível)",null,"No",2]
[null,38,"2.2.3 Esses documentos fornecem direitos partilhados ou conjuntos a serem documentados?",{"$f":"IF(OR(E39=\"\",E39=\"(seleccione a opção)\"),\"\",IF(VLOOKUP(E39,DropDowns!B:D,3,0)=0,\"\",VLOOKUP(E39,DropDowns!B:D,3,0)))","v":""},"(seleccione a opção)",null,"(seleccione o nível)",null,"No",2]
[null,39,"2.2.4 As partes interessadas relevantes (a empresa, o governo, as comunidades) têm acesso a esses registros?",{"$f":"IF(OR(E40=\"\",E40=\"(seleccione a opção)\"),\"\",IF(VLOOKUP(E40,DropDowns!B:D,3,0)=0,\"\",VLOOKUP(E40,DropDowns!B:D,3,0)))","v":""},"(seleccione a opção)",null,"(seleccione o nível)",null,"No",2]
[null,40,"2.2.5 Existe documentação que verifica a legitimidade das associações de produtores e os direitos dos agricultores de possuir, arrendar, usar ou ocupar a terra de outra forma?",{"$f":"IF(OR(E41=\"\",E41=\"(seleccione a opção)\"),\"\",IF(VLOOKUP(E41,DropDowns!B:D,3,0)=0,\"\",VLOOKUP(E41,DropDowns!B:D,3,0)))","v":""},"(seleccione a opção)",null,"(seleccione o nível)",null,"No",2]
[null,41,"2.2.6 Existe documentação para sustentar que a terra foi legitimamente identificada e alocada ao esquema de agricultores subcontratados?",{"$f":"IF(OR(E42=\"\",E42=\"(seleccione a opção)\"),\"\",IF(VLOOKUP(E42,DropDowns!B:D,3,0)=0,\"\",VLOOKUP(E42,DropDowns!B:D,3,0)))","v":""},"(seleccione a opção)",null,"(seleccione o nível)",null,"No",2]
[null,42,null,{"$f":"IF(OR(E43=\"\",E43=\"(select option)\"),\"\",VLOOKUP(E43,DropDowns!C:D,2,0))","v":""},null,null,null,null,"No",2]
[null,43,null,{"$f":"IF(OR(E44=\"\",E44=\"(select option)\"),\"\",VLOOKUP(E44,DropDowns!C:D,2,0))","v":""},null,null,null,null,"No",2]
[null,44,"2.3 Revisão Institucional",{"$f":"IF(OR(E45=\"\",E45=\"(select option)\"),\"\",VLOOKUP(E45,DropDowns!C:D,2,0))","v":""},null,null,null,null,"No",2]
[null,45,"2.3.1 Existem autoridades legais, administrativas ou consuetudinárias que actuem como garantes dos direitos fundiários e / ou regras de gestão colectiva?",{"$f":"IF(OR(E46=\"\",E46=\"(seleccione a opção)\"),\"\",IF(VLOOKUP(E46,DropDowns!B:D,3,0)=0,\"\",VLOOKUP(E46,DropDowns!B:D,3,0)))","v":""},"(seleccione a opção)",null,"(seleccione o nível)",null,"No",2]
[null,46,"2.3.2 Se sim, essas autoridades têm capacidade suficiente para atuar como fiadores?",{"$f":"IF(OR(E47=\"\",E47=\"(seleccione a opção)\"),\"\",IF(VLOOKUP(E47,DropDowns!B:D,3,0)=0,\"\",VLOOKUP(E47,DropDowns!B:D,3,0)))","v":""},"(seleccione a opção)",null,"(seleccione o nível)",null,"No",2]
[null,47,"2.3.3 Existem conflitos em relação à capacidade do garante de proteger efectivamente os direitos e usos da terra?",{"$f":"IF(OR(E48=\"\",E48=\"(seleccione a opção)\"),\"\",IF(VLOOKUP(E48,DropDowns!B:D,3,0)=0,\"\",VLOOKUP(E48,DropDowns!B:D,3,0)))","v":""},"(seleccione a opção)",null,"(seleccione o nível)",null,"No",2]
[null,48,null,{"$f":"IF(OR(E49=\"\",E49=\"(select option)\"),\"\",VLOOKUP(E49,DropDowns!C:D,2,0))","v":""}]
[null,49,null,{"$f":"IF(OR(E50=\"\",E50=\"(select option)\"),\"\",VLOOKUP(E50,DropDowns!C:D,2,0))","v":""}]
[null,50,"III. Avaliações de Impacto",{"$f":"IF(COUNT(D52:D78)=0,\"\",ROUND(SUM(D52:D78)/COUNT(D52:D78),0))","v":""}]
[null,51,null,{"$f":"IF(OR(E52=\"\",E52=\"(select option)\"),\"\",VLOOKUP(E52,DropDowns!C:D,2,0))","v":""}]
[null,52,"3.1 Avaliação de Posse da Terra",{"$f":"IF(OR(E53=\"\",E53=\"(select option)\"),\"\",VLOOKUP(E53,DropDowns!C:D,2,0))","v":""}]
[null,53,"3.1.1 Como o esquema de fomento ou outro modelo de negócio alternativo adquiriu direitos de uso ou de outra forma ocupar a terra?",{"$f":"IF(OR(E54=\"\",E54=\"(seleccione a opção)\"),\"\",IF(VLOOKUP(E54,DropDowns!B:D,3,0)=0,\"\",VLOOKUP(E54,DropDowns!B:D,3,0)))","v":""},"(seleccione a opção)",null,"(seleccione o nível)",null,{"$f":"IF(OR(AND(D54<3,E54<>\"N/A\" ),AND(G54>1,G54<>\"(seleccione o nível)\",E54<>\"N/A\")),\"Yes\",\"No\")","v":"No"},3]
[null,54,"3.1.2 Será que o desenvolvimento do esquema de fomento envolveu ou não a expropriação de terra pelo governo e o deslocamento involuntário de pessoas?",{"$f":"IF(OR(E55=\"\",E55=\"(seleccione a opção)\"),\"\",IF(VLOOKUP(E55,DropDowns!B:D,3,0)=0,\"\",VLOOKUP(E55,DropDowns!B:D,3,0)))","v":""},"(seleccione a opção)",null,"(seleccione o nível)",null,"No",3]
[null,55,"3.1.3 A empresa mapeou todos os detentores de direitos fundiários e usuários afectados pelo estabelecimento do esquema de fomento?",{"$f":"IF(OR(E56=\"\",E56=\"(seleccione a opção)\"),\"\",IF(VLOOKUP(E56,DropDowns!B:D,3,0)=0,\"\",VLOOKUP(E56,DropDowns!B:D,3,0)))","v":""},"(seleccione a opção)",null,"(seleccione o nível)",null,"No",3]
[null,56,"3.1.4 O mapeamento capta o espectro de direitos sobre a terra de todos os proprietários e usuários da terra, incluindo os direitos estatutários, consuetudinários, sazonais, secundários, sobrepostos e outros direitos de uso?",{"$f":"IF(OR(E57=\"\",E57=\"(seleccione a opção)\"),\"\",IF(VLOOKUP(E57,DropDowns!B:D,3,0)=0,\"\",VLOOKUP(E57,DropDowns!B:D,3,0)))","v":""},"(seleccione a opção)",null,"(seleccione o nível)",null,"No",3]
[null,57,"3.1.5 O mapeamento capta os direitos e usos da terra de mulheres, minorias e outros grupos vulneráveis?",{"$f":"IF(OR(E58=\"\",E58=\"(seleccione a opção)\"),\"\",IF(VLOOKUP(E58,DropDowns!B:D,3,0)=0,\"\",VLOOKUP(E58,DropDowns!B:D,3,0)))","v":""},"(seleccione a opção)",null,"(seleccione o nível)",null,"No",3]
[null,58,"3.1.6 A empresa procurou identificar quaisquer questões latentes ou históricas sobre a terra ou conflitos na área de investimento? E a empresa determinou se o investimento poderia exasperar tais questões ou conflitos?",{"$f":"IF(OR(E59=\"\",E59=\"(seleccione a opção)\"),\"\",IF(VLOOKUP(E59,DropDowns!B:D,3,0)=0,\"\",VLOOKUP(E59,DropDowns!B:D,3,0)))","v":""},"(seleccione a opção)",null,"(seleccione o nível)",null,"No",3]
[null,59,"3.1.7 Se sim, a empresa desenvolveu um plano de engajamento ou mitigação para resolver ou evitar o agravamento desses problemas ou conflitos?",{"$f":"IF(OR(E60=\"\",E60=\"(seleccione a opção)\"),\"\",IF(VLOOKUP(E60,DropDowns!B:D,3,0)=0,\"\",VLOOKUP(E60,DropDowns!B:D,3,0)))","v":""},"(seleccione a opção)",null,"(seleccione o nível)",null,"No",3]
[null,60,"3.1.8 A empresa avaliou os impactos sobre os direitos e usos da terra resultantes do estabelecimento do esquema de fomento, incluindo direitos informais, como os direitos das mulheres, jovens e / ou grupos vulneráveis? A avaliação deve ocorrer antes que o esquema de agricultores subcontratados seja estabelecido.",{"$f":"IF(OR(E61=\"\",E61=\"(seleccione a opção)\"),\"\",IF(VLOOKUP(E61,DropDowns!B:D,3,0)=0,\"\",VLOOKUP(E61,DropDowns!B:D,3,0)))","v":""},"(seleccione a opção)",null,"(seleccione o nível)",null,"No",3]
[null,61,"3.1.9 A empresa desenvolveu uma política ou estratégia para mitigar ou evitar impactos negativos?",{"$f":"IF(OR(E62=\"\",E62=\"(seleccione a opção)\"),\"\",IF(VLOOKUP(E62,DropDowns!B:D,3,0)=0,\"\",VLOOKUP(E62,DropDowns!B:D,3,0)))","v":""},"(seleccione a opção)",null,"(seleccione o nível)",null,"No",3]
[null,62,"3.1.10 O projecto e/ou a configuração da área concessionada mudaram para mitigar esses impactos?",{"$f":"IF(OR(E63=\"\",E63=\"(seleccione a opção)\"),\"\",IF(VLOOKUP(E63,DropDowns!B:D,3,0)=0,\"\",VLOOKUP(E63,DropDowns!B:D,3,0)))","v":""},"(seleccione a opção)",null,"(seleccione o nível)",null,"No",3]
[null,63,"3.1.11 As pessoas cujos direitos legítimos à terra foram afectados receberam uma compensação imediata?",{"$f":"IF(OR(E64=\"\",E64=\"(seleccione a opção)\"),\"\",IF(VLOOKUP(E64,DropDowns!B:D,3,0)=0,\"\",VLOOKUP(E64,DropDowns!B:D,3,0)))","v":""},"(seleccione a opção)",null,"(seleccione o nível)",null,"No",3]
[null,64,"3.1.12 Se sim, a compensação era justa, baseada na avaliação apropriada de valores perdidos de mercado e valores não mensuráveis? ",{"$f":"IF(OR(E65=\"\",E65=\"(seleccione a opção)\"),\"\",IF(VLOOKUP(E65,DropDowns!B:D,3,0)=0,\"\",VLOOKUP(E65,DropDowns!B:D,3,0)))","v":""},"(seleccione a opção)",null,"(seleccione o nível)",null,"No",3]
[null,65,"3.1.13 A empresa possui mecanismos para monitorizar e mitigar os impactos ao longo do ciclo de vida do projecto?",{"$f":"IF(OR(E66=\"\",E66=\"(seleccione a opção)\"),\"\",IF(VLOOKUP(E66,DropDowns!B:D,3,0)=0,\"\",VLOOKUP(E66,DropDowns!B:D,3,0)))","v":""},"(seleccione a opção)",null,"(seleccione o nível)",null,"No",3]
[null,66,null,{"$f":"IF(OR(E67=\"\",E67=\"(select option)\"),\"\",IF(VLOOKUP(E67,DropDowns!B:D,3,0)=0,\"\",VLOOKUP(E67,DropDowns!B:D,3,0)))","v":""},null,null,null,null,"No"]
[null,67,null,{"$f":"IF(OR(E68=\"\",E68=\"(select option)\"),\"\",IF(VLOOKUP(E68,DropDowns!B:D,3,0)=0,\"\",VLOOKUP(E68,DropDowns!B:D,3,0)))","v":""},null,null,null,null,"No"]
[null,68,"3.2 Avaliação de Impacto Social e Ambiental (AISA)",{"$f":"IF(OR(E69=\"\",E69=\"(select option)\"),\"\",IF(VLOOKUP(E69,DropDowns!B:D,3,0)=0,\"\",VLOOKUP(E69,DropDowns!B:D,3,0)))","v":""},null,null,null,null,"No"]
[null,69,"3.2.1 A empresa avaliou os impactos ambientais e sociais directos e indirectos de curto e longo prazo de seu investimento?",{"$f":"IF(OR(E70=\"\",E70=\"(seleccione a opção)\"),\"\",IF(VLOOKUP(E70,DropDowns!B:D,3,0)=0,\"\",VLOOKUP(E70,DropDowns!B:D,3,0)))","v":""},"(seleccione a opção)",null,"(seleccione o nível)",null,"No",3]
[null,70,"3.2.2 A empresa desenvolveu um plano de mitigação para minimizar ou evitar impactos ambientais e sociais?",{"$f":"IF(OR(E71=\"\",E71=\"(seleccione a opção)\"),\"\",IF(VLOOKUP(E71,DropDowns!B:D,3,0)=0,\"\",VLOOKUP(E71,DropDowns!B:D,3,0)))","v":""},"(seleccione a opção)",null,"(seleccione o nível)",null,"No",3]
[null,71,"3.2.3 Como parte da AISA, a empresa avaliou os impactos de curto e longo prazo, diretos e indiretos, sobre a segurança alimentar nas comunidades impactadas pelo investimento?",{"$f":"IF(OR(E72=\"\",E72=\"(seleccione a opção)\"),\"\",IF(VLOOKUP(E72,DropDowns!B:D,3,0)=0,\"\",VLOOKUP(E72,DropDowns!B:D,3,0)))","v":""},"(seleccione a opção)",null,"(seleccione o nível)",null,"No",3]
[null,72,"3.2.4 A empresa desenvolveu um plano de mitigação para minimizar ou evitar riscos de segurança alimentar?",{"$f":"IF(OR(E73=\"\",E73=\"(seleccione a opção)\"),\"\",IF(VLOOKUP(E73,DropDowns!B:D,3,0)=0,\"\",VLOOKUP(E73,DropDowns!B:D,3,0)))","v":""},"(seleccione a opção)",null,"(seleccione o nível)",null,"No",3]
[null,73,"3.2.5 A empresa considerou mecanismos de melhorar a segurança alimentar?",{"$f":"IF(OR(E74=\"\",E74=\"(seleccione a opção)\"),\"\",IF(VLOOKUP(E74,DropDowns!B:D,3,0)=0,\"\",VLOOKUP(E74,DropDowns!B:D,3,0)))","v":""},"(seleccione a opção)",null,"(seleccione o nível)",null,"No",3]
[null,74,"3.2.6 Como parte da AISA, a empresa avaliou os impactos do investimento sobre os direitos humanos?",{"$f":"IF(OR(E75=\"\",E75=\"(seleccione a opção)\"),\"\",IF(VLOOKUP(E75,DropDowns!B:D,3,0)=0,\"\",VLOOKUP(E75,DropDowns!B:D,3,0)))","v":""},"(seleccione a opção)",null,"(seleccione o nível)",null,"No",3]
[null,75,"3.2.7 A empresa desenvolveu um plano para mitigar os impactos sobre os direitos humanos?",{"$f":"IF(OR(E76=\"\",E76=\"(seleccione a opção)\"),\"\",IF(VLOOKUP(E76,DropDowns!B:D,3,0)=0,\"\",VLOOKUP(E76,DropDowns!B:D,3,0)))","v":""},"(seleccione a opção)",null,"(seleccione o nível)",null,"No",3]
[null,76,"3.2.8 A empresa possui mecanismos para monitorizar e mitigar os impactos ao longo do ciclo de vida do projecto?",{"$f":"IF(OR(E77=\"\",E77=\"(seleccione a opção)\"),\"\",IF(VLOOKUP(E77,DropDowns!B:D,3,0)=0,\"\",VLOOKUP(E77,DropDowns!B:D,3,0)))","v":""},"(seleccione a opção)",null,"(seleccione o nível)",null,"No",3]
[null,77,null,{"$f":"IF(OR(E78=\"\",E78=\"(select option)\"),\"\",VLOOKUP(E78,DropDowns!C:D,2,0))","v":""}]
[null,78,null,{"$f":"IF(OR(E79=\"\",E79=\"(select option)\"),\"\",VLOOKUP(E79,DropDowns!C:D,2,0))","v":""}]
[null,79,"IV. Consulta e Engajamento",{"$f":"IF(COUNT(D81:D91)=0,\"\",ROUND(SUM(D81:D91)/COUNT(D81:D91),0))","v":""}]
[null,80,null,{"$f":"IF(OR(E81=\"\",E81=\"(select option)\"),\"\",VLOOKUP(E81,DropDowns!C:D,2,0))","v":""}]
[null,81,"4.1 Consulta e engajamento",{"$f":"IF(OR(E82=\"\",E82=\"(select option)\"),\"\",VLOOKUP(E82,DropDowns!C:D,2,0))","v":""}]
[null,82,"4.1.1 Todas as informações relevantes relacionadas com as operações actuais e/ou ao projecto proposto (incluindo a finalidade, escopo, impactos, cronogramas, modelo de negócios, riscos do projecto, resultados da AISA, informações contratuais) foram partilhadas com os detentores e usuários de terras afectados?",{"$f":"IF(OR(E83=\"\",E83=\"(seleccione a opção)\"),\"\",IF(VLOOKUP(E83,DropDowns!B:D,3,0)=0,\"\",VLOOKUP(E83,DropDowns!B:D,3,0)))","v":""},"(seleccione a opção)",null,"(seleccione o nível)",null,{"$f":"IF(OR(AND(D83<3,E83<>\"N/A\" ),AND(G83>1,G83<>\"(seleccione o nível)\",E83<>\"N/A\")),\"Yes\",\"No\")","v":"No"},4]
[null,83,"4.1.2 Was all relevant information shared in an accessible manner (e.g., in local languages, in a timely manner, transparently, at accessible times and places, at appropriate venues, etc.)?",{"$f":"IF(OR(E84=\"\",E84=\"(seleccione a opção)\"),\"\",IF(VLOOKUP(E84,DropDowns!B:D,3,0)=0,\"\",VLOOKUP(E84,DropDowns!B:D,3,0)))","v":""},"(seleccione a opção)",null,"(seleccione o nível)",null,"No",4]
[null,84,"4.1.3 A empresa tomou medidas para ajudar as comunidades e outras partes interessadas a desenvolver capacidade suficiente para se engajar em consultas significativas e justas?",{"$f":"IF(OR(E85=\"\",E85=\"(seleccione a opção)\"),\"\",IF(VLOOKUP(E85,DropDowns!B:D,3,0)=0,\"\",VLOOKUP(E85,DropDowns!B:D,3,0)))","v":""},"(seleccione a opção)",null,"(seleccione o nível)",null,"No",4]
[null,85,"4.1.4 A empresa desenvolveu um plano de engajamento de partes interessadas que inclui o engajamento com comunidades em todos os níveis e incluindo mulheres e outros grupos vulneráveis (por exemplo, pastores de gado, comunidades locais, etc.)?",{"$f":"IF(OR(E86=\"\",E86=\"(seleccione a opção)\"),\"\",IF(VLOOKUP(E86,DropDowns!B:D,3,0)=0,\"\",VLOOKUP(E86,DropDowns!B:D,3,0)))","v":""},"(seleccione a opção)",null,"(seleccione o nível)",null,"No",4]
[null,86,"4.1.5 A empresa realizou consultas com detentores de direitos sobre a terra e usuários durante as fases críticas do processo de desenvolvimento do esquema de fomento (por exemplo, antes do escopo do projecto começar, após os resultados da AISA serem disseminados, antes das negociações, etc.)? ",{"$f":"IF(OR(E87=\"\",E87=\"(seleccione a opção)\"),\"\",IF(VLOOKUP(E87,DropDowns!B:D,3,0)=0,\"\",VLOOKUP(E87,DropDowns!B:D,3,0)))","v":""},"(seleccione a opção)",null,"(seleccione o nível)",null,"No",4]
[null,87,"4.1.6 Existem mecanismos (por exemplo, um comitê de supervisão com mandato e com recursos suficientes que inclua representantes das partes interessadas) para facilitar as linhas de comunicação bidirecionais entre as comunidades, a empresa e o governo?",{"$f":"IF(OR(E88=\"\",E88=\"(seleccione a opção)\"),\"\",IF(VLOOKUP(E88,DropDowns!B:D,3,0)=0,\"\",VLOOKUP(E88,DropDowns!B:D,3,0)))","v":""},"(seleccione a opção)",null,"(seleccione o nível)",null,"No",4]
[null,88,"4.1.7 Listar/Descrever esses mecanismos",{"$f":"IF(OR(E89=\"\",E89=\"(seleccione a opção)\"),\"\",IF(VLOOKUP(E89,DropDowns!B:D,3,0)=0,\"\",VLOOKUP(E89,DropDowns!B:D,3,0)))","v":""},"(seleccione a opção)",null,"(seleccione o nível)",null,"No",4]
[null,89,"4.1.8 A empresa publica toda a informação relevante que não écomercialmente confidencial  para as partes interessadas afectadas e o público em todas as fases do projecto, incluindo informações contratuais?",{"$f":"IF(OR(E90=\"\",E90=\"(seleccione a opção)\"),\"\",IF(VLOOKUP(E90,DropDowns!B:D,3,0)=0,\"\",VLOOKUP(E90,DropDowns!B:D,3,0)))","v":""},"(seleccione a opção)",null,"(seleccione o nível)",null,"No",4]
[null,90,null,{"$f":"IF(OR(E91=\"\",E91=\"(select option)\"),\"\",VLOOKUP(E91,DropDowns!C:D,2,0))","v":""}]
[null,91,null,{"$f":"IF(OR(E92=\"\",E92=\"(select option)\"),\"\",VLOOKUP(E92,DropDowns!C:D,2,0))","v":""}]
[null,92,"V. Contratação e Acordos",{"$f":"IF(COUNT(D94:D115)=0,\"\",ROUND(SUM(D94:D115)/COUNT(D94:D115),0))","v":""}]
[null,93,null,{"$f":"IF(OR(E94=\"\",E94=\"(select option)\"),\"\",VLOOKUP(E94,DropDowns!C:D,2,0))","v":""}]
[null,94,"5.1 Contratação e Acordos"]
[null,95,"5.1.1 Os acordos entre as partes relevantes (por exemplo, a empresa, os organismos subcontratados, os agricultores subcontratados, etc.) estabelecem claramente todos os acordos e atribuições de obrigações em relação às obrigações sociais e ambientais para abordar os resultados da AISA e o envolvimento subsequente?",{"$f":"IF(OR(E96=\"\",E96=\"(seleccione a opção)\"),\"\",IF(VLOOKUP(E96,DropDowns!B:D,3,0)=0,\"\",VLOOKUP(E96,DropDowns!B:D,3,0)))","v":""},"(seleccione a opção)",null,"(seleccione o nível)",null,{"$f":"IF(OR(AND(D96<3,E96<>\"N/A\" ),AND(G96>1,G96<>\"(seleccione o nível)\",E96<>\"N/A\")),\"Yes\",\"No\")","v":"No"},5]
[null,96,"5.1.2 O contrato inclui uma provisão para relatar a implementação do plano de mitigação de impacto?",{"$f":"IF(OR(E97=\"\",E97=\"(seleccione a opção)\"),\"\",IF(VLOOKUP(E97,DropDowns!B:D,3,0)=0,\"\",VLOOKUP(E97,DropDowns!B:D,3,0)))","v":""},"(seleccione a opção)",null,"(seleccione o nível)",null,"No",5]
[null,97,"5.1.3 Se sim, os relatórios são tornados públicos e são acessíveis às comunidades afectadas?",{"$f":"IF(OR(E98=\"\",E98=\"(seleccione a opção)\"),\"\",IF(VLOOKUP(E98,DropDowns!B:D,3,0)=0,\"\",VLOOKUP(E98,DropDowns!B:D,3,0)))","v":""},"(seleccione a opção)",null,"(seleccione o nível)",null,"No",5]
[null,98,"5.1.4 Os contratos relevantes reflectem acordos de consenso alcançados por meio de negociações e consultas com detentores de direitos?",{"$f":"IF(OR(E99=\"\",E99=\"(seleccione a opção)\"),\"\",IF(VLOOKUP(E99,DropDowns!B:D,3,0)=0,\"\",VLOOKUP(E99,DropDowns!B:D,3,0)))","v":""},"(seleccione a opção)",null,"(seleccione o nível)",null,"No",5]
[null,99,"5.1.5 Os contratos relevantes incluem cláusulas que garantem o uso eficiente e sustentável dos recursos naturais, em particular a água?",{"$f":"IF(OR(E100=\"\",E100=\"(seleccione a opção)\"),\"\",IF(VLOOKUP(E100,DropDowns!B:D,3,0)=0,\"\",VLOOKUP(E100,DropDowns!B:D,3,0)))","v":""},"(seleccione a opção)",null,"(seleccione o nível)",null,"No",5]
[null,100,"5.1.6 A empresa tomou medidas razoáveis para determinar se aqueles que representam a comunidade em negociações e consultas procuram proteger os melhores interesses de toda a comunidade?",{"$f":"IF(OR(E101=\"\",E101=\"(seleccione a opção)\"),\"\",IF(VLOOKUP(E101,DropDowns!B:D,3,0)=0,\"\",VLOOKUP(E101,DropDowns!B:D,3,0)))","v":""},"(seleccione a opção)",null,"(seleccione o nível)",null,"No",5]
[null,101,"5.1.7 A empresa realizou negociações e consultas com detentores de direitos de terra identificados e usuários antes de assinar os contratos?",{"$f":"IF(OR(E102=\"\",E102=\"(seleccione a opção)\"),\"\",IF(VLOOKUP(E102,DropDowns!B:D,3,0)=0,\"\",VLOOKUP(E102,DropDowns!B:D,3,0)))","v":""},"(seleccione a opção)",null,"(seleccione o nível)",null,"No",5]
[null,102,"5.1.8 As negociações e consultas abordaram os interesses e direitos das mulheres e outros grupos vulneráveis?",{"$f":"IF(OR(E103=\"\",E103=\"(seleccione a opção)\"),\"\",IF(VLOOKUP(E103,DropDowns!B:D,3,0)=0,\"\",VLOOKUP(E103,DropDowns!B:D,3,0)))","v":""},"(seleccione a opção)",null,"(seleccione o nível)",null,"No",5]
[null,103,"5.1.9 As negociações ocorreram depois que informações relevantes relacionadas ao desenvolvimento do esquema de agricultores subcontratados foram compartilhadas com os titulares de direitos sobre a terra?",{"$f":"IF(OR(E104=\"\",E104=\"(seleccione a opção)\"),\"\",IF(VLOOKUP(E104,DropDowns!B:D,3,0)=0,\"\",VLOOKUP(E104,DropDowns!B:D,3,0)))","v":""},"(seleccione a opção)",null,"(seleccione o nível)",null,"No",5]
[null,104,"5.1.10 A empresa ou o organismo subcontratado (por exemplo, associações de produtores, fundos ou cooperativas) ajudaram as comunidades a obter capacidade suficiente para se envolver em negociações justas?",{"$f":"IF(OR(E105=\"\",E105=\"(seleccione a opção)\"),\"\",IF(VLOOKUP(E105,DropDowns!B:D,3,0)=0,\"\",VLOOKUP(E105,DropDowns!B:D,3,0)))","v":""},"(seleccione a opção)",null,"(seleccione o nível)",null,"No",5]
[null,105,"5.1.11 A empresa ou o corpo subcontratado (por exemplo, associações de subcontratados, fundos ou cooperativas) estabeleceram procedimentos de monitorização e avaliação para identificar a não conformidade com os termos do contrato?",{"$f":"IF(OR(E106=\"\",E106=\"(seleccione a opção)\"),\"\",IF(VLOOKUP(E106,DropDowns!B:D,3,0)=0,\"\",VLOOKUP(E106,DropDowns!B:D,3,0)))","v":""},"(seleccione a opção)",null,"(seleccione o nível)",null,"No",5]
[null,106,"5.1.12 As partes contratantes forneceram tempo e recursos suficientes para rever o contrato antes de assiná-lo? Tempo e recursos suficientes incluem tempos e meios para consultar especialistas.",{"$f":"IF(OR(E107=\"\",E107=\"(seleccione a opção)\"),\"\",IF(VLOOKUP(E107,DropDowns!B:D,3,0)=0,\"\",VLOOKUP(E107,DropDowns!B:D,3,0)))","v":""},"(seleccione a opção)",null,"(seleccione o nível)",null,"No",5]
[null,107,"5.1.13 Será que os detentores de direitos e usuários da terra têm a liberdade de dizer \"sim\" quando eles concordam ou de dizer \"não\", quando não concordam com os termos do esquema de fomento?",{"$f":"IF(OR(E108=\"\",E108=\"(seleccione a opção)\"),\"\",IF(VLOOKUP(E108,DropDowns!B:D,3,0)=0,\"\",VLOOKUP(E108,DropDowns!B:D,3,0)))","v":""},"(seleccione a opção)",null,"(seleccione o nível)",null,"No",5]
[null,108,"5.1.14 A empresa ou organismo subcontratado (por exemplo, associações de produtores, fundos ou cooperativas) obteve o Consentimento Livre, Prévio e Informado das comunidades locais afectadas?",{"$f":"IF(OR(E109=\"\",E109=\"(seleccione a opção)\"),\"\",IF(VLOOKUP(E109,DropDowns!B:D,3,0)=0,\"\",VLOOKUP(E109,DropDowns!B:D,3,0)))","v":""},"(seleccione a opção)",null,"(seleccione o nível)",null,"No",5]
[null,109,"5.1.15 Os agricultores subcontratados e outras partes relevantes têm acesso a contratos finais (por exemplo, contratos relacionados ao estabelecimento do esquema de fomento, contratos de fornecimento de cana-de-açúcar, etc.)?",{"$f":"IF(OR(E110=\"\",E110=\"(seleccione a opção)\"),\"\",IF(VLOOKUP(E110,DropDowns!B:D,3,0)=0,\"\",VLOOKUP(E110,DropDowns!B:D,3,0)))","v":""},"(seleccione a opção)",null,"(seleccione o nível)",null,"No",5]
[null,110,"5.1.16 A empresa tomou medidas razoáveis para garantir que os agricultores e outras partes relevantes saibam e compreendam os termos do contrato final?",{"$f":"IF(OR(E111=\"\",E111=\"(seleccione a opção)\"),\"\",IF(VLOOKUP(E111,DropDowns!B:D,3,0)=0,\"\",VLOOKUP(E111,DropDowns!B:D,3,0)))","v":""},"(seleccione a opção)",null,"(seleccione o nível)",null,"No",5]
[null,111,"5.1.17 De acordo com a lei e as regras consuetudinárias, os signatários do contrato têm autoridade para firmar acordos?",{"$f":"IF(OR(E112=\"\",E112=\"(seleccione a opção)\"),\"\",IF(VLOOKUP(E112,DropDowns!B:D,3,0)=0,\"\",VLOOKUP(E112,DropDowns!B:D,3,0)))","v":""},"(seleccione a opção)",null,"(seleccione o nível)",null,"No",5]
[null,112,"5.1.18 Existem conflitos existentes relacionados com a autoridade dos signatários do contrato e / ou capacidade de representar os direitos e interesses fundiários das pessoas afectadas pelo esquema de agricultores subcontratados?",{"$f":"IF(OR(E113=\"\",E113=\"(seleccione a opção)\"),\"\",IF(VLOOKUP(E113,DropDowns!B:D,3,0)=0,\"\",VLOOKUP(E113,DropDowns!B:D,3,0)))","v":""},"(seleccione a opção)",null,"(seleccione o nível)",null,"No",5]
[null,113,"5.1.19 O contrato prevê um processo baseado na empresa para que os membros da comunidade quando fazem reclamações e queixas sejam atendidas? Consulte a lista de verificação “Mecanismo de Reclamações” para orientações adicionais.",{"$f":"IF(OR(E114=\"\",E114=\"(seleccione a opção)\"),\"\",IF(VLOOKUP(E114,DropDowns!B:D,3,0)=0,\"\",VLOOKUP(E114,DropDowns!B:D,3,0)))","v":""},"(seleccione a opção)",null,"(seleccione o nível)",null,"No",5]
[null,114,null,{"$f":"IF(OR(E115=\"\",E115=\"(select option)\"),\"\",VLOOKUP(E115,DropDowns!C:D,2,0))","v":""}]
[null,115,null,{"$f":"IF(OR(E116=\"\",E116=\"(select option)\"),\"\",VLOOKUP(E116,DropDowns!C:D,2,0))","v":""}]
[null,116,"VI. Queixas, Reclamações e Suas Respostas",{"$f":"IF(COUNT(D118:D140)=0,\"\",ROUND(SUM(D118:D140)/COUNT(D118:D140),0))","v":""}]
[null,117,null,{"$f":"IF(OR(E118=\"\",E118=\"(select option)\"),\"\",VLOOKUP(E118,DropDowns!C:D,2,0))","v":""}]
[null,118,"6.1 Concepção e Mecanismo de Implementação de Queixas",{"$f":"IF(OR(E119=\"\",E119=\"(select option)\"),\"\",VLOOKUP(E119,DropDowns!C:D,2,0))","v":""}]
[null,119,"6.1.1 A empresa ou órgão relevante de desenvolvimento (por exemplo, associação de subcontratados, fundo ou cooperativa) tem um mecanismo de reclamações para disputas relacionadas com o  estabelecimento e gestão do esquema de fomento? Por favor, liste a parte responsável pelo mecanismo de reclamações.",{"$f":"IF(OR(E120=\"\",E120=\"(seleccione a opção)\"),\"\",IF(VLOOKUP(E120,DropDowns!B:D,3,0)=0,\"\",VLOOKUP(E120,DropDowns!B:D,3,0)))","v":""},"(seleccione a opção)",null,"(seleccione o nível)",null,{"$f":"IF(OR(AND(D120<3,E120<>\"N/A\" ),AND(G120>1,G120<>\"(seleccione o nível)\",E120<>\"N/A\")),\"Yes\",\"No\")","v":"No"},6]
[null,120,"6.1.2 A empresa ou órgão de desenvolvimento relevante (por exemplo, associação de agricultores, fundo ou cooperativa) alocou pessoal apropriado e recursos suficientes para projectar, implementar e gerir o seu mecanismo de reclamações?",{"$f":"IF(OR(E121=\"\",E121=\"(seleccione a opção)\"),\"\",IF(VLOOKUP(E121,DropDowns!B:D,3,0)=0,\"\",VLOOKUP(E121,DropDowns!B:D,3,0)))","v":""},"(seleccione a opção)",null,"(seleccione o nível)",null,"No",6]
[null,121,"6.1.3 A empresa ou o corpo de produtores relevantes (por exemplo, associação de subcontratados, fundo ou cooperativa) sensibilizou sua equipa sobre a importância de identificar e respeitar os direitos fundiários formais e consuetudinários, bem como o acesso ao remédio?",{"$f":"IF(OR(E122=\"\",E122=\"(seleccione a opção)\"),\"\",IF(VLOOKUP(E122,DropDowns!B:D,3,0)=0,\"\",VLOOKUP(E122,DropDowns!B:D,3,0)))","v":""},"(seleccione a opção)",null,"(seleccione o nível)",null,"No",6]
[null,122,"6.1.4 A empresa ou órgão relevante de desenvolvimento (por exemplo, associação de subcontratados, fundo ou cooperativa) consultou as principais partes interessadas (por exemplo, líderes e membros da comunidade, governo etc.) para garantir que o mecanismo de reclamações seja confiável e complementar aos procedimentos tradicionais de resolução de disputas?",{"$f":"IF(OR(E123=\"\",E123=\"(seleccione a opção)\"),\"\",IF(VLOOKUP(E123,DropDowns!B:D,3,0)=0,\"\",VLOOKUP(E123,DropDowns!B:D,3,0)))","v":""},"(seleccione a opção)",null,"(seleccione o nível)",null,"No",6]
[null,123,"6.1.5 A empresa define claramente o escopo do mecanismo de reclamações (por exemplo, tipo de reclamações e reclamantes)?",{"$f":"IF(OR(E124=\"\",E124=\"(seleccione a opção)\"),\"\",IF(VLOOKUP(E124,DropDowns!B:D,3,0)=0,\"\",VLOOKUP(E124,DropDowns!B:D,3,0)))","v":""},"(seleccione a opção)",null,"(seleccione o nível)",null,"No",6]
[null,124,"6.1.6 A empresa define claramente o escopo do mecanismo de reclamações (por exemplo, tipo de reclamações e reclamantes)?",{"$f":"IF(OR(E125=\"\",E125=\"(seleccione a opção)\"),\"\",IF(VLOOKUP(E125,DropDowns!B:D,3,0)=0,\"\",VLOOKUP(E125,DropDowns!B:D,3,0)))","v":""},"(seleccione a opção)",null,"(seleccione o nível)",null,"No",6]
[null,125,"6.1.7 O escopo do mecanismo de reclamações inclui reclamações de agricultores subcontratados contra associações subcontratadas ou outros agricultores subcontratados?",{"$f":"IF(OR(E126=\"\",E126=\"(seleccione a opção)\"),\"\",IF(VLOOKUP(E126,DropDowns!B:D,3,0)=0,\"\",VLOOKUP(E126,DropDowns!B:D,3,0)))","v":""},"(seleccione a opção)",null,"(seleccione o nível)",null,"No",6]
[null,126,"6.1.8 O mecanismo de reclamações está em conformidade com os critérios dos Princípios Orientadores de Negócios e Direitos Humanos das Nações Unidas para processos de resolução de disputas não estatais (legítimos, acessíveis, previsíveis, equitativos, transparentes, compatíveis com direitos, fonte de aprendizado contínuo, com base no diálogo e no engajamento)?",{"$f":"IF(OR(E127=\"\",E127=\"(seleccione a opção)\"),\"\",IF(VLOOKUP(E127,DropDowns!B:D,3,0)=0,\"\",VLOOKUP(E127,DropDowns!B:D,3,0)))","v":""},"(seleccione a opção)",null,"(seleccione o nível)",null,"No",6]
[null,127,"6.1.9 Terá a empresa ou o corpo de produtores relevantes (tais como, associação de sub-contratados, fundos ou cooperativas) informado  aos usuários pretendidos do mecanismo de reclamação?",{"$f":"IF(OR(E128=\"\",E128=\"(seleccione a opção)\"),\"\",IF(VLOOKUP(E128,DropDowns!B:D,3,0)=0,\"\",VLOOKUP(E128,DropDowns!B:D,3,0)))","v":""},"(seleccione a opção)",null,"(seleccione o nível)",null,"No",6]
[null,128,null,{"$f":"IF(OR(E129=\"\",E129=\"(select option)\"),\"\",VLOOKUP(E129,DropDowns!C:D,2,0))","v":""},null,null,null,null,"No",6]
[null,129,null,{"$f":"IF(OR(E130=\"\",E130=\"(select option)\"),\"\",VLOOKUP(E130,DropDowns!C:D,2,0))","v":""},null,null,null,null,"No",6]
[null,130,"6.2 Procedimentos de Recepção, Processamento e Resposta às Reclamações",{"$f":"IF(OR(E131=\"\",E131=\"(select option)\"),\"\",VLOOKUP(E131,DropDowns!C:D,2,0))","v":""},null,null,null,null,"No",6]
[null,131,"6.2.1 O mecanismo de reclamações tem procedimentos claros para receber essas reclamações?",{"$f":"IF(OR(E132=\"\",E132=\"(seleccione a opção)\"),\"\",IF(VLOOKUP(E132,DropDowns!B:D,3,0)=0,\"\",VLOOKUP(E132,DropDowns!B:D,3,0)))","v":""},"(seleccione a opção)",null,"(seleccione o nível)",null,"No",6]
[null,132,"6.2.2 O mecanismo de queixas e reclamações possui procedimentos claros para o processamento dessas queixas e reclamações?",{"$f":"IF(OR(E133=\"\",E133=\"(seleccione a opção)\"),\"\",IF(VLOOKUP(E133,DropDowns!B:D,3,0)=0,\"\",VLOOKUP(E133,DropDowns!B:D,3,0)))","v":""},"(seleccione a opção)",null,"(seleccione o nível)",null,"No",6]
[null,133,"6.2.3 O mecanismo de reclamações possui procedimentos claros para a tomada de decisão final da reclamação?",{"$f":"IF(OR(E134=\"\",E134=\"(seleccione a opção)\"),\"\",IF(VLOOKUP(E134,DropDowns!B:D,3,0)=0,\"\",VLOOKUP(E134,DropDowns!B:D,3,0)))","v":""},"(seleccione a opção)",null,"(seleccione o nível)",null,"No",6]
[null,134,null,{"$f":"IF(OR(E135=\"\",E135=\"(select option)\"),\"\",VLOOKUP(E135,DropDowns!C:D,2,0))","v":""},null,null,null,null,"No",6]
[null,135,null,{"$f":"IF(OR(E136=\"\",E136=\"(select option)\"),\"\",VLOOKUP(E136,DropDowns!C:D,2,0))","v":""},null,null,null,null,"No",6]
[null,136,"6.3 Procedimentos de Monitorização, Avaliação do Mecanismo de Queixas e Reclamações",{"$f":"IF(OR(E137=\"\",E137=\"(select option)\"),\"\",VLOOKUP(E137,DropDowns!C:D,2,0))","v":""},null,null,null,null,"No",6]
[null,137,"6.3.1 A empresa ou órgão relevante (por exemplo, associação de agricultores, fundo ou cooperativa) tem procedimentos e indicadores claros para monitorizar e avaliar o mecanismo de reclamações (por exemplo, número e tipos de reclamações, tempo médio para responder a reclamações e tomar uma decisão final, taxa de resolução, etc.)?",{"$f":"IF(OR(E138=\"\",E138=\"(seleccione a opção)\"),\"\",IF(VLOOKUP(E138,DropDowns!B:D,3,0)=0,\"\",VLOOKUP(E138,DropDowns!B:D,3,0)))","v":""},"(seleccione a opção)",null,"(seleccione o nível)",null,"No",6]
[null,138,"6.3.2 A empresa ou órgão relevante de desenvolvimento (por exemplo, associação de subcontratados, fundo ou cooperativa) partilha os resultados de monitorização e avaliação para melhorar o mecanismo de reclamação?",{"$f":"IF(OR(E139=\"\",E139=\"(seleccione a opção)\"),\"\",IF(VLOOKUP(E139,DropDowns!B:D,3,0)=0,\"\",VLOOKUP(E139,DropDowns!B:D,3,0)))","v":""},"(seleccione a opção)",null,"(seleccione o nível)",null,"No",6]
[null,139,null,{"$f":"IF(OR(E140=\"\",E140=\"(select option)\"),\"\",VLOOKUP(E140,DropDowns!C:D,2,0))","v":""}]
[null,140,null,{"$f":"IF(OR(E141=\"\",E141=\"(select option)\"),\"\",VLOOKUP(E141,DropDowns!C:D,2,0))","v":""}]
[null,141]
[null,142]
[null,143]
[null,144]
[null,145]
[null,146]
[null,147]
[null,148]
[null,149]
[null,150]
[null,151]
[null,152]
[null,153]
[null,154]
[null,155]
[null,156]
[null,157]
[null,158]
[null,159]
[null,160]
[null,161]
[null,162]
[null,163]
[null,164]
[null,165]
[null,166]
[null,167]
[null,168]
[null,169]
[null,170]
[null,171]
[null,172]
[null,173]
[null,174]
[null,175]
[null,176]
[null,177]
[null,178]
[null,179]
[null,180]
[null,181]
[null,182]
[null,183]
[null,184]
[null,185]
[null,186]
[null,187]
[null,188]
[null,189]
[null,190]
[null,191]
[null,192]
[null,193]
[null,194]
[null,195]
[null,196]
[null,197]
[null,198]
[null,199]
[null,200]
[null,201]
[null,202]
[null,203]
[null,204]
[null,205]
[null,206]
[null,207]
[null,208]
[null,209]
[null,210]
[null,211]
[null,212]
[null,213]
[null,214]
[null,215]
[null,216]
[null,217]
[null,218]
[null,219]
[null,220]
[null,221]
[null,222]
[null,223]
[null,224]
[null,225]
[null,226]
[null,227]
[null,228]
[null,229]
[null,230]
[null,231]
[null,232]
[null,233]
[null,234]
[null,235]
[null,236]
[null,237]
[null,238]
[null,239]
[null,240]
[null,241]
[null,242]
[null,243]
[null,244]
[null,245]
[null,246]
[null,247]
[null,248]
[null,249]
[null,250]
[null,251]
[null,252]
[null,253]
[null,254]
[null,255]
[null,256]
[null,257]
[null,258]
[null,259]
[null,260]
[null,261]
[null,262]
[null,263]
[null,264]
[null,265]
[null,266]
[null,267]
[null,268]
[null,269]
[null,270]
[null,271]
[null,272]
[null,273]
[null,274]
[null,275]
[null,276]
[null,277]
[null,278]
[null,279]
[null,280]
[null,281]
[null,282]
[null,283]
[null,284]
[null,285]
[null,286]
[null,287]
[null,288]
[null,289]
[null,290]
[null,291]
[null,292]
[null,293]
[null,294]
[null,295]
[null,296]
[null,297]
[null,298]
[null,299]
[null,300]
[null,301]
[null,302]
[null,303]
[null,304]
[null,305]
[null,306]
[null,307]
[null,308]
[null,309]
[null,310]
[null,311]
[null,312]
[null,313]
[null,314]
[null,315]
[null,316]
[null,317]
[null,318]
[null,319]
[null,320]
[null,321]
[null,322]
[null,323]
[null,324]
[null,325]

{"sheet":"Relatório do Fomento","index":5,"n_rows":200,"n_cols":12,"rows_kept":200,"cut":false,"hidden":false,"merged":[[1,1,1,11],[3,7,3,10]]}
[]
[null,"Relatório de Seguimento do Fomento"]
[]
[null,"Checklist Row","Item da Lista de Verificação","Secção (Título da Lista de Verificação Principal)","Estado/Ponto de Situação","Risco (1=baixo; 3=alto)","Esboço do Plano de Trabalho","Capacidade (Quem vai realizar as actividades do Plano de Trabalho)",null,null,null,"Cronograma / Roteiro"]
[null,{"$f":"IFERROR(INDEX('Lista de Verificação de Fomento'!$B$1:$B$396, SMALL(INDEX(('Lista de Verificação de Fomento'!$I$1:$I$396=\"Yes\")*(MATCH(ROW('Lista de Verificação de Fomento'!$I$1:$I$396), ROW('Lista de Verificação de Fomento'!$I$1:$I$396)))+('Lista de Verificação de Fomento'!$I$1:$I$396<>\"Yes\")*1048577, 0, 0), ROW(A1))),\"\")","v":""},{"$f":"IFERROR(VLOOKUP(B5,'Lista de Verificação de Fomento'!B:C,2,0),\"\")","v":""},{"$f":"IFERROR(VLOOKUP(VLOOKUP(B5,'Lista de Verificação de Fomento'!B:J,9,0),DropDowns!G:H,2,0),\"\")","v":""},{"$f":"IFERROR(VLOOKUP(B5,'Lista de Verificação de Fomento'!B:E,4,0),\"\")","v":""},{"$f":"IFERROR(VLOOKUP(B5,'Lista de Verificação de Fomento'!B:G,6,0),\"\")","v":""},null,{"$f":"IF(B5<>\"\",\"Interna:\",\"\")","v":""},null,{"$f":"IF(B5<>\"\",\"Externa:\",\"\")","v":""}]
[null,{"$f":"IFERROR(INDEX('Lista de Verificação de Fomento'!$B$1:$B$396, SMALL(INDEX(('Lista de Verificação de Fomento'!$I$1:$I$396=\"Yes\")*(MATCH(ROW('Lista de Verificação de Fomento'!$I$1:$I$396), ROW('Lista de Verificação de Fomento'!$I$1:$I$396)))+('Lista de Verificação de Fomento'!$I$1:$I$396<>\"Yes\")*1048577, 0, 0), ROW(A2))),\"\")","v":""},{"$f":"IFERROR(VLOOKUP(B6,'Lista de Verificação de Fomento'!B:C,2,0),\"\")","v":""},{"$f":"IFERROR(VLOOKUP(VLOOKUP(B6,'Lista de Verificação de Fomento'!B:J,9,0),DropDowns!G:H,2,0),\"\")","v":""},{"$f":"IFERROR(VLOOKUP(B6,'Lista de Verificação de Fomento'!B:E,4,0),\"\")","v":""},{"$f":"IFERROR(VLOOKUP(B6,'Lista de Verificação de Fomento'!B:G,6,0),\"\")","v":""},null,{"$f":"IF(B6<>\"\",\"Interna:\",\"\")","v":""},null,{"$f":"IF(B6<>\"\",\"Externa:\",\"\")","v":""}]
[null,{"$f":"IFERROR(INDEX('Lista de Verificação de Fomento'!$B$1:$B$396, SMALL(INDEX(('Lista de Verificação de Fomento'!$I$1:$I$396=\"Yes\")*(MATCH(ROW('Lista de Verificação de Fomento'!$I$1:$I$396), ROW('Lista de Verificação de Fomento'!$I$1:$I$396)))+('Lista de Verificação de Fomento'!$I$1:$I$396<>\"Yes\")*1048577, 0, 0), ROW(A3))),\"\")","v":""},{"$f":"IFERROR(VLOOKUP(B7,'Lista de Verificação de Fomento'!B:C,2,0),\"\")","v":""},{"$f":"IFERROR(VLOOKUP(VLOOKUP(B7,'Lista de Verificação de Fomento'!B:J,9,0),DropDowns!G:H,2,0),\"\")","v":""},{"$f":"IFERROR(VLOOKUP(B7,'Lista de Verificação de Fomento'!B:E,4,0),\"\")","v":""},{"$f":"IFERROR(VLOOKUP(B7,'Lista de Verificação de Fomento'!B:G,6,0),\"\")","v":""},null,"",null,""]
[null,{"$f":"IFERROR(INDEX('Lista de Verificação de Fomento'!$B$1:$B$396, SMALL(INDEX(('Lista de Verificação de Fomento'!$I$1:$I$396=\"Yes\")*(MATCH(ROW('Lista de Verificação de Fomento'!$I$1:$I$396), ROW('Lista de Verificação de Fomento'!$I$1:$I$396)))+('Lista de Verificação de Fomento'!$I$1:$I$396<>\"Yes\")*1048577, 0, 0), ROW(A4))),\"\")","v":""},{"$f":"IFERROR(VLOOKUP(B8,'Lista de Verificação de Fomento'!B:C,2,0),\"\")","v":""},{"$f":"IFERROR(VLOOKUP(VLOOKUP(B8,'Lista de Verificação de Fomento'!B:J,9,0),DropDowns!G:H,2,0),\"\")","v":""},{"$f":"IFERROR(VLOOKUP(B8,'Lista de Verificação de Fomento'!B:E,4,0),\"\")","v":""},{"$f":"IFERROR(VLOOKUP(B8,'Lista de Verificação de Fomento'!B:G,6,0),\"\")","v":""},null,"",null,""]
[null,{"$f":"IFERROR(INDEX('Lista de Verificação de Fomento'!$B$1:$B$396, SMALL(INDEX(('Lista de Verificação de Fomento'!$I$1:$I$396=\"Yes\")*(MATCH(ROW('Lista de Verificação de Fomento'!$I$1:$I$396), ROW('Lista de Verificação de Fomento'!$I$1:$I$396)))+('Lista de Verificação de Fomento'!$I$1:$I$396<>\"Yes\")*1048577, 0, 0), ROW(A5))),\"\")","v":""},{"$f":"IFERROR(VLOOKUP(B9,'Lista de Verificação de Fomento'!B:C,2,0),\"\")","v":""},{"$f":"IFERROR(VLOOKUP(VLOOKUP(B9,'Lista de Verificação de Fomento'!B:J,9,0),DropDowns!G:H,2,0),\"\")","v":""},{"$f":"IFERROR(VLOOKUP(B9,'Lista de Verificação de Fomento'!B:E,4,0),\"\")","v":""},{"$f":"IFERROR(VLOOKUP(B9,'Lista de Verificação de Fomento'!B:G,6,0),\"\")","v":""},null,"",null,""]
[null,{"$f":"IFERROR(INDEX('Lista de Verificação de Fomento'!$B$1:$B$396, SMALL(INDEX(('Lista de Verificação de Fomento'!$I$1:$I$396=\"Yes\")*(MATCH(ROW('Lista de Verificação de Fomento'!$I$1:$I$396), ROW('Lista de Verificação de Fomento'!$I$1:$I$396)))+('Lista de Verificação de Fomento'!$I$1:$I$396<>\"Yes\")*1048577, 0, 0), ROW(A6))),\"\")","v":""},{"$f":"IFERROR(VLOOKUP(B10,'Lista de Verificação de Fomento'!B:C,2,0),\"\")","v":""},{"$f":"IFERROR(VLOOKUP(VLOOKUP(B10,'Lista de Verificação de Fomento'!B:J,9,0),DropDowns!G:H,2,0),\"\")","v":""},{"$f":"IFERROR(VLOOKUP(B10,'Lista de Verificação de Fomento'!B:E,4,0),\"\")","v":""},{"$f":"IFERROR(VLOOKUP(B10,'Lista de Verificação de Fomento'!B:G,6,0),\"\")","v":""},null,"",null,""]
[null,{"$f":"IFERROR(INDEX('Lista de Verificação de Fomento'!$B$1:$B$396, SMALL(INDEX(('Lista de Verificação de Fomento'!$I$1:$I$396=\"Yes\")*(MATCH(ROW('Lista de Verificação de Fomento'!$I$1:$I$396), ROW('Lista de Verificação de Fomento'!$I$1:$I$396)))+('Lista de Verificação de Fomento'!$I$1:$I$396<>\"Yes\")*1048577, 0, 0), ROW(A7))),\"\")","v":""},{"$f":"IFERROR(VLOOKUP(B11,'Lista de Verificação de Fomento'!B:C,2,0),\"\")","v":""},{"$f":"IFERROR(VLOOKUP(VLOOKUP(B11,'Lista de Verificação de Fomento'!B:J,9,0),DropDowns!G:H,2,0),\"\")","v":""},{"$f":"IFERROR(VLOOKUP(B11,'Lista de Verificação de Fomento'!B:E,4,0),\"\")","v":""},{"$f":"IFERROR(VLOOKUP(B11,'Lista de Verificação de Fomento'!B:G,6,0),\"\")","v":""},null,"",null,""]
[null,{"$f":"IFERROR(INDEX('Lista de Verificação de Fomento'!$B$1:$B$396, SMALL(INDEX(('Lista de Verificação de Fomento'!$I$1:$I$396=\"Yes\")*(MATCH(ROW('Lista de Verificação de Fomento'!$I$1:$I$396), ROW('Lista de Verificação de Fomento'!$I$1:$I$396)))+('Lista de Verificação de Fomento'!$I$1:$I$396<>\"Yes\")*1048577, 0, 0), ROW(A8))),\"\")","v":""},{"$f":"IFERROR(VLOOKUP(B12,'Lista de Verificação de Fomento'!B:C,2,0),\"\")","v":""},{"$f":"IFERROR(VLOOKUP(VLOOKUP(B12,'Lista de Verificação de Fomento'!B:J,9,0),DropDowns!G:H,2,0),\"\")","v":""},{"$f":"IFERROR(VLOOKUP(B12,'Lista de Verificação de Fomento'!B:E,4,0),\"\")","v":""},{"$f":"IFERROR(VLOOKUP(B12,'Lista de Verificação de Fomento'!B:G,6,0),\"\")","v":""},null,"",null,""]
[null,{"$f":"IFERROR(INDEX('Lista de Verificação de Fomento'!$B$1:$B$396, SMALL(INDEX(('Lista de Verificação de Fomento'!$I$1:$I$396=\"Yes\")*(MATCH(ROW('Lista de Verificação de Fomento'!$I$1:$I$396), ROW('Lista de Verificação de Fomento'!$I$1:$I$396)))+('Lista de Verificação de Fomento'!$I$1:$I$396<>\"Yes\")*1048577, 0, 0), ROW(A9))),\"\")","v":""},{"$f":"IFERROR(VLOOKUP(B13,'Lista de Verificação de Fomento'!B:C,2,0),\"\")","v":""},{"$f":"IFERROR(VLOOKUP(VLOOKUP(B13,'Lista de Verificação de Fomento'!B:J,9,0),DropDowns!G:H,2,0),\"\")","v":""},{"$f":"IFERROR(VLOOKUP(B13,'Lista de Verificação de Fomento'!B:E,4,0),\"\")","v":""},{"$f":"IFERROR(VLOOKUP(B13,'Lista de Verificação de Fomento'!B:G,6,0),\"\")","v":""},null,"",null,""]
[null,{"$f":"IFERROR(INDEX('Lista de Verificação de Fomento'!$B$1:$B$396, SMALL(INDEX(('Lista de Verificação de Fomento'!$I$1:$I$396=\"Yes\")*(MATCH(ROW('Lista de Verificação de Fomento'!$I$1:$I$396), ROW('Lista de Verificação de Fomento'!$I$1:$I$396)))+('Lista de Verificação de Fomento'!$I$1:$I$396<>\"Yes\")*1048577, 0, 0), ROW(A10))),\"\")","v":""},{"$f":"IFERROR(VLOOKUP(B14,'Lista de Verificação de Fomento'!B:C,2,0),\"\")","v":""},{"$f":"IFERROR(VLOOKUP(VLOOKUP(B14,'Lista de Verificação de Fomento'!B:J,9,0),DropDowns!G:H,2,0),\"\")","v":""},{"$f":"IFERROR(VLOOKUP(B14,'Lista de Verificação de Fomento'!B:E,4,0),\"\")","v":""},{"$f":"IFERROR(VLOOKUP(B14,'Lista de Verificação de Fomento'!B:G,6,0),\"\")","v":""},null,"",null,""]
[null,{"$f":"IFERROR(INDEX('Lista de Verificação de Fomento'!$B$1:$B$396, SMALL(INDEX(('Lista de Verificação de Fomento'!$I$1:$I$396=\"Yes\")*(MATCH(ROW('Lista de Verificação de Fomento'!$I$1:$I$396), ROW('Lista de Verificação de Fomento'!$I$1:$I$396)))+('Lista de Verificação de Fomento'!$I$1:$I$396<>\"Yes\")*1048577, 0, 0), ROW(A11))),\"\")","v":""},{"$f":"IFERROR(VLOOKUP(B15,'Lista de Verificação de Fomento'!B:C,2,0),\"\")","v":""},{"$f":"IFERROR(VLOOKUP(VLOOKUP(B15,'Lista de Verificação de Fomento'!B:J,9,0),DropDowns!G:H,2,0),\"\")","v":""},{"$f":"IFERROR(VLOOKUP(B15,'Lista de Verificação de Fomento'!B:E,4,0),\"\")","v":""},{"$f":"IFERROR(VLOOKUP(B15,'Lista de Verificação de Fomento'!B:G,6,0),\"\")","v":""},null,"",null,""]
[null,{"$f":"IFERROR(INDEX('Lista de Verificação de Fomento'!$B$1:$B$396, SMALL(INDEX(('Lista de Verificação de Fomento'!$I$1:$I$396=\"Yes\")*(MATCH(ROW('Lista de Verificação de Fomento'!$I$1:$I$396), ROW('Lista de Verificação de Fomento'!$I$1:$I$396)))+('Lista de Verificação de Fomento'!$I$1:$I$396<>\"Yes\")*1048577, 0, 0), ROW(A12))),\"\")","v":""},{"$f":"IFERROR(VLOOKUP(B16,'Lista de Verificação de Fomento'!B:C,2,0),\"\")","v":""},{"$f":"IFERROR(VLOOKUP(VLOOKUP(B16,'Lista de Verificação de Fomento'!B:J,9,0),DropDowns!G:H,2,0),\"\")","v":""},{"$f":"IFERROR(VLOOKUP(B16,'Lista de Verificação de Fomento'!B:E,4,0),\"\")","v":""},{"$f":"IFERROR(VLOOKUP(B16,'Lista de Verificação de Fomento'!B:G,6,0),\"\")","v":""},null,"",null,""]
[null,{"$f":"IFERROR(INDEX('Lista de Verificação de Fomento'!$B$1:$B$396, SMALL(INDEX(('Lista de Verificação de Fomento'!$I$1:$I$396=\"Yes\")*(MATCH(ROW('Lista de Verificação de Fomento'!$I$1:$I$396), ROW('Lista de Verificação de Fomento'!$I$1:$I$396)))+('Lista de Verificação de Fomento'!$I$1:$I$396<>\"Yes\")*1048577, 0, 0), ROW(A13))),\"\")","v":""},{"$f":"IFERROR(VLOOKUP(B17,'Lista de Verificação de Fomento'!B:C,2,0),\"\")","v":""},{"$f":"IFERROR(VLOOKUP(VLOOKUP(B17,'Lista de Verificação de Fomento'!B:J,9,0),DropDowns!G:H,2,0),\"\")","v":""},{"$f":"IFERROR(VLOOKUP(B17,'Lista de Verificação de Fomento'!B:E,4,0),\"\")","v":""},{"$f":"IFERROR(VLOOKUP(B17,'Lista de Verificação de Fomento'!B:G,6,0),\"\")","v":""},null,"",null,""]
[null,{"$f":"IFERROR(INDEX('Lista de Verificação de Fomento'!$B$1:$B$396, SMALL(INDEX(('Lista de Verificação de Fomento'!$I$1:$I$396=\"Yes\")*(MATCH(ROW('Lista de Verificação de Fomento'!$I$1:$I$396), ROW('Lista de Verificação de Fomento'!$I$1:$I$396)))+('Lista de Verificação de Fomento'!$I$1:$I$396<>\"Yes\")*1048577, 0, 0), ROW(A14))),\"\")","v":""},{"$f":"IFERROR(VLOOKUP(B18,'Lista de Verificação de Fomento'!B:C,2,0),\"\")","v":""},{"$f":"IFERROR(VLOOKUP(VLOOKUP(B18,'Lista de Verificação de Fomento'!B:J,9,0),DropDowns!G:H,2,0),\"\")","v":""},{"$f":"IFERROR(VLOOKUP(B18,'Lista de Verificação de Fomento'!B:E,4,0),\"\")","v":""},{"$f":"IFERROR(VLOOKUP(B18,'Lista de Verificação de Fomento'!B:G,6,0),\"\")","v":""},null,"",null,""]
[null,{"$f":"IFERROR(INDEX('Lista de Verificação de Fomento'!$B$1:$B$396, SMALL(INDEX(('Lista de Verificação de Fomento'!$I$1:$I$396=\"Yes\")*(MATCH(ROW('Lista de Verificação de Fomento'!$I$1:$I$396), ROW('Lista de Verificação de Fomento'!$I$1:$I$396)))+('Lista de Verificação de Fomento'!$I$1:$I$396<>\"Yes\")*1048577, 0, 0), ROW(A15))),\"\")","v":""},{"$f":"IFERROR(VLOOKUP(B19,'Lista de Verificação de Fomento'!B:C,2,0),\"\")","v":""},{"$f":"IFERROR(VLOOKUP(VLOOKUP(B19,'Lista de Verificação de Fomento'!B:J,9,0),DropDowns!G:H,2,0),\"\")","v":""},{"$f":"IFERROR(VLOOKUP(B19,'Lista de Verificação de Fomento'!B:E,4,0),\"\")","v":""},{"$f":"IFERROR(VLOOKUP(B19,'Lista de Verificação de Fomento'!B:G,6,0),\"\")","v":""},null,"",null,""]
[null,{"$f":"IFERROR(INDEX('Lista de Verificação de Fomento'!$B$1:$B$396, SMALL(INDEX(('Lista de Verificação de Fomento'!$I$1:$I$396=\"Yes\")*(MATCH(ROW('Lista de Verificação de Fomento'!$I$1:$I$396), ROW('Lista de Verificação de Fomento'!$I$1:$I$396)))+('Lista de Verificação de Fomento'!$I$1:$I$396<>\"Yes\")*1048577, 0, 0), ROW(A16))),\"\")","v":""},{"$f":"IFERROR(VLOOKUP(B20,'Lista de Verificação de Fomento'!B:C,2,0),\"\")","v":""},{"$f":"IFERROR(VLOOKUP(VLOOKUP(B20,'Lista de Verificação de Fomento'!B:J,9,0),DropDowns!G:H,2,0),\"\")","v":""},{"$f":"IFERROR(VLOOKUP(B20,'Lista de Verificação de Fomento'!B:E,4,0),\"\")","v":""},{"$f":"IFERROR(VLOOKUP(B20,'Lista de Verificação de Fomento'!B:G,6,0),\"\")","v":""},null,"",null,""]
[null,{"$f":"IFERROR(INDEX('Lista de Verificação de Fomento'!$B$1:$B$396, SMALL(INDEX(('Lista de Verificação de Fomento'!$I$1:$I$396=\"Yes\")*(MATCH(ROW('Lista de Verificação de Fomento'!$I$1:$I$396), ROW('Lista de Verificação de Fomento'!$I$1:$I$396)))+('Lista de Verificação de Fomento'!$I$1:$I$396<>\"Yes\")*1048577, 0, 0), ROW(A17))),\"\")","v":""},{"$f":"IFERROR(VLOOKUP(B21,'Lista de Verificação de Fomento'!B:C,2,0),\"\")","v":""},{"$f":"IFERROR(VLOOKUP(VLOOKUP(B21,'Lista de Verificação de Fomento'!B:J,9,0),DropDowns!G:H,2,0),\"\")","v":""},{"$f":"IFERROR(VLOOKUP(B21,'Lista de Verificação de Fomento'!B:E,4,0),\"\")","v":""},{"$f":"IFERROR(VLOOKUP(B21,'Lista de Verificação de Fomento'!B:G,6,0),\"\")","v":""},null,"",null,""]
[null,{"$f":"IFERROR(INDEX('Lista de Verificação de Fomento'!$B$1:$B$396, SMALL(INDEX(('Lista de Verificação de Fomento'!$I$1:$I$396=\"Yes\")*(MATCH(ROW('Lista de Verificação de Fomento'!$I$1:$I$396), ROW('Lista de Verificação de Fomento'!$I$1:$I$396)))+('Lista de Verificação de Fomento'!$I$1:$I$396<>\"Yes\")*1048577, 0, 0), ROW(A18))),\"\")","v":""},{"$f":"IFERROR(VLOOKUP(B22,'Lista de Verificação de Fomento'!B:C,2,0),\"\")","v":""},{"$f":"IFERROR(VLOOKUP(VLOOKUP(B22,'Lista de Verificação de Fomento'!B:J,9,0),DropDowns!G:H,2,0),\"\")","v":""},{"$f":"IFERROR(VLOOKUP(B22,'Lista de Verificação de Fomento'!B:E,4,0),\"\")","v":""},{"$f":"IFERROR(VLOOKUP(B22,'Lista de Verificação de Fomento'!B:G,6,0),\"\")","v":""},null,"",null,""]
[null,{"$f":"IFERROR(INDEX('Lista de Verificação de Fomento'!$B$1:$B$396, SMALL(INDEX(('Lista de Verificação de Fomento'!$I$1:$I$396=\"Yes\")*(MATCH(ROW('Lista de Verificação de Fomento'!$I$1:$I$396), ROW('Lista de Verificação de Fomento'!$I$1:$I$396)))+('Lista de Verificação de Fomento'!$I$1:$I$396<>\"Yes\")*1048577, 0, 0), ROW(A19))),\"\")","v":""},{"$f":"IFERROR(VLOOKUP(B23,'Lista de Verificação de Fomento'!B:C,2,0),\"\")","v":""},{"$f":"IFERROR(VLOOKUP(VLOOKUP(B23,'Lista de Verificação de Fomento'!B:J,9,0),DropDowns!G:H,2,0),\"\")","v":""},{"$f":"IFERROR(VLOOKUP(B23,'Lista de Verificação de Fomento'!B:E,4,0),\"\")","v":""},{"$f":"IFERROR(VLOOKUP(B23,'Lista de Verificação de Fomento'!B:G,6,0),\"\")","v":""},null,"",null,""]
[null,{"$f":"IFERROR(INDEX('Lista de Verificação de Fomento'!$B$1:$B$396, SMALL(INDEX(('Lista de Verificação de Fomento'!$I$1:$I$396=\"Yes\")*(MATCH(ROW('Lista de Verificação de Fomento'!$I$1:$I$396), ROW('Lista de Verificação de Fomento'!$I$1:$I$396)))+('Lista de Verificação de Fomento'!$I$1:$I$396<>\"Yes\")*1048577, 0, 0), ROW(A20))),\"\")","v":""},{"$f":"IFERROR(VLOOKUP(B24,'Lista de Verificação de Fomento'!B:C,2,0),\"\")","v":""},{"$f":"IFERROR(VLOOKUP(VLOOKUP(B24,'Lista de Verificação de Fomento'!B:J,9,0),DropDowns!G:H,2,0),\"\")","v":""},{"$f":"IFERROR(VLOOKUP(B24,'Lista de Verificação de Fomento'!B:E,4,0),\"\")","v":""},{"$f":"IFERROR(VLOOKUP(B24,'Lista de Verificação de Fomento'!B:G,6,0),\"\")","v":""},null,"",null,""]
[null,{"$f":"IFERROR(INDEX('Lista de Verificação de Fomento'!$B$1:$B$396, SMALL(INDEX(('Lista de Verificação de Fomento'!$I$1:$I$396=\"Yes\")*(MATCH(ROW('Lista de Verificação de Fomento'!$I$1:$I$396), ROW('Lista de Verificação de Fomento'!$I$1:$I$396)))+('Lista de Verificação de Fomento'!$I$1:$I$396<>\"Yes\")*1048577, 0, 0), ROW(A21))),\"\")","v":""},{"$f":"IFERROR(VLOOKUP(B25,'Lista de Verificação de Fomento'!B:C,2,0),\"\")","v":""},{"$f":"IFERROR(VLOOKUP(VLOOKUP(B25,'Lista de Verificação de Fomento'!B:J,9,0),DropDowns!G:H,2,0),\"\")","v":""},{"$f":"IFERROR(VLOOKUP(B25,'Lista de Verificação de Fomento'!B:E,4,0),\"\")","v":""},{"$f":"IFERROR(VLOOKUP(B25,'Lista de Verificação de Fomento'!B:G,6,0),\"\")","v":""},null,"",null,""]
[null,{"$f":"IFERROR(INDEX('Lista de Verificação de Fomento'!$B$1:$B$396, SMALL(INDEX(('Lista de Verificação de Fomento'!$I$1:$I$396=\"Yes\")*(MATCH(ROW('Lista de Verificação de Fomento'!$I$1:$I$396), ROW('Lista de Verificação de Fomento'!$I$1:$I$396)))+('Lista de Verificação de Fomento'!$I$1:$I$396<>\"Yes\")*1048577, 0, 0), ROW(A22))),\"\")","v":""},{"$f":"IFERROR(VLOOKUP(B26,'Lista de Verificação de Fomento'!B:C,2,0),\"\")","v":""},{"$f":"IFERROR(VLOOKUP(VLOOKUP(B26,'Lista de Verificação de Fomento'!B:J,9,0),DropDowns!G:H,2,0),\"\")","v":""},{"$f":"IFERROR(VLOOKUP(B26,'Lista de Verificação de Fomento'!B:E,4,0),\"\")","v":""},{"$f":"IFERROR(VLOOKUP(B26,'Lista de Verificação de Fomento'!B:G,6,0),\"\")","v":""},null,"",null,""]
[null,{"$f":"IFERROR(INDEX('Lista de Verificação de Fomento'!$B$1:$B$396, SMALL(INDEX(('Lista de Verificação de Fomento'!$I$1:$I$396=\"Yes\")*(MATCH(ROW('Lista de Verificação de Fomento'!$I$1:$I$396), ROW('Lista de Verificação de Fomento'!$I$1:$I$396)))+('Lista de Verificação de Fomento'!$I$1:$I$396<>\"Yes\")*1048577, 0, 0), ROW(A23))),\"\")","v":""},{"$f":"IFERROR(VLOOKUP(B27,'Lista de Verificação de Fomento'!B:C,2,0),\"\")","v":""},{"$f":"IFERROR(VLOOKUP(VLOOKUP(B27,'Lista de Verificação de Fomento'!B:J,9,0),DropDowns!G:H,2,0),\"\")","v":""},{"$f":"IFERROR(VLOOKUP(B27,'Lista de Verificação de Fomento'!B:E,4,0),\"\")","v":""},{"$f":"IFERROR(VLOOKUP(B27,'Lista de Verificação de Fomento'!B:G,6,0),\"\")","v":""},null,"",null,""]
[null,{"$f":"IFERROR(INDEX('Lista de Verificação de Fomento'!$B$1:$B$396, SMALL(INDEX(('Lista de Verificação de Fomento'!$I$1:$I$396=\"Yes\")*(MATCH(ROW('Lista de Verificação de Fomento'!$I$1:$I$396), ROW('Lista de Verificação de Fomento'!$I$1:$I$396)))+('Lista de Verificação de Fomento'!$I$1:$I$396<>\"Yes\")*1048577, 0, 0), ROW(A24))),\"\")","v":""},{"$f":"IFERROR(VLOOKUP(B28,'Lista de Verificação de Fomento'!B:C,2,0),\"\")","v":""},{"$f":"IFERROR(VLOOKUP(VLOOKUP(B28,'Lista de Verificação de Fomento'!B:J,9,0),DropDowns!G:H,2,0),\"\")","v":""},{"$f":"IFERROR(VLOOKUP(B28,'Lista de Verificação de Fomento'!B:E,4,0),\"\")","v":""},{"$f":"IFERROR(VLOOKUP(B28,'Lista de Verificação de Fomento'!B:G,6,0),\"\")","v":""},null,"",null,""]
[null,{"$f":"IFERROR(INDEX('Lista de Verificação de Fomento'!$B$1:$B$396, SMALL(INDEX(('Lista de Verificação de Fomento'!$I$1:$I$396=\"Yes\")*(MATCH(ROW('Lista de Verificação de Fomento'!$I$1:$I$396), ROW('Lista de Verificação de Fomento'!$I$1:$I$396)))+('Lista de Verificação de Fomento'!$I$1:$I$396<>\"Yes\")*1048577, 0, 0), ROW(A25))),\"\")","v":""},{"$f":"IFERROR(VLOOKUP(B29,'Lista de Verificação de Fomento'!B:C,2,0),\"\")","v":""},{"$f":"IFERROR(VLOOKUP(VLOOKUP(B29,'Lista de Verificação de Fomento'!B:J,9,0),DropDowns!G:H,2,0),\"\")","v":""},{"$f":"IFERROR(VLOOKUP(B29,'Lista de Verificação de Fomento'!B:E,4,0),\"\")","v":""},{"$f":"IFERROR(VLOOKUP(B29,'Lista de Verificação de Fomento'!B:G,6,0),\"\")","v":""},null,"",null,""]
[null,{"$f":"IFERROR(INDEX('Lista de Verificação de Fomento'!$B$1:$B$396, SMALL(INDEX(('Lista de Verificação de Fomento'!$I$1:$I$396=\"Yes\")*(MATCH(ROW('Lista de Verificação de Fomento'!$I$1:$I$396), ROW('Lista de Verificação de Fomento'!$I$1:$I$396)))+('Lista de Verificação de Fomento'!$I$1:$I$396<>\"Yes\")*1048577, 0, 0), ROW(A26))),\"\")","v":""},{"$f":"IFERROR(VLOOKUP(B30,'Lista de Verificação de Fomento'!B:C,2,0),\"\")","v":""},{"$f":"IFERROR(VLOOKUP(VLOOKUP(B30,'Lista de Verificação de Fomento'!B:J,9,0),DropDowns!G:H,2,0),\"\")","v":""},{"$f":"IFERROR(VLOOKUP(B30,'Lista de Verificação de Fomento'!B:E,4,0),\"\")","v":""},{"$f":"IFERROR(VLOOKUP(B30,'Lista de Verificação de Fomento'!B:G,6,0),\"\")","v":""},null,"",null,""]
[null,{"$f":"IFERROR(INDEX('Lista de Verificação de Fomento'!$B$1:$B$396, SMALL(INDEX(('Lista de Verificação de Fomento'!$I$1:$I$396=\"Yes\")*(MATCH(ROW('Lista de Verificação de Fomento'!$I$1:$I$396), ROW('Lista de Verificação de Fomento'!$I$1:$I$396)))+('Lista de Verificação de Fomento'!$I$1:$I$396<>\"Yes\")*1048577, 0, 0), ROW(A27))),\"\")","v":""},{"$f":"IFERROR(VLOOKUP(B31,'Lista de Verificação de Fomento'!B:C,2,0),\"\")","v":""},{"$f":"IFERROR(VLOOKUP(VLOOKUP(B31,'Lista de Verificação de Fomento'!B:J,9,0),DropDowns!G:H,2,0),\"\")","v":""},{"$f":"IFERROR(VLOOKUP(B31,'Lista de Verificação de Fomento'!B:E,4,0),\"\")","v":""},{"$f":"IFERROR(VLOOKUP(B31,'Lista de Verificação de Fomento'!B:G,6,0),\"\")","v":""},null,"",null,""]
[null,{"$f":"IFERROR(INDEX('Lista de Verificação de Fomento'!$B$1:$B$396, SMALL(INDEX(('Lista de Verificação de Fomento'!$I$1:$I$396=\"Yes\")*(MATCH(ROW('Lista de Verificação de Fomento'!$I$1:$I$396), ROW('Lista de Verificação de Fomento'!$I$1:$I$396)))+('Lista de Verificação de Fomento'!$I$1:$I$396<>\"Yes\")*1048577, 0, 0), ROW(A28))),\"\")","v":""},{"$f":"IFERROR(VLOOKUP(B32,'Lista de Verificação de Fomento'!B:C,2,0),\"\")","v":""},{"$f":"IFERROR(VLOOKUP(VLOOKUP(B32,'Lista de Verificação de Fomento'!B:J,9,0),DropDowns!G:H,2,0),\"\")","v":""},{"$f":"IFERROR(VLOOKUP(B32,'Lista de Verificação de Fomento'!B:E,4,0),\"\")","v":""},{"$f":"IFERROR(VLOOKUP(B32,'Lista de Verificação de Fomento'!B:G,6,0),\"\")","v":""},null,"",null,""]
[null,{"$f":"IFERROR(INDEX('Lista de Verificação de Fomento'!$B$1:$B$396, SMALL(INDEX(('Lista de Verificação de Fomento'!$I$1:$I$396=\"Yes\")*(MATCH(ROW('Lista de Verificação de Fomento'!$I$1:$I$396), ROW('Lista de Verificação de Fomento'!$I$1:$I$396)))+('Lista de Verificação de Fomento'!$I$1:$I$396<>\"Yes\")*1048577, 0, 0), ROW(A29))),\"\")","v":""},{"$f":"IFERROR(VLOOKUP(B33,'Lista de Verificação de Fomento'!B:C,2,0),\"\")","v":""},{"$f":"IFERROR(VLOOKUP(VLOOKUP(B33,'Lista de Verificação de Fomento'!B:J,9,0),DropDowns!G:H,2,0),\"\")","v":""},{"$f":"IFERROR(VLOOKUP(B33,'Lista de Verificação de Fomento'!B:E,4,0),\"\")","v":""},{"$f":"IFERROR(VLOOKUP(B33,'Lista de Verificação de Fomento'!B:G,6,0),\"\")","v":""},null,"",null,""]
[null,{"$f":"IFERROR(INDEX('Lista de Verificação de Fomento'!$B$1:$B$396, SMALL(INDEX(('Lista de Verificação de Fomento'!$I$1:$I$396=\"Yes\")*(MATCH(ROW('Lista de Verificação de Fomento'!$I$1:$I$396), ROW('Lista de Verificação de Fomento'!$I$1:$I$396)))+('Lista de Verificação de Fomento'!$I$1:$I$396<>\"Yes\")*1048577, 0, 0), ROW(A30))),\"\")","v":""},{"$f":"IFERROR(VLOOKUP(B34,'Lista de Verificação de Fomento'!B:C,2,0),\"\")","v":""},{"$f":"IFERROR(VLOOKUP(VLOOKUP(B34,'Lista de Verificação de Fomento'!B:J,9,0),DropDowns!G:H,2,0),\"\")","v":""},{"$f":"IFERROR(VLOOKUP(B34,'Lista de Verificação de Fomento'!B:E,4,0),\"\")","v":""},{"$f":"IFERROR(VLOOKUP(B34,'Lista de Verificação de Fomento'!B:G,6,0),\"\")","v":""},null,"",null,""]
[null,{"$f":"IFERROR(INDEX('Lista de Verificação de Fomento'!$B$1:$B$396, SMALL(INDEX(('Lista de Verificação de Fomento'!$I$1:$I$396=\"Yes\")*(MATCH(ROW('Lista de Verificação de Fomento'!$I$1:$I$396), ROW('Lista de Verificação de Fomento'!$I$1:$I$396)))+('Lista de Verificação de Fomento'!$I$1:$I$396<>\"Yes\")*1048577, 0, 0), ROW(A31))),\"\")","v":""},{"$f":"IFERROR(VLOOKUP(B35,'Lista de Verificação de Fomento'!B:C,2,0),\"\")","v":""},{"$f":"IFERROR(VLOOKUP(VLOOKUP(B35,'Lista de Verificação de Fomento'!B:J,9,0),DropDowns!G:H,2,0),\"\")","v":""},{"$f":"IFERROR(VLOOKUP(B35,'Lista de Verificação de Fomento'!B:E,4,0),\"\")","v":""},{"$f":"IFERROR(VLOOKUP(B35,'Lista de Verificação de Fomento'!B:G,6,0),\"\")","v":""},null,"",null,""]
[null,{"$f":"IFERROR(INDEX('Lista de Verificação de Fomento'!$B$1:$B$396, SMALL(INDEX(('Lista de Verificação de Fomento'!$I$1:$I$396=\"Yes\")*(MATCH(ROW('Lista de Verificação de Fomento'!$I$1:$I$396), ROW('Lista de Verificação de Fomento'!$I$1:$I$396)))+('Lista de Verificação de Fomento'!$I$1:$I$396<>\"Yes\")*1048577, 0, 0), ROW(A32))),\"\")","v":""},{"$f":"IFERROR(VLOOKUP(B36,'Lista de Verificação de Fomento'!B:C,2,0),\"\")","v":""},{"$f":"IFERROR(VLOOKUP(VLOOKUP(B36,'Lista de Verificação de Fomento'!B:J,9,0),DropDowns!G:H,2,0),\"\")","v":""},{"$f":"IFERROR(VLOOKUP(B36,'Lista de Verificação de Fomento'!B:E,4,0),\"\")","v":""},{"$f":"IFERROR(VLOOKUP(B36,'Lista de Verificação de Fomento'!B:G,6,0),\"\")","v":""},null,"",null,""]
[null,{"$f":"IFERROR(INDEX('Lista de Verificação de Fomento'!$B$1:$B$396, SMALL(INDEX(('Lista de Verificação de Fomento'!$I$1:$I$396=\"Yes\")*(MATCH(ROW('Lista de Verificação de Fomento'!$I$1:$I$396), ROW('Lista de Verificação de Fomento'!$I$1:$I$396)))+('Lista de Verificação de Fomento'!$I$1:$I$396<>\"Yes\")*1048577, 0, 0), ROW(A33))),\"\")","v":""},{"$f":"IFERROR(VLOOKUP(B37,'Lista de Verificação de Fomento'!B:C,2,0),\"\")","v":""},{"$f":"IFERROR(VLOOKUP(VLOOKUP(B37,'Lista de Verificação de Fomento'!B:J,9,0),DropDowns!G:H,2,0),\"\")","v":""},{"$f":"IFERROR(VLOOKUP(B37,'Lista de Verificação de Fomento'!B:E,4,0),\"\")","v":""},{"$f":"IFERROR(VLOOKUP(B37,'Lista de Verificação de Fomento'!B:G,6,0),\"\")","v":""},null,"",null,""]
[null,{"$f":"IFERROR(INDEX('Lista de Verificação de Fomento'!$B$1:$B$396, SMALL(INDEX(('Lista de Verificação de Fomento'!$I$1:$I$396=\"Yes\")*(MATCH(ROW('Lista de Verificação de Fomento'!$I$1:$I$396), ROW('Lista de Verificação de Fomento'!$I$1:$I$396)))+('Lista de Verificação de Fomento'!$I$1:$I$396<>\"Yes\")*1048577, 0, 0), ROW(A34))),\"\")","v":""},{"$f":"IFERROR(VLOOKUP(B38,'Lista de Verificação de Fomento'!B:C,2,0),\"\")","v":""},{"$f":"IFERROR(VLOOKUP(VLOOKUP(B38,'Lista de Verificação de Fomento'!B:J,9,0),DropDowns!G:H,2,0),\"\")","v":""},{"$f":"IFERROR(VLOOKUP(B38,'Lista de Verificação de Fomento'!B:E,4,0),\"\")","v":""},{"$f":"IFERROR(VLOOKUP(B38,'Lista de Verificação de Fomento'!B:G,6,0),\"\")","v":""},null,"",null,""]
[null,{"$f":"IFERROR(INDEX('Lista de Verificação de Fomento'!$B$1:$B$396, SMALL(INDEX(('Lista de Verificação de Fomento'!$I$1:$I$396=\"Yes\")*(MATCH(ROW('Lista de Verificação de Fomento'!$I$1:$I$396), ROW('Lista de Verificação de Fomento'!$I$1:$I$396)))+('Lista de Verificação de Fomento'!$I$1:$I$396<>\"Yes\")*1048577, 0, 0), ROW(A35))),\"\")","v":""},{"$f":"IFERROR(VLOOKUP(B39,'Lista de Verificação de Fomento'!B:C,2,0),\"\")","v":""},{"$f":"IFERROR(VLOOKUP(VLOOKUP(B39,'Lista de Verificação de Fomento'!B:J,9,0),DropDowns!G:H,2,0),\"\")","v":""},{"$f":"IFERROR(VLOOKUP(B39,'Lista de Verificação de Fomento'!B:E,4,0),\"\")","v":""},{"$f":"IFERROR(VLOOKUP(B39,'Lista de Verificação de Fomento'!B:G,6,0),\"\")","v":""},null,"",null,""]
[null,{"$f":"IFERROR(INDEX('Lista de Verificação de Fomento'!$B$1:$B$396, SMALL(INDEX(('Lista de Verificação de Fomento'!$I$1:$I$396=\"Yes\")*(MATCH(ROW('Lista de Verificação de Fomento'!$I$1:$I$396), ROW('Lista de Verificação de Fomento'!$I$1:$I$396)))+('Lista de Verificação de Fomento'!$I$1:$I$396<>\"Yes\")*1048577, 0, 0), ROW(A36))),\"\")","v":""},{"$f":"IFERROR(VLOOKUP(B40,'Lista de Verificação de Fomento'!B:C,2,0),\"\")","v":""},{"$f":"IFERROR(VLOOKUP(VLOOKUP(B40,'Lista de Verificação de Fomento'!B:J,9,0),DropDowns!G:H,2,0),\"\")","v":""},{"$f":"IFERROR(VLOOKUP(B40,'Lista de Verificação de Fomento'!B:E,4,0),\"\")","v":""},{"$f":"IFERROR(VLOOKUP(B40,'Lista de Verificação de Fomento'!B:G,6,0),\"\")","v":""},null,"",null,""]
[null,{"$f":"IFERROR(INDEX('Lista de Verificação de Fomento'!$B$1:$B$396, SMALL(INDEX(('Lista de Verificação de Fomento'!$I$1:$I$396=\"Yes\")*(MATCH(ROW('Lista de Verificação de Fomento'!$I$1:$I$396), ROW('Lista de Verificação de Fomento'!$I$1:$I$396)))+('Lista de Verificação de Fomento'!$I$1:$I$396<>\"Yes\")*1048577, 0, 0), ROW(A37))),\"\")","v":""},{"$f":"IFERROR(VLOOKUP(B41,'Lista de Verificação de Fomento'!B:C,2,0),\"\")","v":""},{"$f":"IFERROR(VLOOKUP(VLOOKUP(B41,'Lista de Verificação de Fomento'!B:J,9,0),DropDowns!G:H,2,0),\"\")","v":""},{"$f":"IFERROR(VLOOKUP(B41,'Lista de Verificação de Fomento'!B:E,4,0),\"\")","v":""},{"$f":"IFERROR(VLOOKUP(B41,'Lista de Verificação de Fomento'!B:G,6,0),\"\")","v":""},null,"",null,""]
[null,{"$f":"IFERROR(INDEX('Lista de Verificação de Fomento'!$B$1:$B$396, SMALL(INDEX(('Lista de Verificação de Fomento'!$I$1:$I$396=\"Yes\")*(MATCH(ROW('Lista de Verificação de Fomento'!$I$1:$I$396), ROW('Lista de Verificação de Fomento'!$I$1:$I$396)))+('Lista de Verificação de Fomento'!$I$1:$I$396<>\"Yes\")*1048577, 0, 0), ROW(A38))),\"\")","v":""},{"$f":"IFERROR(VLOOKUP(B42,'Lista de Verificação de Fomento'!B:C,2,0),\"\")","v":""},{"$f":"IFERROR(VLOOKUP(VLOOKUP(B42,'Lista de Verificação de Fomento'!B:J,9,0),DropDowns!G:H,2,0),\"\")","v":""},{"$f":"IFERROR(VLOOKUP(B42,'Lista de Verificação de Fomento'!B:E,4,0),\"\")","v":""},{"$f":"IFERROR(VLOOKUP(B42,'Lista de Verificação de Fomento'!B:G,6,0),\"\")","v":""},null,"",null,""]
[null,{"$f":"IFERROR(INDEX('Lista de Verificação de Fomento'!$B$1:$B$396, SMALL(INDEX(('Lista de Verificação de Fomento'!$I$1:$I$396=\"Yes\")*(MATCH(ROW('Lista de Verificação de Fomento'!$I$1:$I$396), ROW('Lista de Verificação de Fomento'!$I$1:$I$396)))+('Lista de Verificação de Fomento'!$I$1:$I$396<>\"Yes\")*1048577, 0, 0), ROW(A39))),\"\")","v":""},{"$f":"IFERROR(VLOOKUP(B43,'Lista de Verificação de Fomento'!B:C,2,0),\"\")","v":""},{"$f":"IFERROR(VLOOKUP(VLOOKUP(B43,'Lista de Verificação de Fomento'!B:J,9,0),DropDowns!G:H,2,0),\"\")","v":""},{"$f":"IFERROR(VLOOKUP(B43,'Lista de Verificação de Fomento'!B:E,4,0),\"\")","v":""},{"$f":"IFERROR(VLOOKUP(B43,'Lista de Verificação de Fomento'!B:G,6,0),\"\")","v":""},null,"",null,""]
[null,{"$f":"IFERROR(INDEX('Lista de Verificação de Fomento'!$B$1:$B$396, SMALL(INDEX(('Lista de Verificação de Fomento'!$I$1:$I$396=\"Yes\")*(MATCH(ROW('Lista de Verificação de Fomento'!$I$1:$I$396), ROW('Lista de Verificação de Fomento'!$I$1:$I$396)))+('Lista de Verificação de Fomento'!$I$1:$I$396<>\"Yes\")*1048577, 0, 0), ROW(A40))),\"\")","v":""},{"$f":"IFERROR(VLOOKUP(B44,'Lista de Verificação de Fomento'!B:C,2,0),\"\")","v":""},{"$f":"IFERROR(VLOOKUP(VLOOKUP(B44,'Lista de Verificação de Fomento'!B:J,9,0),DropDowns!G:H,2,0),\"\")","v":""},{"$f":"IFERROR(VLOOKUP(B44,'Lista de Verificação de Fomento'!B:E,4,0),\"\")","v":""},{"$f":"IFERROR(VLOOKUP(B44,'Lista de Verificação de Fomento'!B:G,6,0),\"\")","v":""},null,"",null,""]
[null,{"$f":"IFERROR(INDEX('Lista de Verificação de Fomento'!$B$1:$B$396, SMALL(INDEX(('Lista de Verificação de Fomento'!$I$1:$I$396=\"Yes\")*(MATCH(ROW('Lista de Verificação de Fomento'!$I$1:$I$396), ROW('Lista de Verificação de Fomento'!$I$1:$I$396)))+('Lista de Verificação de Fomento'!$I$1:$I$396<>\"Yes\")*1048577, 0, 0), ROW(A41))),\"\")","v":""},{"$f":"IFERROR(VLOOKUP(B45,'Lista de Verificação de Fomento'!B:C,2,0),\"\")","v":""},{"$f":"IFERROR(VLOOKUP(VLOOKUP(B45,'Lista de Verificação de Fomento'!B:J,9,0),DropDowns!G:H,2,0),\"\")","v":""},{"$f":"IFERROR(VLOOKUP(B45,'Lista de Verificação de Fomento'!B:E,4,0),\"\")","v":""},{"$f":"IFERROR(VLOOKUP(B45,'Lista de Verificação de Fomento'!B:G,6,0),\"\")","v":""},null,"",null,""]
[null,{"$f":"IFERROR(INDEX('Lista de Verificação de Fomento'!$B$1:$B$396, SMALL(INDEX(('Lista de Verificação de Fomento'!$I$1:$I$396=\"Yes\")*(MATCH(ROW('Lista de Verificação de Fomento'!$I$1:$I$396), ROW('Lista de Verificação de Fomento'!$I$1:$I$396)))+('Lista de Verificação de Fomento'!$I$1:$I$396<>\"Yes\")*1048577, 0, 0), ROW(A42))),\"\")","v":""},{"$f":"IFERROR(VLOOKUP(B46,'Lista de Verificação de Fomento'!B:C,2,0),\"\")","v":""},{"$f":"IFERROR(VLOOKUP(VLOOKUP(B46,'Lista de Verificação de Fomento'!B:J,9,0),DropDowns!G:H,2,0),\"\")","v":""},{"$f":"IFERROR(VLOOKUP(B46,'Lista de Verificação de Fomento'!B:E,4,0),\"\")","v":""},{"$f":"IFERROR(VLOOKUP(B46,'Lista de Verificação de Fomento'!B:G,6,0),\"\")","v":""},null,"",null,""]
[null,{"$f":"IFERROR(INDEX('Lista de Verificação de Fomento'!$B$1:$B$396, SMALL(INDEX(('Lista de Verificação de Fomento'!$I$1:$I$396=\"Yes\")*(MATCH(ROW('Lista de Verificação de Fomento'!$I$1:$I$396), ROW('Lista de Verificação de Fomento'!$I$1:$I$396)))+('Lista de Verificação de Fomento'!$I$1:$I$396<>\"Yes\")*1048577, 0, 0), ROW(A43))),\"\")","v":""},{"$f":"IFERROR(VLOOKUP(B47,'Lista de Verificação de Fomento'!B:C,2,0),\"\")","v":""},{"$f":"IFERROR(VLOOKUP(VLOOKUP(B47,'Lista de Verificação de Fomento'!B:J,9,0),DropDowns!G:H,2,0),\"\")","v":""},{"$f":"IFERROR(VLOOKUP(B47,'Lista de Verificação de Fomento'!B:E,4,0),\"\")","v":""},{"$f":"IFERROR(VLOOKUP(B47,'Lista de Verificação de Fomento'!B:G,6,0),\"\")","v":""},null,"",null,""]
[null,{"$f":"IFERROR(INDEX('Lista de Verificação de Fomento'!$B$1:$B$396, SMALL(INDEX(('Lista de Verificação de Fomento'!$I$1:$I$396=\"Yes\")*(MATCH(ROW('Lista de Verificação de Fomento'!$I$1:$I$396), ROW('Lista de Verificação de Fomento'!$I$1:$I$396)))+('Lista de Verificação de Fomento'!$I$1:$I$396<>\"Yes\")*1048577, 0, 0), ROW(A44))),\"\")","v":""},{"$f":"IFERROR(VLOOKUP(B48,'Lista de Verificação de Fomento'!B:C,2,0),\"\")","v":""},{"$f":"IFERROR(VLOOKUP(VLOOKUP(B48,'Lista de Verificação de Fomento'!B:J,9,0),DropDowns!G:H,2,0),\"\")","v":""},{"$f":"IFERROR(VLOOKUP(B48,'Lista de Verificação de Fomento'!B:E,4,0),\"\")","v":""},{"$f":"IFERROR(VLOOKUP(B48,'Lista de Verificação de Fomento'!B:G,6,0),\"\")","v":""},null,"",null,""]
[null,{"$f":"IFERROR(INDEX('Lista de Verificação de Fomento'!$B$1:$B$396, SMALL(INDEX(('Lista de Verificação de Fomento'!$I$1:$I$396=\"Yes\")*(MATCH(ROW('Lista de Verificação de Fomento'!$I$1:$I$396), ROW('Lista de Verificação de Fomento'!$I$1:$I$396)))+('Lista de Verificação de Fomento'!$I$1:$I$396<>\"Yes\")*1048577, 0, 0), ROW(A45))),\"\")","v":""},{"$f":"IFERROR(VLOOKUP(B49,'Lista de Verificação de Fomento'!B:C,2,0),\"\")","v":""},{"$f":"IFERROR(VLOOKUP(VLOOKUP(B49,'Lista de Verificação de Fomento'!B:J,9,0),DropDowns!G:H,2,0),\"\")","v":""},{"$f":"IFERROR(VLOOKUP(B49,'Lista de Verificação de Fomento'!B:E,4,0),\"\")","v":""},{"$f":"IFERROR(VLOOKUP(B49,'Lista de Verificação de Fomento'!B:G,6,0),\"\")","v":""},null,"",null,""]
[null,{"$f":"IFERROR(INDEX('Lista de Verificação de Fomento'!$B$1:$B$396, SMALL(INDEX(('Lista de Verificação de Fomento'!$I$1:$I$396=\"Yes\")*(MATCH(ROW('Lista de Verificação de Fomento'!$I$1:$I$396), ROW('Lista de Verificação de Fomento'!$I$1:$I$396)))+('Lista de Verificação de Fomento'!$I$1:$I$396<>\"Yes\")*1048577, 0, 0), ROW(A46))),\"\")","v":""},{"$f":"IFERROR(VLOOKUP(B50,'Lista de Verificação de Fomento'!B:C,2,0),\"\")","v":""},{"$f":"IFERROR(VLOOKUP(VLOOKUP(B50,'Lista de Verificação de Fomento'!B:J,9,0),DropDowns!G:H,2,0),\"\")","v":""},{"$f":"IFERROR(VLOOKUP(B50,'Lista de Verificação de Fomento'!B:E,4,0),\"\")","v":""},{"$f":"IFERROR(VLOOKUP(B50,'Lista de Verificação de Fomento'!B:G,6,0),\"\")","v":""},null,"",null,""]
[null,{"$f":"IFERROR(INDEX('Lista de Verificação de Fomento'!$B$1:$B$396, SMALL(INDEX(('Lista de Verificação de Fomento'!$I$1:$I$396=\"Yes\")*(MATCH(ROW('Lista de Verificação de Fomento'!$I$1:$I$396), ROW('Lista de Verificação de Fomento'!$I$1:$I$396)))+('Lista de Verificação de Fomento'!$I$1:$I$396<>\"Yes\")*1048577, 0, 0), ROW(A47))),\"\")","v":""},{"$f":"IFERROR(VLOOKUP(B51,'Lista de Verificação de Fomento'!B:C,2,0),\"\")","v":""},{"$f":"IFERROR(VLOOKUP(VLOOKUP(B51,'Lista de Verificação de Fomento'!B:J,9,0),DropDowns!G:H,2,0),\"\")","v":""},{"$f":"IFERROR(VLOOKUP(B51,'Lista de Verificação de Fomento'!B:E,4,0),\"\")","v":""},{"$f":"IFERROR(VLOOKUP(B51,'Lista de Verificação de Fomento'!B:G,6,0),\"\")","v":""},null,"",null,""]
[null,{"$f":"IFERROR(INDEX('Lista de Verificação de Fomento'!$B$1:$B$396, SMALL(INDEX(('Lista de Verificação de Fomento'!$I$1:$I$396=\"Yes\")*(MATCH(ROW('Lista de Verificação de Fomento'!$I$1:$I$396), ROW('Lista de Verificação de Fomento'!$I$1:$I$396)))+('Lista de Verificação de Fomento'!$I$1:$I$396<>\"Yes\")*1048577, 0, 0), ROW(A48))),\"\")","v":""},{"$f":"IFERROR(VLOOKUP(B52,'Lista de Verificação de Fomento'!B:C,2,0),\"\")","v":""},{"$f":"IFERROR(VLOOKUP(VLOOKUP(B52,'Lista de Verificação de Fomento'!B:J,9,0),DropDowns!G:H,2,0),\"\")","v":""},{"$f":"IFERROR(VLOOKUP(B52,'Lista de Verificação de Fomento'!B:E,4,0),\"\")","v":""},{"$f":"IFERROR(VLOOKUP(B52,'Lista de Verificação de Fomento'!B:G,6,0),\"\")","v":""},null,"",null,""]
[null,{"$f":"IFERROR(INDEX('Lista de Verificação de Fomento'!$B$1:$B$396, SMALL(INDEX(('Lista de Verificação de Fomento'!$I$1:$I$396=\"Yes\")*(MATCH(ROW('Lista de Verificação de Fomento'!$I$1:$I$396), ROW('Lista de Verificação de Fomento'!$I$1:$I$396)))+('Lista de Verificação de Fomento'!$I$1:$I$396<>\"Yes\")*1048577, 0, 0), ROW(A49))),\"\")","v":""},{"$f":"IFERROR(VLOOKUP(B53,'Lista de Verificação de Fomento'!B:C,2,0),\"\")","v":""},{"$f":"IFERROR(VLOOKUP(VLOOKUP(B53,'Lista de Verificação de Fomento'!B:J,9,0),DropDowns!G:H,2,0),\"\")","v":""},{"$f":"IFERROR(VLOOKUP(B53,'Lista de Verificação de Fomento'!B:E,4,0),\"\")","v":""},{"$f":"IFERROR(VLOOKUP(B53,'Lista de Verificação de Fomento'!B:G,6,0),\"\")","v":""},null,"",null,""]
[null,{"$f":"IFERROR(INDEX('Lista de Verificação de Fomento'!$B$1:$B$396, SMALL(INDEX(('Lista de Verificação de Fomento'!$I$1:$I$396=\"Yes\")*(MATCH(ROW('Lista de Verificação de Fomento'!$I$1:$I$396), ROW('Lista de Verificação de Fomento'!$I$1:$I$396)))+('Lista de Verificação de Fomento'!$I$1:$I$396<>\"Yes\")*1048577, 0, 0), ROW(A50))),\"\")","v":""},{"$f":"IFERROR(VLOOKUP(B54,'Lista de Verificação de Fomento'!B:C,2,0),\"\")","v":""},{"$f":"IFERROR(VLOOKUP(VLOOKUP(B54,'Lista de Verificação de Fomento'!B:J,9,0),DropDowns!G:H,2,0),\"\")","v":""},{"$f":"IFERROR(VLOOKUP(B54,'Lista de Verificação de Fomento'!B:E,4,0),\"\")","v":""},{"$f":"IFERROR(VLOOKUP(B54,'Lista de Verificação de Fomento'!B:G,6,0),\"\")","v":""},null,"",null,""]
[null,{"$f":"IFERROR(INDEX('Lista de Verificação de Fomento'!$B$1:$B$396, SMALL(INDEX(('Lista de Verificação de Fomento'!$I$1:$I$396=\"Yes\")*(MATCH(ROW('Lista de Verificação de Fomento'!$I$1:$I$396), ROW('Lista de Verificação de Fomento'!$I$1:$I$396)))+('Lista de Verificação de Fomento'!$I$1:$I$396<>\"Yes\")*1048577, 0, 0), ROW(A51))),\"\")","v":""},{"$f":"IFERROR(VLOOKUP(B55,'Lista de Verificação de Fomento'!B:C,2,0),\"\")","v":""},{"$f":"IFERROR(VLOOKUP(VLOOKUP(B55,'Lista de Verificação de Fomento'!B:J,9,0),DropDowns!G:H,2,0),\"\")","v":""},{"$f":"IFERROR(VLOOKUP(B55,'Lista de Verificação de Fomento'!B:E,4,0),\"\")","v":""},{"$f":"IFERROR(VLOOKUP(B55,'Lista de Verificação de Fomento'!B:G,6,0),\"\")","v":""},null,"",null,""]
[null,{"$f":"IFERROR(INDEX('Lista de Verificação de Fomento'!$B$1:$B$396, SMALL(INDEX(('Lista de Verificação de Fomento'!$I$1:$I$396=\"Yes\")*(MATCH(ROW('Lista de Verificação de Fomento'!$I$1:$I$396), ROW('Lista de Verificação de Fomento'!$I$1:$I$396)))+('Lista de Verificação de Fomento'!$I$1:$I$396<>\"Yes\")*1048577, 0, 0), ROW(A52))),\"\")","v":""},{"$f":"IFERROR(VLOOKUP(B56,'Lista de Verificação de Fomento'!B:C,2,0),\"\")","v":""},{"$f":"IFERROR(VLOOKUP(VLOOKUP(B56,'Lista de Verificação de Fomento'!B:J,9,0),DropDowns!G:H,2,0),\"\")","v":""},{"$f":"IFERROR(VLOOKUP(B56,'Lista de Verificação de Fomento'!B:E,4,0),\"\")","v":""},{"$f":"IFERROR(VLOOKUP(B56,'Lista de Verificação de Fomento'!B:G,6,0),\"\")","v":""},null,"",null,""]
[null,{"$f":"IFERROR(INDEX('Lista de Verificação de Fomento'!$B$1:$B$396, SMALL(INDEX(('Lista de Verificação de Fomento'!$I$1:$I$396=\"Yes\")*(MATCH(ROW('Lista de Verificação de Fomento'!$I$1:$I$396), ROW('Lista de Verificação de Fomento'!$I$1:$I$396)))+('Lista de Verificação de Fomento'!$I$1:$I$396<>\"Yes\")*1048577, 0, 0), ROW(A53))),\"\")","v":""},{"$f":"IFERROR(VLOOKUP(B57,'Lista de Verificação de Fomento'!B:C,2,0),\"\")","v":""},{"$f":"IFERROR(VLOOKUP(VLOOKUP(B57,'Lista de Verificação de Fomento'!B:J,9,0),DropDowns!G:H,2,0),\"\")","v":""},{"$f":"IFERROR(VLOOKUP(B57,'Lista de Verificação de Fomento'!B:E,4,0),\"\")","v":""},{"$f":"IFERROR(VLOOKUP(B57,'Lista de Verificação de Fomento'!B:G,6,0),\"\")","v":""},null,"",null,""]
[null,{"$f":"IFERROR(INDEX('Lista de Verificação de Fomento'!$B$1:$B$396, SMALL(INDEX(('Lista de Verificação de Fomento'!$I$1:$I$396=\"Yes\")*(MATCH(ROW('Lista de Verificação de Fomento'!$I$1:$I$396), ROW('Lista de Verificação de Fomento'!$I$1:$I$396)))+('Lista de Verificação de Fomento'!$I$1:$I$396<>\"Yes\")*1048577, 0, 0), ROW(A54))),\"\")","v":""},{"$f":"IFERROR(VLOOKUP(B58,'Lista de Verificação de Fomento'!B:C,2,0),\"\")","v":""},{"$f":"IFERROR(VLOOKUP(VLOOKUP(B58,'Lista de Verificação de Fomento'!B:J,9,0),DropDowns!G:H,2,0),\"\")","v":""},{"$f":"IFERROR(VLOOKUP(B58,'Lista de Verificação de Fomento'!B:E,4,0),\"\")","v":""},{"$f":"IFERROR(VLOOKUP(B58,'Lista de Verificação de Fomento'!B:G,6,0),\"\")","v":""},null,"",null,""]
[null,{"$f":"IFERROR(INDEX('Lista de Verificação de Fomento'!$B$1:$B$396, SMALL(INDEX(('Lista de Verificação de Fomento'!$I$1:$I$396=\"Yes\")*(MATCH(ROW('Lista de Verificação de Fomento'!$I$1:$I$396), ROW('Lista de Verificação de Fomento'!$I$1:$I$396)))+('Lista de Verificação de Fomento'!$I$1:$I$396<>\"Yes\")*1048577, 0, 0), ROW(A55))),\"\")","v":""},{"$f":"IFERROR(VLOOKUP(B59,'Lista de Verificação de Fomento'!B:C,2,0),\"\")","v":""},{"$f":"IFERROR(VLOOKUP(VLOOKUP(B59,'Lista de Verificação de Fomento'!B:J,9,0),DropDowns!G:H,2,0),\"\")","v":""},{"$f":"IFERROR(VLOOKUP(B59,'Lista de Verificação de Fomento'!B:E,4,0),\"\")","v":""},{"$f":"IFERROR(VLOOKUP(B59,'Lista de Verificação de Fomento'!B:G,6,0),\"\")","v":""},null,"",null,""]
[null,{"$f":"IFERROR(INDEX('Lista de Verificação de Fomento'!$B$1:$B$396, SMALL(INDEX(('Lista de Verificação de Fomento'!$I$1:$I$396=\"Yes\")*(MATCH(ROW('Lista de Verificação de Fomento'!$I$1:$I$396), ROW('Lista de Verificação de Fomento'!$I$1:$I$396)))+('Lista de Verificação de Fomento'!$I$1:$I$396<>\"Yes\")*1048577, 0, 0), ROW(A56))),\"\")","v":""},{"$f":"IFERROR(VLOOKUP(B60,'Lista de Verificação de Fomento'!B:C,2,0),\"\")","v":""},{"$f":"IFERROR(VLOOKUP(VLOOKUP(B60,'Lista de Verificação de Fomento'!B:J,9,0),DropDowns!G:H,2,0),\"\")","v":""},{"$f":"IFERROR(VLOOKUP(B60,'Lista de Verificação de Fomento'!B:E,4,0),\"\")","v":""},{"$f":"IFERROR(VLOOKUP(B60,'Lista de Verificação de Fomento'!B:G,6,0),\"\")","v":""},null,"",null,""]
[null,{"$f":"IFERROR(INDEX('Lista de Verificação de Fomento'!$B$1:$B$396, SMALL(INDEX(('Lista de Verificação de Fomento'!$I$1:$I$396=\"Yes\")*(MATCH(ROW('Lista de Verificação de Fomento'!$I$1:$I$396), ROW('Lista de Verificação de Fomento'!$I$1:$I$396)))+('Lista de Verificação de Fomento'!$I$1:$I$396<>\"Yes\")*1048577, 0, 0), ROW(A57))),\"\")","v":""},{"$f":"IFERROR(VLOOKUP(B61,'Lista de Verificação de Fomento'!B:C,2,0),\"\")","v":""},{"$f":"IFERROR(VLOOKUP(VLOOKUP(B61,'Lista de Verificação de Fomento'!B:J,9,0),DropDowns!G:H,2,0),\"\")","v":""},{"$f":"IFERROR(VLOOKUP(B61,'Lista de Verificação de Fomento'!B:E,4,0),\"\")","v":""},{"$f":"IFERROR(VLOOKUP(B61,'Lista de Verificação de Fomento'!B:G,6,0),\"\")","v":""},null,"",null,""]
[null,{"$f":"IFERROR(INDEX('Lista de Verificação de Fomento'!$B$1:$B$396, SMALL(INDEX(('Lista de Verificação de Fomento'!$I$1:$I$396=\"Yes\")*(MATCH(ROW('Lista de Verificação de Fomento'!$I$1:$I$396), ROW('Lista de Verificação de Fomento'!$I$1:$I$396)))+('Lista de Verificação de Fomento'!$I$1:$I$396<>\"Yes\")*1048577, 0, 0), ROW(A58))),\"\")","v":""},{"$f":"IFERROR(VLOOKUP(B62,'Lista de Verificação de Fomento'!B:C,2,0),\"\")","v":""},{"$f":"IFERROR(VLOOKUP(VLOOKUP(B62,'Lista de Verificação de Fomento'!B:J,9,0),DropDowns!G:H,2,0),\"\")","v":""},{"$f":"IFERROR(VLOOKUP(B62,'Lista de Verificação de Fomento'!B:E,4,0),\"\")","v":""},{"$f":"IFERROR(VLOOKUP(B62,'Lista de Verificação de Fomento'!B:G,6,0),\"\")","v":""},null,"",null,""]
[null,{"$f":"IFERROR(INDEX('Lista de Verificação de Fomento'!$B$1:$B$396, SMALL(INDEX(('Lista de Verificação de Fomento'!$I$1:$I$396=\"Yes\")*(MATCH(ROW('Lista de Verificação de Fomento'!$I$1:$I$396), ROW('Lista de Verificação de Fomento'!$I$1:$I$396)))+('Lista de Verificação de Fomento'!$I$1:$I$396<>\"Yes\")*1048577, 0, 0), ROW(A59))),\"\")","v":""},{"$f":"IFERROR(VLOOKUP(B63,'Lista de Verificação de Fomento'!B:C,2,0),\"\")","v":""},{"$f":"IFERROR(VLOOKUP(VLOOKUP(B63,'Lista de Verificação de Fomento'!B:J,9,0),DropDowns!G:H,2,0),\"\")","v":""},{"$f":"IFERROR(VLOOKUP(B63,'Lista de Verificação de Fomento'!B:E,4,0),\"\")","v":""},{"$f":"IFERROR(VLOOKUP(B63,'Lista de Verificação de Fomento'!B:G,6,0),\"\")","v":""},null,"",null,""]
[null,{"$f":"IFERROR(INDEX('Lista de Verificação de Fomento'!$B$1:$B$396, SMALL(INDEX(('Lista de Verificação de Fomento'!$I$1:$I$396=\"Yes\")*(MATCH(ROW('Lista de Verificação de Fomento'!$I$1:$I$396), ROW('Lista de Verificação de Fomento'!$I$1:$I$396)))+('Lista de Verificação de Fomento'!$I$1:$I$396<>\"Yes\")*1048577, 0, 0), ROW(A60))),\"\")","v":""},{"$f":"IFERROR(VLOOKUP(B64,'Lista de Verificação de Fomento'!B:C,2,0),\"\")","v":""},{"$f":"IFERROR(VLOOKUP(VLOOKUP(B64,'Lista de Verificação de Fomento'!B:J,9,0),DropDowns!G:H,2,0),\"\")","v":""},{"$f":"IFERROR(VLOOKUP(B64,'Lista de Verificação de Fomento'!B:E,4,0),\"\")","v":""},{"$f":"IFERROR(VLOOKUP(B64,'Lista de Verificação de Fomento'!B:G,6,0),\"\")","v":""},null,"",null,""]
[null,{"$f":"IFERROR(INDEX('Lista de Verificação de Fomento'!$B$1:$B$396, SMALL(INDEX(('Lista de Verificação de Fomento'!$I$1:$I$396=\"Yes\")*(MATCH(ROW('Lista de Verificação de Fomento'!$I$1:$I$396), ROW('Lista de Verificação de Fomento'!$I$1:$I$396)))+('Lista de Verificação de Fomento'!$I$1:$I$396<>\"Yes\")*1048577, 0, 0), ROW(A61))),\"\")","v":""},{"$f":"IFERROR(VLOOKUP(B65,'Lista de Verificação de Fomento'!B:C,2,0),\"\")","v":""},{"$f":"IFERROR(VLOOKUP(VLOOKUP(B65,'Lista de Verificação de Fomento'!B:J,9,0),DropDowns!G:H,2,0),\"\")","v":""},{"$f":"IFERROR(VLOOKUP(B65,'Lista de Verificação de Fomento'!B:E,4,0),\"\")","v":""},{"$f":"IFERROR(VLOOKUP(B65,'Lista de Verificação de Fomento'!B:G,6,0),\"\")","v":""},null,"",null,""]
[null,{"$f":"IFERROR(INDEX('Lista de Verificação de Fomento'!$B$1:$B$396, SMALL(INDEX(('Lista de Verificação de Fomento'!$I$1:$I$396=\"Yes\")*(MATCH(ROW('Lista de Verificação de Fomento'!$I$1:$I$396), ROW('Lista de Verificação de Fomento'!$I$1:$I$396)))+('Lista de Verificação de Fomento'!$I$1:$I$396<>\"Yes\")*1048577, 0, 0), ROW(A62))),\"\")","v":""},{"$f":"IFERROR(VLOOKUP(B66,'Lista de Verificação de Fomento'!B:C,2,0),\"\")","v":""},{"$f":"IFERROR(VLOOKUP(VLOOKUP(B66,'Lista de Verificação de Fomento'!B:J,9,0),DropDowns!G:H,2,0),\"\")","v":""},{"$f":"IFERROR(VLOOKUP(B66,'Lista de Verificação de Fomento'!B:E,4,0),\"\")","v":""},{"$f":"IFERROR(VLOOKUP(B66,'Lista de Verificação de Fomento'!B:G,6,0),\"\")","v":""},null,"",null,""]
[null,{"$f":"IFERROR(INDEX('Lista de Verificação de Fomento'!$B$1:$B$396, SMALL(INDEX(('Lista de Verificação de Fomento'!$I$1:$I$396=\"Yes\")*(MATCH(ROW('Lista de Verificação de Fomento'!$I$1:$I$396), ROW('Lista de Verificação de Fomento'!$I$1:$I$396)))+('Lista de Verificação de Fomento'!$I$1:$I$396<>\"Yes\")*1048577, 0, 0), ROW(A63))),\"\")","v":""},{"$f":"IFERROR(VLOOKUP(B67,'Lista de Verificação de Fomento'!B:C,2,0),\"\")","v":""},{"$f":"IFERROR(VLOOKUP(VLOOKUP(B67,'Lista de Verificação de Fomento'!B:J,9,0),DropDowns!G:H,2,0),\"\")","v":""},{"$f":"IFERROR(VLOOKUP(B67,'Lista de Verificação de Fomento'!B:E,4,0),\"\")","v":""},{"$f":"IFERROR(VLOOKUP(B67,'Lista de Verificação de Fomento'!B:G,6,0),\"\")","v":""},null,"",null,""]
[null,{"$f":"IFERROR(INDEX('Lista de Verificação de Fomento'!$B$1:$B$396, SMALL(INDEX(('Lista de Verificação de Fomento'!$I$1:$I$396=\"Yes\")*(MATCH(ROW('Lista de Verificação de Fomento'!$I$1:$I$396), ROW('Lista de Verificação de Fomento'!$I$1:$I$396)))+('Lista de Verificação de Fomento'!$I$1:$I$396<>\"Yes\")*1048577, 0, 0), ROW(A64))),\"\")","v":""},{"$f":"IFERROR(VLOOKUP(B68,'Lista de Verificação de Fomento'!B:C,2,0),\"\")","v":""},{"$f":"IFERROR(VLOOKUP(VLOOKUP(B68,'Lista de Verificação de Fomento'!B:J,9,0),DropDowns!G:H,2,0),\"\")","v":""},{"$f":"IFERROR(VLOOKUP(B68,'Lista de Verificação de Fomento'!B:E,4,0),\"\")","v":""},{"$f":"IFERROR(VLOOKUP(B68,'Lista de Verificação de Fomento'!B:G,6,0),\"\")","v":""},null,"",null,""]
[null,{"$f":"IFERROR(INDEX('Lista de Verificação de Fomento'!$B$1:$B$396, SMALL(INDEX(('Lista de Verificação de Fomento'!$I$1:$I$396=\"Yes\")*(MATCH(ROW('Lista de Verificação de Fomento'!$I$1:$I$396), ROW('Lista de Verificação de Fomento'!$I$1:$I$396)))+('Lista de Verificação de Fomento'!$I$1:$I$396<>\"Yes\")*1048577, 0, 0), ROW(A65))),\"\")","v":""},{"$f":"IFERROR(VLOOKUP(B69,'Lista de Verificação de Fomento'!B:C,2,0),\"\")","v":""},{"$f":"IFERROR(VLOOKUP(VLOOKUP(B69,'Lista de Verificação de Fomento'!B:J,9,0),DropDowns!G:H,2,0),\"\")","v":""},{"$f":"IFERROR(VLOOKUP(B69,'Lista de Verificação de Fomento'!B:E,4,0),\"\")","v":""},{"$f":"IFERROR(VLOOKUP(B69,'Lista de Verificação de Fomento'!B:G,6,0),\"\")","v":""},null,"",null,""]
[null,{"$f":"IFERROR(INDEX('Lista de Verificação de Fomento'!$B$1:$B$396, SMALL(INDEX(('Lista de Verificação de Fomento'!$I$1:$I$396=\"Yes\")*(MATCH(ROW('Lista de Verificação de Fomento'!$I$1:$I$396), ROW('Lista de Verificação de Fomento'!$I$1:$I$396)))+('Lista de Verificação de Fomento'!$I$1:$I$396<>\"Yes\")*1048577, 0, 0), ROW(A66))),\"\")","v":""},{"$f":"IFERROR(VLOOKUP(B70,'Lista de Verificação de Fomento'!B:C,2,0),\"\")","v":""},{"$f":"IFERROR(VLOOKUP(VLOOKUP(B70,'Lista de Verificação de Fomento'!B:J,9,0),DropDowns!G:H,2,0),\"\")","v":""},{"$f":"IFERROR(VLOOKUP(B70,'Lista de Verificação de Fomento'!B:E,4,0),\"\")","v":""},{"$f":"IFERROR(VLOOKUP(B70,'Lista de Verificação de Fomento'!B:G,6,0),\"\")","v":""},null,{"$f":"IF(B70<>\"\",\"Interna:\",\"\")","v":""},null,{"$f":"IF(B70<>\"\",\"Externa:\",\"\")","v":""}]
[null,{"$f":"IFERROR(INDEX('Lista de Verificação de Fomento'!$B$1:$B$396, SMALL(INDEX(('Lista de Verificação de Fomento'!$I$1:$I$396=\"Yes\")*(MATCH(ROW('Lista de Verificação de Fomento'!$I$1:$I$396), ROW('Lista de Verificação de Fomento'!$I$1:$I$396)))+('Lista de Verificação de Fomento'!$I$1:$I$396<>\"Yes\")*1048577, 0, 0), ROW(A67))),\"\")","v":""},{"$f":"IFERROR(VLOOKUP(B71,'Lista de Verificação de Fomento'!B:C,2,0),\"\")","v":""},{"$f":"IFERROR(VLOOKUP(VLOOKUP(B71,'Lista de Verificação de Fomento'!B:J,9,0),DropDowns!G:H,2,0),\"\")","v":""},{"$f":"IFERROR(VLOOKUP(B71,'Lista de Verificação de Fomento'!B:E,4,0),\"\")","v":""},{"$f":"IFERROR(VLOOKUP(B71,'Lista de Verificação de Fomento'!B:G,6,0),\"\")","v":""},null,"",null,""]
[null,{"$f":"IFERROR(INDEX('Lista de Verificação de Fomento'!$B$1:$B$396, SMALL(INDEX(('Lista de Verificação de Fomento'!$I$1:$I$396=\"Yes\")*(MATCH(ROW('Lista de Verificação de Fomento'!$I$1:$I$396), ROW('Lista de Verificação de Fomento'!$I$1:$I$396)))+('Lista de Verificação de Fomento'!$I$1:$I$396<>\"Yes\")*1048577, 0, 0), ROW(A68))),\"\")","v":""},{"$f":"IFERROR(VLOOKUP(B72,'Lista de Verificação de Fomento'!B:C,2,0),\"\")","v":""},{"$f":"IFERROR(VLOOKUP(VLOOKUP(B72,'Lista de Verificação de Fomento'!B:J,9,0),DropDowns!G:H,2,0),\"\")","v":""},{"$f":"IFERROR(VLOOKUP(B72,'Lista de Verificação de Fomento'!B:E,4,0),\"\")","v":""},{"$f":"IFERROR(VLOOKUP(B72,'Lista de Verificação de Fomento'!B:G,6,0),\"\")","v":""},null,"",null,""]
[null,{"$f":"IFERROR(INDEX('Lista de Verificação de Fomento'!$B$1:$B$396, SMALL(INDEX(('Lista de Verificação de Fomento'!$I$1:$I$396=\"Yes\")*(MATCH(ROW('Lista de Verificação de Fomento'!$I$1:$I$396), ROW('Lista de Verificação de Fomento'!$I$1:$I$396)))+('Lista de Verificação de Fomento'!$I$1:$I$396<>\"Yes\")*1048577, 0, 0), ROW(A69))),\"\")","v":""},{"$f":"IFERROR(VLOOKUP(B73,'Lista de Verificação de Fomento'!B:C,2,0),\"\")","v":""},{"$f":"IFERROR(VLOOKUP(VLOOKUP(B73,'Lista de Verificação de Fomento'!B:J,9,0),DropDowns!G:H,2,0),\"\")","v":""},{"$f":"IFERROR(VLOOKUP(B73,'Lista de Verificação de Fomento'!B:E,4,0),\"\")","v":""},{"$f":"IFERROR(VLOOKUP(B73,'Lista de Verificação de Fomento'!B:G,6,0),\"\")","v":""},null,"",null,""]
[null,{"$f":"IFERROR(INDEX('Lista de Verificação de Fomento'!$B$1:$B$396, SMALL(INDEX(('Lista de Verificação de Fomento'!$I$1:$I$396=\"Yes\")*(MATCH(ROW('Lista de Verificação de Fomento'!$I$1:$I$396), ROW('Lista de Verificação de Fomento'!$I$1:$I$396)))+('Lista de Verificação de Fomento'!$I$1:$I$396<>\"Yes\")*1048577, 0, 0), ROW(A70))),\"\")","v":""},{"$f":"IFERROR(VLOOKUP(B74,'Lista de Verificação de Fomento'!B:C,2,0),\"\")","v":""},{"$f":"IFERROR(VLOOKUP(VLOOKUP(B74,'Lista de Verificação de Fomento'!B:J,9,0),DropDowns!G:H,2,0),\"\")","v":""},{"$f":"IFERROR(VLOOKUP(B74,'Lista de Verificação de Fomento'!B:E,4,0),\"\")","v":""},{"$f":"IFERROR(VLOOKUP(B74,'Lista de Verificação de Fomento'!B:G,6,0),\"\")","v":""},null,"",null,""]
[null,{"$f":"IFERROR(INDEX('Lista de Verificação de Fomento'!$B$1:$B$396, SMALL(INDEX(('Lista de Verificação de Fomento'!$I$1:$I$396=\"Yes\")*(MATCH(ROW('Lista de Verificação de Fomento'!$I$1:$I$396), ROW('Lista de Verificação de Fomento'!$I$1:$I$396)))+('Lista de Verificação de Fomento'!$I$1:$I$396<>\"Yes\")*1048577, 0, 0), ROW(A71))),\"\")","v":""},{"$f":"IFERROR(VLOOKUP(B75,'Lista de Verificação de Fomento'!B:C,2,0),\"\")","v":""},{"$f":"IFERROR(VLOOKUP(VLOOKUP(B75,'Lista de Verificação de Fomento'!B:J,9,0),DropDowns!G:H,2,0),\"\")","v":""},{"$f":"IFERROR(VLOOKUP(B75,'Lista de Verificação de Fomento'!B:E,4,0),\"\")","v":""},{"$f":"IFERROR(VLOOKUP(B75,'Lista de Verificação de Fomento'!B:G,6,0),\"\")","v":""},null,"",null,""]
[null,{"$f":"IFERROR(INDEX('Lista de Verificação de Fomento'!$B$1:$B$396, SMALL(INDEX(('Lista de Verificação de Fomento'!$I$1:$I$396=\"Yes\")*(MATCH(ROW('Lista de Verificação de Fomento'!$I$1:$I$396), ROW('Lista de Verificação de Fomento'!$I$1:$I$396)))+('Lista de Verificação de Fomento'!$I$1:$I$396<>\"Yes\")*1048577, 0, 0), ROW(A72))),\"\")","v":""},{"$f":"IFERROR(VLOOKUP(B76,'Lista de Verificação de Fomento'!B:C,2,0),\"\")","v":""},{"$f":"IFERROR(VLOOKUP(VLOOKUP(B76,'Lista de Verificação de Fomento'!B:J,9,0),DropDowns!G:H,2,0),\"\")","v":""},{"$f":"IFERROR(VLOOKUP(B76,'Lista de Verificação de Fomento'!B:E,4,0),\"\")","v":""},{"$f":"IFERROR(VLOOKUP(B76,'Lista de Verificação de Fomento'!B:G,6,0),\"\")","v":""},null,"",null,""]
[null,{"$f":"IFERROR(INDEX('Lista de Verificação de Fomento'!$B$1:$B$396, SMALL(INDEX(('Lista de Verificação de Fomento'!$I$1:$I$396=\"Yes\")*(MATCH(ROW('Lista de Verificação de Fomento'!$I$1:$I$396), ROW('Lista de Verificação de Fomento'!$I$1:$I$396)))+('Lista de Verificação de Fomento'!$I$1:$I$396<>\"Yes\")*1048577, 0, 0), ROW(A73))),\"\")","v":""},{"$f":"IFERROR(VLOOKUP(B77,'Lista de Verificação de Fomento'!B:C,2,0),\"\")","v":""},{"$f":"IFERROR(VLOOKUP(VLOOKUP(B77,'Lista de Verificação de Fomento'!B:J,9,0),DropDowns!G:H,2,0),\"\")","v":""},{"$f":"IFERROR(VLOOKUP(B77,'Lista de Verificação de Fomento'!B:E,4,0),\"\")","v":""},{"$f":"IFERROR(VLOOKUP(B77,'Lista de Verificação de Fomento'!B:G,6,0),\"\")","v":""},null,"",null,""]
[null,{"$f":"IFERROR(INDEX('Lista de Verificação de Fomento'!$B$1:$B$396, SMALL(INDEX(('Lista de Verificação de Fomento'!$I$1:$I$396=\"Yes\")*(MATCH(ROW('Lista de Verificação de Fomento'!$I$1:$I$396), ROW('Lista de Verificação de Fomento'!$I$1:$I$396)))+('Lista de Verificação de Fomento'!$I$1:$I$396<>\"Yes\")*1048577, 0, 0), ROW(A74))),\"\")","v":""},{"$f":"IFERROR(VLOOKUP(B78,'Lista de Verificação de Fomento'!B:C,2,0),\"\")","v":""},{"$f":"IFERROR(VLOOKUP(VLOOKUP(B78,'Lista de Verificação de Fomento'!B:J,9,0),DropDowns!G:H,2,0),\"\")","v":""},{"$f":"IFERROR(VLOOKUP(B78,'Lista de Verificação de Fomento'!B:E,4,0),\"\")","v":""},{"$f":"IFERROR(VLOOKUP(B78,'Lista de Verificação de Fomento'!B:G,6,0),\"\")","v":""},null,"",null,""]
[null,{"$f":"IFERROR(INDEX('Lista de Verificação de Fomento'!$B$1:$B$396, SMALL(INDEX(('Lista de Verificação de Fomento'!$I$1:$I$396=\"Yes\")*(MATCH(ROW('Lista de Verificação de Fomento'!$I$1:$I$396), ROW('Lista de Verificação de Fomento'!$I$1:$I$396)))+('Lista de Verificação de Fomento'!$I$1:$I$396<>\"Yes\")*1048577, 0, 0), ROW(A75))),\"\")","v":""},{"$f":"IFERROR(VLOOKUP(B79,'Lista de Verificação de Fomento'!B:C,2,0),\"\")","v":""},{"$f":"IFERROR(VLOOKUP(VLOOKUP(B79,'Lista de Verificação de Fomento'!B:J,9,0),DropDowns!G:H,2,0),\"\")","v":""},{"$f":"IFERROR(VLOOKUP(B79,'Lista de Verificação de Fomento'!B:E,4,0),\"\")","v":""},{"$f":"IFERROR(VLOOKUP(B79,'Lista de Verificação de Fomento'!B:G,6,0),\"\")","v":""},null,"",null,""]
[null,{"$f":"IFERROR(INDEX('Lista de Verificação de Fomento'!$B$1:$B$396, SMALL(INDEX(('Lista de Verificação de Fomento'!$I$1:$I$396=\"Yes\")*(MATCH(ROW('Lista de Verificação de Fomento'!$I$1:$I$396), ROW('Lista de Verificação de Fomento'!$I$1:$I$396)))+('Lista de Verificação de Fomento'!$I$1:$I$396<>\"Yes\")*1048577, 0, 0), ROW(A76))),\"\")","v":""},{"$f":"IFERROR(VLOOKUP(B80,'Lista de Verificação de Fomento'!B:C,2,0),\"\")","v":""},{"$f":"IFERROR(VLOOKUP(VLOOKUP(B80,'Lista de Verificação de Fomento'!B:J,9,0),DropDowns!G:H,2,0),\"\")","v":""},{"$f":"IFERROR(VLOOKUP(B80,'Lista de Verificação de Fomento'!B:E,4,0),\"\")","v":""},{"$f":"IFERROR(VLOOKUP(B80,'Lista de Verificação de Fomento'!B:G,6,0),\"\")","v":""},null,"",null,""]
[null,{"$f":"IFERROR(INDEX('Lista de Verificação de Fomento'!$B$1:$B$396, SMALL(INDEX(('Lista de Verificação de Fomento'!$I$1:$I$396=\"Yes\")*(MATCH(ROW('Lista de Verificação de Fomento'!$I$1:$I$396), ROW('Lista de Verificação de Fomento'!$I$1:$I$396)))+('Lista de Verificação de Fomento'!$I$1:$I$396<>\"Yes\")*1048577, 0, 0), ROW(A77))),\"\")","v":""},{"$f":"IFERROR(VLOOKUP(B81,'Lista de Verificação de Fomento'!B:C,2,0),\"\")","v":""},{"$f":"IFERROR(VLOOKUP(VLOOKUP(B81,'Lista de Verificação de Fomento'!B:J,9,0),DropDowns!G:H,2,0),\"\")","v":""},{"$f":"IFERROR(VLOOKUP(B81,'Lista de Verificação de Fomento'!B:E,4,0),\"\")","v":""},{"$f":"IFERROR(VLOOKUP(B81,'Lista de Verificação de Fomento'!B:G,6,0),\"\")","v":""},null,"",null,""]
[null,{"$f":"IFERROR(INDEX('Lista de Verificação de Fomento'!$B$1:$B$396, SMALL(INDEX(('Lista de Verificação de Fomento'!$I$1:$I$396=\"Yes\")*(MATCH(ROW('Lista de Verificação de Fomento'!$I$1:$I$396), ROW('Lista de Verificação de Fomento'!$I$1:$I$396)))+('Lista de Verificação de Fomento'!$I$1:$I$396<>\"Yes\")*1048577, 0, 0), ROW(A78))),\"\")","v":""},{"$f":"IFERROR(VLOOKUP(B82,'Lista de Verificação de Fomento'!B:C,2,0),\"\")","v":""},{"$f":"IFERROR(VLOOKUP(VLOOKUP(B82,'Lista de Verificação de Fomento'!B:J,9,0),DropDowns!G:H,2,0),\"\")","v":""},{"$f":"IFERROR(VLOOKUP(B82,'Lista de Verificação de Fomento'!B:E,4,0),\"\")","v":""},{"$f":"IFERROR(VLOOKUP(B82,'Lista de Verificação de Fomento'!B:G,6,0),\"\")","v":""},null,"",null,""]
[null,{"$f":"IFERROR(INDEX('Lista de Verificação de Fomento'!$B$1:$B$396, SMALL(INDEX(('Lista de Verificação de Fomento'!$I$1:$I$396=\"Yes\")*(MATCH(ROW('Lista de Verificação de Fomento'!$I$1:$I$396), ROW('Lista de Verificação de Fomento'!$I$1:$I$396)))+('Lista de Verificação de Fomento'!$I$1:$I$396<>\"Yes\")*1048577, 0, 0), ROW(A79))),\"\")","v":""},{"$f":"IFERROR(VLOOKUP(B83,'Lista de Verificação de Fomento'!B:C,2,0),\"\")","v":""},{"$f":"IFERROR(VLOOKUP(VLOOKUP(B83,'Lista de Verificação de Fomento'!B:J,9,0),DropDowns!G:H,2,0),\"\")","v":""},{"$f":"IFERROR(VLOOKUP(B83,'Lista de Verificação de Fomento'!B:E,4,0),\"\")","v":""},{"$f":"IFERROR(VLOOKUP(B83,'Lista de Verificação de Fomento'!B:G,6,0),\"\")","v":""},null,"",null,""]
[null,{"$f":"IFERROR(INDEX('Lista de Verificação de Fomento'!$B$1:$B$396, SMALL(INDEX(('Lista de Verificação de Fomento'!$I$1:$I$396=\"Yes\")*(MATCH(ROW('Lista de Verificação de Fomento'!$I$1:$I$396), ROW('Lista de Verificação de Fomento'!$I$1:$I$396)))+('Lista de Verificação de Fomento'!$I$1:$I$396<>\"Yes\")*1048577, 0, 0), ROW(A80))),\"\")","v":""},{"$f":"IFERROR(VLOOKUP(B84,'Lista de Verificação de Fomento'!B:C,2,0),\"\")","v":""},{"$f":"IFERROR(VLOOKUP(VLOOKUP(B84,'Lista de Verificação de Fomento'!B:J,9,0),DropDowns!G:H,2,0),\"\")","v":""},{"$f":"IFERROR(VLOOKUP(B84,'Lista de Verificação de Fomento'!B:E,4,0),\"\")","v":""},{"$f":"IFERROR(VLOOKUP(B84,'Lista de Verificação de Fomento'!B:G,6,0),\"\")","v":""},null,"",null,""]
[null,{"$f":"IFERROR(INDEX('Lista de Verificação de Fomento'!$B$1:$B$396, SMALL(INDEX(('Lista de Verificação de Fomento'!$I$1:$I$396=\"Yes\")*(MATCH(ROW('Lista de Verificação de Fomento'!$I$1:$I$396), ROW('Lista de Verificação de Fomento'!$I$1:$I$396)))+('Lista de Verificação de Fomento'!$I$1:$I$396<>\"Yes\")*1048577, 0, 0), ROW(A81))),\"\")","v":""},{"$f":"IFERROR(VLOOKUP(B85,'Lista de Verificação de Fomento'!B:C,2,0),\"\")","v":""},{"$f":"IFERROR(VLOOKUP(VLOOKUP(B85,'Lista de Verificação de Fomento'!B:J,9,0),DropDowns!G:H,2,0),\"\")","v":""},{"$f":"IFERROR(VLOOKUP(B85,'Lista de Verificação de Fomento'!B:E,4,0),\"\")","v":""},{"$f":"IFERROR(VLOOKUP(B85,'Lista de Verificação de Fomento'!B:G,6,0),\"\")","v":""},null,"",null,""]
[null,{"$f":"IFERROR(INDEX('Lista de Verificação de Fomento'!$B$1:$B$396, SMALL(INDEX(('Lista de Verificação de Fomento'!$I$1:$I$396=\"Yes\")*(MATCH(ROW('Lista de Verificação de Fomento'!$I$1:$I$396), ROW('Lista de Verificação de Fomento'!$I$1:$I$396)))+('Lista de Verificação de Fomento'!$I$1:$I$396<>\"Yes\")*1048577, 0, 0), ROW(A82))),\"\")","v":""},{"$f":"IFERROR(VLOOKUP(B86,'Lista de Verificação de Fomento'!B:C,2,0),\"\")","v":""},{"$f":"IFERROR(VLOOKUP(VLOOKUP(B86,'Lista de Verificação de Fomento'!B:J,9,0),DropDowns!G:H,2,0),\"\")","v":""},{"$f":"IFERROR(VLOOKUP(B86,'Lista de Verificação de Fomento'!B:E,4,0),\"\")","v":""},{"$f":"IFERROR(VLOOKUP(B86,'Lista de Verificação de Fomento'!B:G,6,0),\"\")","v":""},null,"",null,""]
[null,{"$f":"IFERROR(INDEX('Lista de Verificação de Fomento'!$B$1:$B$396, SMALL(INDEX(('Lista de Verificação de Fomento'!$I$1:$I$396=\"Yes\")*(MATCH(ROW('Lista de Verificação de Fomento'!$I$1:$I$396), ROW('Lista de Verificação de Fomento'!$I$1:$I$396)))+('Lista de Verificação de Fomento'!$I$1:$I$396<>\"Yes\")*1048577, 0, 0), ROW(A83))),\"\")","v":""},{"$f":"IFERROR(VLOOKUP(B87,'Lista de Verificação de Fomento'!B:C,2,0),\"\")","v":""},{"$f":"IFERROR(VLOOKUP(VLOOKUP(B87,'Lista de Verificação de Fomento'!B:J,9,0),DropDowns!G:H,2,0),\"\")","v":""},{"$f":"IFERROR(VLOOKUP(B87,'Lista de Verificação de Fomento'!B:E,4,0),\"\")","v":""},{"$f":"IFERROR(VLOOKUP(B87,'Lista de Verificação de Fomento'!B:G,6,0),\"\")","v":""},null,"",null,""]
[null,{"$f":"IFERROR(INDEX('Lista de Verificação de Fomento'!$B$1:$B$396, SMALL(INDEX(('Lista de Verificação de Fomento'!$I$1:$I$396=\"Yes\")*(MATCH(ROW('Lista de Verificação de Fomento'!$I$1:$I$396), ROW('Lista de Verificação de Fomento'!$I$1:$I$396)))+('Lista de Verificação de Fomento'!$I$1:$I$396<>\"Yes\")*1048577, 0, 0), ROW(A84))),\"\")","v":""},{"$f":"IFERROR(VLOOKUP(B88,'Lista de Verificação de Fomento'!B:C,2,0),\"\")","v":""},{"$f":"IFERROR(VLOOKUP(VLOOKUP(B88,'Lista de Verificação de Fomento'!B:J,9,0),DropDowns!G:H,2,0),\"\")","v":""},{"$f":"IFERROR(VLOOKUP(B88,'Lista de Verificação de Fomento'!B:E,4,0),\"\")","v":""},{"$f":"IFERROR(VLOOKUP(B88,'Lista de Verificação de Fomento'!B:G,6,0),\"\")","v":""},null,"",null,""]
[null,{"$f":"IFERROR(INDEX('Lista de Verificação de Fomento'!$B$1:$B$396, SMALL(INDEX(('Lista de Verificação de Fomento'!$I$1:$I$396=\"Yes\")*(MATCH(ROW('Lista de Verificação de Fomento'!$I$1:$I$396), ROW('Lista de Verificação de Fomento'!$I$1:$I$396)))+('Lista de Verificação de Fomento'!$I$1:$I$396<>\"Yes\")*1048577, 0, 0), ROW(A85))),\"\")","v":""},{"$f":"IFERROR(VLOOKUP(B89,'Lista de Verificação de Fomento'!B:C,2,0),\"\")","v":""},{"$f":"IFERROR(VLOOKUP(VLOOKUP(B89,'Lista de Verificação de Fomento'!B:J,9,0),DropDowns!G:H,2,0),\"\")","v":""},{"$f":"IFERROR(VLOOKUP(B89,'Lista de Verificação de Fomento'!B:E,4,0),\"\")","v":""},{"$f":"IFERROR(VLOOKUP(B89,'Lista de Verificação de Fomento'!B:G,6,0),\"\")","v":""},null,"",null,""]
[null,{"$f":"IFERROR(INDEX('Lista de Verificação de Fomento'!$B$1:$B$396, SMALL(INDEX(('Lista de Verificação de Fomento'!$I$1:$I$396=\"Yes\")*(MATCH(ROW('Lista de Verificação de Fomento'!$I$1:$I$396), ROW('Lista de Verificação de Fomento'!$I$1:$I$396)))+('Lista de Verificação de Fomento'!$I$1:$I$396<>\"Yes\")*1048577, 0, 0), ROW(A86))),\"\")","v":""},{"$f":"IFERROR(VLOOKUP(B90,'Lista de Verificação de Fomento'!B:C,2,0),\"\")","v":""},{"$f":"IFERROR(VLOOKUP(VLOOKUP(B90,'Lista de Verificação de Fomento'!B:J,9,0),DropDowns!G:H,2,0),\"\")","v":""},{"$f":"IFERROR(VLOOKUP(B90,'Lista de Verificação de Fomento'!B:E,4,0),\"\")","v":""},{"$f":"IFERROR(VLOOKUP(B90,'Lista de Verificação de Fomento'!B:G,6,0),\"\")","v":""},null,"",null,""]
[null,{"$f":"IFERROR(INDEX('Lista de Verificação de Fomento'!$B$1:$B$396, SMALL(INDEX(('Lista de Verificação de Fomento'!$I$1:$I$396=\"Yes\")*(MATCH(ROW('Lista de Verificação de Fomento'!$I$1:$I$396), ROW('Lista de Verificação de Fomento'!$I$1:$I$396)))+('Lista de Verificação de Fomento'!$I$1:$I$396<>\"Yes\")*1048577, 0, 0), ROW(A87))),\"\")","v":""},{"$f":"IFERROR(VLOOKUP(B91,'Lista de Verificação de Fomento'!B:C,2,0),\"\")","v":""},{"$f":"IFERROR(VLOOKUP(VLOOKUP(B91,'Lista de Verificação de Fomento'!B:J,9,0),DropDowns!G:H,2,0),\"\")","v":""},{"$f":"IFERROR(VLOOKUP(B91,'Lista de Verificação de Fomento'!B:E,4,0),\"\")","v":""},{"$f":"IFERROR(VLOOKUP(B91,'Lista de Verificação de Fomento'!B:G,6,0),\"\")","v":""},null,"",null,""]
[null,{"$f":"IFERROR(INDEX('Lista de Verificação de Fomento'!$B$1:$B$396, SMALL(INDEX(('Lista de Verificação de Fomento'!$I$1:$I$396=\"Yes\")*(MATCH(ROW('Lista de Verificação de Fomento'!$I$1:$I$396), ROW('Lista de Verificação de Fomento'!$I$1:$I$396)))+('Lista de Verificação de Fomento'!$I$1:$I$396<>\"Yes\")*1048577, 0, 0), ROW(A88))),\"\")","v":""},{"$f":"IFERROR(VLOOKUP(B92,'Lista de Verificação de Fomento'!B:C,2,0),\"\")","v":""},{"$f":"IFERROR(VLOOKUP(VLOOKUP(B92,'Lista de Verificação de Fomento'!B:J,9,0),DropDowns!G:H,2,0),\"\")","v":""},{"$f":"IFERROR(VLOOKUP(B92,'Lista de Verificação de Fomento'!B:E,4,0),\"\")","v":""},{"$f":"IFERROR(VLOOKUP(B92,'Lista de Verificação de Fomento'!B:G,6,0),\"\")","v":""},null,"",null,""]
[null,{"$f":"IFERROR(INDEX('Lista de Verificação de Fomento'!$B$1:$B$396, SMALL(INDEX(('Lista de Verificação de Fomento'!$I$1:$I$396=\"Yes\")*(MATCH(ROW('Lista de Verificação de Fomento'!$I$1:$I$396), ROW('Lista de Verificação de Fomento'!$I$1:$I$396)))+('Lista de Verificação de Fomento'!$I$1:$I$396<>\"Yes\")*1048577, 0, 0), ROW(A89))),\"\")","v":""},{"$f":"IFERROR(VLOOKUP(B93,'Lista de Verificação de Fomento'!B:C,2,0),\"\")","v":""},{"$f":"IFERROR(VLOOKUP(VLOOKUP(B93,'Lista de Verificação de Fomento'!B:J,9,0),DropDowns!G:H,2,0),\"\")","v":""},{"$f":"IFERROR(VLOOKUP(B93,'Lista de Verificação de Fomento'!B:E,4,0),\"\")","v":""},{"$f":"IFERROR(VLOOKUP(B93,'Lista de Verificação de Fomento'!B:G,6,0),\"\")","v":""},null,"",null,""]
[null,{"$f":"IFERROR(INDEX('Lista de Verificação de Fomento'!$B$1:$B$396, SMALL(INDEX(('Lista de Verificação de Fomento'!$I$1:$I$396=\"Yes\")*(MATCH(ROW('Lista de Verificação de Fomento'!$I$1:$I$396), ROW('Lista de Verificação de Fomento'!$I$1:$I$396)))+('Lista de Verificação de Fomento'!$I$1:$I$396<>\"Yes\")*1048577, 0, 0), ROW(A90))),\"\")","v":""},{"$f":"IFERROR(VLOOKUP(B94,'Lista de Verificação de Fomento'!B:C,2,0),\"\")","v":""},{"$f":"IFERROR(VLOOKUP(VLOOKUP(B94,'Lista de Verificação de Fomento'!B:J,9,0),DropDowns!G:H,2,0),\"\")","v":""},{"$f":"IFERROR(VLOOKUP(B94,'Lista de Verificação de Fomento'!B:E,4,0),\"\")","v":""},{"$f":"IFERROR(VLOOKUP(B94,'Lista de Verificação de Fomento'!B:G,6,0),\"\")","v":""},null,"",null,""]
[null,{"$f":"IFERROR(INDEX('Lista de Verificação de Fomento'!$B$1:$B$396, SMALL(INDEX(('Lista de Verificação de Fomento'!$I$1:$I$396=\"Yes\")*(MATCH(ROW('Lista de Verificação de Fomento'!$I$1:$I$396), ROW('Lista de Verificação de Fomento'!$I$1:$I$396)))+('Lista de Verificação de Fomento'!$I$1:$I$396<>\"Yes\")*1048577, 0, 0), ROW(A91))),\"\")","v":""},{"$f":"IFERROR(VLOOKUP(B95,'Lista de Verificação de Fomento'!B:C,2,0),\"\")","v":""},{"$f":"IFERROR(VLOOKUP(VLOOKUP(B95,'Lista de Verificação de Fomento'!B:J,9,0),DropDowns!G:H,2,0),\"\")","v":""},{"$f":"IFERROR(VLOOKUP(B95,'Lista de Verificação de Fomento'!B:E,4,0),\"\")","v":""},{"$f":"IFERROR(VLOOKUP(B95,'Lista de Verificação de Fomento'!B:G,6,0),\"\")","v":""},null,"",null,""]
[null,{"$f":"IFERROR(INDEX('Lista de Verificação de Fomento'!$B$1:$B$396, SMALL(INDEX(('Lista de Verificação de Fomento'!$I$1:$I$396=\"Yes\")*(MATCH(ROW('Lista de Verificação de Fomento'!$I$1:$I$396), ROW('Lista de Verificação de Fomento'!$I$1:$I$396)))+('Lista de Verificação de Fomento'!$I$1:$I$396<>\"Yes\")*1048577, 0, 0), ROW(A92))),\"\")","v":""},{"$f":"IFERROR(VLOOKUP(B96,'Lista de Verificação de Fomento'!B:C,2,0),\"\")","v":""},{"$f":"IFERROR(VLOOKUP(VLOOKUP(B96,'Lista de Verificação de Fomento'!B:J,9,0),DropDowns!G:H,2,0),\"\")","v":""},{"$f":"IFERROR(VLOOKUP(B96,'Lista de Verificação de Fomento'!B:E,4,0),\"\")","v":""},{"$f":"IFERROR(VLOOKUP(B96,'Lista de Verificação de Fomento'!B:G,6,0),\"\")","v":""},null,"",null,""]
[null,{"$f":"IFERROR(INDEX('Lista de Verificação de Fomento'!$B$1:$B$396, SMALL(INDEX(('Lista de Verificação de Fomento'!$I$1:$I$396=\"Yes\")*(MATCH(ROW('Lista de Verificação de Fomento'!$I$1:$I$396), ROW('Lista de Verificação de Fomento'!$I$1:$I$396)))+('Lista de Verificação de Fomento'!$I$1:$I$396<>\"Yes\")*1048577, 0, 0), ROW(A93))),\"\")","v":""},{"$f":"IFERROR(VLOOKUP(B97,'Lista de Verificação de Fomento'!B:C,2,0),\"\")","v":""},{"$f":"IFERROR(VLOOKUP(VLOOKUP(B97,'Lista de Verificação de Fomento'!B:J,9,0),DropDowns!G:H,2,0),\"\")","v":""},{"$f":"IFERROR(VLOOKUP(B97,'Lista de Verificação de Fomento'!B:E,4,0),\"\")","v":""},{"$f":"IFERROR(VLOOKUP(B97,'Lista de Verificação de Fomento'!B:G,6,0),\"\")","v":""},null,"",null,""]
[null,{"$f":"IFERROR(INDEX('Lista de Verificação de Fomento'!$B$1:$B$396, SMALL(INDEX(('Lista de Verificação de Fomento'!$I$1:$I$396=\"Yes\")*(MATCH(ROW('Lista de Verificação de Fomento'!$I$1:$I$396), ROW('Lista de Verificação de Fomento'!$I$1:$I$396)))+('Lista de Verificação de Fomento'!$I$1:$I$396<>\"Yes\")*1048577, 0, 0), ROW(A94))),\"\")","v":""},{"$f":"IFERROR(VLOOKUP(B98,'Lista de Verificação de Fomento'!B:C,2,0),\"\")","v":""},{"$f":"IFERROR(VLOOKUP(VLOOKUP(B98,'Lista de Verificação de Fomento'!B:J,9,0),DropDowns!G:H,2,0),\"\")","v":""},{"$f":"IFERROR(VLOOKUP(B98,'Lista de Verificação de Fomento'!B:E,4,0),\"\")","v":""},{"$f":"IFERROR(VLOOKUP(B98,'Lista de Verificação de Fomento'!B:G,6,0),\"\")","v":""},null,"",null,""]
[null,{"$f":"IFERROR(INDEX('Lista de Verificação de Fomento'!$B$1:$B$396, SMALL(INDEX(('Lista de Verificação de Fomento'!$I$1:$I$396=\"Yes\")*(MATCH(ROW('Lista de Verificação de Fomento'!$I$1:$I$396), ROW('Lista de Verificação de Fomento'!$I$1:$I$396)))+('Lista de Verificação de Fomento'!$I$1:$I$396<>\"Yes\")*1048577, 0, 0), ROW(A95))),\"\")","v":""},{"$f":"IFERROR(VLOOKUP(B99,'Lista de Verificação de Fomento'!B:C,2,0),\"\")","v":""},{"$f":"IFERROR(VLOOKUP(VLOOKUP(B99,'Lista de Verificação de Fomento'!B:J,9,0),DropDowns!G:H,2,0),\"\")","v":""},{"$f":"IFERROR(VLOOKUP(B99,'Lista de Verificação de Fomento'!B:E,4,0),\"\")","v":""},{"$f":"IFERROR(VLOOKUP(B99,'Lista de Verificação de Fomento'!B:G,6,0),\"\")","v":""},null,"",null,""]
[null,{"$f":"IFERROR(INDEX('Lista de Verificação de Fomento'!$B$1:$B$396, SMALL(INDEX(('Lista de Verificação de Fomento'!$I$1:$I$396=\"Yes\")*(MATCH(ROW('Lista de Verificação de Fomento'!$I$1:$I$396), ROW('Lista de Verificação de Fomento'!$I$1:$I$396)))+('Lista de Verificação de Fomento'!$I$1:$I$396<>\"Yes\")*1048577, 0, 0), ROW(A96))),\"\")","v":""},{"$f":"IFERROR(VLOOKUP(B100,'Lista de Verificação de Fomento'!B:C,2,0),\"\")","v":""},{"$f":"IFERROR(VLOOKUP(VLOOKUP(B100,'Lista de Verificação de Fomento'!B:J,9,0),DropDowns!G:H,2,0),\"\")","v":""},{"$f":"IFERROR(VLOOKUP(B100,'Lista de Verificação de Fomento'!B:E,4,0),\"\")","v":""},{"$f":"IFERROR(VLOOKUP(B100,'Lista de Verificação de Fomento'!B:G,6,0),\"\")","v":""},null,"",null,""]
[null,{"$f":"IFERROR(INDEX('Lista de Verificação de Fomento'!$B$1:$B$396, SMALL(INDEX(('Lista de Verificação de Fomento'!$I$1:$I$396=\"Yes\")*(MATCH(ROW('Lista de Verificação de Fomento'!$I$1:$I$396), ROW('Lista de Verificação de Fomento'!$I$1:$I$396)))+('Lista de Verificação de Fomento'!$I$1:$I$396<>\"Yes\")*1048577, 0, 0), ROW(A97))),\"\")","v":""},{"$f":"IFERROR(VLOOKUP(B101,'Lista de Verificação de Fomento'!B:C,2,0),\"\")","v":""},{"$f":"IFERROR(VLOOKUP(VLOOKUP(B101,'Lista de Verificação de Fomento'!B:J,9,0),DropDowns!G:H,2,0),\"\")","v":""},{"$f":"IFERROR(VLOOKUP(B101,'Lista de Verificação de Fomento'!B:E,4,0),\"\")","v":""},{"$f":"IFERROR(VLOOKUP(B101,'Lista de Verificação de Fomento'!B:G,6,0),\"\")","v":""},null,"",null,""]
[null,{"$f":"IFERROR(INDEX('Lista de Verificação de Fomento'!$B$1:$B$396, SMALL(INDEX(('Lista de Verificação de Fomento'!$I$1:$I$396=\"Yes\")*(MATCH(ROW('Lista de Verificação de Fomento'!$I$1:$I$396), ROW('Lista de Verificação de Fomento'!$I$1:$I$396)))+('Lista de Verificação de Fomento'!$I$1:$I$396<>\"Yes\")*1048577, 0, 0), ROW(A98))),\"\")","v":""},{"$f":"IFERROR(VLOOKUP(B102,'Lista de Verificação de Fomento'!B:C,2,0),\"\")","v":""},{"$f":"IFERROR(VLOOKUP(VLOOKUP(B102,'Lista de Verificação de Fomento'!B:J,9,0),DropDowns!G:H,2,0),\"\")","v":""},{"$f":"IFERROR(VLOOKUP(B102,'Lista de Verificação de Fomento'!B:E,4,0),\"\")","v":""},{"$f":"IFERROR(VLOOKUP(B102,'Lista de Verificação de Fomento'!B:G,6,0),\"\")","v":""},null,"",null,""]
[null,{"$f":"IFERROR(INDEX('Lista de Verificação de Fomento'!$B$1:$B$396, SMALL(INDEX(('Lista de Verificação de Fomento'!$I$1:$I$396=\"Yes\")*(MATCH(ROW('Lista de Verificação de Fomento'!$I$1:$I$396), ROW('Lista de Verificação de Fomento'!$I$1:$I$396)))+('Lista de Verificação de Fomento'!$I$1:$I$396<>\"Yes\")*1048577, 0, 0), ROW(A99))),\"\")","v":""},{"$f":"IFERROR(VLOOKUP(B103,'Lista de Verificação de Fomento'!B:C,2,0),\"\")","v":""},{"$f":"IFERROR(VLOOKUP(VLOOKUP(B103,'Lista de Verificação de Fomento'!B:J,9,0),DropDowns!G:H,2,0),\"\")","v":""},{"$f":"IFERROR(VLOOKUP(B103,'Lista de Verificação de Fomento'!B:E,4,0),\"\")","v":""},{"$f":"IFERROR(VLOOKUP(B103,'Lista de Verificação de Fomento'!B:G,6,0),\"\")","v":""},null,"",null,""]
[null,{"$f":"IFERROR(INDEX('Lista de Verificação de Fomento'!$B$1:$B$396, SMALL(INDEX(('Lista de Verificação de Fomento'!$I$1:$I$396=\"Yes\")*(MATCH(ROW('Lista de Verificação de Fomento'!$I$1:$I$396), ROW('Lista de Verificação de Fomento'!$I$1:$I$396)))+('Lista de Verificação de Fomento'!$I$1:$I$396<>\"Yes\")*1048577, 0, 0), ROW(A100))),\"\")","v":""},{"$f":"IFERROR(VLOOKUP(B104,'Lista de Verificação de Fomento'!B:C,2,0),\"\")","v":""},{"$f":"IFERROR(VLOOKUP(VLOOKUP(B104,'Lista de Verificação de Fomento'!B:J,9,0),DropDowns!G:H,2,0),\"\")","v":""},{"$f":"IFERROR(VLOOKUP(B104,'Lista de Verificação de Fomento'!B:E,4,0),\"\")","v":""},{"$f":"IFERROR(VLOOKUP(B104,'Lista de Verificação de Fomento'!B:G,6,0),\"\")","v":""},null,"",null,""]
[null,{"$f":"IFERROR(INDEX('Lista de Verificação de Fomento'!$B$1:$B$396, SMALL(INDEX(('Lista de Verificação de Fomento'!$I$1:$I$396=\"Yes\")*(MATCH(ROW('Lista de Verificação de Fomento'!$I$1:$I$396), ROW('Lista de Verificação de Fomento'!$I$1:$I$396)))+('Lista de Verificação de Fomento'!$I$1:$I$396<>\"Yes\")*1048577, 0, 0), ROW(A101))),\"\")","v":""},{"$f":"IFERROR(VLOOKUP(B105,'Lista de Verificação de Fomento'!B:C,2,0),\"\")","v":""},{"$f":"IFERROR(VLOOKUP(VLOOKUP(B105,'Lista de Verificação de Fomento'!B:J,9,0),DropDowns!G:H,2,0),\"\")","v":""},{"$f":"IFERROR(VLOOKUP(B105,'Lista de Verificação de Fomento'!B:E,4,0),\"\")","v":""},{"$f":"IFERROR(VLOOKUP(B105,'Lista de Verificação de Fomento'!B:G,6,0),\"\")","v":""},null,"",null,""]
[null,{"$f":"IFERROR(INDEX('Lista de Verificação de Fomento'!$B$1:$B$396, SMALL(INDEX(('Lista de Verificação de Fomento'!$I$1:$I$396=\"Yes\")*(MATCH(ROW('Lista de Verificação de Fomento'!$I$1:$I$396), ROW('Lista de Verificação de Fomento'!$I$1:$I$396)))+('Lista de Verificação de Fomento'!$I$1:$I$396<>\"Yes\")*1048577, 0, 0), ROW(A102))),\"\")","v":""},{"$f":"IFERROR(VLOOKUP(B106,'Lista de Verificação de Fomento'!B:C,2,0),\"\")","v":""},{"$f":"IFERROR(VLOOKUP(VLOOKUP(B106,'Lista de Verificação de Fomento'!B:J,9,0),DropDowns!G:H,2,0),\"\")","v":""},{"$f":"IFERROR(VLOOKUP(B106,'Lista de Verificação de Fomento'!B:E,4,0),\"\")","v":""},{"$f":"IFERROR(VLOOKUP(B106,'Lista de Verificação de Fomento'!B:G,6,0),\"\")","v":""},null,"",null,""]
[null,{"$f":"IFERROR(INDEX('Lista de Verificação de Fomento'!$B$1:$B$396, SMALL(INDEX(('Lista de Verificação de Fomento'!$I$1:$I$396=\"Yes\")*(MATCH(ROW('Lista de Verificação de Fomento'!$I$1:$I$396), ROW('Lista de Verificação de Fomento'!$I$1:$I$396)))+('Lista de Verificação de Fomento'!$I$1:$I$396<>\"Yes\")*1048577, 0, 0), ROW(A103))),\"\")","v":""},{"$f":"IFERROR(VLOOKUP(B107,'Lista de Verificação de Fomento'!B:C,2,0),\"\")","v":""},{"$f":"IFERROR(VLOOKUP(VLOOKUP(B107,'Lista de Verificação de Fomento'!B:J,9,0),DropDowns!G:H,2,0),\"\")","v":""},{"$f":"IFERROR(VLOOKUP(B107,'Lista de Verificação de Fomento'!B:E,4,0),\"\")","v":""},{"$f":"IFERROR(VLOOKUP(B107,'Lista de Verificação de Fomento'!B:G,6,0),\"\")","v":""},null,"",null,""]
[null,{"$f":"IFERROR(INDEX('Lista de Verificação de Fomento'!$B$1:$B$396, SMALL(INDEX(('Lista de Verificação de Fomento'!$I$1:$I$396=\"Yes\")*(MATCH(ROW('Lista de Verificação de Fomento'!$I$1:$I$396), ROW('Lista de Verificação de Fomento'!$I$1:$I$396)))+('Lista de Verificação de Fomento'!$I$1:$I$396<>\"Yes\")*1048577, 0, 0), ROW(A104))),\"\")","v":""},{"$f":"IFERROR(VLOOKUP(B108,'Lista de Verificação de Fomento'!B:C,2,0),\"\")","v":""},{"$f":"IFERROR(VLOOKUP(VLOOKUP(B108,'Lista de Verificação de Fomento'!B:J,9,0),DropDowns!G:H,2,0),\"\")","v":""},{"$f":"IFERROR(VLOOKUP(B108,'Lista de Verificação de Fomento'!B:E,4,0),\"\")","v":""},{"$f":"IFERROR(VLOOKUP(B108,'Lista de Verificação de Fomento'!B:G,6,0),\"\")","v":""},null,"",null,""]
[null,{"$f":"IFERROR(INDEX('Lista de Verificação de Fomento'!$B$1:$B$396, SMALL(INDEX(('Lista de Verificação de Fomento'!$I$1:$I$396=\"Yes\")*(MATCH(ROW('Lista de Verificação de Fomento'!$I$1:$I$396), ROW('Lista de Verificação de Fomento'!$I$1:$I$396)))+('Lista de Verificação de Fomento'!$I$1:$I$396<>\"Yes\")*1048577, 0, 0), ROW(A105))),\"\")","v":""},{"$f":"IFERROR(VLOOKUP(B109,'Lista de Verificação de Fomento'!B:C,2,0),\"\")","v":""},{"$f":"IFERROR(VLOOKUP(VLOOKUP(B109,'Lista de Verificação de Fomento'!B:J,9,0),DropDowns!G:H,2,0),\"\")","v":""},{"$f":"IFERROR(VLOOKUP(B109,'Lista de Verificação de Fomento'!B:E,4,0),\"\")","v":""},{"$f":"IFERROR(VLOOKUP(B109,'Lista de Verificação de Fomento'!B:G,6,0),\"\")","v":""},null,"",null,""]
[null,{"$f":"IFERROR(INDEX('Lista de Verificação de Fomento'!$B$1:$B$396, SMALL(INDEX(('Lista de Verificação de Fomento'!$I$1:$I$396=\"Yes\")*(MATCH(ROW('Lista de Verificação de Fomento'!$I$1:$I$396), ROW('Lista de Verificação de Fomento'!$I$1:$I$396)))+('Lista de Verificação de Fomento'!$I$1:$I$396<>\"Yes\")*1048577, 0, 0), ROW(A106))),\"\")","v":""},{"$f":"IFERROR(VLOOKUP(B110,'Lista de Verificação de Fomento'!B:C,2,0),\"\")","v":""},{"$f":"IFERROR(VLOOKUP(VLOOKUP(B110,'Lista de Verificação de Fomento'!B:J,9,0),DropDowns!G:H,2,0),\"\")","v":""},{"$f":"IFERROR(VLOOKUP(B110,'Lista de Verificação de Fomento'!B:E,4,0),\"\")","v":""},{"$f":"IFERROR(VLOOKUP(B110,'Lista de Verificação de Fomento'!B:G,6,0),\"\")","v":""},null,"",null,""]
[null,{"$f":"IFERROR(INDEX('Lista de Verificação de Fomento'!$B$1:$B$396, SMALL(INDEX(('Lista de Verificação de Fomento'!$I$1:$I$396=\"Yes\")*(MATCH(ROW('Lista de Verificação de Fomento'!$I$1:$I$396), ROW('Lista de Verificação de Fomento'!$I$1:$I$396)))+('Lista de Verificação de Fomento'!$I$1:$I$396<>\"Yes\")*1048577, 0, 0), ROW(A107))),\"\")","v":""},{"$f":"IFERROR(VLOOKUP(B111,'Lista de Verificação de Fomento'!B:C,2,0),\"\")","v":""},{"$f":"IFERROR(VLOOKUP(VLOOKUP(B111,'Lista de Verificação de Fomento'!B:J,9,0),DropDowns!G:H,2,0),\"\")","v":""},{"$f":"IFERROR(VLOOKUP(B111,'Lista de Verificação de Fomento'!B:E,4,0),\"\")","v":""},{"$f":"IFERROR(VLOOKUP(B111,'Lista de Verificação de Fomento'!B:G,6,0),\"\")","v":""},null,"",null,""]
[null,{"$f":"IFERROR(INDEX('Lista de Verificação de Fomento'!$B$1:$B$396, SMALL(INDEX(('Lista de Verificação de Fomento'!$I$1:$I$396=\"Yes\")*(MATCH(ROW('Lista de Verificação de Fomento'!$I$1:$I$396), ROW('Lista de Verificação de Fomento'!$I$1:$I$396)))+('Lista de Verificação de Fomento'!$I$1:$I$396<>\"Yes\")*1048577, 0, 0), ROW(A108))),\"\")","v":""},{"$f":"IFERROR(VLOOKUP(B112,'Lista de Verificação de Fomento'!B:C,2,0),\"\")","v":""},{"$f":"IFERROR(VLOOKUP(VLOOKUP(B112,'Lista de Verificação de Fomento'!B:J,9,0),DropDowns!G:H,2,0),\"\")","v":""},{"$f":"IFERROR(VLOOKUP(B112,'Lista de Verificação de Fomento'!B:E,4,0),\"\")","v":""},{"$f":"IFERROR(VLOOKUP(B112,'Lista de Verificação de Fomento'!B:G,6,0),\"\")","v":""},null,"",null,""]
[null,{"$f":"IFERROR(INDEX('Lista de Verificação de Fomento'!$B$1:$B$396, SMALL(INDEX(('Lista de Verificação de Fomento'!$I$1:$I$396=\"Yes\")*(MATCH(ROW('Lista de Verificação de Fomento'!$I$1:$I$396), ROW('Lista de Verificação de Fomento'!$I$1:$I$396)))+('Lista de Verificação de Fomento'!$I$1:$I$396<>\"Yes\")*1048577, 0, 0), ROW(A109))),\"\")","v":""},{"$f":"IFERROR(VLOOKUP(B113,'Lista de Verificação de Fomento'!B:C,2,0),\"\")","v":""},{"$f":"IFERROR(VLOOKUP(VLOOKUP(B113,'Lista de Verificação de Fomento'!B:J,9,0),DropDowns!G:H,2,0),\"\")","v":""},{"$f":"IFERROR(VLOOKUP(B113,'Lista de Verificação de Fomento'!B:E,4,0),\"\")","v":""},{"$f":"IFERROR(VLOOKUP(B113,'Lista de Verificação de Fomento'!B:G,6,0),\"\")","v":""},null,"",null,""]
[null,{"$f":"IFERROR(INDEX('Lista de Verificação de Fomento'!$B$1:$B$396, SMALL(INDEX(('Lista de Verificação de Fomento'!$I$1:$I$396=\"Yes\")*(MATCH(ROW('Lista de Verificação de Fomento'!$I$1:$I$396), ROW('Lista de Verificação de Fomento'!$I$1:$I$396)))+('Lista de Verificação de Fomento'!$I$1:$I$396<>\"Yes\")*1048577, 0, 0), ROW(A110))),\"\")","v":""},{"$f":"IFERROR(VLOOKUP(B114,'Lista de Verificação de Fomento'!B:C,2,0),\"\")","v":""},{"$f":"IFERROR(VLOOKUP(VLOOKUP(B114,'Lista de Verificação de Fomento'!B:J,9,0),DropDowns!G:H,2,0),\"\")","v":""},{"$f":"IFERROR(VLOOKUP(B114,'Lista de Verificação de Fomento'!B:E,4,0),\"\")","v":""},{"$f":"IFERROR(VLOOKUP(B114,'Lista de Verificação de Fomento'!B:G,6,0),\"\")","v":""},null,"",null,""]
[null,{"$f":"IFERROR(INDEX('Lista de Verificação de Fomento'!$B$1:$B$396, SMALL(INDEX(('Lista de Verificação de Fomento'!$I$1:$I$396=\"Yes\")*(MATCH(ROW('Lista de Verificação de Fomento'!$I$1:$I$396), ROW('Lista de Verificação de Fomento'!$I$1:$I$396)))+('Lista de Verificação de Fomento'!$I$1:$I$396<>\"Yes\")*1048577, 0, 0), ROW(A111))),\"\")","v":""},{"$f":"IFERROR(VLOOKUP(B115,'Lista de Verificação de Fomento'!B:C,2,0),\"\")","v":""},{"$f":"IFERROR(VLOOKUP(VLOOKUP(B115,'Lista de Verificação de Fomento'!B:J,9,0),DropDowns!G:H,2,0),\"\")","v":""},{"$f":"IFERROR(VLOOKUP(B115,'Lista de Verificação de Fomento'!B:E,4,0),\"\")","v":""},{"$f":"IFERROR(VLOOKUP(B115,'Lista de Verificação de Fomento'!B:G,6,0),\"\")","v":""},null,"",null,""]
[null,{"$f":"IFERROR(INDEX('Lista de Verificação de Fomento'!$B$1:$B$396, SMALL(INDEX(('Lista de Verificação de Fomento'!$I$1:$I$396=\"Yes\")*(MATCH(ROW('Lista de Verificação de Fomento'!$I$1:$I$396), ROW('Lista de Verificação de Fomento'!$I$1:$I$396)))+('Lista de Verificação de Fomento'!$I$1:$I$396<>\"Yes\")*1048577, 0, 0), ROW(A112))),\"\")","v":""},{"$f":"IFERROR(VLOOKUP(B116,'Lista de Verificação de Fomento'!B:C,2,0),\"\")","v":""},{"$f":"IFERROR(VLOOKUP(VLOOKUP(B116,'Lista de Verificação de Fomento'!B:J,9,0),DropDowns!G:H,2,0),\"\")","v":""},{"$f":"IFERROR(VLOOKUP(B116,'Lista de Verificação de Fomento'!B:E,4,0),\"\")","v":""},{"$f":"IFERROR(VLOOKUP(B116,'Lista de Verificação de Fomento'!B:G,6,0),\"\")","v":""},null,"",null,""]
[null,{"$f":"IFERROR(INDEX('Lista de Verificação de Fomento'!$B$1:$B$396, SMALL(INDEX(('Lista de Verificação de Fomento'!$I$1:$I$396=\"Yes\")*(MATCH(ROW('Lista de Verificação de Fomento'!$I$1:$I$396), ROW('Lista de Verificação de Fomento'!$I$1:$I$396)))+('Lista de Verificação de Fomento'!$I$1:$I$396<>\"Yes\")*1048577, 0, 0), ROW(A113))),\"\")","v":""},{"$f":"IFERROR(VLOOKUP(B117,'Lista de Verificação de Fomento'!B:C,2,0),\"\")","v":""},{"$f":"IFERROR(VLOOKUP(VLOOKUP(B117,'Lista de Verificação de Fomento'!B:J,9,0),DropDowns!G:H,2,0),\"\")","v":""},{"$f":"IFERROR(VLOOKUP(B117,'Lista de Verificação de Fomento'!B:E,4,0),\"\")","v":""},{"$f":"IFERROR(VLOOKUP(B117,'Lista de Verificação de Fomento'!B:G,6,0),\"\")","v":""},null,"",null,""]
[null,{"$f":"IFERROR(INDEX('Lista de Verificação de Fomento'!$B$1:$B$396, SMALL(INDEX(('Lista de Verificação de Fomento'!$I$1:$I$396=\"Yes\")*(MATCH(ROW('Lista de Verificação de Fomento'!$I$1:$I$396), ROW('Lista de Verificação de Fomento'!$I$1:$I$396)))+('Lista de Verificação de Fomento'!$I$1:$I$396<>\"Yes\")*1048577, 0, 0), ROW(A114))),\"\")","v":""},{"$f":"IFERROR(VLOOKUP(B118,'Lista de Verificação de Fomento'!B:C,2,0),\"\")","v":""},{"$f":"IFERROR(VLOOKUP(VLOOKUP(B118,'Lista de Verificação de Fomento'!B:J,9,0),DropDowns!G:H,2,0),\"\")","v":""},{"$f":"IFERROR(VLOOKUP(B118,'Lista de Verificação de Fomento'!B:E,4,0),\"\")","v":""},{"$f":"IFERROR(VLOOKUP(B118,'Lista de Verificação de Fomento'!B:G,6,0),\"\")","v":""},null,"",null,""]
[null,{"$f":"IFERROR(INDEX('Lista de Verificação de Fomento'!$B$1:$B$396, SMALL(INDEX(('Lista de Verificação de Fomento'!$I$1:$I$396=\"Yes\")*(MATCH(ROW('Lista de Verificação de Fomento'!$I$1:$I$396), ROW('Lista de Verificação de Fomento'!$I$1:$I$396)))+('Lista de Verificação de Fomento'!$I$1:$I$396<>\"Yes\")*1048577, 0, 0), ROW(A115))),\"\")","v":""},{"$f":"IFERROR(VLOOKUP(B119,'Lista de Verificação de Fomento'!B:C,2,0),\"\")","v":""},{"$f":"IFERROR(VLOOKUP(VLOOKUP(B119,'Lista de Verificação de Fomento'!B:J,9,0),DropDowns!G:H,2,0),\"\")","v":""},{"$f":"IFERROR(VLOOKUP(B119,'Lista de Verificação de Fomento'!B:E,4,0),\"\")","v":""},{"$f":"IFERROR(VLOOKUP(B119,'Lista de Verificação de Fomento'!B:G,6,0),\"\")","v":""},null,"",null,""]
[null,{"$f":"IFERROR(INDEX('Lista de Verificação de Fomento'!$B$1:$B$396, SMALL(INDEX(('Lista de Verificação de Fomento'!$I$1:$I$396=\"Yes\")*(MATCH(ROW('Lista de Verificação de Fomento'!$I$1:$I$396), ROW('Lista de Verificação de Fomento'!$I$1:$I$396)))+('Lista de Verificação de Fomento'!$I$1:$I$396<>\"Yes\")*1048577, 0, 0), ROW(A116))),\"\")","v":""},{"$f":"IFERROR(VLOOKUP(B120,'Lista de Verificação de Fomento'!B:C,2,0),\"\")","v":""},{"$f":"IFERROR(VLOOKUP(VLOOKUP(B120,'Lista de Verificação de Fomento'!B:J,9,0),DropDowns!G:H,2,0),\"\")","v":""},{"$f":"IFERROR(VLOOKUP(B120,'Lista de Verificação de Fomento'!B:E,4,0),\"\")","v":""},{"$f":"IFERROR(VLOOKUP(B120,'Lista de Verificação de Fomento'!B:G,6,0),\"\")","v":""},null,"",null,""]
[null,{"$f":"IFERROR(INDEX('Lista de Verificação de Fomento'!$B$1:$B$396, SMALL(INDEX(('Lista de Verificação de Fomento'!$I$1:$I$396=\"Yes\")*(MATCH(ROW('Lista de Verificação de Fomento'!$I$1:$I$396), ROW('Lista de Verificação de Fomento'!$I$1:$I$396)))+('Lista de Verificação de Fomento'!$I$1:$I$396<>\"Yes\")*1048577, 0, 0), ROW(A117))),\"\")","v":""},{"$f":"IFERROR(VLOOKUP(B121,'Lista de Verificação de Fomento'!B:C,2,0),\"\")","v":""},{"$f":"IFERROR(VLOOKUP(VLOOKUP(B121,'Lista de Verificação de Fomento'!B:J,9,0),DropDowns!G:H,2,0),\"\")","v":""},{"$f":"IFERROR(VLOOKUP(B121,'Lista de Verificação de Fomento'!B:E,4,0),\"\")","v":""},{"$f":"IFERROR(VLOOKUP(B121,'Lista de Verificação de Fomento'!B:G,6,0),\"\")","v":""},null,"",null,""]
[null,{"$f":"IFERROR(INDEX('Lista de Verificação de Fomento'!$B$1:$B$396, SMALL(INDEX(('Lista de Verificação de Fomento'!$I$1:$I$396=\"Yes\")*(MATCH(ROW('Lista de Verificação de Fomento'!$I$1:$I$396), ROW('Lista de Verificação de Fomento'!$I$1:$I$396)))+('Lista de Verificação de Fomento'!$I$1:$I$396<>\"Yes\")*1048577, 0, 0), ROW(A118))),\"\")","v":""},{"$f":"IFERROR(VLOOKUP(B122,'Lista de Verificação de Fomento'!B:C,2,0),\"\")","v":""},{"$f":"IFERROR(VLOOKUP(VLOOKUP(B122,'Lista de Verificação de Fomento'!B:J,9,0),DropDowns!G:H,2,0),\"\")","v":""},{"$f":"IFERROR(VLOOKUP(B122,'Lista de Verificação de Fomento'!B:E,4,0),\"\")","v":""},{"$f":"IFERROR(VLOOKUP(B122,'Lista de Verificação de Fomento'!B:G,6,0),\"\")","v":""},null,"",null,""]
[null,{"$f":"IFERROR(INDEX('Lista de Verificação de Fomento'!$B$1:$B$396, SMALL(INDEX(('Lista de Verificação de Fomento'!$I$1:$I$396=\"Yes\")*(MATCH(ROW('Lista de Verificação de Fomento'!$I$1:$I$396), ROW('Lista de Verificação de Fomento'!$I$1:$I$396)))+('Lista de Verificação de Fomento'!$I$1:$I$396<>\"Yes\")*1048577, 0, 0), ROW(A119))),\"\")","v":""},{"$f":"IFERROR(VLOOKUP(B123,'Lista de Verificação de Fomento'!B:C,2,0),\"\")","v":""},{"$f":"IFERROR(VLOOKUP(VLOOKUP(B123,'Lista de Verificação de Fomento'!B:J,9,0),DropDowns!G:H,2,0),\"\")","v":""},{"$f":"IFERROR(VLOOKUP(B123,'Lista de Verificação de Fomento'!B:E,4,0),\"\")","v":""},{"$f":"IFERROR(VLOOKUP(B123,'Lista de Verificação de Fomento'!B:G,6,0),\"\")","v":""},null,"",null,""]
[null,{"$f":"IFERROR(INDEX('Lista de Verificação de Fomento'!$B$1:$B$396, SMALL(INDEX(('Lista de Verificação de Fomento'!$I$1:$I$396=\"Yes\")*(MATCH(ROW('Lista de Verificação de Fomento'!$I$1:$I$396), ROW('Lista de Verificação de Fomento'!$I$1:$I$396)))+('Lista de Verificação de Fomento'!$I$1:$I$396<>\"Yes\")*1048577, 0, 0), ROW(A120))),\"\")","v":""},{"$f":"IFERROR(VLOOKUP(B124,'Lista de Verificação de Fomento'!B:C,2,0),\"\")","v":""},{"$f":"IFERROR(VLOOKUP(VLOOKUP(B124,'Lista de Verificação de Fomento'!B:J,9,0),DropDowns!G:H,2,0),\"\")","v":""},{"$f":"IFERROR(VLOOKUP(B124,'Lista de Verificação de Fomento'!B:E,4,0),\"\")","v":""},{"$f":"IFERROR(VLOOKUP(B124,'Lista de Verificação de Fomento'!B:G,6,0),\"\")","v":""},null,"",null,""]
[null,{"$f":"IFERROR(INDEX('Lista de Verificação de Fomento'!$B$1:$B$396, SMALL(INDEX(('Lista de Verificação de Fomento'!$I$1:$I$396=\"Yes\")*(MATCH(ROW('Lista de Verificação de Fomento'!$I$1:$I$396), ROW('Lista de Verificação de Fomento'!$I$1:$I$396)))+('Lista de Verificação de Fomento'!$I$1:$I$396<>\"Yes\")*1048577, 0, 0), ROW(A121))),\"\")","v":""},{"$f":"IFERROR(VLOOKUP(B125,'Lista de Verificação de Fomento'!B:C,2,0),\"\")","v":""},{"$f":"IFERROR(VLOOKUP(VLOOKUP(B125,'Lista de Verificação de Fomento'!B:J,9,0),DropDowns!G:H,2,0),\"\")","v":""},{"$f":"IFERROR(VLOOKUP(B125,'Lista de Verificação de Fomento'!B:E,4,0),\"\")","v":""},{"$f":"IFERROR(VLOOKUP(B125,'Lista de Verificação de Fomento'!B:G,6,0),\"\")","v":""},null,"",null,""]
[null,{"$f":"IFERROR(INDEX('Lista de Verificação de Fomento'!$B$1:$B$396, SMALL(INDEX(('Lista de Verificação de Fomento'!$I$1:$I$396=\"Yes\")*(MATCH(ROW('Lista de Verificação de Fomento'!$I$1:$I$396), ROW('Lista de Verificação de Fomento'!$I$1:$I$396)))+('Lista de Verificação de Fomento'!$I$1:$I$396<>\"Yes\")*1048577, 0, 0), ROW(A122))),\"\")","v":""},{"$f":"IFERROR(VLOOKUP(B126,'Lista de Verificação de Fomento'!B:C,2,0),\"\")","v":""},{"$f":"IFERROR(VLOOKUP(VLOOKUP(B126,'Lista de Verificação de Fomento'!B:J,9,0),DropDowns!G:H,2,0),\"\")","v":""},{"$f":"IFERROR(VLOOKUP(B126,'Lista de Verificação de Fomento'!B:E,4,0),\"\")","v":""},{"$f":"IFERROR(VLOOKUP(B126,'Lista de Verificação de Fomento'!B:G,6,0),\"\")","v":""},null,"",null,""]
[null,{"$f":"IFERROR(INDEX('Lista de Verificação de Fomento'!$B$1:$B$396, SMALL(INDEX(('Lista de Verificação de Fomento'!$I$1:$I$396=\"Yes\")*(MATCH(ROW('Lista de Verificação de Fomento'!$I$1:$I$396), ROW('Lista de Verificação de Fomento'!$I$1:$I$396)))+('Lista de Verificação de Fomento'!$I$1:$I$396<>\"Yes\")*1048577, 0, 0), ROW(A123))),\"\")","v":""},{"$f":"IFERROR(VLOOKUP(B127,'Lista de Verificação de Fomento'!B:C,2,0),\"\")","v":""},{"$f":"IFERROR(VLOOKUP(VLOOKUP(B127,'Lista de Verificação de Fomento'!B:J,9,0),DropDowns!G:H,2,0),\"\")","v":""},{"$f":"IFERROR(VLOOKUP(B127,'Lista de Verificação de Fomento'!B:E,4,0),\"\")","v":""},{"$f":"IFERROR(VLOOKUP(B127,'Lista de Verificação de Fomento'!B:G,6,0),\"\")","v":""},null,"",null,""]
[null,{"$f":"IFERROR(INDEX('Lista de Verificação de Fomento'!$B$1:$B$396, SMALL(INDEX(('Lista de Verificação de Fomento'!$I$1:$I$396=\"Yes\")*(MATCH(ROW('Lista de Verificação de Fomento'!$I$1:$I$396), ROW('Lista de Verificação de Fomento'!$I$1:$I$396)))+('Lista de Verificação de Fomento'!$I$1:$I$396<>\"Yes\")*1048577, 0, 0), ROW(A124))),\"\")","v":""},{"$f":"IFERROR(VLOOKUP(B128,'Lista de Verificação de Fomento'!B:C,2,0),\"\")","v":""},{"$f":"IFERROR(VLOOKUP(VLOOKUP(B128,'Lista de Verificação de Fomento'!B:J,9,0),DropDowns!G:H,2,0),\"\")","v":""},{"$f":"IFERROR(VLOOKUP(B128,'Lista de Verificação de Fomento'!B:E,4,0),\"\")","v":""},{"$f":"IFERROR(VLOOKUP(B128,'Lista de Verificação de Fomento'!B:G,6,0),\"\")","v":""},null,"",null,""]
[null,{"$f":"IFERROR(INDEX('Lista de Verificação de Fomento'!$B$1:$B$396, SMALL(INDEX(('Lista de Verificação de Fomento'!$I$1:$I$396=\"Yes\")*(MATCH(ROW('Lista de Verificação de Fomento'!$I$1:$I$396), ROW('Lista de Verificação de Fomento'!$I$1:$I$396)))+('Lista de Verificação de Fomento'!$I$1:$I$396<>\"Yes\")*1048577, 0, 0), ROW(A125))),\"\")","v":""},{"$f":"IFERROR(VLOOKUP(B129,'Lista de Verificação de Fomento'!B:C,2,0),\"\")","v":""},{"$f":"IFERROR(VLOOKUP(VLOOKUP(B129,'Lista de Verificação de Fomento'!B:J,9,0),DropDowns!G:H,2,0),\"\")","v":""},{"$f":"IFERROR(VLOOKUP(B129,'Lista de Verificação de Fomento'!B:E,4,0),\"\")","v":""},{"$f":"IFERROR(VLOOKUP(B129,'Lista de Verificação de Fomento'!B:G,6,0),\"\")","v":""},null,"",null,""]
[null,{"$f":"IFERROR(INDEX('Lista de Verificação de Fomento'!$B$1:$B$396, SMALL(INDEX(('Lista de Verificação de Fomento'!$I$1:$I$396=\"Yes\")*(MATCH(ROW('Lista de Verificação de Fomento'!$I$1:$I$396), ROW('Lista de Verificação de Fomento'!$I$1:$I$396)))+('Lista de Verificação de Fomento'!$I$1:$I$396<>\"Yes\")*1048577, 0, 0), ROW(A126))),\"\")","v":""},{"$f":"IFERROR(VLOOKUP(B130,'Lista de Verificação de Fomento'!B:C,2,0),\"\")","v":""},{"$f":"IFERROR(VLOOKUP(VLOOKUP(B130,'Lista de Verificação de Fomento'!B:J,9,0),DropDowns!G:H,2,0),\"\")","v":""},{"$f":"IFERROR(VLOOKUP(B130,'Lista de Verificação de Fomento'!B:E,4,0),\"\")","v":""},{"$f":"IFERROR(VLOOKUP(B130,'Lista de Verificação de Fomento'!B:G,6,0),\"\")","v":""},null,"",null,""]
[null,{"$f":"IFERROR(INDEX('Lista de Verificação de Fomento'!$B$1:$B$396, SMALL(INDEX(('Lista de Verificação de Fomento'!$I$1:$I$396=\"Yes\")*(MATCH(ROW('Lista de Verificação de Fomento'!$I$1:$I$396), ROW('Lista de Verificação de Fomento'!$I$1:$I$396)))+('Lista de Verificação de Fomento'!$I$1:$I$396<>\"Yes\")*1048577, 0, 0), ROW(A127))),\"\")","v":""},{"$f":"IFERROR(VLOOKUP(B131,'Lista de Verificação de Fomento'!B:C,2,0),\"\")","v":""},{"$f":"IFERROR(VLOOKUP(VLOOKUP(B131,'Lista de Verificação de Fomento'!B:J,9,0),DropDowns!G:H,2,0),\"\")","v":""},{"$f":"IFERROR(VLOOKUP(B131,'Lista de Verificação de Fomento'!B:E,4,0),\"\")","v":""},{"$f":"IFERROR(VLOOKUP(B131,'Lista de Verificação de Fomento'!B:G,6,0),\"\")","v":""},null,"",null,""]
[null,{"$f":"IFERROR(INDEX('Lista de Verificação de Fomento'!$B$1:$B$396, SMALL(INDEX(('Lista de Verificação de Fomento'!$I$1:$I$396=\"Yes\")*(MATCH(ROW('Lista de Verificação de Fomento'!$I$1:$I$396), ROW('Lista de Verificação de Fomento'!$I$1:$I$396)))+('Lista de Verificação de Fomento'!$I$1:$I$396<>\"Yes\")*1048577, 0, 0), ROW(A128))),\"\")","v":""},{"$f":"IFERROR(VLOOKUP(B132,'Lista de Verificação de Fomento'!B:C,2,0),\"\")","v":""},{"$f":"IFERROR(VLOOKUP(VLOOKUP(B132,'Lista de Verificação de Fomento'!B:J,9,0),DropDowns!G:H,2,0),\"\")","v":""},{"$f":"IFERROR(VLOOKUP(B132,'Lista de Verificação de Fomento'!B:E,4,0),\"\")","v":""},{"$f":"IFERROR(VLOOKUP(B132,'Lista de Verificação de Fomento'!B:G,6,0),\"\")","v":""},null,"",null,""]
[null,{"$f":"IFERROR(INDEX('Lista de Verificação de Fomento'!$B$1:$B$396, SMALL(INDEX(('Lista de Verificação de Fomento'!$I$1:$I$396=\"Yes\")*(MATCH(ROW('Lista de Verificação de Fomento'!$I$1:$I$396), ROW('Lista de Verificação de Fomento'!$I$1:$I$396)))+('Lista de Verificação de Fomento'!$I$1:$I$396<>\"Yes\")*1048577, 0, 0), ROW(A129))),\"\")","v":""},{"$f":"IFERROR(VLOOKUP(B133,'Lista de Verificação de Fomento'!B:C,2,0),\"\")","v":""},{"$f":"IFERROR(VLOOKUP(VLOOKUP(B133,'Lista de Verificação de Fomento'!B:J,9,0),DropDowns!G:H,2,0),\"\")","v":""},{"$f":"IFERROR(VLOOKUP(B133,'Lista de Verificação de Fomento'!B:E,4,0),\"\")","v":""},{"$f":"IFERROR(VLOOKUP(B133,'Lista de Verificação de Fomento'!B:G,6,0),\"\")","v":""},null,"",null,""]
[null,{"$f":"IFERROR(INDEX('Lista de Verificação de Fomento'!$B$1:$B$396, SMALL(INDEX(('Lista de Verificação de Fomento'!$I$1:$I$396=\"Yes\")*(MATCH(ROW('Lista de Verificação de Fomento'!$I$1:$I$396), ROW('Lista de Verificação de Fomento'!$I$1:$I$396)))+('Lista de Verificação de Fomento'!$I$1:$I$396<>\"Yes\")*1048577, 0, 0), ROW(A130))),\"\")","v":""},{"$f":"IFERROR(VLOOKUP(B134,'Lista de Verificação de Fomento'!B:C,2,0),\"\")","v":""},{"$f":"IFERROR(VLOOKUP(VLOOKUP(B134,'Lista de Verificação de Fomento'!B:J,9,0),DropDowns!G:H,2,0),\"\")","v":""},{"$f":"IFERROR(VLOOKUP(B134,'Lista de Verificação de Fomento'!B:E,4,0),\"\")","v":""},{"$f":"IFERROR(VLOOKUP(B134,'Lista de Verificação de Fomento'!B:G,6,0),\"\")","v":""},null,{"$f":"IF(B134<>\"\",\"Interna:\",\"\")","v":""},null,{"$f":"IF(B134<>\"\",\"Externa:\",\"\")","v":""}]
[null,{"$f":"IFERROR(INDEX('Lista de Verificação de Fomento'!$B$1:$B$396, SMALL(INDEX(('Lista de Verificação de Fomento'!$I$1:$I$396=\"Yes\")*(MATCH(ROW('Lista de Verificação de Fomento'!$I$1:$I$396), ROW('Lista de Verificação de Fomento'!$I$1:$I$396)))+('Lista de Verificação de Fomento'!$I$1:$I$396<>\"Yes\")*1048577, 0, 0), ROW(A131))),\"\")","v":""},{"$f":"IFERROR(VLOOKUP(B135,'Lista de Verificação de Fomento'!B:C,2,0),\"\")","v":""},{"$f":"IFERROR(VLOOKUP(VLOOKUP(B135,'Lista de Verificação de Fomento'!B:J,9,0),DropDowns!G:H,2,0),\"\")","v":""},{"$f":"IFERROR(VLOOKUP(B135,'Lista de Verificação de Fomento'!B:E,4,0),\"\")","v":""},{"$f":"IFERROR(VLOOKUP(B135,'Lista de Verificação de Fomento'!B:G,6,0),\"\")","v":""},null,"",null,""]
[null,{"$f":"IFERROR(INDEX('Lista de Verificação de Fomento'!$B$1:$B$396, SMALL(INDEX(('Lista de Verificação de Fomento'!$I$1:$I$396=\"Yes\")*(MATCH(ROW('Lista de Verificação de Fomento'!$I$1:$I$396), ROW('Lista de Verificação de Fomento'!$I$1:$I$396)))+('Lista de Verificação de Fomento'!$I$1:$I$396<>\"Yes\")*1048577, 0, 0), ROW(A132))),\"\")","v":""},{"$f":"IFERROR(VLOOKUP(B136,'Lista de Verificação de Fomento'!B:C,2,0),\"\")","v":""},{"$f":"IFERROR(VLOOKUP(VLOOKUP(B136,'Lista de Verificação de Fomento'!B:J,9,0),DropDowns!G:H,2,0),\"\")","v":""},{"$f":"IFERROR(VLOOKUP(B136,'Lista de Verificação de Fomento'!B:E,4,0),\"\")","v":""},{"$f":"IFERROR(VLOOKUP(B136,'Lista de Verificação de Fomento'!B:G,6,0),\"\")","v":""},null,"",null,""]
[null,{"$f":"IFERROR(INDEX('Lista de Verificação de Fomento'!$B$1:$B$396, SMALL(INDEX(('Lista de Verificação de Fomento'!$I$1:$I$396=\"Yes\")*(MATCH(ROW('Lista de Verificação de Fomento'!$I$1:$I$396), ROW('Lista de Verificação de Fomento'!$I$1:$I$396)))+('Lista de Verificação de Fomento'!$I$1:$I$396<>\"Yes\")*1048577, 0, 0), ROW(A133))),\"\")","v":""},{"$f":"IFERROR(VLOOKUP(B137,'Lista de Verificação de Fomento'!B:C,2,0),\"\")","v":""},{"$f":"IFERROR(VLOOKUP(VLOOKUP(B137,'Lista de Verificação de Fomento'!B:J,9,0),DropDowns!G:H,2,0),\"\")","v":""},{"$f":"IFERROR(VLOOKUP(B137,'Lista de Verificação de Fomento'!B:E,4,0),\"\")","v":""},{"$f":"IFERROR(VLOOKUP(B137,'Lista de Verificação de Fomento'!B:G,6,0),\"\")","v":""},null,"",null,""]
[null,{"$f":"IFERROR(INDEX('Lista de Verificação de Fomento'!$B$1:$B$396, SMALL(INDEX(('Lista de Verificação de Fomento'!$I$1:$I$396=\"Yes\")*(MATCH(ROW('Lista de Verificação de Fomento'!$I$1:$I$396), ROW('Lista de Verificação de Fomento'!$I$1:$I$396)))+('Lista de Verificação de Fomento'!$I$1:$I$396<>\"Yes\")*1048577, 0, 0), ROW(A134))),\"\")","v":""},{"$f":"IFERROR(VLOOKUP(B138,'Lista de Verificação de Fomento'!B:C,2,0),\"\")","v":""},{"$f":"IFERROR(VLOOKUP(VLOOKUP(B138,'Lista de Verificação de Fomento'!B:J,9,0),DropDowns!G:H,2,0),\"\")","v":""},{"$f":"IFERROR(VLOOKUP(B138,'Lista de Verificação de Fomento'!B:E,4,0),\"\")","v":""},{"$f":"IFERROR(VLOOKUP(B138,'Lista de Verificação de Fomento'!B:G,6,0),\"\")","v":""},null,"",null,""]
[null,{"$f":"IFERROR(INDEX('Lista de Verificação de Fomento'!$B$1:$B$396, SMALL(INDEX(('Lista de Verificação de Fomento'!$I$1:$I$396=\"Yes\")*(MATCH(ROW('Lista de Verificação de Fomento'!$I$1:$I$396), ROW('Lista de Verificação de Fomento'!$I$1:$I$396)))+('Lista de Verificação de Fomento'!$I$1:$I$396<>\"Yes\")*1048577, 0, 0), ROW(A135))),\"\")","v":""},{"$f":"IFERROR(VLOOKUP(B139,'Lista de Verificação de Fomento'!B:C,2,0),\"\")","v":""},{"$f":"IFERROR(VLOOKUP(VLOOKUP(B139,'Lista de Verificação de Fomento'!B:J,9,0),DropDowns!G:H,2,0),\"\")","v":""},{"$f":"IFERROR(VLOOKUP(B139,'Lista de Verificação de Fomento'!B:E,4,0),\"\")","v":""},{"$f":"IFERROR(VLOOKUP(B139,'Lista de Verificação de Fomento'!B:G,6,0),\"\")","v":""},null,"",null,""]
[null,{"$f":"IFERROR(INDEX('Lista de Verificação de Fomento'!$B$1:$B$396, SMALL(INDEX(('Lista de Verificação de Fomento'!$I$1:$I$396=\"Yes\")*(MATCH(ROW('Lista de Verificação de Fomento'!$I$1:$I$396), ROW('Lista de Verificação de Fomento'!$I$1:$I$396)))+('Lista de Verificação de Fomento'!$I$1:$I$396<>\"Yes\")*1048577, 0, 0), ROW(A136))),\"\")","v":""},{"$f":"IFERROR(VLOOKUP(B140,'Lista de Verificação de Fomento'!B:C,2,0),\"\")","v":""},{"$f":"IFERROR(VLOOKUP(VLOOKUP(B140,'Lista de Verificação de Fomento'!B:J,9,0),DropDowns!G:H,2,0),\"\")","v":""},{"$f":"IFERROR(VLOOKUP(B140,'Lista de Verificação de Fomento'!B:E,4,0),\"\")","v":""},{"$f":"IFERROR(VLOOKUP(B140,'Lista de Verificação de Fomento'!B:G,6,0),\"\")","v":""},null,"",null,""]
[null,{"$f":"IFERROR(INDEX('Lista de Verificação de Fomento'!$B$1:$B$396, SMALL(INDEX(('Lista de Verificação de Fomento'!$I$1:$I$396=\"Yes\")*(MATCH(ROW('Lista de Verificação de Fomento'!$I$1:$I$396), ROW('Lista de Verificação de Fomento'!$I$1:$I$396)))+('Lista de Verificação de Fomento'!$I$1:$I$396<>\"Yes\")*1048577, 0, 0), ROW(A137))),\"\")","v":""},{"$f":"IFERROR(VLOOKUP(B141,'Lista de Verificação de Fomento'!B:C,2,0),\"\")","v":""},{"$f":"IFERROR(VLOOKUP(VLOOKUP(B141,'Lista de Verificação de Fomento'!B:J,9,0),DropDowns!G:H,2,0),\"\")","v":""},{"$f":"IFERROR(VLOOKUP(B141,'Lista de Verificação de Fomento'!B:E,4,0),\"\")","v":""},{"$f":"IFERROR(VLOOKUP(B141,'Lista de Verificação de Fomento'!B:G,6,0),\"\")","v":""},null,"",null,""]
[null,{"$f":"IFERROR(INDEX('Lista de Verificação de Fomento'!$B$1:$B$396, SMALL(INDEX(('Lista de Verificação de Fomento'!$I$1:$I$396=\"Yes\")*(MATCH(ROW('Lista de Verificação de Fomento'!$I$1:$I$396), ROW('Lista de Verificação de Fomento'!$I$1:$I$396)))+('Lista de Verificação de Fomento'!$I$1:$I$396<>\"Yes\")*1048577, 0, 0), ROW(A138))),\"\")","v":""},{"$f":"IFERROR(VLOOKUP(B142,'Lista de Verificação de Fomento'!B:C,2,0),\"\")","v":""},{"$f":"IFERROR(VLOOKUP(VLOOKUP(B142,'Lista de Verificação de Fomento'!B:J,9,0),DropDowns!G:H,2,0),\"\")","v":""},{"$f":"IFERROR(VLOOKUP(B142,'Lista de Verificação de Fomento'!B:E,4,0),\"\")","v":""},{"$f":"IFERROR(VLOOKUP(B142,'Lista de Verificação de Fomento'!B:G,6,0),\"\")","v":""},null,"",null,""]
[null,{"$f":"IFERROR(INDEX('Lista de Verificação de Fomento'!$B$1:$B$396, SMALL(INDEX(('Lista de Verificação de Fomento'!$I$1:$I$396=\"Yes\")*(MATCH(ROW('Lista de Verificação de Fomento'!$I$1:$I$396), ROW('Lista de Verificação de Fomento'!$I$1:$I$396)))+('Lista de Verificação de Fomento'!$I$1:$I$396<>\"Yes\")*1048577, 0, 0), ROW(A139))),\"\")","v":""},{"$f":"IFERROR(VLOOKUP(B143,'Lista de Verificação de Fomento'!B:C,2,0),\"\")","v":""},{"$f":"IFERROR(VLOOKUP(VLOOKUP(B143,'Lista de Verificação de Fomento'!B:J,9,0),DropDowns!G:H,2,0),\"\")","v":""},{"$f":"IFERROR(VLOOKUP(B143,'Lista de Verificação de Fomento'!B:E,4,0),\"\")","v":""},{"$f":"IFERROR(VLOOKUP(B143,'Lista de Verificação de Fomento'!B:G,6,0),\"\")","v":""},null,"",null,""]
[null,{"$f":"IFERROR(INDEX('Lista de Verificação de Fomento'!$B$1:$B$396, SMALL(INDEX(('Lista de Verificação de Fomento'!$I$1:$I$396=\"Yes\")*(MATCH(ROW('Lista de Verificação de Fomento'!$I$1:$I$396), ROW('Lista de Verificação de Fomento'!$I$1:$I$396)))+('Lista de Verificação de Fomento'!$I$1:$I$396<>\"Yes\")*1048577, 0, 0), ROW(A140))),\"\")","v":""},{"$f":"IFERROR(VLOOKUP(B144,'Lista de Verificação de Fomento'!B:C,2,0),\"\")","v":""},{"$f":"IFERROR(VLOOKUP(VLOOKUP(B144,'Lista de Verificação de Fomento'!B:J,9,0),DropDowns!G:H,2,0),\"\")","v":""},{"$f":"IFERROR(VLOOKUP(B144,'Lista de Verificação de Fomento'!B:E,4,0),\"\")","v":""},{"$f":"IFERROR(VLOOKUP(B144,'Lista de Verificação de Fomento'!B:G,6,0),\"\")","v":""},null,"",null,""]
[null,{"$f":"IFERROR(INDEX('Lista de Verificação de Fomento'!$B$1:$B$396, SMALL(INDEX(('Lista de Verificação de Fomento'!$I$1:$I$396=\"Yes\")*(MATCH(ROW('Lista de Verificação de Fomento'!$I$1:$I$396), ROW('Lista de Verificação de Fomento'!$I$1:$I$396)))+('Lista de Verificação de Fomento'!$I$1:$I$396<>\"Yes\")*1048577, 0, 0), ROW(A141))),\"\")","v":""},{"$f":"IFERROR(VLOOKUP(B145,'Lista de Verificação de Fomento'!B:C,2,0),\"\")","v":""},{"$f":"IFERROR(VLOOKUP(VLOOKUP(B145,'Lista de Verificação de Fomento'!B:J,9,0),DropDowns!G:H,2,0),\"\")","v":""},{"$f":"IFERROR(VLOOKUP(B145,'Lista de Verificação de Fomento'!B:E,4,0),\"\")","v":""},{"$f":"IFERROR(VLOOKUP(B145,'Lista de Verificação de Fomento'!B:G,6,0),\"\")","v":""},null,"",null,""]
[null,{"$f":"IFERROR(INDEX('Lista de Verificação de Fomento'!$B$1:$B$396, SMALL(INDEX(('Lista de Verificação de Fomento'!$I$1:$I$396=\"Yes\")*(MATCH(ROW('Lista de Verificação de Fomento'!$I$1:$I$396), ROW('Lista de Verificação de Fomento'!$I$1:$I$396)))+('Lista de Verificação de Fomento'!$I$1:$I$396<>\"Yes\")*1048577, 0, 0), ROW(A142))),\"\")","v":""},{"$f":"IFERROR(VLOOKUP(B146,'Lista de Verificação de Fomento'!B:C,2,0),\"\")","v":""},{"$f":"IFERROR(VLOOKUP(VLOOKUP(B146,'Lista de Verificação de Fomento'!B:J,9,0),DropDowns!G:H,2,0),\"\")","v":""},{"$f":"IFERROR(VLOOKUP(B146,'Lista de Verificação de Fomento'!B:E,4,0),\"\")","v":""},{"$f":"IFERROR(VLOOKUP(B146,'Lista de Verificação de Fomento'!B:G,6,0),\"\")","v":""},null,"",null,""]
[null,{"$f":"IFERROR(INDEX('Lista de Verificação de Fomento'!$B$1:$B$396, SMALL(INDEX(('Lista de Verificação de Fomento'!$I$1:$I$396=\"Yes\")*(MATCH(ROW('Lista de Verificação de Fomento'!$I$1:$I$396), ROW('Lista de Verificação de Fomento'!$I$1:$I$396)))+('Lista de Verificação de Fomento'!$I$1:$I$396<>\"Yes\")*1048577, 0, 0), ROW(A143))),\"\")","v":""},{"$f":"IFERROR(VLOOKUP(B147,'Lista de Verificação de Fomento'!B:C,2,0),\"\")","v":""},{"$f":"IFERROR(VLOOKUP(VLOOKUP(B147,'Lista de Verificação de Fomento'!B:J,9,0),DropDowns!G:H,2,0),\"\")","v":""},{"$f":"IFERROR(VLOOKUP(B147,'Lista de Verificação de Fomento'!B:E,4,0),\"\")","v":""},{"$f":"IFERROR(VLOOKUP(B147,'Lista de Verificação de Fomento'!B:G,6,0),\"\")","v":""},null,"",null,""]
[null,{"$f":"IFERROR(INDEX('Lista de Verificação de Fomento'!$B$1:$B$396, SMALL(INDEX(('Lista de Verificação de Fomento'!$I$1:$I$396=\"Yes\")*(MATCH(ROW('Lista de Verificação de Fomento'!$I$1:$I$396), ROW('Lista de Verificação de Fomento'!$I$1:$I$396)))+('Lista de Verificação de Fomento'!$I$1:$I$396<>\"Yes\")*1048577, 0, 0), ROW(A144))),\"\")","v":""},{"$f":"IFERROR(VLOOKUP(B148,'Lista de Verificação de Fomento'!B:C,2,0),\"\")","v":""},{"$f":"IFERROR(VLOOKUP(VLOOKUP(B148,'Lista de Verificação de Fomento'!B:J,9,0),DropDowns!G:H,2,0),\"\")","v":""},{"$f":"IFERROR(VLOOKUP(B148,'Lista de Verificação de Fomento'!B:E,4,0),\"\")","v":""},{"$f":"IFERROR(VLOOKUP(B148,'Lista de Verificação de Fomento'!B:G,6,0),\"\")","v":""},null,"",null,""]
[null,{"$f":"IFERROR(INDEX('Lista de Verificação de Fomento'!$B$1:$B$396, SMALL(INDEX(('Lista de Verificação de Fomento'!$I$1:$I$396=\"Yes\")*(MATCH(ROW('Lista de Verificação de Fomento'!$I$1:$I$396), ROW('Lista de Verificação de Fomento'!$I$1:$I$396)))+('Lista de Verificação de Fomento'!$I$1:$I$396<>\"Yes\")*1048577, 0, 0), ROW(A145))),\"\")","v":""},{"$f":"IFERROR(VLOOKUP(B149,'Lista de Verificação de Fomento'!B:C,2,0),\"\")","v":""},{"$f":"IFERROR(VLOOKUP(VLOOKUP(B149,'Lista de Verificação de Fomento'!B:J,9,0),DropDowns!G:H,2,0),\"\")","v":""},{"$f":"IFERROR(VLOOKUP(B149,'Lista de Verificação de Fomento'!B:E,4,0),\"\")","v":""},{"$f":"IFERROR(VLOOKUP(B149,'Lista de Verificação de Fomento'!B:G,6,0),\"\")","v":""},null,"",null,""]
[null,{"$f":"IFERROR(INDEX('Lista de Verificação de Fomento'!$B$1:$B$396, SMALL(INDEX(('Lista de Verificação de Fomento'!$I$1:$I$396=\"Yes\")*(MATCH(ROW('Lista de Verificação de Fomento'!$I$1:$I$396), ROW('Lista de Verificação de Fomento'!$I$1:$I$396)))+('Lista de Verificação de Fomento'!$I$1:$I$396<>\"Yes\")*1048577, 0, 0), ROW(A146))),\"\")","v":""},{"$f":"IFERROR(VLOOKUP(B150,'Lista de Verificação de Fomento'!B:C,2,0),\"\")","v":""},{"$f":"IFERROR(VLOOKUP(VLOOKUP(B150,'Lista de Verificação de Fomento'!B:J,9,0),DropDowns!G:H,2,0),\"\")","v":""},{"$f":"IFERROR(VLOOKUP(B150,'Lista de Verificação de Fomento'!B:E,4,0),\"\")","v":""},{"$f":"IFERROR(VLOOKUP(B150,'Lista de Verificação de Fomento'!B:G,6,0),\"\")","v":""},null,"",null,""]
[null,{"$f":"IFERROR(INDEX('Lista de Verificação de Fomento'!$B$1:$B$396, SMALL(INDEX(('Lista de Verificação de Fomento'!$I$1:$I$396=\"Yes\")*(MATCH(ROW('Lista de Verificação de Fomento'!$I$1:$I$396), ROW('Lista de Verificação de Fomento'!$I$1:$I$396)))+('Lista de Verificação de Fomento'!$I$1:$I$396<>\"Yes\")*1048577, 0, 0), ROW(A147))),\"\")","v":""},{"$f":"IFERROR(VLOOKUP(B151,'Lista de Verificação de Fomento'!B:C,2,0),\"\")","v":""},{"$f":"IFERROR(VLOOKUP(VLOOKUP(B151,'Lista de Verificação de Fomento'!B:J,9,0),DropDowns!G:H,2,0),\"\")","v":""},{"$f":"IFERROR(VLOOKUP(B151,'Lista de Verificação de Fomento'!B:E,4,0),\"\")","v":""},{"$f":"IFERROR(VLOOKUP(B151,'Lista de Verificação de Fomento'!B:G,6,0),\"\")","v":""},null,"",null,""]
[null,{"$f":"IFERROR(INDEX('Lista de Verificação de Fomento'!$B$1:$B$396, SMALL(INDEX(('Lista de Verificação de Fomento'!$I$1:$I$396=\"Yes\")*(MATCH(ROW('Lista de Verificação de Fomento'!$I$1:$I$396), ROW('Lista de Verificação de Fomento'!$I$1:$I$396)))+('Lista de Verificação de Fomento'!$I$1:$I$396<>\"Yes\")*1048577, 0, 0), ROW(A148))),\"\")","v":""},{"$f":"IFERROR(VLOOKUP(B152,'Lista de Verificação de Fomento'!B:C,2,0),\"\")","v":""},{"$f":"IFERROR(VLOOKUP(VLOOKUP(B152,'Lista de Verificação de Fomento'!B:J,9,0),DropDowns!G:H,2,0),\"\")","v":""},{"$f":"IFERROR(VLOOKUP(B152,'Lista de Verificação de Fomento'!B:E,4,0),\"\")","v":""},{"$f":"IFERROR(VLOOKUP(B152,'Lista de Verificação de Fomento'!B:G,6,0),\"\")","v":""},null,"",null,""]
[null,{"$f":"IFERROR(INDEX('Lista de Verificação de Fomento'!$B$1:$B$396, SMALL(INDEX(('Lista de Verificação de Fomento'!$I$1:$I$396=\"Yes\")*(MATCH(ROW('Lista de Verificação de Fomento'!$I$1:$I$396), ROW('Lista de Verificação de Fomento'!$I$1:$I$396)))+('Lista de Verificação de Fomento'!$I$1:$I$396<>\"Yes\")*1048577, 0, 0), ROW(A149))),\"\")","v":""},{"$f":"IFERROR(VLOOKUP(B153,'Lista de Verificação de Fomento'!B:C,2,0),\"\")","v":""},{"$f":"IFERROR(VLOOKUP(VLOOKUP(B153,'Lista de Verificação de Fomento'!B:J,9,0),DropDowns!G:H,2,0),\"\")","v":""},{"$f":"IFERROR(VLOOKUP(B153,'Lista de Verificação de Fomento'!B:E,4,0),\"\")","v":""},{"$f":"IFERROR(VLOOKUP(B153,'Lista de Verificação de Fomento'!B:G,6,0),\"\")","v":""},null,"",null,""]
[null,{"$f":"IFERROR(INDEX('Lista de Verificação de Fomento'!$B$1:$B$396, SMALL(INDEX(('Lista de Verificação de Fomento'!$I$1:$I$396=\"Yes\")*(MATCH(ROW('Lista de Verificação de Fomento'!$I$1:$I$396), ROW('Lista de Verificação de Fomento'!$I$1:$I$396)))+('Lista de Verificação de Fomento'!$I$1:$I$396<>\"Yes\")*1048577, 0, 0), ROW(A150))),\"\")","v":""},{"$f":"IFERROR(VLOOKUP(B154,'Lista de Verificação de Fomento'!B:C,2,0),\"\")","v":""},{"$f":"IFERROR(VLOOKUP(VLOOKUP(B154,'Lista de Verificação de Fomento'!B:J,9,0),DropDowns!G:H,2,0),\"\")","v":""},{"$f":"IFERROR(VLOOKUP(B154,'Lista de Verificação de Fomento'!B:E,4,0),\"\")","v":""},{"$f":"IFERROR(VLOOKUP(B154,'Lista de Verificação de Fomento'!B:G,6,0),\"\")","v":""},null,"",null,""]
[null,{"$f":"IFERROR(INDEX('Lista de Verificação de Fomento'!$B$1:$B$396, SMALL(INDEX(('Lista de Verificação de Fomento'!$I$1:$I$396=\"Yes\")*(MATCH(ROW('Lista de Verificação de Fomento'!$I$1:$I$396), ROW('Lista de Verificação de Fomento'!$I$1:$I$396)))+('Lista de Verificação de Fomento'!$I$1:$I$396<>\"Yes\")*1048577, 0, 0), ROW(A151))),\"\")","v":""},{"$f":"IFERROR(VLOOKUP(B155,'Lista de Verificação de Fomento'!B:C,2,0),\"\")","v":""},{"$f":"IFERROR(VLOOKUP(VLOOKUP(B155,'Lista de Verificação de Fomento'!B:J,9,0),DropDowns!G:H,2,0),\"\")","v":""},{"$f":"IFERROR(VLOOKUP(B155,'Lista de Verificação de Fomento'!B:E,4,0),\"\")","v":""},{"$f":"IFERROR(VLOOKUP(B155,'Lista de Verificação de Fomento'!B:G,6,0),\"\")","v":""},null,"",null,""]
[null,{"$f":"IFERROR(INDEX('Lista de Verificação de Fomento'!$B$1:$B$396, SMALL(INDEX(('Lista de Verificação de Fomento'!$I$1:$I$396=\"Yes\")*(MATCH(ROW('Lista de Verificação de Fomento'!$I$1:$I$396), ROW('Lista de Verificação de Fomento'!$I$1:$I$396)))+('Lista de Verificação de Fomento'!$I$1:$I$396<>\"Yes\")*1048577, 0, 0), ROW(A152))),\"\")","v":""},{"$f":"IFERROR(VLOOKUP(B156,'Lista de Verificação de Fomento'!B:C,2,0),\"\")","v":""},{"$f":"IFERROR(VLOOKUP(VLOOKUP(B156,'Lista de Verificação de Fomento'!B:J,9,0),DropDowns!G:H,2,0),\"\")","v":""},{"$f":"IFERROR(VLOOKUP(B156,'Lista de Verificação de Fomento'!B:E,4,0),\"\")","v":""},{"$f":"IFERROR(VLOOKUP(B156,'Lista de Verificação de Fomento'!B:G,6,0),\"\")","v":""},null,"",null,""]
[null,{"$f":"IFERROR(INDEX('Lista de Verificação de Fomento'!$B$1:$B$396, SMALL(INDEX(('Lista de Verificação de Fomento'!$I$1:$I$396=\"Yes\")*(MATCH(ROW('Lista de Verificação de Fomento'!$I$1:$I$396), ROW('Lista de Verificação de Fomento'!$I$1:$I$396)))+('Lista de Verificação de Fomento'!$I$1:$I$396<>\"Yes\")*1048577, 0, 0), ROW(A153))),\"\")","v":""},{"$f":"IFERROR(VLOOKUP(B157,'Lista de Verificação de Fomento'!B:C,2,0),\"\")","v":""},{"$f":"IFERROR(VLOOKUP(VLOOKUP(B157,'Lista de Verificação de Fomento'!B:J,9,0),DropDowns!G:H,2,0),\"\")","v":""},{"$f":"IFERROR(VLOOKUP(B157,'Lista de Verificação de Fomento'!B:E,4,0),\"\")","v":""},{"$f":"IFERROR(VLOOKUP(B157,'Lista de Verificação de Fomento'!B:G,6,0),\"\")","v":""},null,"",null,""]
[null,{"$f":"IFERROR(INDEX('Lista de Verificação de Fomento'!$B$1:$B$396, SMALL(INDEX(('Lista de Verificação de Fomento'!$I$1:$I$396=\"Yes\")*(MATCH(ROW('Lista de Verificação de Fomento'!$I$1:$I$396), ROW('Lista de Verificação de Fomento'!$I$1:$I$396)))+('Lista de Verificação de Fomento'!$I$1:$I$396<>\"Yes\")*1048577, 0, 0), ROW(A154))),\"\")","v":""},{"$f":"IFERROR(VLOOKUP(B158,'Lista de Verificação de Fomento'!B:C,2,0),\"\")","v":""},{"$f":"IFERROR(VLOOKUP(VLOOKUP(B158,'Lista de Verificação de Fomento'!B:J,9,0),DropDowns!G:H,2,0),\"\")","v":""},{"$f":"IFERROR(VLOOKUP(B158,'Lista de Verificação de Fomento'!B:E,4,0),\"\")","v":""},{"$f":"IFERROR(VLOOKUP(B158,'Lista de Verificação de Fomento'!B:G,6,0),\"\")","v":""},null,"",null,""]
[null,{"$f":"IFERROR(INDEX('Lista de Verificação de Fomento'!$B$1:$B$396, SMALL(INDEX(('Lista de Verificação de Fomento'!$I$1:$I$396=\"Yes\")*(MATCH(ROW('Lista de Verificação de Fomento'!$I$1:$I$396), ROW('Lista de Verificação de Fomento'!$I$1:$I$396)))+('Lista de Verificação de Fomento'!$I$1:$I$396<>\"Yes\")*1048577, 0, 0), ROW(A155))),\"\")","v":""},{"$f":"IFERROR(VLOOKUP(B159,'Lista de Verificação de Fomento'!B:C,2,0),\"\")","v":""},{"$f":"IFERROR(VLOOKUP(VLOOKUP(B159,'Lista de Verificação de Fomento'!B:J,9,0),DropDowns!G:H,2,0),\"\")","v":""},{"$f":"IFERROR(VLOOKUP(B159,'Lista de Verificação de Fomento'!B:E,4,0),\"\")","v":""},{"$f":"IFERROR(VLOOKUP(B159,'Lista de Verificação de Fomento'!B:G,6,0),\"\")","v":""},null,"",null,""]
[null,{"$f":"IFERROR(INDEX('Lista de Verificação de Fomento'!$B$1:$B$396, SMALL(INDEX(('Lista de Verificação de Fomento'!$I$1:$I$396=\"Yes\")*(MATCH(ROW('Lista de Verificação de Fomento'!$I$1:$I$396), ROW('Lista de Verificação de Fomento'!$I$1:$I$396)))+('Lista de Verificação de Fomento'!$I$1:$I$396<>\"Yes\")*1048577, 0, 0), ROW(A156))),\"\")","v":""},{"$f":"IFERROR(VLOOKUP(B160,'Lista de Verificação de Fomento'!B:C,2,0),\"\")","v":""},{"$f":"IFERROR(VLOOKUP(VLOOKUP(B160,'Lista de Verificação de Fomento'!B:J,9,0),DropDowns!G:H,2,0),\"\")","v":""},{"$f":"IFERROR(VLOOKUP(B160,'Lista de Verificação de Fomento'!B:E,4,0),\"\")","v":""},{"$f":"IFERROR(VLOOKUP(B160,'Lista de Verificação de Fomento'!B:G,6,0),\"\")","v":""},null,"",null,""]
[null,{"$f":"IFERROR(INDEX('Lista de Verificação de Fomento'!$B$1:$B$396, SMALL(INDEX(('Lista de Verificação de Fomento'!$I$1:$I$396=\"Yes\")*(MATCH(ROW('Lista de Verificação de Fomento'!$I$1:$I$396), ROW('Lista de Verificação de Fomento'!$I$1:$I$396)))+('Lista de Verificação de Fomento'!$I$1:$I$396<>\"Yes\")*1048577, 0, 0), ROW(A157))),\"\")","v":""},{"$f":"IFERROR(VLOOKUP(B161,'Lista de Verificação de Fomento'!B:C,2,0),\"\")","v":""},{"$f":"IFERROR(VLOOKUP(VLOOKUP(B161,'Lista de Verificação de Fomento'!B:J,9,0),DropDowns!G:H,2,0),\"\")","v":""},{"$f":"IFERROR(VLOOKUP(B161,'Lista de Verificação de Fomento'!B:E,4,0),\"\")","v":""},{"$f":"IFERROR(VLOOKUP(B161,'Lista de Verificação de Fomento'!B:G,6,0),\"\")","v":""},null,"",null,""]
[null,{"$f":"IFERROR(INDEX('Lista de Verificação de Fomento'!$B$1:$B$396, SMALL(INDEX(('Lista de Verificação de Fomento'!$I$1:$I$396=\"Yes\")*(MATCH(ROW('Lista de Verificação de Fomento'!$I$1:$I$396), ROW('Lista de Verificação de Fomento'!$I$1:$I$396)))+('Lista de Verificação de Fomento'!$I$1:$I$396<>\"Yes\")*1048577, 0, 0), ROW(A158))),\"\")","v":""},{"$f":"IFERROR(VLOOKUP(B162,'Lista de Verificação de Fomento'!B:C,2,0),\"\")","v":""},{"$f":"IFERROR(VLOOKUP(VLOOKUP(B162,'Lista de Verificação de Fomento'!B:J,9,0),DropDowns!G:H,2,0),\"\")","v":""},{"$f":"IFERROR(VLOOKUP(B162,'Lista de Verificação de Fomento'!B:E,4,0),\"\")","v":""},{"$f":"IFERROR(VLOOKUP(B162,'Lista de Verificação de Fomento'!B:G,6,0),\"\")","v":""},null,"",null,""]
[null,{"$f":"IFERROR(INDEX('Lista de Verificação de Fomento'!$B$1:$B$396, SMALL(INDEX(('Lista de Verificação de Fomento'!$I$1:$I$396=\"Yes\")*(MATCH(ROW('Lista de Verificação de Fomento'!$I$1:$I$396), ROW('Lista de Verificação de Fomento'!$I$1:$I$396)))+('Lista de Verificação de Fomento'!$I$1:$I$396<>\"Yes\")*1048577, 0, 0), ROW(A159))),\"\")","v":""},{"$f":"IFERROR(VLOOKUP(B163,'Lista de Verificação de Fomento'!B:C,2,0),\"\")","v":""},{"$f":"IFERROR(VLOOKUP(VLOOKUP(B163,'Lista de Verificação de Fomento'!B:J,9,0),DropDowns!G:H,2,0),\"\")","v":""},{"$f":"IFERROR(VLOOKUP(B163,'Lista de Verificação de Fomento'!B:E,4,0),\"\")","v":""},{"$f":"IFERROR(VLOOKUP(B163,'Lista de Verificação de Fomento'!B:G,6,0),\"\")","v":""},null,"",null,""]
[null,{"$f":"IFERROR(INDEX('Lista de Verificação de Fomento'!$B$1:$B$396, SMALL(INDEX(('Lista de Verificação de Fomento'!$I$1:$I$396=\"Yes\")*(MATCH(ROW('Lista de Verificação de Fomento'!$I$1:$I$396), ROW('Lista de Verificação de Fomento'!$I$1:$I$396)))+('Lista de Verificação de Fomento'!$I$1:$I$396<>\"Yes\")*1048577, 0, 0), ROW(A160))),\"\")","v":""},{"$f":"IFERROR(VLOOKUP(B164,'Lista de Verificação de Fomento'!B:C,2,0),\"\")","v":""},{"$f":"IFERROR(VLOOKUP(VLOOKUP(B164,'Lista de Verificação de Fomento'!B:J,9,0),DropDowns!G:H,2,0),\"\")","v":""},{"$f":"IFERROR(VLOOKUP(B164,'Lista de Verificação de Fomento'!B:E,4,0),\"\")","v":""},{"$f":"IFERROR(VLOOKUP(B164,'Lista de Verificação de Fomento'!B:G,6,0),\"\")","v":""},null,"",null,""]
[null,{"$f":"IFERROR(INDEX('Lista de Verificação de Fomento'!$B$1:$B$396, SMALL(INDEX(('Lista de Verificação de Fomento'!$I$1:$I$396=\"Yes\")*(MATCH(ROW('Lista de Verificação de Fomento'!$I$1:$I$396), ROW('Lista de Verificação de Fomento'!$I$1:$I$396)))+('Lista de Verificação de Fomento'!$I$1:$I$396<>\"Yes\")*1048577, 0, 0), ROW(A161))),\"\")","v":""},{"$f":"IFERROR(VLOOKUP(B165,'Lista de Verificação de Fomento'!B:C,2,0),\"\")","v":""},{"$f":"IFERROR(VLOOKUP(VLOOKUP(B165,'Lista de Verificação de Fomento'!B:J,9,0),DropDowns!G:H,2,0),\"\")","v":""},{"$f":"IFERROR(VLOOKUP(B165,'Lista de Verificação de Fomento'!B:E,4,0),\"\")","v":""},{"$f":"IFERROR(VLOOKUP(B165,'Lista de Verificação de Fomento'!B:G,6,0),\"\")","v":""},null,"",null,""]
[null,{"$f":"IFERROR(INDEX('Lista de Verificação de Fomento'!$B$1:$B$396, SMALL(INDEX(('Lista de Verificação de Fomento'!$I$1:$I$396=\"Yes\")*(MATCH(ROW('Lista de Verificação de Fomento'!$I$1:$I$396), ROW('Lista de Verificação de Fomento'!$I$1:$I$396)))+('Lista de Verificação de Fomento'!$I$1:$I$396<>\"Yes\")*1048577, 0, 0), ROW(A162))),\"\")","v":""},{"$f":"IFERROR(VLOOKUP(B166,'Lista de Verificação de Fomento'!B:C,2,0),\"\")","v":""},{"$f":"IFERROR(VLOOKUP(VLOOKUP(B166,'Lista de Verificação de Fomento'!B:J,9,0),DropDowns!G:H,2,0),\"\")","v":""},{"$f":"IFERROR(VLOOKUP(B166,'Lista de Verificação de Fomento'!B:E,4,0),\"\")","v":""},{"$f":"IFERROR(VLOOKUP(B166,'Lista de Verificação de Fomento'!B:G,6,0),\"\")","v":""},null,"",null,""]
[null,{"$f":"IFERROR(INDEX('Lista de Verificação de Fomento'!$B$1:$B$396, SMALL(INDEX(('Lista de Verificação de Fomento'!$I$1:$I$396=\"Yes\")*(MATCH(ROW('Lista de Verificação de Fomento'!$I$1:$I$396), ROW('Lista de Verificação de Fomento'!$I$1:$I$396)))+('Lista de Verificação de Fomento'!$I$1:$I$396<>\"Yes\")*1048577, 0, 0), ROW(A163))),\"\")","v":""},{"$f":"IFERROR(VLOOKUP(B167,'Lista de Verificação de Fomento'!B:C,2,0),\"\")","v":""},{"$f":"IFERROR(VLOOKUP(VLOOKUP(B167,'Lista de Verificação de Fomento'!B:J,9,0),DropDowns!G:H,2,0),\"\")","v":""},{"$f":"IFERROR(VLOOKUP(B167,'Lista de Verificação de Fomento'!B:E,4,0),\"\")","v":""},{"$f":"IFERROR(VLOOKUP(B167,'Lista de Verificação de Fomento'!B:G,6,0),\"\")","v":""},null,"",null,""]
[null,{"$f":"IFERROR(INDEX('Lista de Verificação de Fomento'!$B$1:$B$396, SMALL(INDEX(('Lista de Verificação de Fomento'!$I$1:$I$396=\"Yes\")*(MATCH(ROW('Lista de Verificação de Fomento'!$I$1:$I$396), ROW('Lista de Verificação de Fomento'!$I$1:$I$396)))+('Lista de Verificação de Fomento'!$I$1:$I$396<>\"Yes\")*1048577, 0, 0), ROW(A164))),\"\")","v":""},{"$f":"IFERROR(VLOOKUP(B168,'Lista de Verificação de Fomento'!B:C,2,0),\"\")","v":""},{"$f":"IFERROR(VLOOKUP(VLOOKUP(B168,'Lista de Verificação de Fomento'!B:J,9,0),DropDowns!G:H,2,0),\"\")","v":""},{"$f":"IFERROR(VLOOKUP(B168,'Lista de Verificação de Fomento'!B:E,4,0),\"\")","v":""},{"$f":"IFERROR(VLOOKUP(B168,'Lista de Verificação de Fomento'!B:G,6,0),\"\")","v":""},null,"",null,""]
[null,{"$f":"IFERROR(INDEX('Lista de Verificação de Fomento'!$B$1:$B$396, SMALL(INDEX(('Lista de Verificação de Fomento'!$I$1:$I$396=\"Yes\")*(MATCH(ROW('Lista de Verificação de Fomento'!$I$1:$I$396), ROW('Lista de Verificação de Fomento'!$I$1:$I$396)))+('Lista de Verificação de Fomento'!$I$1:$I$396<>\"Yes\")*1048577, 0, 0), ROW(A165))),\"\")","v":""},{"$f":"IFERROR(VLOOKUP(B169,'Lista de Verificação de Fomento'!B:C,2,0),\"\")","v":""},{"$f":"IFERROR(VLOOKUP(VLOOKUP(B169,'Lista de Verificação de Fomento'!B:J,9,0),DropDowns!G:H,2,0),\"\")","v":""},{"$f":"IFERROR(VLOOKUP(B169,'Lista de Verificação de Fomento'!B:E,4,0),\"\")","v":""},{"$f":"IFERROR(VLOOKUP(B169,'Lista de Verificação de Fomento'!B:G,6,0),\"\")","v":""},null,"",null,""]
[null,{"$f":"IFERROR(INDEX('Lista de Verificação de Fomento'!$B$1:$B$396, SMALL(INDEX(('Lista de Verificação de Fomento'!$I$1:$I$396=\"Yes\")*(MATCH(ROW('Lista de Verificação de Fomento'!$I$1:$I$396), ROW('Lista de Verificação de Fomento'!$I$1:$I$396)))+('Lista de Verificação de Fomento'!$I$1:$I$396<>\"Yes\")*1048577, 0, 0), ROW(A166))),\"\")","v":""},{"$f":"IFERROR(VLOOKUP(B170,'Lista de Verificação de Fomento'!B:C,2,0),\"\")","v":""},{"$f":"IFERROR(VLOOKUP(VLOOKUP(B170,'Lista de Verificação de Fomento'!B:J,9,0),DropDowns!G:H,2,0),\"\")","v":""},{"$f":"IFERROR(VLOOKUP(B170,'Lista de Verificação de Fomento'!B:E,4,0),\"\")","v":""},{"$f":"IFERROR(VLOOKUP(B170,'Lista de Verificação de Fomento'!B:G,6,0),\"\")","v":""},null,"",null,""]
[null,{"$f":"IFERROR(INDEX('Lista de Verificação de Fomento'!$B$1:$B$396, SMALL(INDEX(('Lista de Verificação de Fomento'!$I$1:$I$396=\"Yes\")*(MATCH(ROW('Lista de Verificação de Fomento'!$I$1:$I$396), ROW('Lista de Verificação de Fomento'!$I$1:$I$396)))+('Lista de Verificação de Fomento'!$I$1:$I$396<>\"Yes\")*1048577, 0, 0), ROW(A167))),\"\")","v":""},{"$f":"IFERROR(VLOOKUP(B171,'Lista de Verificação de Fomento'!B:C,2,0),\"\")","v":""},{"$f":"IFERROR(VLOOKUP(VLOOKUP(B171,'Lista de Verificação de Fomento'!B:J,9,0),DropDowns!G:H,2,0),\"\")","v":""},{"$f":"IFERROR(VLOOKUP(B171,'Lista de Verificação de Fomento'!B:E,4,0),\"\")","v":""},{"$f":"IFERROR(VLOOKUP(B171,'Lista de Verificação de Fomento'!B:G,6,0),\"\")","v":""},null,"",null,""]
[null,{"$f":"IFERROR(INDEX('Lista de Verificação de Fomento'!$B$1:$B$396, SMALL(INDEX(('Lista de Verificação de Fomento'!$I$1:$I$396=\"Yes\")*(MATCH(ROW('Lista de Verificação de Fomento'!$I$1:$I$396), ROW('Lista de Verificação de Fomento'!$I$1:$I$396)))+('Lista de Verificação de Fomento'!$I$1:$I$396<>\"Yes\")*1048577, 0, 0), ROW(A168))),\"\")","v":""},{"$f":"IFERROR(VLOOKUP(B172,'Lista de Verificação de Fomento'!B:C,2,0),\"\")","v":""},{"$f":"IFERROR(VLOOKUP(VLOOKUP(B172,'Lista de Verificação de Fomento'!B:J,9,0),DropDowns!G:H,2,0),\"\")","v":""},{"$f":"IFERROR(VLOOKUP(B172,'Lista de Verificação de Fomento'!B:E,4,0),\"\")","v":""},{"$f":"IFERROR(VLOOKUP(B172,'Lista de Verificação de Fomento'!B:G,6,0),\"\")","v":""},null,"",null,""]
[null,{"$f":"IFERROR(INDEX('Lista de Verificação de Fomento'!$B$1:$B$396, SMALL(INDEX(('Lista de Verificação de Fomento'!$I$1:$I$396=\"Yes\")*(MATCH(ROW('Lista de Verificação de Fomento'!$I$1:$I$396), ROW('Lista de Verificação de Fomento'!$I$1:$I$396)))+('Lista de Verificação de Fomento'!$I$1:$I$396<>\"Yes\")*1048577, 0, 0), ROW(A169))),\"\")","v":""},{"$f":"IFERROR(VLOOKUP(B173,'Lista de Verificação de Fomento'!B:C,2,0),\"\")","v":""},{"$f":"IFERROR(VLOOKUP(VLOOKUP(B173,'Lista de Verificação de Fomento'!B:J,9,0),DropDowns!G:H,2,0),\"\")","v":""},{"$f":"IFERROR(VLOOKUP(B173,'Lista de Verificação de Fomento'!B:E,4,0),\"\")","v":""},{"$f":"IFERROR(VLOOKUP(B173,'Lista de Verificação de Fomento'!B:G,6,0),\"\")","v":""},null,"",null,""]
[null,{"$f":"IFERROR(INDEX('Lista de Verificação de Fomento'!$B$1:$B$396, SMALL(INDEX(('Lista de Verificação de Fomento'!$I$1:$I$396=\"Yes\")*(MATCH(ROW('Lista de Verificação de Fomento'!$I$1:$I$396), ROW('Lista de Verificação de Fomento'!$I$1:$I$396)))+('Lista de Verificação de Fomento'!$I$1:$I$396<>\"Yes\")*1048577, 0, 0), ROW(A170))),\"\")","v":""},{"$f":"IFERROR(VLOOKUP(B174,'Lista de Verificação de Fomento'!B:C,2,0),\"\")","v":""},{"$f":"IFERROR(VLOOKUP(VLOOKUP(B174,'Lista de Verificação de Fomento'!B:J,9,0),DropDowns!G:H,2,0),\"\")","v":""},{"$f":"IFERROR(VLOOKUP(B174,'Lista de Verificação de Fomento'!B:E,4,0),\"\")","v":""},{"$f":"IFERROR(VLOOKUP(B174,'Lista de Verificação de Fomento'!B:G,6,0),\"\")","v":""},null,"",null,""]
[null,{"$f":"IFERROR(INDEX('Lista de Verificação de Fomento'!$B$1:$B$396, SMALL(INDEX(('Lista de Verificação de Fomento'!$I$1:$I$396=\"Yes\")*(MATCH(ROW('Lista de Verificação de Fomento'!$I$1:$I$396), ROW('Lista de Verificação de Fomento'!$I$1:$I$396)))+('Lista de Verificação de Fomento'!$I$1:$I$396<>\"Yes\")*1048577, 0, 0), ROW(A171))),\"\")","v":""},{"$f":"IFERROR(VLOOKUP(B175,'Lista de Verificação de Fomento'!B:C,2,0),\"\")","v":""},{"$f":"IFERROR(VLOOKUP(VLOOKUP(B175,'Lista de Verificação de Fomento'!B:J,9,0),DropDowns!G:H,2,0),\"\")","v":""},{"$f":"IFERROR(VLOOKUP(B175,'Lista de Verificação de Fomento'!B:E,4,0),\"\")","v":""},{"$f":"IFERROR(VLOOKUP(B175,'Lista de Verificação de Fomento'!B:G,6,0),\"\")","v":""},null,"",null,""]
[null,{"$f":"IFERROR(INDEX('Lista de Verificação de Fomento'!$B$1:$B$396, SMALL(INDEX(('Lista de Verificação de Fomento'!$I$1:$I$396=\"Yes\")*(MATCH(ROW('Lista de Verificação de Fomento'!$I$1:$I$396), ROW('Lista de Verificação de Fomento'!$I$1:$I$396)))+('Lista de Verificação de Fomento'!$I$1:$I$396<>\"Yes\")*1048577, 0, 0), ROW(A172))),\"\")","v":""},{"$f":"IFERROR(VLOOKUP(B176,'Lista de Verificação de Fomento'!B:C,2,0),\"\")","v":""},{"$f":"IFERROR(VLOOKUP(VLOOKUP(B176,'Lista de Verificação de Fomento'!B:J,9,0),DropDowns!G:H,2,0),\"\")","v":""},{"$f":"IFERROR(VLOOKUP(B176,'Lista de Verificação de Fomento'!B:E,4,0),\"\")","v":""},{"$f":"IFERROR(VLOOKUP(B176,'Lista de Verificação de Fomento'!B:G,6,0),\"\")","v":""},null,"",null,""]
[null,{"$f":"IFERROR(INDEX('Lista de Verificação de Fomento'!$B$1:$B$396, SMALL(INDEX(('Lista de Verificação de Fomento'!$I$1:$I$396=\"Yes\")*(MATCH(ROW('Lista de Verificação de Fomento'!$I$1:$I$396), ROW('Lista de Verificação de Fomento'!$I$1:$I$396)))+('Lista de Verificação de Fomento'!$I$1:$I$396<>\"Yes\")*1048577, 0, 0), ROW(A173))),\"\")","v":""},{"$f":"IFERROR(VLOOKUP(B177,'Lista de Verificação de Fomento'!B:C,2,0),\"\")","v":""},{"$f":"IFERROR(VLOOKUP(VLOOKUP(B177,'Lista de Verificação de Fomento'!B:J,9,0),DropDowns!G:H,2,0),\"\")","v":""},{"$f":"IFERROR(VLOOKUP(B177,'Lista de Verificação de Fomento'!B:E,4,0),\"\")","v":""},{"$f":"IFERROR(VLOOKUP(B177,'Lista de Verificação de Fomento'!B:G,6,0),\"\")","v":""},null,"",null,""]
[null,{"$f":"IFERROR(INDEX('Lista de Verificação de Fomento'!$B$1:$B$396, SMALL(INDEX(('Lista de Verificação de Fomento'!$I$1:$I$396=\"Yes\")*(MATCH(ROW('Lista de Verificação de Fomento'!$I$1:$I$396), ROW('Lista de Verificação de Fomento'!$I$1:$I$396)))+('Lista de Verificação de Fomento'!$I$1:$I$396<>\"Yes\")*1048577, 0, 0), ROW(A174))),\"\")","v":""},{"$f":"IFERROR(VLOOKUP(B178,'Lista de Verificação de Fomento'!B:C,2,0),\"\")","v":""},{"$f":"IFERROR(VLOOKUP(VLOOKUP(B178,'Lista de Verificação de Fomento'!B:J,9,0),DropDowns!G:H,2,0),\"\")","v":""},{"$f":"IFERROR(VLOOKUP(B178,'Lista de Verificação de Fomento'!B:E,4,0),\"\")","v":""},{"$f":"IFERROR(VLOOKUP(B178,'Lista de Verificação de Fomento'!B:G,6,0),\"\")","v":""},null,"",null,""]
[null,{"$f":"IFERROR(INDEX('Lista de Verificação de Fomento'!$B$1:$B$396, SMALL(INDEX(('Lista de Verificação de Fomento'!$I$1:$I$396=\"Yes\")*(MATCH(ROW('Lista de Verificação de Fomento'!$I$1:$I$396), ROW('Lista de Verificação de Fomento'!$I$1:$I$396)))+('Lista de Verificação de Fomento'!$I$1:$I$396<>\"Yes\")*1048577, 0, 0), ROW(A175))),\"\")","v":""},{"$f":"IFERROR(VLOOKUP(B179,'Lista de Verificação de Fomento'!B:C,2,0),\"\")","v":""},{"$f":"IFERROR(VLOOKUP(VLOOKUP(B179,'Lista de Verificação de Fomento'!B:J,9,0),DropDowns!G:H,2,0),\"\")","v":""},{"$f":"IFERROR(VLOOKUP(B179,'Lista de Verificação de Fomento'!B:E,4,0),\"\")","v":""},{"$f":"IFERROR(VLOOKUP(B179,'Lista de Verificação de Fomento'!B:G,6,0),\"\")","v":""},null,"",null,""]
[null,{"$f":"IFERROR(INDEX('Lista de Verificação de Fomento'!$B$1:$B$396, SMALL(INDEX(('Lista de Verificação de Fomento'!$I$1:$I$396=\"Yes\")*(MATCH(ROW('Lista de Verificação de Fomento'!$I$1:$I$396), ROW('Lista de Verificação de Fomento'!$I$1:$I$396)))+('Lista de Verificação de Fomento'!$I$1:$I$396<>\"Yes\")*1048577, 0, 0), ROW(A176))),\"\")","v":""},{"$f":"IFERROR(VLOOKUP(B180,'Lista de Verificação de Fomento'!B:C,2,0),\"\")","v":""},{"$f":"IFERROR(VLOOKUP(VLOOKUP(B180,'Lista de Verificação de Fomento'!B:J,9,0),DropDowns!G:H,2,0),\"\")","v":""},{"$f":"IFERROR(VLOOKUP(B180,'Lista de Verificação de Fomento'!B:E,4,0),\"\")","v":""},{"$f":"IFERROR(VLOOKUP(B180,'Lista de Verificação de Fomento'!B:G,6,0),\"\")","v":""},null,"",null,""]
[null,{"$f":"IFERROR(INDEX('Lista de Verificação de Fomento'!$B$1:$B$396, SMALL(INDEX(('Lista de Verificação de Fomento'!$I$1:$I$396=\"Yes\")*(MATCH(ROW('Lista de Verificação de Fomento'!$I$1:$I$396), ROW('Lista de Verificação de Fomento'!$I$1:$I$396)))+('Lista de Verificação de Fomento'!$I$1:$I$396<>\"Yes\")*1048577, 0, 0), ROW(A177))),\"\")","v":""},{"$f":"IFERROR(VLOOKUP(B181,'Lista de Verificação de Fomento'!B:C,2,0),\"\")","v":""},{"$f":"IFERROR(VLOOKUP(VLOOKUP(B181,'Lista de Verificação de Fomento'!B:J,9,0),DropDowns!G:H,2,0),\"\")","v":""},{"$f":"IFERROR(VLOOKUP(B181,'Lista de Verificação de Fomento'!B:E,4,0),\"\")","v":""},{"$f":"IFERROR(VLOOKUP(B181,'Lista de Verificação de Fomento'!B:G,6,0),\"\")","v":""},null,"",null,""]
[null,{"$f":"IFERROR(INDEX('Lista de Verificação de Fomento'!$B$1:$B$396, SMALL(INDEX(('Lista de Verificação de Fomento'!$I$1:$I$396=\"Yes\")*(MATCH(ROW('Lista de Verificação de Fomento'!$I$1:$I$396), ROW('Lista de Verificação de Fomento'!$I$1:$I$396)))+('Lista de Verificação de Fomento'!$I$1:$I$396<>\"Yes\")*1048577, 0, 0), ROW(A178))),\"\")","v":""},{"$f":"IFERROR(VLOOKUP(B182,'Lista de Verificação de Fomento'!B:C,2,0),\"\")","v":""},{"$f":"IFERROR(VLOOKUP(VLOOKUP(B182,'Lista de Verificação de Fomento'!B:J,9,0),DropDowns!G:H,2,0),\"\")","v":""},{"$f":"IFERROR(VLOOKUP(B182,'Lista de Verificação de Fomento'!B:E,4,0),\"\")","v":""},{"$f":"IFERROR(VLOOKUP(B182,'Lista de Verificação de Fomento'!B:G,6,0),\"\")","v":""},null,"",null,""]
[null,{"$f":"IFERROR(INDEX('Lista de Verificação de Fomento'!$B$1:$B$396, SMALL(INDEX(('Lista de Verificação de Fomento'!$I$1:$I$396=\"Yes\")*(MATCH(ROW('Lista de Verificação de Fomento'!$I$1:$I$396), ROW('Lista de Verificação de Fomento'!$I$1:$I$396)))+('Lista de Verificação de Fomento'!$I$1:$I$396<>\"Yes\")*1048577, 0, 0), ROW(A179))),\"\")","v":""},{"$f":"IFERROR(VLOOKUP(B183,'Lista de Verificação de Fomento'!B:C,2,0),\"\")","v":""},{"$f":"IFERROR(VLOOKUP(VLOOKUP(B183,'Lista de Verificação de Fomento'!B:J,9,0),DropDowns!G:H,2,0),\"\")","v":""},{"$f":"IFERROR(VLOOKUP(B183,'Lista de Verificação de Fomento'!B:E,4,0),\"\")","v":""},{"$f":"IFERROR(VLOOKUP(B183,'Lista de Verificação de Fomento'!B:G,6,0),\"\")","v":""},null,"",null,""]
[null,{"$f":"IFERROR(INDEX('Lista de Verificação de Fomento'!$B$1:$B$396, SMALL(INDEX(('Lista de Verificação de Fomento'!$I$1:$I$396=\"Yes\")*(MATCH(ROW('Lista de Verificação de Fomento'!$I$1:$I$396), ROW('Lista de Verificação de Fomento'!$I$1:$I$396)))+('Lista de Verificação de Fomento'!$I$1:$I$396<>\"Yes\")*1048577, 0, 0), ROW(A180))),\"\")","v":""},{"$f":"IFERROR(VLOOKUP(B184,'Lista de Verificação de Fomento'!B:C,2,0),\"\")","v":""},{"$f":"IFERROR(VLOOKUP(VLOOKUP(B184,'Lista de Verificação de Fomento'!B:J,9,0),DropDowns!G:H,2,0),\"\")","v":""},{"$f":"IFERROR(VLOOKUP(B184,'Lista de Verificação de Fomento'!B:E,4,0),\"\")","v":""},{"$f":"IFERROR(VLOOKUP(B184,'Lista de Verificação de Fomento'!B:G,6,0),\"\")","v":""},null,"",null,""]
[null,{"$f":"IFERROR(INDEX('Lista de Verificação de Fomento'!$B$1:$B$396, SMALL(INDEX(('Lista de Verificação de Fomento'!$I$1:$I$396=\"Yes\")*(MATCH(ROW('Lista de Verificação de Fomento'!$I$1:$I$396), ROW('Lista de Verificação de Fomento'!$I$1:$I$396)))+('Lista de Verificação de Fomento'!$I$1:$I$396<>\"Yes\")*1048577, 0, 0), ROW(A181))),\"\")","v":""},{"$f":"IFERROR(VLOOKUP(B185,'Lista de Verificação de Fomento'!B:C,2,0),\"\")","v":""},{"$f":"IFERROR(VLOOKUP(VLOOKUP(B185,'Lista de Verificação de Fomento'!B:J,9,0),DropDowns!G:H,2,0),\"\")","v":""},{"$f":"IFERROR(VLOOKUP(B185,'Lista de Verificação de Fomento'!B:E,4,0),\"\")","v":""},{"$f":"IFERROR(VLOOKUP(B185,'Lista de Verificação de Fomento'!B:G,6,0),\"\")","v":""},null,"",null,""]
[null,{"$f":"IFERROR(INDEX('Lista de Verificação de Fomento'!$B$1:$B$396, SMALL(INDEX(('Lista de Verificação de Fomento'!$I$1:$I$396=\"Yes\")*(MATCH(ROW('Lista de Verificação de Fomento'!$I$1:$I$396), ROW('Lista de Verificação de Fomento'!$I$1:$I$396)))+('Lista de Verificação de Fomento'!$I$1:$I$396<>\"Yes\")*1048577, 0, 0), ROW(A182))),\"\")","v":""},{"$f":"IFERROR(VLOOKUP(B186,'Lista de Verificação de Fomento'!B:C,2,0),\"\")","v":""},{"$f":"IFERROR(VLOOKUP(VLOOKUP(B186,'Lista de Verificação de Fomento'!B:J,9,0),DropDowns!G:H,2,0),\"\")","v":""},{"$f":"IFERROR(VLOOKUP(B186,'Lista de Verificação de Fomento'!B:E,4,0),\"\")","v":""},{"$f":"IFERROR(VLOOKUP(B186,'Lista de Verificação de Fomento'!B:G,6,0),\"\")","v":""},null,"",null,""]
[null,{"$f":"IFERROR(INDEX('Lista de Verificação de Fomento'!$B$1:$B$396, SMALL(INDEX(('Lista de Verificação de Fomento'!$I$1:$I$396=\"Yes\")*(MATCH(ROW('Lista de Verificação de Fomento'!$I$1:$I$396), ROW('Lista de Verificação de Fomento'!$I$1:$I$396)))+('Lista de Verificação de Fomento'!$I$1:$I$396<>\"Yes\")*1048577, 0, 0), ROW(A183))),\"\")","v":""},{"$f":"IFERROR(VLOOKUP(B187,'Lista de Verificação de Fomento'!B:C,2,0),\"\")","v":""},{"$f":"IFERROR(VLOOKUP(VLOOKUP(B187,'Lista de Verificação de Fomento'!B:J,9,0),DropDowns!G:H,2,0),\"\")","v":""},{"$f":"IFERROR(VLOOKUP(B187,'Lista de Verificação de Fomento'!B:E,4,0),\"\")","v":""},{"$f":"IFERROR(VLOOKUP(B187,'Lista de Verificação de Fomento'!B:G,6,0),\"\")","v":""},null,"",null,""]
[null,{"$f":"IFERROR(INDEX('Lista de Verificação de Fomento'!$B$1:$B$396, SMALL(INDEX(('Lista de Verificação de Fomento'!$I$1:$I$396=\"Yes\")*(MATCH(ROW('Lista de Verificação de Fomento'!$I$1:$I$396), ROW('Lista de Verificação de Fomento'!$I$1:$I$396)))+('Lista de Verificação de Fomento'!$I$1:$I$396<>\"Yes\")*1048577, 0, 0), ROW(A184))),\"\")","v":""},{"$f":"IFERROR(VLOOKUP(B188,'Lista de Verificação de Fomento'!B:C,2,0),\"\")","v":""},{"$f":"IFERROR(VLOOKUP(VLOOKUP(B188,'Lista de Verificação de Fomento'!B:J,9,0),DropDowns!G:H,2,0),\"\")","v":""},{"$f":"IFERROR(VLOOKUP(B188,'Lista de Verificação de Fomento'!B:E,4,0),\"\")","v":""},{"$f":"IFERROR(VLOOKUP(B188,'Lista de Verificação de Fomento'!B:G,6,0),\"\")","v":""},null,"",null,""]
[null,{"$f":"IFERROR(INDEX('Lista de Verificação de Fomento'!$B$1:$B$396, SMALL(INDEX(('Lista de Verificação de Fomento'!$I$1:$I$396=\"Yes\")*(MATCH(ROW('Lista de Verificação de Fomento'!$I$1:$I$396), ROW('Lista de Verificação de Fomento'!$I$1:$I$396)))+('Lista de Verificação de Fomento'!$I$1:$I$396<>\"Yes\")*1048577, 0, 0), ROW(A185))),\"\")","v":""},{"$f":"IFERROR(VLOOKUP(B189,'Lista de Verificação de Fomento'!B:C,2,0),\"\")","v":""},{"$f":"IFERROR(VLOOKUP(VLOOKUP(B189,'Lista de Verificação de Fomento'!B:J,9,0),DropDowns!G:H,2,0),\"\")","v":""},{"$f":"IFERROR(VLOOKUP(B189,'Lista de Verificação de Fomento'!B:E,4,0),\"\")","v":""},{"$f":"IFERROR(VLOOKUP(B189,'Lista de Verificação de Fomento'!B:G,6,0),\"\")","v":""},null,"",null,""]
[null,{"$f":"IFERROR(INDEX('Lista de Verificação de Fomento'!$B$1:$B$396, SMALL(INDEX(('Lista de Verificação de Fomento'!$I$1:$I$396=\"Yes\")*(MATCH(ROW('Lista de Verificação de Fomento'!$I$1:$I$396), ROW('Lista de Verificação de Fomento'!$I$1:$I$396)))+('Lista de Verificação de Fomento'!$I$1:$I$396<>\"Yes\")*1048577, 0, 0), ROW(A186))),\"\")","v":""},{"$f":"IFERROR(VLOOKUP(B190,'Lista de Verificação de Fomento'!B:C,2,0),\"\")","v":""},{"$f":"IFERROR(VLOOKUP(VLOOKUP(B190,'Lista de Verificação de Fomento'!B:J,9,0),DropDowns!G:H,2,0),\"\")","v":""},{"$f":"IFERROR(VLOOKUP(B190,'Lista de Verificação de Fomento'!B:E,4,0),\"\")","v":""},{"$f":"IFERROR(VLOOKUP(B190,'Lista de Verificação de Fomento'!B:G,6,0),\"\")","v":""},null,"",null,""]
[null,{"$f":"IFERROR(INDEX('Lista de Verificação de Fomento'!$B$1:$B$396, SMALL(INDEX(('Lista de Verificação de Fomento'!$I$1:$I$396=\"Yes\")*(MATCH(ROW('Lista de Verificação de Fomento'!$I$1:$I$396), ROW('Lista de Verificação de Fomento'!$I$1:$I$396)))+('Lista de Verificação de Fomento'!$I$1:$I$396<>\"Yes\")*1048577, 0, 0), ROW(A187))),\"\")","v":""},{"$f":"IFERROR(VLOOKUP(B191,'Lista de Verificação de Fomento'!B:C,2,0),\"\")","v":""},{"$f":"IFERROR(VLOOKUP(VLOOKUP(B191,'Lista de Verificação de Fomento'!B:J,9,0),DropDowns!G:H,2,0),\"\")","v":""},{"$f":"IFERROR(VLOOKUP(B191,'Lista de Verificação de Fomento'!B:E,4,0),\"\")","v":""},{"$f":"IFERROR(VLOOKUP(B191,'Lista de Verificação de Fomento'!B:G,6,0),\"\")","v":""},null,"",null,""]
[null,{"$f":"IFERROR(INDEX('Lista de Verificação de Fomento'!$B$1:$B$396, SMALL(INDEX(('Lista de Verificação de Fomento'!$I$1:$I$396=\"Yes\")*(MATCH(ROW('Lista de Verificação de Fomento'!$I$1:$I$396), ROW('Lista de Verificação de Fomento'!$I$1:$I$396)))+('Lista de Verificação de Fomento'!$I$1:$I$396<>\"Yes\")*1048577, 0, 0), ROW(A188))),\"\")","v":""},{"$f":"IFERROR(VLOOKUP(B192,'Lista de Verificação de Fomento'!B:C,2,0),\"\")","v":""},{"$f":"IFERROR(VLOOKUP(VLOOKUP(B192,'Lista de Verificação de Fomento'!B:J,9,0),DropDowns!G:H,2,0),\"\")","v":""},{"$f":"IFERROR(VLOOKUP(B192,'Lista de Verificação de Fomento'!B:E,4,0),\"\")","v":""},{"$f":"IFERROR(VLOOKUP(B192,'Lista de Verificação de Fomento'!B:G,6,0),\"\")","v":""},null,"",null,""]
[null,{"$f":"IFERROR(INDEX('Lista de Verificação de Fomento'!$B$1:$B$396, SMALL(INDEX(('Lista de Verificação de Fomento'!$I$1:$I$396=\"Yes\")*(MATCH(ROW('Lista de Verificação de Fomento'!$I$1:$I$396), ROW('Lista de Verificação de Fomento'!$I$1:$I$396)))+('Lista de Verificação de Fomento'!$I$1:$I$396<>\"Yes\")*1048577, 0, 0), ROW(A189))),\"\")","v":""},{"$f":"IFERROR(VLOOKUP(B193,'Lista de Verificação de Fomento'!B:C,2,0),\"\")","v":""},{"$f":"IFERROR(VLOOKUP(VLOOKUP(B193,'Lista de Verificação de Fomento'!B:J,9,0),DropDowns!G:H,2,0),\"\")","v":""},{"$f":"IFERROR(VLOOKUP(B193,'Lista de Verificação de Fomento'!B:E,4,0),\"\")","v":""},{"$f":"IFERROR(VLOOKUP(B193,'Lista de Verificação de Fomento'!B:G,6,0),\"\")","v":""},null,"",null,""]
[null,{"$f":"IFERROR(INDEX('Lista de Verificação de Fomento'!$B$1:$B$396, SMALL(INDEX(('Lista de Verificação de Fomento'!$I$1:$I$396=\"Yes\")*(MATCH(ROW('Lista de Verificação de Fomento'!$I$1:$I$396), ROW('Lista de Verificação de Fomento'!$I$1:$I$396)))+('Lista de Verificação de Fomento'!$I$1:$I$396<>\"Yes\")*1048577, 0, 0), ROW(A190))),\"\")","v":""},{"$f":"IFERROR(VLOOKUP(B194,'Lista de Verificação de Fomento'!B:C,2,0),\"\")","v":""},{"$f":"IFERROR(VLOOKUP(VLOOKUP(B194,'Lista de Verificação de Fomento'!B:J,9,0),DropDowns!G:H,2,0),\"\")","v":""},{"$f":"IFERROR(VLOOKUP(B194,'Lista de Verificação de Fomento'!B:E,4,0),\"\")","v":""},{"$f":"IFERROR(VLOOKUP(B194,'Lista de Verificação de Fomento'!B:G,6,0),\"\")","v":""},null,"",null,""]
[null,{"$f":"IFERROR(INDEX('Lista de Verificação de Fomento'!$B$1:$B$396, SMALL(INDEX(('Lista de Verificação de Fomento'!$I$1:$I$396=\"Yes\")*(MATCH(ROW('Lista de Verificação de Fomento'!$I$1:$I$396), ROW('Lista de Verificação de Fomento'!$I$1:$I$396)))+('Lista de Verificação de Fomento'!$I$1:$I$396<>\"Yes\")*1048577, 0, 0), ROW(A191))),\"\")","v":""},{"$f":"IFERROR(VLOOKUP(B195,'Lista de Verificação de Fomento'!B:C,2,0),\"\")","v":""},{"$f":"IFERROR(VLOOKUP(VLOOKUP(B195,'Lista de Verificação de Fomento'!B:J,9,0),DropDowns!G:H,2,0),\"\")","v":""},{"$f":"IFERROR(VLOOKUP(B195,'Lista de Verificação de Fomento'!B:E,4,0),\"\")","v":""},{"$f":"IFERROR(VLOOKUP(B195,'Lista de Verificação de Fomento'!B:G,6,0),\"\")","v":""},null,"",null,""]
[null,{"$f":"IFERROR(INDEX('Lista de Verificação de Fomento'!$B$1:$B$396, SMALL(INDEX(('Lista de Verificação de Fomento'!$I$1:$I$396=\"Yes\")*(MATCH(ROW('Lista de Verificação de Fomento'!$I$1:$I$396), ROW('Lista de Verificação de Fomento'!$I$1:$I$396)))+('Lista de Verificação de Fomento'!$I$1:$I$396<>\"Yes\")*1048577, 0, 0), ROW(A192))),\"\")","v":""},{"$f":"IFERROR(VLOOKUP(B196,'Lista de Verificação de Fomento'!B:C,2,0),\"\")","v":""},{"$f":"IFERROR(VLOOKUP(VLOOKUP(B196,'Lista de Verificação de Fomento'!B:J,9,0),DropDowns!G:H,2,0),\"\")","v":""},{"$f":"IFERROR(VLOOKUP(B196,'Lista de Verificação de Fomento'!B:E,4,0),\"\")","v":""},{"$f":"IFERROR(VLOOKUP(B196,'Lista de Verificação de Fomento'!B:G,6,0),\"\")","v":""},null,"",null,""]
[null,{"$f":"IFERROR(INDEX('Lista de Verificação de Fomento'!$B$1:$B$396, SMALL(INDEX(('Lista de Verificação de Fomento'!$I$1:$I$396=\"Yes\")*(MATCH(ROW('Lista de Verificação de Fomento'!$I$1:$I$396), ROW('Lista de Verificação de Fomento'!$I$1:$I$396)))+('Lista de Verificação de Fomento'!$I$1:$I$396<>\"Yes\")*1048577, 0, 0), ROW(A193))),\"\")","v":""},{"$f":"IFERROR(VLOOKUP(B197,'Lista de Verificação de Fomento'!B:C,2,0),\"\")","v":""},{"$f":"IFERROR(VLOOKUP(VLOOKUP(B197,'Lista de Verificação de Fomento'!B:J,9,0),DropDowns!G:H,2,0),\"\")","v":""},{"$f":"IFERROR(VLOOKUP(B197,'Lista de Verificação de Fomento'!B:E,4,0),\"\")","v":""},{"$f":"IFERROR(VLOOKUP(B197,'Lista de Verificação de Fomento'!B:G,6,0),\"\")","v":""},null,"",null,""]
[null,{"$f":"IFERROR(INDEX('Lista de Verificação de Fomento'!$B$1:$B$396, SMALL(INDEX(('Lista de Verificação de Fomento'!$I$1:$I$396=\"Yes\")*(MATCH(ROW('Lista de Verificação de Fomento'!$I$1:$I$396), ROW('Lista de Verificação de Fomento'!$I$1:$I$396)))+('Lista de Verificação de Fomento'!$I$1:$I$396<>\"Yes\")*1048577, 0, 0), ROW(A194))),\"\")","v":""},{"$f":"IFERROR(VLOOKUP(B198,'Lista de Verificação de Fomento'!B:C,2,0),\"\")","v":""},{"$f":"IFERROR(VLOOKUP(VLOOKUP(B198,'Lista de Verificação de Fomento'!B:J,9,0),DropDowns!G:H,2,0),\"\")","v":""},{"$f":"IFERROR(VLOOKUP(B198,'Lista de Verificação de Fomento'!B:E,4,0),\"\")","v":""},{"$f":"IFERROR(VLOOKUP(B198,'Lista de Verificação de Fomento'!B:G,6,0),\"\")","v":""},null,{"$f":"IF(B198<>\"\",\"Interna:\",\"\")","v":""},null,{"$f":"IF(B198<>\"\",\"Externa:\",\"\")","v":""}]
[null,{"$f":"IFERROR(INDEX('Lista de Verificação de Fomento'!$B$1:$B$396, SMALL(INDEX(('Lista de Verificação de Fomento'!$I$1:$I$396=\"Yes\")*(MATCH(ROW('Lista de Verificação de Fomento'!$I$1:$I$396), ROW('Lista de Verificação de Fomento'!$I$1:$I$396)))+('Lista de Verificação de Fomento'!$I$1:$I$396<>\"Yes\")*1048577, 0, 0), ROW(A195))),\"\")","v":""},{"$f":"IFERROR(VLOOKUP(B199,'Lista de Verificação de Fomento'!B:C,2,0),\"\")","v":""},{"$f":"IFERROR(VLOOKUP(VLOOKUP(B199,'Lista de Verificação de Fomento'!B:J,9,0),DropDowns!G:H,2,0),\"\")","v":""},{"$f":"IFERROR(VLOOKUP(B199,'Lista de Verificação de Fomento'!B:E,4,0),\"\")","v":""},{"$f":"IFERROR(VLOOKUP(B199,'Lista de Verificação de Fomento'!B:G,6,0),\"\")","v":""},null,"",null,""]
[null,{"$f":"IFERROR(INDEX('Lista de Verificação de Fomento'!$B$1:$B$396, SMALL(INDEX(('Lista de Verificação de Fomento'!$I$1:$I$396=\"Yes\")*(MATCH(ROW('Lista de Verificação de Fomento'!$I$1:$I$396), ROW('Lista de Verificação de Fomento'!$I$1:$I$396)))+('Lista de Verificação de Fomento'!$I$1:$I$396<>\"Yes\")*1048577, 0, 0), ROW(A196))),\"\")","v":""},{"$f":"IFERROR(VLOOKUP(B200,'Lista de Verificação de Fomento'!B:C,2,0),\"\")","v":""},{"$f":"IFERROR(VLOOKUP(VLOOKUP(B200,'Lista de Verificação de Fomento'!B:J,9,0),DropDowns!G:H,2,0),\"\")","v":""},{"$f":"IFERROR(VLOOKUP(B200,'Lista de Verificação de Fomento'!B:E,4,0),\"\")","v":""},{"$f":"IFERROR(VLOOKUP(B200,'Lista de Verificação de Fomento'!B:G,6,0),\"\")","v":""},null,"",null,""]

{"sheet":"DropDowns","index":6,"n_rows":26,"n_cols":9,"rows_kept":26,"cut":false,"hidden":true,"merged":[]}
[]
[null,"Status %","Degree",null,"Risk",null,"Group Number","Estate Group Name","Outgrower Group Name"]
[null,"(seleccione a opção)","(select option)",null,"(seleccione o nível)",null,1,"Política Corporativa e Avaliação de Capacidade","Política de Fomento e Avaliação de Capacidade"]
[null,"< 25%","Little",1,1,null,2,"Revisão Legal, Administrativa e Institucional","Revisão Legal, Administrativa e Institucional"]
[null,"26 - 50%","Marginal",2,2,null,3,"Avaliações de Impacto","Avaliações de Impacto"]
[null,"51 - 75%","Substantial",3,3,null,4,"Consultas e Engajamento","Consulta e Engajamento"]
[null,"> 75%","Considerable",4,null,null,5,"Contratação e Acordos","Contratação e Acordos"]
[null,"N/A","Not Applicable",null,null,null,6,"Queixas, Reclamações e Respectivas Respostas","Queixas, Reclamações e Suas Respostas"]
[null,null,null,null,null,null,7,"Invasão"]
[null,null,null,null,null,null,8,"Mudança e Uso da Terra"]
[]
[]
[]
[]
[]
[null,0]
[null,0.1,null,null,null,null,"N/A"]
[null,0.2]
[null,0.3]
[null,0.4]
[null,0.5]
[null,0.6]
[null,0.7]
[null,0.8]
[null,0.9]
[null,1]